Workbook

Sheet Protect
B2: Liberty Midstates
B3: WNAR Filing
B4: Password Protection Worksheet
B6: This worksheet provides password protection for the report pages to prevent unintentional formula changes. The password is "WNAR".
G11: All Report Worksheets are Protected

Sheet Final Checklist
B2: Liberty Midstates
B3: Semi-Annual WNAR Filing
B4: Final Checklist
B7: Data Table List | C7: Check For | D7: Result | E7: Initials | F7: Initials
B8: Validation Lists | C8: Changes from prior filings | D8: Ok until reset by new rate case | E8: RS
B9: Beta Coefficient | C9: Changes from prior filings | D9: Ok until reset by new rate case | E9: RS
B10: Billing Determinants | C10: Changes from prior filings | D10: Ok until reset by new rate case | E10: RS
B11: Volumetric Rates | C11: Changes from prior filings | D11: Ok until reset by new rate case | E11: RS
B12: Chillicothe Temp Adjustment | C12: Changes from prior filings | D12: Ok until reset by new rate case | E12: RS
B13: Ranked Normal HDD | C13: Changes from prior filings | D13: Ok until reset by new rate case | E13: RS
B14: Prior Period Adustments | C14: Additions and corrections add to total adjustment | D14: OK. No adjustments this filing | E14: RS
B15: Volumetric True-Up | C15: Ties out on Reconciliation Worksheet | D15: Checked and ties. | E15: RS
B16: Reconciliation Period Adjustment | C16: Ties out on Reconciliation Worksheet | D16: Checked and ties. | E16: RS
B17: CSWNA Amounts | C17: Ties out on Reconciliation Worksheet | D17: Checked and ties. | E17: RS
B18: WNAR Rates | C18: Ties out on Reconciliation Worksheet | D18: Checked and ties. | E18: RS
B19: Customer Estimated Revenue | C19: Table has been updated. | D19: Checked and updated through December 2024 | E19: RS
B20: Customer Estimated Volume | C20: Table has been updated. | D20: Checked and updated through December 2024 | E20: RS
B21: WNARevAlloc | C21: Ties to Revenue Reports. | D21: Confirmed with Robert Brown in Finance | E21: RS
B22: Meter Read Schedule | C22: Table has been updated. | D22: Checked and updated through August 2023 | E22: RS
B23: Meter Read Sched2 | C23: Redesigned and reformatted for new SAP cycle billing | D23: Checked and updated through December 2024 | E23: RS
B24: NEMO Cycles | C24: Prior to 9/1/2023, each region had a single meter read date for each month. After 9/1/2023, meters were read on multiple cycles each month. These tables take the billing data for each monthly cycle and perform CSWNA calculations. | D24: Checked and ties to reports from Revenue Dept. | E24: RS
B25: SEMO Cycles | E25: RS
B26: WEMO Cycles | E26: RS
B27: CGI Actual Temperatures | C27: Make sure table is updated and RANK SORTED | D27: Downloaded through July 31, 2004. Missing July 3-6, 13. Need to check for later updates. | E27: RS
B28: Chillicothe Actual Temperatures | C28: Make sure table is updated and RANK SORTED | D28: Checked OK. | E28: RS
B31: Report Worksheets | C31: Check For | D31: Result | E31: Initials | F31: Initials
B32: All Report Pages | C32: Correct year and filing period are showing on the dropdown menus. | D32: Checked OK. | E32: RS
B33: Reconciliaion worksheet | C33: No cells are shaded yellow. No inconsistencies indicated. | D33: Checked OK. | E33: RS
B34: Protect worksheet | C34: Password protection is turned on for report worksheets | D34: Checked OK. | E34: RS

Sheet Reconciliation
B2: Reconciiation Worksheet
B3: Worksheets vs. Tables
B4: Year: | C4: =DateSet!C2 -> 2024
B5: Period: | C5: =DateSet!C3 -> S2
B7: CSWNA Amounts
B8: Res | C8: CSWNA Worksheets | F8: CSWNA Amount Table | I8: Difference
B9: Month | C9: NEMO | D9: WEMO | E9: SEMO | F9: NEMO | G9: WEMO | H9: SEMO | I9: NEMO | J9: WEMO | K9: SEMO
B10: ='CSWNA NEMO'!B12 -> 45292 | C10: ='CSWNA NEMO'!E12 -> 59025.78 | D10: ='CSWNA WEMO'!E12 -> 5504.11 | E10: ='CSWNA SEMO'!E12 -> 84318.53 | F10: =SUMPRODUCT((CSWNAAmounts[Month]=$B10)*(CSWNAAmounts[Region]=C$9)*(CSWNAAmounts[CustClass]="Res")*CSWNAAmounts[CSWNA]) -> 59025.78 | G10: =SUMPRODUCT((CSWNAAmounts[Month]=$B10)*(CSWNAAmounts[Region]=D$9)*(CSWNAAmounts[CustClass]="Res")*CSWNAAmounts[CSWNA]) -> 5504.11 | H10: =SUMPRODUCT((CSWNAAmounts[Month]=$B10)*(CSWNAAmounts[Region]=E$9)*(CSWNAAmounts[CustClass]="Res")*CSWNAAmounts[CSWNA]) -> 84318.53 | I10: =F10-C10 -> 0 | J10: =G10-D10 -> 0 | K10: 0
B11: ='CSWNA NEMO'!B13 -> 45323 | C11: ='CSWNA NEMO'!E13 -> 29713.95 | D11: ='CSWNA WEMO'!E13 -> 9800.21 | E11: ='CSWNA SEMO'!E13 -> 23405.81 | F11: =SUMPRODUCT((CSWNAAmounts[Month]=$B11)*(CSWNAAmounts[Region]=C$9)*(CSWNAAmounts[CustClass]="Res")*CSWNAAmounts[CSWNA]) -> 29713.95 | G11: =SUMPRODUCT((CSWNAAmounts[Month]=$B11)*(CSWNAAmounts[Region]=D$9)*(CSWNAAmounts[CustClass]="Res")*CSWNAAmounts[CSWNA]) -> 9800.21 | H11: =SUMPRODUCT((CSWNAAmounts[Month]=$B11)*(CSWNAAmounts[Region]=E$9)*(CSWNAAmounts[CustClass]="Res")*CSWNAAmounts[CSWNA]) -> 23405.81 | I11: =F11-C11 -> 0 | J11: 0 | K11: 0
B12: ='CSWNA NEMO'!B14 -> 45352 | C12: ='CSWNA NEMO'!E14 -> 98739.89 | D12: ='CSWNA WEMO'!E14 -> 20830.6 | E12: ='CSWNA SEMO'!E14 -> 157273.18 | F12: =SUMPRODUCT((CSWNAAmounts[Month]=$B12)*(CSWNAAmounts[Region]=C$9)*(CSWNAAmounts[CustClass]="Res")*CSWNAAmounts[CSWNA]) -> 98739.89 | G12: =SUMPRODUCT((CSWNAAmounts[Month]=$B12)*(CSWNAAmounts[Region]=D$9)*(CSWNAAmounts[CustClass]="Res")*CSWNAAmounts[CSWNA]) -> 20830.6 | H12: =SUMPRODUCT((CSWNAAmounts[Month]=$B12)*(CSWNAAmounts[Region]=E$9)*(CSWNAAmounts[CustClass]="Res")*CSWNAAmounts[CSWNA]) -> 157273.18 | I12: 0 | J12: 0 | K12: 0
B13: ='CSWNA NEMO'!B15 -> 45383 | C13: ='CSWNA NEMO'!E15 -> 86961.53 | D13: ='CSWNA WEMO'!E15 -> 16805.41 | E13: ='CSWNA SEMO'!E15 -> 95751.85 | F13: =SUMPRODUCT((CSWNAAmounts[Month]=$B13)*(CSWNAAmounts[Region]=C$9)*(CSWNAAmounts[CustClass]="Res")*CSWNAAmounts[CSWNA]) -> 86961.53 | G13: =SUMPRODUCT((CSWNAAmounts[Month]=$B13)*(CSWNAAmounts[Region]=D$9)*(CSWNAAmounts[CustClass]="Res")*CSWNAAmounts[CSWNA]) -> 16805.41 | H13: =SUMPRODUCT((CSWNAAmounts[Month]=$B13)*(CSWNAAmounts[Region]=E$9)*(CSWNAAmounts[CustClass]="Res")*CSWNAAmounts[CSWNA]) -> 95751.85 | I13: 0 | J13: 0 | K13: 0
B14: ='CSWNA NEMO'!B16 -> 45413 | C14: ='CSWNA NEMO'!E16 -> 70087.03 | D14: ='CSWNA WEMO'!E16 -> 14478.7 | E14: ='CSWNA SEMO'!E16 -> 54481.31 | F14: =SUMPRODUCT((CSWNAAmounts[Month]=$B14)*(CSWNAAmounts[Region]=C$9)*(CSWNAAmounts[CustClass]="Res")*CSWNAAmounts[CSWNA]) -> 70087.03 | G14: =SUMPRODUCT((CSWNAAmounts[Month]=$B14)*(CSWNAAmounts[Region]=D$9)*(CSWNAAmounts[CustClass]="Res")*CSWNAAmounts[CSWNA]) -> 14478.7 | H14: =SUMPRODUCT((CSWNAAmounts[Month]=$B14)*(CSWNAAmounts[Region]=E$9)*(CSWNAAmounts[CustClass]="Res")*CSWNAAmounts[CSWNA]) -> 54481.31 | I14: 0 | J14: 0 | K14: 0
B15: ='CSWNA NEMO'!B17 -> 45444 | C15: ='CSWNA NEMO'!E17 -> 11057.44 | D15: ='CSWNA WEMO'!E17 -> 2294.25 | E15: ='CSWNA SEMO'!E17 -> 33907.75 | F15: =SUMPRODUCT((CSWNAAmounts[Month]=$B15)*(CSWNAAmounts[Region]=C$9)*(CSWNAAmounts[CustClass]="Res")*CSWNAAmounts[CSWNA]) -> 11057.44 | G15: =SUMPRODUCT((CSWNAAmounts[Month]=$B15)*(CSWNAAmounts[Region]=D$9)*(CSWNAAmounts[CustClass]="Res")*CSWNAAmounts[CSWNA]) -> 2294.25 | H15: =SUMPRODUCT((CSWNAAmounts[Month]=$B15)*(CSWNAAmounts[Region]=E$9)*(CSWNAAmounts[CustClass]="Res")*CSWNAAmounts[CSWNA]) -> 33907.75 | I15: 0 | J15: 0 | K15: 0
B16: Total | C16: =SUM(C10:C15) -> 355585.62 | D16: =SUM(D10:D15) -> 69713.28 | E16: 449138.43 | F16: 355585.62 | G16: 69713.28 | H16: 449138.43 | I16: 0 | J16: 0 | K16: 0
B18: SGS | C18: CSWNA Worksheets | F18: CSWNA Amount Table | I18: Difference
B19: Month | C19: NEMO | D19: WEMO | E19: SEMO | F19: NEMO | G19: WEMO | H19: SEMO | I19: NEMO | J19: WEMO | K19: SEMO
B20: ='CSWNA NEMO'!B25 -> 45292 | C20: ='CSWNA NEMO'!E25 -> 6920.42 | D20: ='CSWNA WEMO'!E25 -> 750.17 | E20: ='CSWNA SEMO'!E25 -> 7360.11 | F20: =SUMPRODUCT((CSWNAAmounts[Month]=$B20)*(CSWNAAmounts[Region]=C$9)*(CSWNAAmounts[CustClass]="SGS")*CSWNAAmounts[CSWNA]) -> 6920.42 | G20: =SUMPRODUCT((CSWNAAmounts[Month]=$B20)*(CSWNAAmounts[Region]=D$9)*(CSWNAAmounts[CustClass]="SGS")*CSWNAAmounts[CSWNA]) -> 750.17 | H20: =SUMPRODUCT((CSWNAAmounts[Month]=$B20)*(CSWNAAmounts[Region]=E$9)*(CSWNAAmounts[CustClass]="SGS")*CSWNAAmounts[CSWNA]) -> 7360.11 | I20: =F20-C20 -> 0 | J20: =G20-D20 -> 0 | K20: =H20-E20 -> 0
B21: ='CSWNA NEMO'!B26 -> 45323 | C21: ='CSWNA NEMO'!E26 -> 3973.08 | D21: ='CSWNA WEMO'!E26 -> 1338.23 | E21: ='CSWNA SEMO'!E26 -> 2348.05 | F21: =SUMPRODUCT((CSWNAAmounts[Month]=$B21)*(CSWNAAmounts[Region]=C$9)*(CSWNAAmounts[CustClass]="SGS")*CSWNAAmounts[CSWNA]) -> 3973.08 | G21: =SUMPRODUCT((CSWNAAmounts[Month]=$B21)*(CSWNAAmounts[Region]=D$9)*(CSWNAAmounts[CustClass]="SGS")*CSWNAAmounts[CSWNA]) -> 1338.23 | H21: =SUMPRODUCT((CSWNAAmounts[Month]=$B21)*(CSWNAAmounts[Region]=E$9)*(CSWNAAmounts[CustClass]="SGS")*CSWNAAmounts[CSWNA]) -> 2348.05 | I21: =F21-C21 -> 0 | J21: 0 | K21: 0
B22: ='CSWNA NEMO'!B27 -> 45352 | C22: ='CSWNA NEMO'!E27 -> 11759.45 | D22: ='CSWNA WEMO'!E27 -> 2883.28 | E22: ='CSWNA SEMO'!E27 -> 13878.8 | F22: =SUMPRODUCT((CSWNAAmounts[Month]=$B22)*(CSWNAAmounts[Region]=C$9)*(CSWNAAmounts[CustClass]="SGS")*CSWNAAmounts[CSWNA]) -> 11759.45 | G22: =SUMPRODUCT((CSWNAAmounts[Month]=$B22)*(CSWNAAmounts[Region]=D$9)*(CSWNAAmounts[CustClass]="SGS")*CSWNAAmounts[CSWNA]) -> 2883.28 | H22: =SUMPRODUCT((CSWNAAmounts[Month]=$B22)*(CSWNAAmounts[Region]=E$9)*(CSWNAAmounts[CustClass]="SGS")*CSWNAAmounts[CSWNA]) -> 13878.8 | I22: 0 | J22: 0 | K22: 0
B23: ='CSWNA NEMO'!B28 -> 45383 | C23: ='CSWNA NEMO'!E28 -> 7885.45 | D23: ='CSWNA WEMO'!E28 -> 1821.94 | E23: ='CSWNA SEMO'!E28 -> 8452.24 | F23: =SUMPRODUCT((CSWNAAmounts[Month]=$B23)*(CSWNAAmounts[Region]=C$9)*(CSWNAAmounts[CustClass]="SGS")*CSWNAAmounts[CSWNA]) -> 7885.45 | G23: =SUMPRODUCT((CSWNAAmounts[Month]=$B23)*(CSWNAAmounts[Region]=D$9)*(CSWNAAmounts[CustClass]="SGS")*CSWNAAmounts[CSWNA]) -> 1821.94 | H23: =SUMPRODUCT((CSWNAAmounts[Month]=$B23)*(CSWNAAmounts[Region]=E$9)*(CSWNAAmounts[CustClass]="SGS")*CSWNAAmounts[CSWNA]) -> 8452.24 | I23: 0 | J23: 0 | K23: 0
B24: ='CSWNA NEMO'!B29 -> 45413 | C24: ='CSWNA NEMO'!E29 -> 8529.87 | D24: ='CSWNA WEMO'!E29 -> 2059.15 | E24: ='CSWNA SEMO'!E29 -> 4860.61 | F24: =SUMPRODUCT((CSWNAAmounts[Month]=$B24)*(CSWNAAmounts[Region]=C$9)*(CSWNAAmounts[CustClass]="SGS")*CSWNAAmounts[CSWNA]) -> 8529.87 | G24: =SUMPRODUCT((CSWNAAmounts[Month]=$B24)*(CSWNAAmounts[Region]=D$9)*(CSWNAAmounts[CustClass]="SGS")*CSWNAAmounts[CSWNA]) -> 2059.15 | H24: =SUMPRODUCT((CSWNAAmounts[Month]=$B24)*(CSWNAAmounts[Region]=E$9)*(CSWNAAmounts[CustClass]="SGS")*CSWNAAmounts[CSWNA]) -> 4860.61 | I24: 0 | J24: 0 | K24: 0
B25: ='CSWNA NEMO'!B30 -> 45444 | C25: ='CSWNA NEMO'!E30 -> 3765.68 | D25: ='CSWNA WEMO'!E30 -> 758.19 | E25: ='CSWNA SEMO'!E30 -> 3023.35 | F25: =SUMPRODUCT((CSWNAAmounts[Month]=$B25)*(CSWNAAmounts[Region]=C$9)*(CSWNAAmounts[CustClass]="SGS")*CSWNAAmounts[CSWNA]) -> 3765.68 | G25: =SUMPRODUCT((CSWNAAmounts[Month]=$B25)*(CSWNAAmounts[Region]=D$9)*(CSWNAAmounts[CustClass]="SGS")*CSWNAAmounts[CSWNA]) -> 758.19 | H25: =SUMPRODUCT((CSWNAAmounts[Month]=$B25)*(CSWNAAmounts[Region]=E$9)*(CSWNAAmounts[CustClass]="SGS")*CSWNAAmounts[CSWNA]) -> 3023.35 | I25: 0 | J25: 0 | K25: 0
B26: Total | C26: =SUM(C20:C25) -> 42833.95 | D26: =SUM(D20:D25) -> 9610.96 | E26: =SUM(E20:E25) -> 39923.16 | F26: =SUM(F20:F25) -> 42833.95 | G26: =SUM(G20:G25) -> 9610.96 | H26: =SUM(H20:H25) -> 39923.16 | I26: =SUM(I20:I25) -> 0 | J26: =SUM(J20:J25) -> 0 | K26: =SUM(K20:K25) -> 0
B28: Reconciliation Period Adjustments
B29: CSWNA | C29: CSWNA Worksheets | E29: ReconPerAdj Table | G29: Difference
B30: Region | C30: Res | D30: SGS | E30: Res | F30: SGS | G30: Res | H30: SGS
B31: NEMO | C31: ='CSWNA NEMO'!C19 -> 355585.62 | D31: ='CSWNA NEMO'!C32 -> 42833.95 | E31: =SUMPRODUCT((ReconPerAdj[Year]=$C$4)*(ReconPerAdj[Period]=$C$5)*(ReconPerAdj[Region]=$B31)*(ReconPerAdj[RateName]=$B$29)*(ReconPerAdj[CustClass]=E$30)*ReconPerAdj[ReconcilingPeriodAdj]) -> 355585.62 | F31: =SUMPRODUCT((ReconPerAdj[Year]=$C$4)*(ReconPerAdj[Period]=$C$5)*(ReconPerAdj[Region]=$B31)*(ReconPerAdj[RateName]=$B$29)*(ReconPerAdj[CustClass]=F$30)*ReconPerAdj[ReconcilingPeriodAdj]) -> 42833.95 | G31: =E31-C31 -> 0 | H31: =F31-D31 -> 0
B32: WEMO | C32: ='CSWNA WEMO'!C19 -> 69713.28 | D32: ='CSWNA WEMO'!C32 -> 9610.96 | E32: =SUMPRODUCT((ReconPerAdj[Year]=$C$4)*(ReconPerAdj[Period]=$C$5)*(ReconPerAdj[Region]=$B32)*(ReconPerAdj[RateName]=$B$29)*(ReconPerAdj[CustClass]=E$30)*ReconPerAdj[ReconcilingPeriodAdj]) -> 69713.28 | F32: =SUMPRODUCT((ReconPerAdj[Year]=$C$4)*(ReconPerAdj[Period]=$C$5)*(ReconPerAdj[Region]=$B32)*(ReconPerAdj[RateName]=$B$29)*(ReconPerAdj[CustClass]=F$30)*ReconPerAdj[ReconcilingPeriodAdj]) -> 9610.96 | G32: =E32-C32 -> 0 | H32: 0
B33: SEMO | C33: ='CSWNA SEMO'!C19 -> 449138.43 | D33: ='CSWNA SEMO'!C32 -> 39923.16 | E33: =SUMPRODUCT((ReconPerAdj[Year]=$C$4)*(ReconPerAdj[Period]=$C$5)*(ReconPerAdj[Region]=$B33)*(ReconPerAdj[RateName]=$B$29)*(ReconPerAdj[CustClass]=E$30)*ReconPerAdj[ReconcilingPeriodAdj]) -> 449138.43 | F33: =SUMPRODUCT((ReconPerAdj[Year]=$C$4)*(ReconPerAdj[Period]=$C$5)*(ReconPerAdj[Region]=$B33)*(ReconPerAdj[RateName]=$B$29)*(ReconPerAdj[CustClass]=F$30)*ReconPerAdj[ReconcilingPeriodAdj]) -> 39923.16 | G33: 0 | H33: 0
B34: SRR | C34: SRR Summary Worksheet | E34: ReconPerAdj Table | G34: Difference
B35: Region | C35: Res | D35: SGS | E35: Res | F35: SGS | G35: Res | H35: SGS
B36: NEMO | C36: ='SRR Summary'!C61 -> 26888.6 | D36: ='SRR Summary'!F61 -> 2585.48 | E36: =SUMPRODUCT((ReconPerAdj[Year]=$C$4)*(ReconPerAdj[Period]=$C$5)*(ReconPerAdj[Region]=$B36)*(ReconPerAdj[RateName]=$B$34)*(ReconPerAdj[CustClass]=E$35)*ReconPerAdj[ReconcilingPeriodAdj]) -> 26888.6 | F36: =SUMPRODUCT((ReconPerAdj[Year]=$C$4)*(ReconPerAdj[Period]=$C$5)*(ReconPerAdj[Region]=$B36)*(ReconPerAdj[RateName]=$B$34)*(ReconPerAdj[CustClass]=F$35)*ReconPerAdj[ReconcilingPeriodAdj]) -> 2585.48 | G36: =E36-C36 -> 0 | H36: =F36-D36 -> 0
B37: WEMO | C37: ='SRR Summary'!D61 -> 5728.79 | D37: ='SRR Summary'!G61 -> 355.68 | E37: =SUMPRODUCT((ReconPerAdj[Year]=$C$4)*(ReconPerAdj[Period]=$C$5)*(ReconPerAdj[Region]=$B37)*(ReconPerAdj[RateName]=$B$34)*(ReconPerAdj[CustClass]=E$35)*ReconPerAdj[ReconcilingPeriodAdj]) -> 5728.79 | F37: =SUMPRODUCT((ReconPerAdj[Year]=$C$4)*(ReconPerAdj[Period]=$C$5)*(ReconPerAdj[Region]=$B37)*(ReconPerAdj[RateName]=$B$34)*(ReconPerAdj[CustClass]=F$35)*ReconPerAdj[ReconcilingPeriodAdj]) -> 355.68 | G37: =E37-C37 -> 0 | H37: 0
B38: SEMO | C38: ='SRR Summary'!I61 -> 57213.46 | D38: ='SRR Summary'!J61 -> 1325.11 | E38: =SUMPRODUCT((ReconPerAdj[Year]=$C$4)*(ReconPerAdj[Period]=$C$5)*(ReconPerAdj[Region]=$B38)*(ReconPerAdj[RateName]=$B$34)*(ReconPerAdj[CustClass]=E$35)*ReconPerAdj[ReconcilingPeriodAdj]) -> 57213.46 | F38: =SUMPRODUCT((ReconPerAdj[Year]=$C$4)*(ReconPerAdj[Period]=$C$5)*(ReconPerAdj[Region]=$B38)*(ReconPerAdj[RateName]=$B$34)*(ReconPerAdj[CustClass]=F$35)*ReconPerAdj[ReconcilingPeriodAdj]) -> 1325.11 | G38: 0 | H38: 0
B40: SRR Volumetric True-Ups
C41: SRR Worksheets | E41: VolTrueUp Table | G41: Difference
B42: Region | C42: Res | D42: SGS | E42: Res | F42: SGS | G42: Res | H42: SGS
B43: NEMO | C43: ='SRR NEMO'!C22 -> 6645.29 | D43: ='SRR NEMO'!C37 -> 1233.08 | E43: =SUMPRODUCT((VolTrueUp[Year]=$C$4)*(VolTrueUp[Period]=$C$5)*(VolTrueUp[Region]=$B43)*(VolTrueUp[CustClass]=E$42)*VolTrueUp[TrueUp]) -> 6645.29 | F43: =SUMPRODUCT((VolTrueUp[Year]=$C$4)*(VolTrueUp[Period]=$C$5)*(VolTrueUp[Region]=$B43)*(VolTrueUp[CustClass]=F$42)*VolTrueUp[TrueUp]) -> 1233.08 | G43: =E43-C43 -> 0 | H43: =F43-D43 -> 0
B44: WEMO | C44: ='SRR WEMO'!C22 -> -324.51 | D44: ='SRR WEMO'!C37 -> -43.32 | E44: =SUMPRODUCT((VolTrueUp[Year]=$C$4)*(VolTrueUp[Period]=$C$5)*(VolTrueUp[Region]=$B44)*(VolTrueUp[CustClass]=E$42)*VolTrueUp[TrueUp]) -> -324.51 | F44: =SUMPRODUCT((VolTrueUp[Year]=$C$4)*(VolTrueUp[Period]=$C$5)*(VolTrueUp[Region]=$B44)*(VolTrueUp[CustClass]=F$42)*VolTrueUp[TrueUp]) -> -43.32 | G44: =E44-C44 -> 0 | H44: 0
B45: SEMO | C45: ='SRR SEMO'!C22 -> -85.67 | D45: ='SRR SEMO'!C37 -> -17.25 | E45: =SUMPRODUCT((VolTrueUp[Year]=$C$4)*(VolTrueUp[Period]=$C$5)*(VolTrueUp[Region]=$B45)*(VolTrueUp[CustClass]=E$42)*VolTrueUp[TrueUp]) -> -85.67 | F45: =SUMPRODUCT((VolTrueUp[Year]=$C$4)*(VolTrueUp[Period]=$C$5)*(VolTrueUp[Region]=$B45)*(VolTrueUp[CustClass]=F$42)*VolTrueUp[TrueUp]) -> -17.25 | G45: 0 | H45: 0
B47: WNAR Rates
B48: CSWNA | C48: CSWNA Summary Worksht | E48: WNAR Rates Table | G48: Difference
B49: Region | C49: Res | D49: SGS | E49: Res | F49: SGS | G49: Res | H49: SGS
B50: NEMO | C50: ='CSWNA Summary'!E26 -> 0.03215 | D50: ='CSWNA Summary'!H26 -> 0.01328 | E50: =SUMPRODUCT((WNARRates[Year]=$C$4)*(WNARRates[Period]=$C$5)*(WNARRates[Region]=$B50)*(WNARRates[CustClass]=E$49)*WNARRates[AdjCSWNA]) -> 0.03215 | F50: =SUMPRODUCT((WNARRates[Year]=$C$4)*(WNARRates[Period]=$C$5)*(WNARRates[Region]=$B50)*(WNARRates[CustClass]=F$49)*WNARRates[AdjCSWNA]) -> 0.01328 | G50: =E50-C50 -> 0 | H50: =F50-D50 -> 0
B51: WEMO | C51: ='CSWNA Summary'!E26 -> 0.03215 | D51: ='CSWNA Summary'!H26 -> 0.01328 | E51: =SUMPRODUCT((WNARRates[Year]=$C$4)*(WNARRates[Period]=$C$5)*(WNARRates[Region]=$B51)*(WNARRates[CustClass]=E$49)*WNARRates[AdjCSWNA]) -> 0.03215 | F51: =SUMPRODUCT((WNARRates[Year]=$C$4)*(WNARRates[Period]=$C$5)*(WNARRates[Region]=$B51)*(WNARRates[CustClass]=F$49)*WNARRates[AdjCSWNA]) -> 0.01328 | G51: =E51-C51 -> 0 | H51: 0
B52: SEMO | C52: ='CSWNA Summary'!I26 -> 0.02935 | D52: ='CSWNA Summary'!J26 -> 0.01021 | E52: =SUMPRODUCT((WNARRates[Year]=$C$4)*(WNARRates[Period]=$C$5)*(WNARRates[Region]=$B52)*(WNARRates[CustClass]=E$49)*WNARRates[AdjCSWNA]) -> 0.02935 | F52: =SUMPRODUCT((WNARRates[Year]=$C$4)*(WNARRates[Period]=$C$5)*(WNARRates[Region]=$B52)*(WNARRates[CustClass]=F$49)*WNARRates[AdjCSWNA]) -> 0.01021 | G52: 0 | H52: 0
B53: SRR | C53: SRR Summary Worksheet | E53: WNAR Rates Table | G53: Difference
B54: Region | C54: Res | D54: SGS | E54: Res | F54: SGS | G54: Res | H54: SGS
B55: NEMO | C55: ='SRR Summary'!C84 -> 0.00247 | D55: ='SRR Summary'!D84 -> 0.00074 | E55: =SUMPRODUCT((WNARRates[Year]=$C$4)*(WNARRates[Period]=$C$5)*(WNARRates[Region]=$B55)*(WNARRates[CustClass]=E$54)*WNARRates[AdjSRR]) -> 0.00247 | F55: =SUMPRODUCT((WNARRates[Year]=$C$4)*(WNARRates[Period]=$C$5)*(WNARRates[Region]=$B55)*(WNARRates[CustClass]=F$54)*WNARRates[AdjSRR]) -> 0.00074 | G55: =E55-C55 -> 0 | H55: =F55-D55 -> 0
B56: WEMO | C56: ='SRR Summary'!C84 -> 0.00247 | D56: ='SRR Summary'!D84 -> 0.00074 | E56: =SUMPRODUCT((WNARRates[Year]=$C$4)*(WNARRates[Period]=$C$5)*(WNARRates[Region]=$B56)*(WNARRates[CustClass]=E$54)*WNARRates[AdjSRR]) -> 0.00247 | F56: =SUMPRODUCT((WNARRates[Year]=$C$4)*(WNARRates[Period]=$C$5)*(WNARRates[Region]=$B56)*(WNARRates[CustClass]=F$54)*WNARRates[AdjSRR]) -> 0.00074 | G56: =E56-C56 -> 0 | H56: 0
B57: SEMO | C57: ='SRR Summary'!E84 -> 0.00374 | D57: ='SRR Summary'!F84 -> 0.00034 | E57: =SUMPRODUCT((WNARRates[Year]=$C$4)*(WNARRates[Period]=$C$5)*(WNARRates[Region]=$B57)*(WNARRates[CustClass]=E$54)*WNARRates[AdjSRR]) -> 0.00374 | F57: =SUMPRODUCT((WNARRates[Year]=$C$4)*(WNARRates[Period]=$C$5)*(WNARRates[Region]=$B57)*(WNARRates[CustClass]=F$54)*WNARRates[AdjSRR]) -> 0.00034 | G57: 0 | H57: 0

Sheet Rates - Sheets 67.2-67.5
D1: Liberty Utilities (Midstates Natural Gas) Corp.
D2: Weather Normalization Adjustment Rider
D3: Semiannual Adjustment Filing
D4: Tariff Rates
D5: Sheets 67.2 through 67.5
B9: Residential Rates for Northeast and West District (Sheet No. 67.2)
B11: CWNA Table: | H11: Lookup Criteria
B12: Period | C12: Rate First Effective | D12: Months | E12: Rate Ending Effective | F12: CSWNA (Annual) | H12: Region | I12: Cust Class | J12: Rate Name
B13: =DateSet!L4 -> 2023 S2 | C13: =DateSet!M4 -> 45200 | D13: 12 | E13: =EOMONTH(C13,11) -> 2024-09-30 | F13: =SUMPRODUCT((WNARRates[BeginDate]=C13)*(WNARRates[Region]=H13)*(WNARRates[CustClass]=I13)*WNARRates[AdjCSWNA]) -> 0.01185 | H13: NEMO | I13: Res | J13: CSWNA
B14: =DateSet!L5 -> 2024 S1 | C14: =DateSet!M5 -> 45383 | D14: 12 | E14: =EOMONTH(C14,11) -> 2025-03-31 | F14: =SUMPRODUCT((WNARRates[BeginDate]=C14)*(WNARRates[Region]=H14)*(WNARRates[CustClass]=I14)*WNARRates[AdjCSWNA]) -> 0.01137 | H14: NEMO | I14: Res | J14: CSWNA
B15: =DateSet!L6 -> 2024 S2 | C15: =DateSet!M6 -> 45566 | D15: 12 | E15: =EOMONTH(C15,11) -> 2025-09-30 | F15: =SUMPRODUCT((WNARRates[BeginDate]=C15)*(WNARRates[Region]=H15)*(WNARRates[CustClass]=I15)*WNARRates[AdjCSWNA]) -> 0.03215 | H15: NEMO | I15: Res | J15: CSWNA
B17: SRR Table:
B18: Period | C18: Rate First Effective | D18: Months | E18: Rate Ending Effective | F18: SRR (Annual)
B19: =$B$13 -> 2023 S2 | C19: =$C$13 -> 45200 | D19: 12 | E19: =EOMONTH(C19,11) -> 2024-09-30 | F19: =SUMPRODUCT((WNARRates[BeginDate]=C19)*(WNARRates[Region]=H19)*(WNARRates[CustClass]=I19)*WNARRates[AdjSRR]) -> -0.00029 | H19: NEMO | I19: Res | J19: SRR
B20: =$B$14 -> 2024 S1 | C20: =$C$14 -> 45383 | D20: 12 | E20: =EOMONTH(C20,11) -> 2025-03-31 | F20: =SUMPRODUCT((WNARRates[BeginDate]=C20)*(WNARRates[Region]=H20)*(WNARRates[CustClass]=I20)*WNARRates[AdjSRR]) -> 0.00133 | H20: NEMO | I20: Res | J20: SRR
B21: =$B$15 -> 2024 S2 | C21: =$C$15 -> 45566 | D21: 12 | E21: =EOMONTH(C21,11) -> 2025-09-30 | F21: =SUMPRODUCT((WNARRates[BeginDate]=C21)*(WNARRates[Region]=H21)*(WNARRates[CustClass]=I21)*WNARRates[AdjSRR]) -> 0.00247 | H21: NEMO | I21: Res | J21: SRR
B23: WNA Rider Rate:
B24: Period | C24: Rate First Effective | D24: Months | E24: Rate Ending Effective | F24: WNA (Semiannual)
B25: =$B$14 -> 2024 S1 | C25: =$C$14 -> 45383 | D25: 6 | E25: =EOMONTH(C25,D25-1) -> 2024-09-30 | F25: =SUMPRODUCT((WNARRates[BeginDate]<=C25)*(WNARRates[EndDate]>=C25)*(WNARRates[Region]=H25)*(WNARRates[CustClass]=I25)*WNARRates[AdjSRR])+SUMPRODUCT((WNARRates[BeginDate]<=C25)*(WNARRates[EndDate]>=C25)*(WNARRates[Region]=H25)*(WNARRates[CustClass]=I25)*WNARRates[AdjCSWNA]) -> 0.02426 | H25: NEMO | I25: Res | J25: WNA
B26: =$B$15 -> 2024 S2 | C26: =$C$15 -> 45566 | D26: 6 | E26: =EOMONTH(C26,D26-1) -> 2025-03-31 | F26: =SUMPRODUCT((WNARRates[BeginDate]<=C26)*(WNARRates[EndDate]>=C26)*(WNARRates[Region]=H26)*(WNARRates[CustClass]=I26)*WNARRates[AdjSRR])+SUMPRODUCT((WNARRates[BeginDate]<=C26)*(WNARRates[EndDate]>=C26)*(WNARRates[Region]=H26)*(WNARRates[CustClass]=I26)*WNARRates[AdjCSWNA]) -> 0.04732 | H26: NEMO | I26: Res | J26: WNA
B28: Residential Rates for Southeast District (Sheet No. 67.3)
B30: CWNA Table:
B31: Period | C31: Rate First Effective | D31: Months | E31: Rate Ending Effective | F31: CSWNA (Annual)
B32: =$B$13 -> 2023 S2 | C32: =$C$13 -> 45200 | D32: 12 | E32: =EOMONTH(C32,11) -> 2024-09-30 | F32: =SUMPRODUCT((WNARRates[BeginDate]=C32)*(WNARRates[Region]=H32)*(WNARRates[CustClass]=I32)*WNARRates[AdjCSWNA]) -> 0.02493 | H32: SEMO | I32: Res | J32: CSWNA
B33: =$B$14 -> 2024 S1 | C33: =$C$14 -> 45383 | D33: 12 | E33: =EOMONTH(C33,11) -> 2025-03-31 | F33: =SUMPRODUCT((WNARRates[BeginDate]=C33)*(WNARRates[Region]=H33)*(WNARRates[CustClass]=I33)*WNARRates[AdjCSWNA]) -> 0.00666 | H33: SEMO | I33: Res | J33: CSWNA
B34: =$B$15 -> 2024 S2 | C34: =$C$15 -> 45566 | D34: 12 | E34: =EOMONTH(C34,11) -> 2025-09-30 | F34: =SUMPRODUCT((WNARRates[BeginDate]=C34)*(WNARRates[Region]=H34)*(WNARRates[CustClass]=I34)*WNARRates[AdjCSWNA]) -> 0.02935 | H34: SEMO | I34: Res | J34: CSWNA
B36: SRR Table:
B37: Period | C37: Rate First Effective | D37: Months | E37: Rate Ending Effective | F37: SRR (Annual)
B38: =$B$13 -> 2023 S2 | C38: =$C$13 -> 45200 | D38: 12 | E38: =EOMONTH(C38,11) -> 2024-09-30 | F38: =SUMPRODUCT((WNARRates[BeginDate]=C38)*(WNARRates[Region]=H38)*(WNARRates[CustClass]=I38)*WNARRates[AdjSRR]) -> 0.00015 | H38: SEMO | I38: Res | J38: SRR
B39: =$B$14 -> 2024 S1 | C39: =$C$14 -> 45383 | D39: 12 | E39: =EOMONTH(C39,11) -> 2025-03-31 | F39: =SUMPRODUCT((WNARRates[BeginDate]=C39)*(WNARRates[Region]=H39)*(WNARRates[CustClass]=I39)*WNARRates[AdjSRR]) -> -0.00222 | H39: SEMO | I39: Res | J39: SRR
B40: =$B$15 -> 2024 S2 | C40: =$C$15 -> 45566 | D40: 12 | E40: =EOMONTH(C40,11) -> 2025-09-30 | F40: =SUMPRODUCT((WNARRates[BeginDate]=C40)*(WNARRates[Region]=H40)*(WNARRates[CustClass]=I40)*WNARRates[AdjSRR]) -> 0.00374 | H40: SEMO | I40: Res | J40: SRR
B42: WNA Rider Rate:
B43: Period | C43: Rate First Effective | D43: Months | E43: Rate Ending Effective | F43: WNA (Semiannual)
B44: =$B$14 -> 2024 S1 | C44: =$C$14 -> 45383 | D44: 6 | E44: =EOMONTH(C44,D44-1) -> 2024-09-30 | F44: =SUMPRODUCT((WNARRates[BeginDate]<=C44)*(WNARRates[EndDate]>=C44)*(WNARRates[Region]=H44)*(WNARRates[CustClass]=I44)*WNARRates[AdjSRR])+SUMPRODUCT((WNARRates[BeginDate]<=C44)*(WNARRates[EndDate]>=C44)*(WNARRates[Region]=H44)*(WNARRates[CustClass]=I44)*WNARRates[AdjCSWNA]) -> 0.02952 | H44: SEMO | I44: Res | J44: WNA
B45: =$B$15 -> 2024 S2 | C45: =$C$15 -> 45566 | D45: 6 | E45: =EOMONTH(C45,D45-1) -> 2025-03-31 | F45: =SUMPRODUCT((WNARRates[BeginDate]<=C45)*(WNARRates[EndDate]>=C45)*(WNARRates[Region]=H45)*(WNARRates[CustClass]=I45)*WNARRates[AdjSRR])+SUMPRODUCT((WNARRates[BeginDate]<=C45)*(WNARRates[EndDate]>=C45)*(WNARRates[Region]=H45)*(WNARRates[CustClass]=I45)*WNARRates[AdjCSWNA]) -> 0.03753 | H45: SEMO | I45: Res | J45: WNA
B48: SGS Rates for Northeast and West District (Sheet No. 67.4)
B50: CWNA Table:
B51: Period | C51: Rate First Effective | D51: Months | E51: Rate Ending Effective | F51: CSWNA (Annual)
B52: =$B$13 -> 2023 S2 | C52: =$C$13 -> 45200 | D52: 12 | E52: =EOMONTH(C52,11) -> 2024-09-30 | F52: =SUMPRODUCT((WNARRates[BeginDate]=C52)*(WNARRates[Region]=H52)*(WNARRates[CustClass]=I52)*WNARRates[AdjCSWNA]) -> 0.00493 | H52: NEMO | I52: SGS | J52: CSWNA
B53: =$B$14 -> 2024 S1 | C53: =$C$14 -> 45383 | D53: 12 | E53: =EOMONTH(C53,11) -> 2025-03-31 | F53: =SUMPRODUCT((WNARRates[BeginDate]=C53)*(WNARRates[Region]=H53)*(WNARRates[CustClass]=I53)*WNARRates[AdjCSWNA]) -> 0.00477 | H53: NEMO | I53: SGS | J53: CSWNA
B54: =$B$15 -> 2024 S2 | C54: =$C$15 -> 45566 | D54: 12 | E54: =EOMONTH(C54,11) -> 2025-09-30 | F54: =SUMPRODUCT((WNARRates[BeginDate]=C54)*(WNARRates[Region]=H54)*(WNARRates[CustClass]=I54)*WNARRates[AdjCSWNA]) -> 0.01328 | H54: NEMO | I54: SGS | J54: CSWNA
B56: SRR Table:
B57: Period | C57: Rate First Effective | D57: Months | E57: Rate Ending Effective | F57: SRR (Annual)
B58: =$B$13 -> 2023 S2 | C58: =$C$13 -> 45200 | D58: 12 | E58: =EOMONTH(C58,11) -> 2024-09-30 | F58: =SUMPRODUCT((WNARRates[BeginDate]=C58)*(WNARRates[Region]=H58)*(WNARRates[CustClass]=I58)*WNARRates[AdjSRR]) -> 0.0007 | H58: NEMO | I58: SGS | J58: SRR
B59: =$B$14 -> 2024 S1 | C59: =$C$14 -> 45383 | D59: 12 | E59: =EOMONTH(C59,11) -> 2025-03-31 | F59: =SUMPRODUCT((WNARRates[BeginDate]=C59)*(WNARRates[Region]=H59)*(WNARRates[CustClass]=I59)*WNARRates[AdjSRR]) -> 0.00391 | H59: NEMO | I59: SGS | J59: SRR
B60: =$B$15 -> 2024 S2 | C60: =$C$15 -> 45566 | D60: 12 | E60: =EOMONTH(C60,11) -> 2025-09-30 | F60: =SUMPRODUCT((WNARRates[BeginDate]=C60)*(WNARRates[Region]=H60)*(WNARRates[CustClass]=I60)*WNARRates[AdjSRR]) -> 0.00074 | H60: NEMO | I60: SGS | J60: SRR
B62: WNA Rider Rate:
B63: Period | C63: Rate First Effective | D63: Months | E63: Rate Ending Effective | F63: WNA (Semiannual)
B64: =$B$14 -> 2024 S1 | C64: =$C$14 -> 45383 | D64: 6 | E64: =EOMONTH(C64,D64-1) -> 2024-09-30 | F64: =SUMPRODUCT((WNARRates[BeginDate]<=C64)*(WNARRates[EndDate]>=C64)*(WNARRates[Region]=H64)*(WNARRates[CustClass]=I64)*WNARRates[AdjSRR])+SUMPRODUCT((WNARRates[BeginDate]<=C64)*(WNARRates[EndDate]>=C64)*(WNARRates[Region]=H64)*(WNARRates[CustClass]=I64)*WNARRates[AdjCSWNA]) -> 0.01431 | H64: NEMO | I64: SGS | J64: WNA
B65: =$B$15 -> 2024 S2 | C65: =$C$15 -> 45566 | D65: 6 | E65: =EOMONTH(C65,D65-1) -> 2025-03-31 | F65: =SUMPRODUCT((WNARRates[BeginDate]<=C65)*(WNARRates[EndDate]>=C65)*(WNARRates[Region]=H65)*(WNARRates[CustClass]=I65)*WNARRates[AdjSRR])+SUMPRODUCT((WNARRates[BeginDate]<=C65)*(WNARRates[EndDate]>=C65)*(WNARRates[Region]=H65)*(WNARRates[CustClass]=I65)*WNARRates[AdjCSWNA]) -> 0.0227 | H65: NEMO | I65: SGS | J65: WNA
B67: SGS Rates for Southeast District (Sheet No. 67.5)
B69: CWNA Table:
B70: Period | C70: Rate First Effective | D70: Months | E70: Rate Ending Effective | F70: CSWNA (Annual)
B71: =$B$13 -> 2023 S2 | C71: =$C$13 -> 45200 | D71: 12 | E71: =EOMONTH(C71,11) -> 2024-09-30 | F71: =SUMPRODUCT((WNARRates[BeginDate]=C71)*(WNARRates[Region]=H71)*(WNARRates[CustClass]=I71)*WNARRates[AdjCSWNA]) -> 0.00864 | H71: SEMO | I71: SGS | J71: CSWNA
B72: =$B$14 -> 2024 S1 | C72: =$C$14 -> 45383 | D72: 12 | E72: =EOMONTH(C72,11) -> 2025-03-31 | F72: =SUMPRODUCT((WNARRates[BeginDate]=C72)*(WNARRates[Region]=H72)*(WNARRates[CustClass]=I72)*WNARRates[AdjCSWNA]) -> 0.00237 | H72: SEMO | I72: SGS | J72: CSWNA
B73: =$B$15 -> 2024 S2 | C73: =$C$15 -> 45566 | D73: 12 | E73: =EOMONTH(C73,11) -> 2025-09-30 | F73: =SUMPRODUCT((WNARRates[BeginDate]=C73)*(WNARRates[Region]=H73)*(WNARRates[CustClass]=I73)*WNARRates[AdjCSWNA]) -> 0.01021 | H73: SEMO | I73: SGS | J73: CSWNA
B75: SRR Table:
B76: Period | C76: Rate First Effective | D76: Months | E76: Rate Ending Effective | F76: SRR (Annual)
B77: =$B$13 -> 2023 S2 | C77: =$C$13 -> 45200 | D77: 12 | E77: =EOMONTH(C77,11) -> 2024-09-30 | F77: =SUMPRODUCT((WNARRates[BeginDate]=C77)*(WNARRates[Region]=H77)*(WNARRates[CustClass]=I77)*WNARRates[AdjSRR]) -> 0 | H77: SEMO | I77: SGS | J77: SRR
B78: =$B$14 -> 2024 S1 | C78: =$C$14 -> 45383 | D78: 12 | E78: =EOMONTH(C78,11) -> 2025-03-31 | F78: =SUMPRODUCT((WNARRates[BeginDate]=C78)*(WNARRates[Region]=H78)*(WNARRates[CustClass]=I78)*WNARRates[AdjSRR]) -> -0.00048 | H78: SEMO | I78: SGS | J78: SRR
B79: =$B$15 -> 2024 S2 | C79: =$C$15 -> 45566 | D79: 12 | E79: =EOMONTH(C79,11) -> 2025-09-30 | F79: =SUMPRODUCT((WNARRates[BeginDate]=C79)*(WNARRates[Region]=H79)*(WNARRates[CustClass]=I79)*WNARRates[AdjSRR]) -> 0.00034 | H79: SEMO | I79: SGS | J79: SRR
B81: WNA Rider Rate:
B82: Period | C82: Rate First Effective | D82: Months | E82: Rate Ending Effective | F82: WNA (Semiannual)
B83: =$B$14 -> 2024 S1 | C83: =$C$14 -> 45383 | D83: 6 | E83: =EOMONTH(C83,D83-1) -> 2024-09-30 | F83: =SUMPRODUCT((WNARRates[BeginDate]<=C83)*(WNARRates[EndDate]>=C83)*(WNARRates[Region]=H83)*(WNARRates[CustClass]=I83)*WNARRates[AdjSRR])+SUMPRODUCT((WNARRates[BeginDate]<=C83)*(WNARRates[EndDate]>=C83)*(WNARRates[Region]=H83)*(WNARRates[CustClass]=I83)*WNARRates[AdjCSWNA]) -> 0.01053 | H83: SEMO | I83: SGS | J83: WNA
B84: =$B$15 -> 2024 S2 | C84: =$C$15 -> 45566 | D84: 6 | E84: =EOMONTH(C84,D84-1) -> 2025-03-31 | F84: =SUMPRODUCT((WNARRates[BeginDate]<=C84)*(WNARRates[EndDate]>=C84)*(WNARRates[Region]=H84)*(WNARRates[CustClass]=I84)*WNARRates[AdjSRR])+SUMPRODUCT((WNARRates[BeginDate]<=C84)*(WNARRates[EndDate]>=C84)*(WNARRates[Region]=H84)*(WNARRates[CustClass]=I84)*WNARRates[AdjCSWNA]) -> 0.01244 | H84: SEMO | I84: SGS | J84: WNA

Sheet CSWNA Summary
B2: Liberty Midstates | E2: Filing Period
B3: WNAR Filing | E3: Year | F3: Period
B4: CSWNA Summary
B5: Year | C5: =DateSet!C2 -> 2024
B6: Period | C6: =DateSet!C3 -> S2
B7: CSWNA Analysis | C7: =DateSet!J8 -> 45292
B8: New Rate Effec. | C8: =DateSet!D4 -> 45566
B10: Current Period Dollar Adjustment
B11: Customer Class | C11: Res | F11: SGS | I11: Res | J11: SGS | K11: Notes
B12: Month | C12: NEMO | D12: WEMO | E12: Combined | F12: NEMO | G12: WEMO | H12: Combined | I12: SEMO | J12: SEMO
B13: =C7 -> 2024-01-01 | C13: =SUMPRODUCT((CSWNAAmounts[Month]=$B13)*(CSWNAAmounts[CustClass]=$C$11)*(CSWNAAmounts[Region]=C$12)*CSWNAAmounts[CSWNA]) -> 59025.78 | D13: =SUMPRODUCT((CSWNAAmounts[Month]=$B13)*(CSWNAAmounts[CustClass]=$C$11)*(CSWNAAmounts[Region]=D$12)*CSWNAAmounts[CSWNA]) -> 5504.11 | E13: =C13+D13 -> 64529.89 | F13: =SUMPRODUCT((CSWNAAmounts[Month]=$B13)*(CSWNAAmounts[CustClass]=$F$11)*(CSWNAAmounts[Region]=F$12)*CSWNAAmounts[CSWNA]) -> 6920.42 | G13: =SUMPRODUCT((CSWNAAmounts[Month]=$B13)*(CSWNAAmounts[CustClass]=$F$11)*(CSWNAAmounts[Region]=G$12)*CSWNAAmounts[CSWNA]) -> 750.17 | H13: =F13+G13 -> 7670.59 | I13: =SUMPRODUCT((CSWNAAmounts[Month]=$B13)*(CSWNAAmounts[CustClass]=$I$11)*(CSWNAAmounts[Region]=I$12)*CSWNAAmounts[CSWNA]) -> 84318.53 | J13: =SUMPRODUCT((CSWNAAmounts[Month]=$B13)*(CSWNAAmounts[CustClass]=$J$11)*(CSWNAAmounts[Region]=J$12)*CSWNAAmounts[CSWNA]) -> 7360.11 | K13: From CSWNAAmounts Table
B14: =EDATE(B13,1) -> 2024-02-01 | C14: =SUMPRODUCT((CSWNAAmounts[Month]=$B14)*(CSWNAAmounts[CustClass]=$C$11)*(CSWNAAmounts[Region]=C$12)*CSWNAAmounts[CSWNA]) -> 29713.95 | D14: =SUMPRODUCT((CSWNAAmounts[Month]=$B14)*(CSWNAAmounts[CustClass]=$C$11)*(CSWNAAmounts[Region]=D$12)*CSWNAAmounts[CSWNA]) -> 9800.21 | E14: =C14+D14 -> 39514.16 | F14: =SUMPRODUCT((CSWNAAmounts[Month]=$B14)*(CSWNAAmounts[CustClass]=$F$11)*(CSWNAAmounts[Region]=F$12)*CSWNAAmounts[CSWNA]) -> 3973.08 | G14: =SUMPRODUCT((CSWNAAmounts[Month]=$B14)*(CSWNAAmounts[CustClass]=$F$11)*(CSWNAAmounts[Region]=G$12)*CSWNAAmounts[CSWNA]) -> 1338.23 | H14: =F14+G14 -> 5311.31 | I14: =SUMPRODUCT((CSWNAAmounts[Month]=$B14)*(CSWNAAmounts[CustClass]=$I$11)*(CSWNAAmounts[Region]=I$12)*CSWNAAmounts[CSWNA]) -> 23405.81 | J14: =SUMPRODUCT((CSWNAAmounts[Month]=$B14)*(CSWNAAmounts[CustClass]=$J$11)*(CSWNAAmounts[Region]=J$12)*CSWNAAmounts[CSWNA]) -> 2348.05 | K14: From CSWNAAmounts Table
B15: =EDATE(B14,1) -> 2024-03-01 | C15: =SUMPRODUCT((CSWNAAmounts[Month]=$B15)*(CSWNAAmounts[CustClass]=$C$11)*(CSWNAAmounts[Region]=C$12)*CSWNAAmounts[CSWNA]) -> 98739.89 | D15: =SUMPRODUCT((CSWNAAmounts[Month]=$B15)*(CSWNAAmounts[CustClass]=$C$11)*(CSWNAAmounts[Region]=D$12)*CSWNAAmounts[CSWNA]) -> 20830.6 | E15: 119570.49 | F15: =SUMPRODUCT((CSWNAAmounts[Month]=$B15)*(CSWNAAmounts[CustClass]=$F$11)*(CSWNAAmounts[Region]=F$12)*CSWNAAmounts[CSWNA]) -> 11759.45 | G15: =SUMPRODUCT((CSWNAAmounts[Month]=$B15)*(CSWNAAmounts[CustClass]=$F$11)*(CSWNAAmounts[Region]=G$12)*CSWNAAmounts[CSWNA]) -> 2883.28 | H15: 14642.73 | I15: =SUMPRODUCT((CSWNAAmounts[Month]=$B15)*(CSWNAAmounts[CustClass]=$I$11)*(CSWNAAmounts[Region]=I$12)*CSWNAAmounts[CSWNA]) -> 157273.18 | J15: =SUMPRODUCT((CSWNAAmounts[Month]=$B15)*(CSWNAAmounts[CustClass]=$J$11)*(CSWNAAmounts[Region]=J$12)*CSWNAAmounts[CSWNA]) -> 13878.8 | K15: From CSWNAAmounts Table
B16: 2024-04-01 | C16: =SUMPRODUCT((CSWNAAmounts[Month]=$B16)*(CSWNAAmounts[CustClass]=$C$11)*(CSWNAAmounts[Region]=C$12)*CSWNAAmounts[CSWNA]) -> 86961.53 | D16: =SUMPRODUCT((CSWNAAmounts[Month]=$B16)*(CSWNAAmounts[CustClass]=$C$11)*(CSWNAAmounts[Region]=D$12)*CSWNAAmounts[CSWNA]) -> 16805.41 | E16: 103766.94 | F16: =SUMPRODUCT((CSWNAAmounts[Month]=$B16)*(CSWNAAmounts[CustClass]=$F$11)*(CSWNAAmounts[Region]=F$12)*CSWNAAmounts[CSWNA]) -> 7885.45 | G16: =SUMPRODUCT((CSWNAAmounts[Month]=$B16)*(CSWNAAmounts[CustClass]=$F$11)*(CSWNAAmounts[Region]=G$12)*CSWNAAmounts[CSWNA]) -> 1821.94 | H16: 9707.39 | I16: =SUMPRODUCT((CSWNAAmounts[Month]=$B16)*(CSWNAAmounts[CustClass]=$I$11)*(CSWNAAmounts[Region]=I$12)*CSWNAAmounts[CSWNA]) -> 95751.85 | J16: =SUMPRODUCT((CSWNAAmounts[Month]=$B16)*(CSWNAAmounts[CustClass]=$J$11)*(CSWNAAmounts[Region]=J$12)*CSWNAAmounts[CSWNA]) -> 8452.24 | K16: From CSWNAAmounts Table
B17: 2024-05-01 | C17: =SUMPRODUCT((CSWNAAmounts[Month]=$B17)*(CSWNAAmounts[CustClass]=$C$11)*(CSWNAAmounts[Region]=C$12)*CSWNAAmounts[CSWNA]) -> 70087.03 | D17: =SUMPRODUCT((CSWNAAmounts[Month]=$B17)*(CSWNAAmounts[CustClass]=$C$11)*(CSWNAAmounts[Region]=D$12)*CSWNAAmounts[CSWNA]) -> 14478.7 | E17: 84565.73 | F17: =SUMPRODUCT((CSWNAAmounts[Month]=$B17)*(CSWNAAmounts[CustClass]=$F$11)*(CSWNAAmounts[Region]=F$12)*CSWNAAmounts[CSWNA]) -> 8529.87 | G17: =SUMPRODUCT((CSWNAAmounts[Month]=$B17)*(CSWNAAmounts[CustClass]=$F$11)*(CSWNAAmounts[Region]=G$12)*CSWNAAmounts[CSWNA]) -> 2059.15 | H17: 10589.02 | I17: =SUMPRODUCT((CSWNAAmounts[Month]=$B17)*(CSWNAAmounts[CustClass]=$I$11)*(CSWNAAmounts[Region]=I$12)*CSWNAAmounts[CSWNA]) -> 54481.31 | J17: =SUMPRODUCT((CSWNAAmounts[Month]=$B17)*(CSWNAAmounts[CustClass]=$J$11)*(CSWNAAmounts[Region]=J$12)*CSWNAAmounts[CSWNA]) -> 4860.61 | K17: From CSWNAAmounts Table
B18: 2024-06-01 | C18: =SUMPRODUCT((CSWNAAmounts[Month]=$B18)*(CSWNAAmounts[CustClass]=$C$11)*(CSWNAAmounts[Region]=C$12)*CSWNAAmounts[CSWNA]) -> 11057.44 | D18: =SUMPRODUCT((CSWNAAmounts[Month]=$B18)*(CSWNAAmounts[CustClass]=$C$11)*(CSWNAAmounts[Region]=D$12)*CSWNAAmounts[CSWNA]) -> 2294.25 | E18: 13351.69 | F18: =SUMPRODUCT((CSWNAAmounts[Month]=$B18)*(CSWNAAmounts[CustClass]=$F$11)*(CSWNAAmounts[Region]=F$12)*CSWNAAmounts[CSWNA]) -> 3765.68 | G18: =SUMPRODUCT((CSWNAAmounts[Month]=$B18)*(CSWNAAmounts[CustClass]=$F$11)*(CSWNAAmounts[Region]=G$12)*CSWNAAmounts[CSWNA]) -> 758.19 | H18: 4523.87 | I18: =SUMPRODUCT((CSWNAAmounts[Month]=$B18)*(CSWNAAmounts[CustClass]=$I$11)*(CSWNAAmounts[Region]=I$12)*CSWNAAmounts[CSWNA]) -> 33907.75 | J18: =SUMPRODUCT((CSWNAAmounts[Month]=$B18)*(CSWNAAmounts[CustClass]=$J$11)*(CSWNAAmounts[Region]=J$12)*CSWNAAmounts[CSWNA]) -> 3023.35 | K18: From CSWNAAmounts Table
B19: Total Adjustment | C19: =SUM(C13:C18) -> 355585.62 | D19: =SUM(D13:D18) -> 69713.28 | E19: 425298.9 | F19: 42833.95 | G19: 9610.96 | H19: 52444.91 | I19: =SUM(I13:I18) -> 449138.43 | J19: =SUM(J13:J18) -> 39923.16
B21: CSWNA Rate Calculation | C21: Res | F21: SGS | I21: Res | J21: SGS | K21: Notes
C22: NEMO | D22: WEMO | E22: Combined | F22: NEMO | G22: WEMO | H22: Combined | I22: SEMO | J22: SEMO
B23: Billing Determinants | C23: =SUMPRODUCT((BillDeter[Region]=C12)*(BillDeter[CustClass]=$C11)*BillDeter[BillingDeterminants]) -> 11089284.46 | D23: =SUMPRODUCT((BillDeter[Region]=D12)*(BillDeter[CustClass]=$C11)*BillDeter[BillingDeterminants]) -> 2140376.989 | E23: =C23+D23 -> 13229661.45 | F23: =SUMPRODUCT((BillDeter[Region]=F12)*(BillDeter[CustClass]=$F11)*BillDeter[BillingDeterminants]) -> 3249867.68 | G23: =SUMPRODUCT((BillDeter[Region]=G12)*(BillDeter[CustClass]=$F11)*BillDeter[BillingDeterminants]) -> 700365.6444 | H23: =F23+G23 -> 3950233.324 | I23: =SUMPRODUCT((BillDeter[Region]=I12)*(BillDeter[CustClass]=I11)*BillDeter[BillingDeterminants]) -> 15300894.64 | J23: =SUMPRODUCT((BillDeter[Region]=J12)*(BillDeter[CustClass]=J11)*BillDeter[BillingDeterminants]) -> 3908443.556 | K23: From BillDeter Table
B24: CSWNA Unadjusted | E24: =ROUND(E19/E23,5) -> 0.03215 | H24: =ROUND(H19/H23,5) -> 0.01328 | I24: =ROUND(I19/I23,5) -> 0.02935 | J24: =ROUND(J19/J23,5) -> 0.01021
B25: WNA Limit Adjust. | E25: =E42 -> 0 | H25: =F42 -> 0 | I25: =G42 -> 0 | J25: 0
B26: CSWNA Adjusted | E26: =E24+E25 -> 0.03215 | H26: =H24+H25 -> 0.01328 | I26: 0.02935 | J26: 0.01021
B27: Enter these rates in the CSWNA column of the WNAR Rates table.
B29: New WNA Rate Calculation | E29: NEMO + WEMO | G29: SEMO
B30: Rate | C30: Period | D30: Eff. Date | E30: Res | F30: SGS | G30: Res | H30: SGS
B31: CSWNA | C31: S1 | D31: =DateSet!J4 -> 45383 | E31: =SUMPRODUCT((WNARRates[BeginDate]=$D31)*(WNARRates[Region]="NEMO")*(WNARRates[CustClass]=E$30)*(WNARRates[Period]=$C31)*WNARRates[CSWNA]) -> 0.01137 | F31: =SUMPRODUCT((WNARRates[BeginDate]=$D31)*(WNARRates[Region]="NEMO")*(WNARRates[CustClass]=F$30)*(WNARRates[Period]=$C31)*WNARRates[CSWNA]) -> 0.00477 | G31: =SUMPRODUCT((WNARRates[BeginDate]=$D31)*(WNARRates[Region]=$G$29)*(WNARRates[CustClass]=G$30)*(WNARRates[Period]=$C31)*WNARRates[CSWNA]) -> 0.00666 | H31: =SUMPRODUCT((WNARRates[BeginDate]=$D31)*(WNARRates[Region]=$G$29)*(WNARRates[CustClass]=H$30)*(WNARRates[Period]=$C31)*WNARRates[CSWNA]) -> 0.00237
B32: CSWNA | C32: S2 | D32: =DateSet!J5 -> 45566 | E32: =SUMPRODUCT((WNARRates[BeginDate]=$D32)*(WNARRates[Region]="NEMO")*(WNARRates[CustClass]=E$30)*(WNARRates[Period]=$C32)*WNARRates[CSWNA]) -> 0.03215 | F32: =SUMPRODUCT((WNARRates[BeginDate]=$D32)*(WNARRates[Region]="NEMO")*(WNARRates[CustClass]=F$30)*(WNARRates[Period]=$C32)*WNARRates[CSWNA]) -> 0.01328 | G32: =SUMPRODUCT((WNARRates[BeginDate]=$D32)*(WNARRates[Region]=$G$29)*(WNARRates[CustClass]=G$30)*(WNARRates[Period]=$C32)*WNARRates[CSWNA]) -> 0.02935 | H32: =SUMPRODUCT((WNARRates[BeginDate]=$D32)*(WNARRates[Region]=$G$29)*(WNARRates[CustClass]=H$30)*(WNARRates[Period]=$C32)*WNARRates[CSWNA]) -> 0.01021
B33: SRR | C33: S1 | D33: =DateSet!J6 -> 45383 | E33: =SUMPRODUCT((WNARRates[BeginDate]=$D33)*(WNARRates[Region]="NEMO")*(WNARRates[CustClass]=E$30)*(WNARRates[Period]=$C33)*WNARRates[SRR]) -> 0.00133 | F33: =SUMPRODUCT((WNARRates[BeginDate]=$D33)*(WNARRates[Region]="NEMO")*(WNARRates[CustClass]=F$30)*(WNARRates[Period]=$C33)*WNARRates[SRR]) -> 0.00391 | G33: =SUMPRODUCT((WNARRates[BeginDate]=$D33)*(WNARRates[Region]=$G$29)*(WNARRates[CustClass]=G$30)*(WNARRates[Period]=$C33)*WNARRates[SRR]) -> -0.00222 | H33: =SUMPRODUCT((WNARRates[BeginDate]=$D33)*(WNARRates[Region]=$G$29)*(WNARRates[CustClass]=H$30)*(WNARRates[Period]=$C33)*WNARRates[SRR]) -> -0.00048
B34: SRR | C34: S2 | D34: =DateSet!J7 -> 45566 | E34: =SUMPRODUCT((WNARRates[BeginDate]=$D34)*(WNARRates[Region]="NEMO")*(WNARRates[CustClass]=E$30)*(WNARRates[Period]=$C34)*WNARRates[SRR]) -> 0.00247 | F34: =SUMPRODUCT((WNARRates[BeginDate]=$D34)*(WNARRates[Region]="NEMO")*(WNARRates[CustClass]=F$30)*(WNARRates[Period]=$C34)*WNARRates[SRR]) -> 0.00074 | G34: =SUMPRODUCT((WNARRates[BeginDate]=$D34)*(WNARRates[Region]=$G$29)*(WNARRates[CustClass]=G$30)*(WNARRates[Period]=$C34)*WNARRates[SRR]) -> 0.00374 | H34: =SUMPRODUCT((WNARRates[BeginDate]=$D34)*(WNARRates[Region]=$G$29)*(WNARRates[CustClass]=H$30)*(WNARRates[Period]=$C34)*WNARRates[SRR]) -> 0.00034
B35: Proposed WNA | E35: =SUM(E31:E34) -> 0.04732 | F35: =SUM(F31:F34) -> 0.0227 | G35: =SUM(G31:G34) -> 0.03753 | H35: 0.01244
B37: Change Limit Calculations | C37: Period | E37: NEMO + WEMO | G37: SEMO
D38: Eff. Date | E38: Res | F38: SGS | G38: Res | H38: SGS
B39: Prior Period WNA Rate | C39: =IF($C$6="S1","S2","S1") -> S1 | D39: =EDATE($C$8,-6) -> 45383 | E39: =SUMPRODUCT((WNARRates[BeginDate]<=$D39)*(WNARRates[EndDate]>=$D39)*(WNARRates[Region]="NEMO")*(WNARRates[CustClass]=E30)*WNARRates[Combined]) -> 0.02426 | F39: =SUMPRODUCT((WNARRates[BeginDate]<=$D39)*(WNARRates[EndDate]>=$D39)*(WNARRates[Region]="NEMO")*(WNARRates[CustClass]=F30)*WNARRates[Combined]) -> 0.01431 | G39: =SUMPRODUCT((WNARRates[BeginDate]<=$D39)*(WNARRates[EndDate]>=$D39)*(WNARRates[Region]=$G29)*(WNARRates[CustClass]=G30)*WNARRates[Combined]) -> 0.02952 | H39: =SUMPRODUCT((WNARRates[BeginDate]<=$D39)*(WNARRates[EndDate]>=$D39)*(WNARRates[Region]=$G29)*(WNARRates[CustClass]=H30)*WNARRates[Combined]) -> 0.01053
B40: Change from Prior Period | E40: =E35-E39 -> 0.02306 | F40: =F35-F39 -> 0.00839 | G40: =G35-G39 -> 0.00801 | H40: =H35-H39 -> 0.00191
B41: Change Limit | E41: 0.05 | F41: 0.05 | G41: 0.05 | H41: 0.05
B42: Change Limit Adjustment | E42: =IF(E41>E40,0,E41-E40) -> 0 | F42: =IF(F41>F40,0,F41-F40) -> 0 | G42: 0 | H42: 0
B43: Excess Limit Amount | E43: =E42*E23 -> 0 | F43: =F42*H23 -> 0 | G43: =G42*I23 -> 0 | H43: =H42*J23 -> 0

Sheet SRR Summary
B2: Liberty Midstates | E2: Filing Period
B3: WNAR Filing | E3: Year | F3: Period
B4: SRR Summary
B5: Year | C5: =DateSet!C2 -> 2024
B6: Period | C6: =DateSet!C3 -> S2
B7: Billed Rev. From | C7: =DateSet!J10 -> 45200
B8: New Rate Effec. | C8: =DateSet!D4 -> 45566
B10: Reconciliation Summary | C10: CSWNA
B11: Customer Class | C11: Res | F11: SGS | I11: Res | J11: SGS | K11: Notes
B12: Region | C12: NEMO | D12: WEMO | E12: Combined | F12: NEMO | G12: WEMO | H12: Combined | I12: SEMO | J12: SEMO
B13: Reconciling Period Adj. | C13: =SUMPRODUCT((ReconPerAdj[EffDate]=$C$7)*(ReconPerAdj[Region]=C$12)*(ReconPerAdj[CustClass]=C$11)*(ReconPerAdj[RateName]=$C$10)*ReconPerAdj[ReconcilingPeriodAdj]) -> 131776.08 | D13: =SUMPRODUCT((ReconPerAdj[EffDate]=$C$7)*(ReconPerAdj[Region]=D$12)*(ReconPerAdj[CustClass]=C$11)*(ReconPerAdj[RateName]=$C$10)*ReconPerAdj[ReconcilingPeriodAdj]) -> 24998.69 | E13: =C13+D13 -> 156774.77 | F13: =SUMPRODUCT((ReconPerAdj[EffDate]=$C$7)*(ReconPerAdj[Region]=F$12)*(ReconPerAdj[CustClass]=F$11)*(ReconPerAdj[RateName]=$C$10)*ReconPerAdj[ReconcilingPeriodAdj]) -> 15958.74 | G13: =SUMPRODUCT((ReconPerAdj[EffDate]=$C$7)*(ReconPerAdj[Region]=G$12)*(ReconPerAdj[CustClass]=F$11)*(ReconPerAdj[RateName]=$C$10)*ReconPerAdj[ReconcilingPeriodAdj]) -> 3535.06 | H13: =F13+G13 -> 19493.8 | I13: =SUMPRODUCT((ReconPerAdj[EffDate]=$C$7)*(ReconPerAdj[Region]=I$12)*(ReconPerAdj[CustClass]=I$11)*(ReconPerAdj[RateName]=$C$10)*ReconPerAdj[ReconcilingPeriodAdj]) -> 381495.29 | J13: =SUMPRODUCT((ReconPerAdj[EffDate]=$C$7)*(ReconPerAdj[Region]=J$12)*(ReconPerAdj[CustClass]=J$11)*(ReconPerAdj[RateName]=$C$10)*ReconPerAdj[ReconcilingPeriodAdj]) -> 33775.4 | K13: From ReconPerAdj Table
B14: PPA Correction | C14: =SUMPRODUCT((PPA[Year]=$C$5)*(PPA[Period]=$C$6)*(PPA[Region]=C12)*(PPA[CustClass]=$C$11)*(PPA[RateName]=$C$10)*PPA[Amount]) -> 0 | D14: =SUMPRODUCT((PPA[Year]=$C$5)*(PPA[Period]=$C$6)*(PPA[Region]=D12)*(PPA[CustClass]=$C$11)*(PPA[RateName]=$C$10)*PPA[Amount]) -> 0 | E14: =C14+D14 -> 0 | F14: =SUMPRODUCT((PPA[Year]=$C$5)*(PPA[Period]=$C$6)*(PPA[Region]=F12)*(PPA[CustClass]=$F$11)*(PPA[RateName]=$C$10)*PPA[Amount]) -> 0 | G14: =SUMPRODUCT((PPA[Year]=$C$5)*(PPA[Period]=$C$6)*(PPA[Region]=G12)*(PPA[CustClass]=$F$11)*(PPA[RateName]=$C$10)*PPA[Amount]) -> 0 | H14: =F14+G14 -> 0 | I14: =SUMPRODUCT((PPA[Year]=$C$5)*(PPA[Period]=$C$6)*(PPA[Region]=I12)*(PPA[CustClass]=I$11)*(PPA[RateName]=$C$10)*PPA[Amount]) -> 0 | J14: =SUMPRODUCT((PPA[Year]=$C$5)*(PPA[Period]=$C$6)*(PPA[Region]=J12)*(PPA[CustClass]=J$11)*(PPA[RateName]=$C$10)*PPA[Amount]) -> 0 | K14: From PriorPerAdj Table
B15: Net Reconciling Period Adj. | C15: =C13+C14 -> 131776.08 | D15: =D13+D14 -> 24998.69 | E15: =E13+E14 -> 156774.77 | F15: =F13+F14 -> 15958.74 | G15: 3535.06 | H15: 19493.8 | I15: =I13+I14 -> 381495.29 | J15: =J13+J14 -> 33775.4
B16: Actual Revenues
B17: =C7 -> 2023-10-01 | C17: =-IF($C$6="S1",SUMPRODUCT((WNARevAlloc[MonthFlow]=$B17)*(WNARevAlloc[Region]=C$12)*(WNARevAlloc[CustClass]=$C$11)*WNARevAlloc[AdjCSWNAS1Rev]),SUMPRODUCT((WNARevAlloc[MonthFlow]=$B17)*(WNARevAlloc[Region]=C$12)*(WNARevAlloc[CustClass]=$C$11)*WNARevAlloc[AdjCSWNAS2Rev])) -> -8559.596186 | D17: =-IF($C$6="S1",SUMPRODUCT((WNARevAlloc[MonthFlow]=$B17)*(WNARevAlloc[Region]=D$12)*(WNARevAlloc[CustClass]=$C$11)*WNARevAlloc[AdjCSWNAS1Rev]),SUMPRODUCT((WNARevAlloc[MonthFlow]=$B17)*(WNARevAlloc[Region]=D$12)*(WNARevAlloc[CustClass]=$C$11)*WNARevAlloc[AdjCSWNAS2Rev])) -> -1779.057013 | E17: =C17+D17 -> -10338.6532 | F17: =-IF($C$6="S1",SUMPRODUCT((WNARevAlloc[MonthFlow]=$B17)*(WNARevAlloc[Region]=F$12)*(WNARevAlloc[CustClass]=$F$11)*WNARevAlloc[AdjCSWNAS1Rev]),SUMPRODUCT((WNARevAlloc[MonthFlow]=$B17)*(WNARevAlloc[Region]=F$12)*(WNARevAlloc[CustClass]=$F$11)*WNARevAlloc[AdjCSWNAS2Rev])) -> -1076.223957 | G17: =-IF($C$6="S1",SUMPRODUCT((WNARevAlloc[MonthFlow]=$B17)*(WNARevAlloc[Region]=G$12)*(WNARevAlloc[CustClass]=$F$11)*WNARevAlloc[AdjCSWNAS1Rev]),SUMPRODUCT((WNARevAlloc[MonthFlow]=$B17)*(WNARevAlloc[Region]=G$12)*(WNARevAlloc[CustClass]=$F$11)*WNARevAlloc[AdjCSWNAS2Rev])) -> -237.1650716 | H17: =F17+G17 -> -1313.389028 | I17: =-IF($C$6="S1",SUMPRODUCT((WNARevAlloc[MonthFlow]=$B17)*(WNARevAlloc[Region]=I$12)*(WNARevAlloc[CustClass]=I$11)*WNARevAlloc[AdjCSWNAS1Rev]),SUMPRODUCT((WNARevAlloc[MonthFlow]=$B17)*(WNARevAlloc[Region]=I$12)*(WNARevAlloc[CustClass]=I$11)*WNARevAlloc[AdjCSWNAS2Rev])) -> -20959.01537 | J17: =-IF($C$6="S1",SUMPRODUCT((WNARevAlloc[MonthFlow]=$B17)*(WNARevAlloc[Region]=J$12)*(WNARevAlloc[CustClass]=J$11)*WNARevAlloc[AdjCSWNAS1Rev]),SUMPRODUCT((WNARevAlloc[MonthFlow]=$B17)*(WNARevAlloc[Region]=J$12)*(WNARevAlloc[CustClass]=J$11)*WNARevAlloc[AdjCSWNAS2Rev])) -> -1712.119114 | K17: From WNARevAlloc Table
B18: =EDATE(B17,1) -> 2023-11-01 | C18: =-IF($C$6="S1",SUMPRODUCT((WNARevAlloc[MonthFlow]=$B18)*(WNARevAlloc[Region]=C$12)*(WNARevAlloc[CustClass]=$C$11)*WNARevAlloc[AdjCSWNAS1Rev]),SUMPRODUCT((WNARevAlloc[MonthFlow]=$B18)*(WNARevAlloc[Region]=C$12)*(WNARevAlloc[CustClass]=$C$11)*WNARevAlloc[AdjCSWNAS2Rev])) -> -15950.94741 | D18: =-IF($C$6="S1",SUMPRODUCT((WNARevAlloc[MonthFlow]=$B18)*(WNARevAlloc[Region]=D$12)*(WNARevAlloc[CustClass]=$C$11)*WNARevAlloc[AdjCSWNAS1Rev]),SUMPRODUCT((WNARevAlloc[MonthFlow]=$B18)*(WNARevAlloc[Region]=D$12)*(WNARevAlloc[CustClass]=$C$11)*WNARevAlloc[AdjCSWNAS2Rev])) -> -3723.993534 | E18: =C18+D18 -> -19674.94094 | F18: =-IF($C$6="S1",SUMPRODUCT((WNARevAlloc[MonthFlow]=$B18)*(WNARevAlloc[Region]=F$12)*(WNARevAlloc[CustClass]=$F$11)*WNARevAlloc[AdjCSWNAS1Rev]),SUMPRODUCT((WNARevAlloc[MonthFlow]=$B18)*(WNARevAlloc[Region]=F$12)*(WNARevAlloc[CustClass]=$F$11)*WNARevAlloc[AdjCSWNAS2Rev])) -> -2053.852089 | G18: =-IF($C$6="S1",SUMPRODUCT((WNARevAlloc[MonthFlow]=$B18)*(WNARevAlloc[Region]=G$12)*(WNARevAlloc[CustClass]=$F$11)*WNARevAlloc[AdjCSWNAS1Rev]),SUMPRODUCT((WNARevAlloc[MonthFlow]=$B18)*(WNARevAlloc[Region]=G$12)*(WNARevAlloc[CustClass]=$F$11)*WNARevAlloc[AdjCSWNAS2Rev])) -> -549.3118339 | H18: =F18+G18 -> -2603.163923 | I18: =-IF($C$6="S1",SUMPRODUCT((WNARevAlloc[MonthFlow]=$B18)*(WNARevAlloc[Region]=I$12)*(WNARevAlloc[CustClass]=I$11)*WNARevAlloc[AdjCSWNAS1Rev]),SUMPRODUCT((WNARevAlloc[MonthFlow]=$B18)*(WNARevAlloc[Region]=I$12)*(WNARevAlloc[CustClass]=I$11)*WNARevAlloc[AdjCSWNAS2Rev])) -> -49251.60359 | J18: =-IF($C$6="S1",SUMPRODUCT((WNARevAlloc[MonthFlow]=$B18)*(WNARevAlloc[Region]=J$12)*(WNARevAlloc[CustClass]=J$11)*WNARevAlloc[AdjCSWNAS1Rev]),SUMPRODUCT((WNARevAlloc[MonthFlow]=$B18)*(WNARevAlloc[Region]=J$12)*(WNARevAlloc[CustClass]=J$11)*WNARevAlloc[AdjCSWNAS2Rev])) -> -4735.818155 | K18: From WNARevAlloc Table
B19: =EDATE(B18,1) -> 2023-12-01 | C19: =-IF($C$6="S1",SUMPRODUCT((WNARevAlloc[MonthFlow]=$B19)*(WNARevAlloc[Region]=C$12)*(WNARevAlloc[CustClass]=$C$11)*WNARevAlloc[AdjCSWNAS1Rev]),SUMPRODUCT((WNARevAlloc[MonthFlow]=$B19)*(WNARevAlloc[Region]=C$12)*(WNARevAlloc[CustClass]=$C$11)*WNARevAlloc[AdjCSWNAS2Rev])) -> -26424.7827 | D19: =-IF($C$6="S1",SUMPRODUCT((WNARevAlloc[MonthFlow]=$B19)*(WNARevAlloc[Region]=D$12)*(WNARevAlloc[CustClass]=$C$11)*WNARevAlloc[AdjCSWNAS1Rev]),SUMPRODUCT((WNARevAlloc[MonthFlow]=$B19)*(WNARevAlloc[Region]=D$12)*(WNARevAlloc[CustClass]=$C$11)*WNARevAlloc[AdjCSWNAS2Rev])) -> -5547.222399 | E19: -31972.0051 | F19: =-IF($C$6="S1",SUMPRODUCT((WNARevAlloc[MonthFlow]=$B19)*(WNARevAlloc[Region]=F$12)*(WNARevAlloc[CustClass]=$F$11)*WNARevAlloc[AdjCSWNAS1Rev]),SUMPRODUCT((WNARevAlloc[MonthFlow]=$B19)*(WNARevAlloc[Region]=F$12)*(WNARevAlloc[CustClass]=$F$11)*WNARevAlloc[AdjCSWNAS2Rev])) -> -3547.828608 | G19: =-IF($C$6="S1",SUMPRODUCT((WNARevAlloc[MonthFlow]=$B19)*(WNARevAlloc[Region]=G$12)*(WNARevAlloc[CustClass]=$F$11)*WNARevAlloc[AdjCSWNAS1Rev]),SUMPRODUCT((WNARevAlloc[MonthFlow]=$B19)*(WNARevAlloc[Region]=G$12)*(WNARevAlloc[CustClass]=$F$11)*WNARevAlloc[AdjCSWNAS2Rev])) -> -862.6078673 | H19: -4410.436476 | I19: =-IF($C$6="S1",SUMPRODUCT((WNARevAlloc[MonthFlow]=$B19)*(WNARevAlloc[Region]=I$12)*(WNARevAlloc[CustClass]=I$11)*WNARevAlloc[AdjCSWNAS1Rev]),SUMPRODUCT((WNARevAlloc[MonthFlow]=$B19)*(WNARevAlloc[Region]=I$12)*(WNARevAlloc[CustClass]=I$11)*WNARevAlloc[AdjCSWNAS2Rev])) -> -65972.62148 | J19: =-IF($C$6="S1",SUMPRODUCT((WNARevAlloc[MonthFlow]=$B19)*(WNARevAlloc[Region]=J$12)*(WNARevAlloc[CustClass]=J$11)*WNARevAlloc[AdjCSWNAS1Rev]),SUMPRODUCT((WNARevAlloc[MonthFlow]=$B19)*(WNARevAlloc[Region]=J$12)*(WNARevAlloc[CustClass]=J$11)*WNARevAlloc[AdjCSWNAS2Rev])) -> -6622.293875 | K19: From WNARevAlloc Table
B20: 2024-01-01 | C20: =-IF($C$6="S1",SUMPRODUCT((WNARevAlloc[MonthFlow]=$B20)*(WNARevAlloc[Region]=C$12)*(WNARevAlloc[CustClass]=$C$11)*WNARevAlloc[AdjCSWNAS1Rev]),SUMPRODUCT((WNARevAlloc[MonthFlow]=$B20)*(WNARevAlloc[Region]=C$12)*(WNARevAlloc[CustClass]=$C$11)*WNARevAlloc[AdjCSWNAS2Rev])) -> -19982.15995 | D20: =-IF($C$6="S1",SUMPRODUCT((WNARevAlloc[MonthFlow]=$B20)*(WNARevAlloc[Region]=D$12)*(WNARevAlloc[CustClass]=$C$11)*WNARevAlloc[AdjCSWNAS1Rev]),SUMPRODUCT((WNARevAlloc[MonthFlow]=$B20)*(WNARevAlloc[Region]=D$12)*(WNARevAlloc[CustClass]=$C$11)*WNARevAlloc[AdjCSWNAS2Rev])) -> -4218.404692 | E20: -24200.56465 | F20: =-IF($C$6="S1",SUMPRODUCT((WNARevAlloc[MonthFlow]=$B20)*(WNARevAlloc[Region]=F$12)*(WNARevAlloc[CustClass]=$F$11)*WNARevAlloc[AdjCSWNAS1Rev]),SUMPRODUCT((WNARevAlloc[MonthFlow]=$B20)*(WNARevAlloc[Region]=F$12)*(WNARevAlloc[CustClass]=$F$11)*WNARevAlloc[AdjCSWNAS2Rev])) -> -2624.514835 | G20: =-IF($C$6="S1",SUMPRODUCT((WNARevAlloc[MonthFlow]=$B20)*(WNARevAlloc[Region]=G$12)*(WNARevAlloc[CustClass]=$F$11)*WNARevAlloc[AdjCSWNAS1Rev]),SUMPRODUCT((WNARevAlloc[MonthFlow]=$B20)*(WNARevAlloc[Region]=G$12)*(WNARevAlloc[CustClass]=$F$11)*WNARevAlloc[AdjCSWNAS2Rev])) -> -616.9937433 | H20: -3241.508578 | I20: =-IF($C$6="S1",SUMPRODUCT((WNARevAlloc[MonthFlow]=$B20)*(WNARevAlloc[Region]=I$12)*(WNARevAlloc[CustClass]=I$11)*WNARevAlloc[AdjCSWNAS1Rev]),SUMPRODUCT((WNARevAlloc[MonthFlow]=$B20)*(WNARevAlloc[Region]=I$12)*(WNARevAlloc[CustClass]=I$11)*WNARevAlloc[AdjCSWNAS2Rev])) -> -73410.68098 | J20: =-IF($C$6="S1",SUMPRODUCT((WNARevAlloc[MonthFlow]=$B20)*(WNARevAlloc[Region]=J$12)*(WNARevAlloc[CustClass]=J$11)*WNARevAlloc[AdjCSWNAS1Rev]),SUMPRODUCT((WNARevAlloc[MonthFlow]=$B20)*(WNARevAlloc[Region]=J$12)*(WNARevAlloc[CustClass]=J$11)*WNARevAlloc[AdjCSWNAS2Rev])) -> -7303.478524 | K20: From WNARevAlloc Table
B21: 2024-02-01 | C21: =-IF($C$6="S1",SUMPRODUCT((WNARevAlloc[MonthFlow]=$B21)*(WNARevAlloc[Region]=C$12)*(WNARevAlloc[CustClass]=$C$11)*WNARevAlloc[AdjCSWNAS1Rev]),SUMPRODUCT((WNARevAlloc[MonthFlow]=$B21)*(WNARevAlloc[Region]=C$12)*(WNARevAlloc[CustClass]=$C$11)*WNARevAlloc[AdjCSWNAS2Rev])) -> -13290.30498 | D21: =-IF($C$6="S1",SUMPRODUCT((WNARevAlloc[MonthFlow]=$B21)*(WNARevAlloc[Region]=D$12)*(WNARevAlloc[CustClass]=$C$11)*WNARevAlloc[AdjCSWNAS1Rev]),SUMPRODUCT((WNARevAlloc[MonthFlow]=$B21)*(WNARevAlloc[Region]=D$12)*(WNARevAlloc[CustClass]=$C$11)*WNARevAlloc[AdjCSWNAS2Rev])) -> -2186.624759 | E21: -15476.92973 | F21: =-IF($C$6="S1",SUMPRODUCT((WNARevAlloc[MonthFlow]=$B21)*(WNARevAlloc[Region]=F$12)*(WNARevAlloc[CustClass]=$F$11)*WNARevAlloc[AdjCSWNAS1Rev]),SUMPRODUCT((WNARevAlloc[MonthFlow]=$B21)*(WNARevAlloc[Region]=F$12)*(WNARevAlloc[CustClass]=$F$11)*WNARevAlloc[AdjCSWNAS2Rev])) -> -1778.66088 | G21: =-IF($C$6="S1",SUMPRODUCT((WNARevAlloc[MonthFlow]=$B21)*(WNARevAlloc[Region]=G$12)*(WNARevAlloc[CustClass]=$F$11)*WNARevAlloc[AdjCSWNAS1Rev]),SUMPRODUCT((WNARevAlloc[MonthFlow]=$B21)*(WNARevAlloc[Region]=G$12)*(WNARevAlloc[CustClass]=$F$11)*WNARevAlloc[AdjCSWNAS2Rev])) -> -363.2349058 | H21: -2141.895786 | I21: =-IF($C$6="S1",SUMPRODUCT((WNARevAlloc[MonthFlow]=$B21)*(WNARevAlloc[Region]=I$12)*(WNARevAlloc[CustClass]=I$11)*WNARevAlloc[AdjCSWNAS1Rev]),SUMPRODUCT((WNARevAlloc[MonthFlow]=$B21)*(WNARevAlloc[Region]=I$12)*(WNARevAlloc[CustClass]=I$11)*WNARevAlloc[AdjCSWNAS2Rev])) -> -39452.94633 | J21: =-IF($C$6="S1",SUMPRODUCT((WNARevAlloc[MonthFlow]=$B21)*(WNARevAlloc[Region]=J$12)*(WNARevAlloc[CustClass]=J$11)*WNARevAlloc[AdjCSWNAS1Rev]),SUMPRODUCT((WNARevAlloc[MonthFlow]=$B21)*(WNARevAlloc[Region]=J$12)*(WNARevAlloc[CustClass]=J$11)*WNARevAlloc[AdjCSWNAS2Rev])) -> -4504.176384 | K21: From WNARevAlloc Table
B22: 2024-03-01 | C22: =-IF($C$6="S1",SUMPRODUCT((WNARevAlloc[MonthFlow]=$B22)*(WNARevAlloc[Region]=C$12)*(WNARevAlloc[CustClass]=$C$11)*WNARevAlloc[AdjCSWNAS1Rev]),SUMPRODUCT((WNARevAlloc[MonthFlow]=$B22)*(WNARevAlloc[Region]=C$12)*(WNARevAlloc[CustClass]=$C$11)*WNARevAlloc[AdjCSWNAS2Rev])) -> -11167.92991 | D22: =-IF($C$6="S1",SUMPRODUCT((WNARevAlloc[MonthFlow]=$B22)*(WNARevAlloc[Region]=D$12)*(WNARevAlloc[CustClass]=$C$11)*WNARevAlloc[AdjCSWNAS1Rev]),SUMPRODUCT((WNARevAlloc[MonthFlow]=$B22)*(WNARevAlloc[Region]=D$12)*(WNARevAlloc[CustClass]=$C$11)*WNARevAlloc[AdjCSWNAS2Rev])) -> -1655.62313 | E22: -12823.55304 | F22: =-IF($C$6="S1",SUMPRODUCT((WNARevAlloc[MonthFlow]=$B22)*(WNARevAlloc[Region]=F$12)*(WNARevAlloc[CustClass]=$F$11)*WNARevAlloc[AdjCSWNAS1Rev]),SUMPRODUCT((WNARevAlloc[MonthFlow]=$B22)*(WNARevAlloc[Region]=F$12)*(WNARevAlloc[CustClass]=$F$11)*WNARevAlloc[AdjCSWNAS2Rev])) -> -1419.165449 | G22: =-IF($C$6="S1",SUMPRODUCT((WNARevAlloc[MonthFlow]=$B22)*(WNARevAlloc[Region]=G$12)*(WNARevAlloc[CustClass]=$F$11)*WNARevAlloc[AdjCSWNAS1Rev]),SUMPRODUCT((WNARevAlloc[MonthFlow]=$B22)*(WNARevAlloc[Region]=G$12)*(WNARevAlloc[CustClass]=$F$11)*WNARevAlloc[AdjCSWNAS2Rev])) -> -247.9244414 | H22: -1667.08989 | I22: =-IF($C$6="S1",SUMPRODUCT((WNARevAlloc[MonthFlow]=$B22)*(WNARevAlloc[Region]=I$12)*(WNARevAlloc[CustClass]=I$11)*WNARevAlloc[AdjCSWNAS1Rev]),SUMPRODUCT((WNARevAlloc[MonthFlow]=$B22)*(WNARevAlloc[Region]=I$12)*(WNARevAlloc[CustClass]=I$11)*WNARevAlloc[AdjCSWNAS2Rev])) -> -28090.92473 | J22: =-IF($C$6="S1",SUMPRODUCT((WNARevAlloc[MonthFlow]=$B22)*(WNARevAlloc[Region]=J$12)*(WNARevAlloc[CustClass]=J$11)*WNARevAlloc[AdjCSWNAS1Rev]),SUMPRODUCT((WNARevAlloc[MonthFlow]=$B22)*(WNARevAlloc[Region]=J$12)*(WNARevAlloc[CustClass]=J$11)*WNARevAlloc[AdjCSWNAS2Rev])) -> -2579.378605 | K22: From WNARevAlloc Table
B23: 2024-04-01 | C23: =-IF($C$6="S1",SUMPRODUCT((WNARevAlloc[MonthFlow]=$B23)*(WNARevAlloc[Region]=C$12)*(WNARevAlloc[CustClass]=$C$11)*WNARevAlloc[AdjCSWNAS1Rev]),SUMPRODUCT((WNARevAlloc[MonthFlow]=$B23)*(WNARevAlloc[Region]=C$12)*(WNARevAlloc[CustClass]=$C$11)*WNARevAlloc[AdjCSWNAS2Rev])) -> -4048.935854 | D23: =-IF($C$6="S1",SUMPRODUCT((WNARevAlloc[MonthFlow]=$B23)*(WNARevAlloc[Region]=D$12)*(WNARevAlloc[CustClass]=$C$11)*WNARevAlloc[AdjCSWNAS1Rev]),SUMPRODUCT((WNARevAlloc[MonthFlow]=$B23)*(WNARevAlloc[Region]=D$12)*(WNARevAlloc[CustClass]=$C$11)*WNARevAlloc[AdjCSWNAS2Rev])) -> -692.4603257 | E23: -4741.39618 | F23: =-IF($C$6="S1",SUMPRODUCT((WNARevAlloc[MonthFlow]=$B23)*(WNARevAlloc[Region]=F$12)*(WNARevAlloc[CustClass]=$F$11)*WNARevAlloc[AdjCSWNAS1Rev]),SUMPRODUCT((WNARevAlloc[MonthFlow]=$B23)*(WNARevAlloc[Region]=F$12)*(WNARevAlloc[CustClass]=$F$11)*WNARevAlloc[AdjCSWNAS2Rev])) -> -574.8614065 | G23: =-IF($C$6="S1",SUMPRODUCT((WNARevAlloc[MonthFlow]=$B23)*(WNARevAlloc[Region]=G$12)*(WNARevAlloc[CustClass]=$F$11)*WNARevAlloc[AdjCSWNAS1Rev]),SUMPRODUCT((WNARevAlloc[MonthFlow]=$B23)*(WNARevAlloc[Region]=G$12)*(WNARevAlloc[CustClass]=$F$11)*WNARevAlloc[AdjCSWNAS2Rev])) -> -127.9241281 | H23: -702.7855346 | I23: =-IF($C$6="S1",SUMPRODUCT((WNARevAlloc[MonthFlow]=$B23)*(WNARevAlloc[Region]=I$12)*(WNARevAlloc[CustClass]=I$11)*WNARevAlloc[AdjCSWNAS1Rev]),SUMPRODUCT((WNARevAlloc[MonthFlow]=$B23)*(WNARevAlloc[Region]=I$12)*(WNARevAlloc[CustClass]=I$11)*WNARevAlloc[AdjCSWNAS2Rev])) -> -13644.87848 | J23: =-IF($C$6="S1",SUMPRODUCT((WNARevAlloc[MonthFlow]=$B23)*(WNARevAlloc[Region]=J$12)*(WNARevAlloc[CustClass]=J$11)*WNARevAlloc[AdjCSWNAS1Rev]),SUMPRODUCT((WNARevAlloc[MonthFlow]=$B23)*(WNARevAlloc[Region]=J$12)*(WNARevAlloc[CustClass]=J$11)*WNARevAlloc[AdjCSWNAS2Rev])) -> -1334.512344 | K23: From WNARevAlloc Table
B24: 2024-05-01 | C24: =-IF($C$6="S1",SUMPRODUCT((WNARevAlloc[MonthFlow]=$B24)*(WNARevAlloc[Region]=C$12)*(WNARevAlloc[CustClass]=$C$11)*WNARevAlloc[AdjCSWNAS1Rev]),SUMPRODUCT((WNARevAlloc[MonthFlow]=$B24)*(WNARevAlloc[Region]=C$12)*(WNARevAlloc[CustClass]=$C$11)*WNARevAlloc[AdjCSWNAS2Rev])) -> -1796.079708 | D24: =-IF($C$6="S1",SUMPRODUCT((WNARevAlloc[MonthFlow]=$B24)*(WNARevAlloc[Region]=D$12)*(WNARevAlloc[CustClass]=$C$11)*WNARevAlloc[AdjCSWNAS1Rev]),SUMPRODUCT((WNARevAlloc[MonthFlow]=$B24)*(WNARevAlloc[Region]=D$12)*(WNARevAlloc[CustClass]=$C$11)*WNARevAlloc[AdjCSWNAS2Rev])) -> -357.2022721 | E24: -2153.28198 | F24: =-IF($C$6="S1",SUMPRODUCT((WNARevAlloc[MonthFlow]=$B24)*(WNARevAlloc[Region]=F$12)*(WNARevAlloc[CustClass]=$F$11)*WNARevAlloc[AdjCSWNAS1Rev]),SUMPRODUCT((WNARevAlloc[MonthFlow]=$B24)*(WNARevAlloc[Region]=F$12)*(WNARevAlloc[CustClass]=$F$11)*WNARevAlloc[AdjCSWNAS2Rev])) -> -287.3455855 | G24: =-IF($C$6="S1",SUMPRODUCT((WNARevAlloc[MonthFlow]=$B24)*(WNARevAlloc[Region]=G$12)*(WNARevAlloc[CustClass]=$F$11)*WNARevAlloc[AdjCSWNAS1Rev]),SUMPRODUCT((WNARevAlloc[MonthFlow]=$B24)*(WNARevAlloc[Region]=G$12)*(WNARevAlloc[CustClass]=$F$11)*WNARevAlloc[AdjCSWNAS2Rev])) -> -80.86716339 | H24: -368.2127489 | I24: =-IF($C$6="S1",SUMPRODUCT((WNARevAlloc[MonthFlow]=$B24)*(WNARevAlloc[Region]=I$12)*(WNARevAlloc[CustClass]=I$11)*WNARevAlloc[AdjCSWNAS1Rev]),SUMPRODUCT((WNARevAlloc[MonthFlow]=$B24)*(WNARevAlloc[Region]=I$12)*(WNARevAlloc[CustClass]=I$11)*WNARevAlloc[AdjCSWNAS2Rev])) -> -7402.209147 | J24: =-IF($C$6="S1",SUMPRODUCT((WNARevAlloc[MonthFlow]=$B24)*(WNARevAlloc[Region]=J$12)*(WNARevAlloc[CustClass]=J$11)*WNARevAlloc[AdjCSWNAS1Rev]),SUMPRODUCT((WNARevAlloc[MonthFlow]=$B24)*(WNARevAlloc[Region]=J$12)*(WNARevAlloc[CustClass]=J$11)*WNARevAlloc[AdjCSWNAS2Rev])) -> -727.4090037 | K24: From WNARevAlloc Table
B25: 2024-06-01 | C25: =-IF($C$6="S1",SUMPRODUCT((WNARevAlloc[MonthFlow]=$B25)*(WNARevAlloc[Region]=C$12)*(WNARevAlloc[CustClass]=$C$11)*WNARevAlloc[AdjCSWNAS1Rev]),SUMPRODUCT((WNARevAlloc[MonthFlow]=$B25)*(WNARevAlloc[Region]=C$12)*(WNARevAlloc[CustClass]=$C$11)*WNARevAlloc[AdjCSWNAS2Rev])) -> -1330.939447 | D25: =-IF($C$6="S1",SUMPRODUCT((WNARevAlloc[MonthFlow]=$B25)*(WNARevAlloc[Region]=D$12)*(WNARevAlloc[CustClass]=$C$11)*WNARevAlloc[AdjCSWNAS1Rev]),SUMPRODUCT((WNARevAlloc[MonthFlow]=$B25)*(WNARevAlloc[Region]=D$12)*(WNARevAlloc[CustClass]=$C$11)*WNARevAlloc[AdjCSWNAS2Rev])) -> -274.1063423 | E25: -1605.04579 | F25: =-IF($C$6="S1",SUMPRODUCT((WNARevAlloc[MonthFlow]=$B25)*(WNARevAlloc[Region]=F$12)*(WNARevAlloc[CustClass]=$F$11)*WNARevAlloc[AdjCSWNAS1Rev]),SUMPRODUCT((WNARevAlloc[MonthFlow]=$B25)*(WNARevAlloc[Region]=F$12)*(WNARevAlloc[CustClass]=$F$11)*WNARevAlloc[AdjCSWNAS2Rev])) -> -224.4500569 | G25: =-IF($C$6="S1",SUMPRODUCT((WNARevAlloc[MonthFlow]=$B25)*(WNARevAlloc[Region]=G$12)*(WNARevAlloc[CustClass]=$F$11)*WNARevAlloc[AdjCSWNAS1Rev]),SUMPRODUCT((WNARevAlloc[MonthFlow]=$B25)*(WNARevAlloc[Region]=G$12)*(WNARevAlloc[CustClass]=$F$11)*WNARevAlloc[AdjCSWNAS2Rev])) -> -36.60422713 | H25: -261.054284 | I25: =-IF($C$6="S1",SUMPRODUCT((WNARevAlloc[MonthFlow]=$B25)*(WNARevAlloc[Region]=I$12)*(WNARevAlloc[CustClass]=I$11)*WNARevAlloc[AdjCSWNAS1Rev]),SUMPRODUCT((WNARevAlloc[MonthFlow]=$B25)*(WNARevAlloc[Region]=I$12)*(WNARevAlloc[CustClass]=I$11)*WNARevAlloc[AdjCSWNAS2Rev])) -> -5265.106964 | J25: =-IF($C$6="S1",SUMPRODUCT((WNARevAlloc[MonthFlow]=$B25)*(WNARevAlloc[Region]=J$12)*(WNARevAlloc[CustClass]=J$11)*WNARevAlloc[AdjCSWNAS1Rev]),SUMPRODUCT((WNARevAlloc[MonthFlow]=$B25)*(WNARevAlloc[Region]=J$12)*(WNARevAlloc[CustClass]=J$11)*WNARevAlloc[AdjCSWNAS2Rev])) -> -571.0488712 | K25: From WNARevAlloc Table
B26: Total Actual Revenues | C26: =SUM(C17:C25) -> -102551.6761 | D26: =SUM(D17:D25) -> -20434.69447 | E26: -122986.3706 | F26: -13586.90287 | G26: -3122.633382 | H26: -16709.53625 | I26: -303449.9871 | J26: -30090.23488
B27: Projected Revenues
B28: =EDATE(B25,1) -> 2024-07-01 | C28: =-SUMPRODUCT((CustEstRev[MonthFlow]=$B28)*(CustEstRev[Region]=$C$12)*(CustEstRev[CustClass]=C$11)*(CustEstRev[Period]=$C$6)*CustEstRev[CSWNARev]) -> -1816 | D28: =-SUMPRODUCT((CustEstRev[MonthFlow]=$B28)*(CustEstRev[Region]=D$12)*(CustEstRev[CustClass]=C$11)*(CustEstRev[Period]=$C$6)*CustEstRev[CSWNARev]) -> -364 | E28: -2180 | F28: =-SUMPRODUCT((CustEstRev[MonthFlow]=$B28)*(CustEstRev[Region]=F$12)*(CustEstRev[CustClass]=F$11)*(CustEstRev[Period]=$C$6)*CustEstRev[CSWNARev]) -> -329 | G28: =-SUMPRODUCT((CustEstRev[MonthFlow]=$B28)*(CustEstRev[Region]=G$12)*(CustEstRev[CustClass]=F$11)*(CustEstRev[Period]=$C$6)*CustEstRev[CSWNARev]) -> -61 | H28: -390 | I28: =-SUMPRODUCT((CustEstRev[MonthFlow]=$B28)*(CustEstRev[Region]=I$12)*(CustEstRev[CustClass]=I$11)*(CustEstRev[Period]=$C$6)*CustEstRev[CSWNARev]) -> -6690 | J28: =-SUMPRODUCT((CustEstRev[MonthFlow]=$B28)*(CustEstRev[Region]=J$12)*(CustEstRev[CustClass]=J$11)*(CustEstRev[Period]=$C$6)*CustEstRev[CSWNARev]) -> -730 | K28: From CustEstRev Table
B29: 2024-08-01 | C29: =-SUMPRODUCT((CustEstRev[MonthFlow]=$B29)*(CustEstRev[Region]=$C$12)*(CustEstRev[CustClass]=C$11)*(CustEstRev[Period]=$C$6)*CustEstRev[CSWNARev]) -> -1644 | D29: =-SUMPRODUCT((CustEstRev[MonthFlow]=$B29)*(CustEstRev[Region]=D$12)*(CustEstRev[CustClass]=C$11)*(CustEstRev[Period]=$C$6)*CustEstRev[CSWNARev]) -> -293 | E29: =C29+D29 -> -1937 | F29: =-SUMPRODUCT((CustEstRev[MonthFlow]=$B29)*(CustEstRev[Region]=F$12)*(CustEstRev[CustClass]=F$11)*(CustEstRev[Period]=$C$6)*CustEstRev[CSWNARev]) -> -308 | G29: =-SUMPRODUCT((CustEstRev[MonthFlow]=$B29)*(CustEstRev[Region]=G$12)*(CustEstRev[CustClass]=F$11)*(CustEstRev[Period]=$C$6)*CustEstRev[CSWNARev]) -> -51 | H29: =F29+G29 -> -359 | I29: =-SUMPRODUCT((CustEstRev[MonthFlow]=$B29)*(CustEstRev[Region]=I$12)*(CustEstRev[CustClass]=I$11)*(CustEstRev[Period]=$C$6)*CustEstRev[CSWNARev]) -> -6304 | J29: =-SUMPRODUCT((CustEstRev[MonthFlow]=$B29)*(CustEstRev[Region]=J$12)*(CustEstRev[CustClass]=J$11)*(CustEstRev[Period]=$C$6)*CustEstRev[CSWNARev]) -> -749 | K29: From CustEstRev Table
B30: 2024-09-01 | C30: =-SUMPRODUCT((CustEstRev[MonthFlow]=$B30)*(CustEstRev[Region]=$C$12)*(CustEstRev[CustClass]=C$11)*(CustEstRev[Period]=$C$6)*CustEstRev[CSWNARev]) -> -2323 | D30: =-SUMPRODUCT((CustEstRev[MonthFlow]=$B30)*(CustEstRev[Region]=D$12)*(CustEstRev[CustClass]=C$11)*(CustEstRev[Period]=$C$6)*CustEstRev[CSWNARev]) -> -426 | E30: -2749 | F30: =-SUMPRODUCT((CustEstRev[MonthFlow]=$B30)*(CustEstRev[Region]=F$12)*(CustEstRev[CustClass]=F$11)*(CustEstRev[Period]=$C$6)*CustEstRev[CSWNARev]) -> -417 | G30: =-SUMPRODUCT((CustEstRev[MonthFlow]=$B30)*(CustEstRev[Region]=G$12)*(CustEstRev[CustClass]=F$11)*(CustEstRev[Period]=$C$6)*CustEstRev[CSWNARev]) -> -71 | H30: -488 | I30: =-SUMPRODUCT((CustEstRev[MonthFlow]=$B30)*(CustEstRev[Region]=I$12)*(CustEstRev[CustClass]=I$11)*(CustEstRev[Period]=$C$6)*CustEstRev[CSWNARev]) -> -8053 | J30: =-SUMPRODUCT((CustEstRev[MonthFlow]=$B30)*(CustEstRev[Region]=J$12)*(CustEstRev[CustClass]=J$11)*(CustEstRev[Period]=$C$6)*CustEstRev[CSWNARev]) -> -881 | K30: From CustEstRev Table
B31: Total Projected Revenues | C31: =SUM(C28:C30) -> -5783 | D31: =SUM(D28:D30) -> -1083 | E31: -6866 | F31: -1054 | G31: -183 | H31: -1237 | I31: -21047 | J31: -2360
B32: Total Billings | C32: =C26+C31 -> -108334.6761 | D32: -21517.69447 | E32: -129852.3706 | F32: -14640.90287 | G32: -3305.633382 | H32: -17946.53625 | I32: -324496.9871 | J32: -32450.23488
B33: CSWNA Net (Over)/Under Recov 1/ | C33: =ROUND(C15+C32,2) -> 23441.4 | D33: 3481 | E33: 26922.4 | F33: 1317.84 | G33: 229.43 | H33: 1547.26 | I33: 56998.3 | J33: 1325.17
B35: Reconciliation Summary | C35: SRR
B36: Customer Class | C36: Res | F36: SGS | I36: Res | J36: SGS | K36: Notes
B37: Region | C37: NEMO | D37: WEMO | E37: Combined | F37: NEMO | G37: WEMO | H37: Combined | I37: SEMO | J37: SEMO
B38: Reconciling Period Adj. | C38: =SUMPRODUCT((ReconPerAdj[EffDate]=$C$7)*(ReconPerAdj[Region]=C$37)*(ReconPerAdj[CustClass]=C$36)*(ReconPerAdj[RateName]=$C$35)*ReconPerAdj[ReconcilingPeriodAdj]) -> -5848.85 | D38: =SUMPRODUCT((ReconPerAdj[EffDate]=$C$7)*(ReconPerAdj[Region]=D$37)*(ReconPerAdj[CustClass]=C$36)*(ReconPerAdj[RateName]=$C$35)*ReconPerAdj[ReconcilingPeriodAdj]) -> 2046.19 | E38: =C38+D38 -> -3802.66 | F38: =SUMPRODUCT((ReconPerAdj[EffDate]=$C$7)*(ReconPerAdj[Region]=F$37)*(ReconPerAdj[CustClass]=F$36)*(ReconPerAdj[RateName]=$C$35)*ReconPerAdj[ReconcilingPeriodAdj]) -> 2119.46 | G38: =SUMPRODUCT((ReconPerAdj[EffDate]=$C$7)*(ReconPerAdj[Region]=G$37)*(ReconPerAdj[CustClass]=F$36)*(ReconPerAdj[RateName]=$C$35)*ReconPerAdj[ReconcilingPeriodAdj]) -> 640.17 | H38: =F38+G38 -> 2759.63 | I38: =SUMPRODUCT((ReconPerAdj[EffDate]=$C$7)*(ReconPerAdj[Region]=I$37)*(ReconPerAdj[CustClass]=I$36)*(ReconPerAdj[RateName]=$C$35)*ReconPerAdj[ReconcilingPeriodAdj]) -> 2243.52 | J38: =SUMPRODUCT((ReconPerAdj[EffDate]=$C$7)*(ReconPerAdj[Region]=J$37)*(ReconPerAdj[CustClass]=J$36)*(ReconPerAdj[RateName]=$C$35)*ReconPerAdj[ReconcilingPeriodAdj]) -> 18.48 | K38: From ReconPerAdj Table
B39: Volumetric True-Up | C39: =SUMPRODUCT((VolTrueUp[Year]=$C$5)*(VolTrueUp[Period]=$C$6)*(VolTrueUp[Region]=C37)*(VolTrueUp[CustClass]=C36)*VolTrueUp[TrueUp]) -> 6645.29 | D39: =SUMPRODUCT((VolTrueUp[Year]=$C$5)*(VolTrueUp[Period]=$C$6)*(VolTrueUp[Region]=D37)*(VolTrueUp[CustClass]=C36)*VolTrueUp[TrueUp]) -> -324.51 | E39: =C39+D39 -> 6320.78 | F39: =SUMPRODUCT((VolTrueUp[Year]=$C$5)*(VolTrueUp[Period]=$C$6)*(VolTrueUp[Region]=F37)*(VolTrueUp[CustClass]=F36)*VolTrueUp[TrueUp]) -> 1233.08 | G39: =SUMPRODUCT((VolTrueUp[Year]=$C$5)*(VolTrueUp[Period]=$C$6)*(VolTrueUp[Region]=G37)*(VolTrueUp[CustClass]=F36)*VolTrueUp[TrueUp]) -> -43.32 | H39: =F39+G39 -> 1189.76 | I39: =SUMPRODUCT((VolTrueUp[Year]=$C$5)*(VolTrueUp[Period]=$C$6)*(VolTrueUp[Region]=I37)*(VolTrueUp[CustClass]=I36)*VolTrueUp[TrueUp]) -> -85.67 | J39: =SUMPRODUCT((VolTrueUp[Year]=$C$5)*(VolTrueUp[Period]=$C$6)*(VolTrueUp[Region]=J37)*(VolTrueUp[CustClass]=J36)*VolTrueUp[TrueUp]) -> -17.25 | K39: From VolTrueUp Table
B40: Adj. Amount to be Recovered | C40: =C38+C39 -> 796.44 | D40: =D38+D39 -> 1721.68 | E40: 2518.12 | F40: 3352.54 | G40: 596.85 | H40: 3949.39 | I40: 2157.85 | J40: 1.23
B41: Actual Revenues
B42: =C7 -> 2023-10-01 | C42: =-ROUND(IF($C$6="S1",SUMPRODUCT((WNARevAlloc[MonthFlow]=$B42)*(WNARevAlloc[Region]=C$37)*(WNARevAlloc[CustClass]=$C$36)*WNARevAlloc[AdjSRRS1Rev]),SUMPRODUCT((WNARevAlloc[MonthFlow]=$B42)*(WNARevAlloc[Region]=C$37)*(WNARevAlloc[CustClass]=$C$36)*WNARevAlloc[AdjSRRS2Rev])),2) -> 209.52 | D42: =-ROUND(IF($C$6="S1",SUMPRODUCT((WNARevAlloc[MonthFlow]=$B42)*(WNARevAlloc[Region]=D$37)*(WNARevAlloc[CustClass]=$C$36)*WNARevAlloc[AdjSRRS1Rev]),SUMPRODUCT((WNARevAlloc[MonthFlow]=$B42)*(WNARevAlloc[Region]=D$37)*(WNARevAlloc[CustClass]=$C$36)*WNARevAlloc[AdjSRRS2Rev])),2) -> 43.55 | E42: =C42+D42 -> 253.07 | F42: =-ROUND(IF($C$6="S1",SUMPRODUCT((WNARevAlloc[MonthFlow]=$B42)*(WNARevAlloc[Region]=F$37)*(WNARevAlloc[CustClass]=$F$36)*WNARevAlloc[AdjSRRS1Rev]),SUMPRODUCT((WNARevAlloc[MonthFlow]=$B42)*(WNARevAlloc[Region]=F$37)*(WNARevAlloc[CustClass]=$F$36)*WNARevAlloc[AdjSRRS2Rev])),2) -> -158.43 | G42: =-ROUND(IF($C$6="S1",SUMPRODUCT((WNARevAlloc[MonthFlow]=$B42)*(WNARevAlloc[Region]=G$37)*(WNARevAlloc[CustClass]=$F$36)*WNARevAlloc[AdjSRRS1Rev]),SUMPRODUCT((WNARevAlloc[MonthFlow]=$B42)*(WNARevAlloc[Region]=G$37)*(WNARevAlloc[CustClass]=$F$36)*WNARevAlloc[AdjSRRS2Rev])),2) -> -34.22 | H42: =F42+G42 -> -192.65 | I42: =-ROUND(IF($C$6="S1",SUMPRODUCT((WNARevAlloc[MonthFlow]=$B42)*(WNARevAlloc[Region]=I$37)*(WNARevAlloc[CustClass]=I$36)*WNARevAlloc[AdjSRRS1Rev]),SUMPRODUCT((WNARevAlloc[MonthFlow]=$B42)*(WNARevAlloc[Region]=I$37)*(WNARevAlloc[CustClass]=I$36)*WNARevAlloc[AdjSRRS2Rev])),2) -> -117.89 | J42: =-ROUND(IF($C$6="S1",SUMPRODUCT((WNARevAlloc[MonthFlow]=$B42)*(WNARevAlloc[Region]=J$37)*(WNARevAlloc[CustClass]=J$36)*WNARevAlloc[AdjSRRS1Rev]),SUMPRODUCT((WNARevAlloc[MonthFlow]=$B42)*(WNARevAlloc[Region]=J$37)*(WNARevAlloc[CustClass]=J$36)*WNARevAlloc[AdjSRRS2Rev])),2) -> -1.07 | K42: From WNARevAlloc Table
B43: =EDATE(B42,1) -> 2023-11-01 | C43: =-ROUND(IF($C$6="S1",SUMPRODUCT((WNARevAlloc[MonthFlow]=$B43)*(WNARevAlloc[Region]=C$37)*(WNARevAlloc[CustClass]=$C$36)*WNARevAlloc[AdjSRRS1Rev]),SUMPRODUCT((WNARevAlloc[MonthFlow]=$B43)*(WNARevAlloc[Region]=C$37)*(WNARevAlloc[CustClass]=$C$36)*WNARevAlloc[AdjSRRS2Rev])),2) -> 390.49 | D43: =-ROUND(IF($C$6="S1",SUMPRODUCT((WNARevAlloc[MonthFlow]=$B43)*(WNARevAlloc[Region]=D$37)*(WNARevAlloc[CustClass]=$C$36)*WNARevAlloc[AdjSRRS1Rev]),SUMPRODUCT((WNARevAlloc[MonthFlow]=$B43)*(WNARevAlloc[Region]=D$37)*(WNARevAlloc[CustClass]=$C$36)*WNARevAlloc[AdjSRRS2Rev])),2) -> 91.14 | E43: =C43+D43 -> 481.63 | F43: =-ROUND(IF($C$6="S1",SUMPRODUCT((WNARevAlloc[MonthFlow]=$B43)*(WNARevAlloc[Region]=F$37)*(WNARevAlloc[CustClass]=$F$36)*WNARevAlloc[AdjSRRS1Rev]),SUMPRODUCT((WNARevAlloc[MonthFlow]=$B43)*(WNARevAlloc[Region]=F$37)*(WNARevAlloc[CustClass]=$F$36)*WNARevAlloc[AdjSRRS2Rev])),2) -> -291.72 | G43: =-ROUND(IF($C$6="S1",SUMPRODUCT((WNARevAlloc[MonthFlow]=$B43)*(WNARevAlloc[Region]=G$37)*(WNARevAlloc[CustClass]=$F$36)*WNARevAlloc[AdjSRRS1Rev]),SUMPRODUCT((WNARevAlloc[MonthFlow]=$B43)*(WNARevAlloc[Region]=G$37)*(WNARevAlloc[CustClass]=$F$36)*WNARevAlloc[AdjSRRS2Rev])),2) -> -78.01 | H43: =F43+G43 -> -369.73 | I43: =-ROUND(IF($C$6="S1",SUMPRODUCT((WNARevAlloc[MonthFlow]=$B43)*(WNARevAlloc[Region]=I$37)*(WNARevAlloc[CustClass]=I$36)*WNARevAlloc[AdjSRRS1Rev]),SUMPRODUCT((WNARevAlloc[MonthFlow]=$B43)*(WNARevAlloc[Region]=I$37)*(WNARevAlloc[CustClass]=I$36)*WNARevAlloc[AdjSRRS2Rev])),2) -> -294.41 | J43: =-ROUND(IF($C$6="S1",SUMPRODUCT((WNARevAlloc[MonthFlow]=$B43)*(WNARevAlloc[Region]=J$37)*(WNARevAlloc[CustClass]=J$36)*WNARevAlloc[AdjSRRS1Rev]),SUMPRODUCT((WNARevAlloc[MonthFlow]=$B43)*(WNARevAlloc[Region]=J$37)*(WNARevAlloc[CustClass]=J$36)*WNARevAlloc[AdjSRRS2Rev])),2) -> -0.82 | K43: From WNARevAlloc Table
B44: =EDATE(B43,1) -> 2023-12-01 | C44: =-ROUND(IF($C$6="S1",SUMPRODUCT((WNARevAlloc[MonthFlow]=$B44)*(WNARevAlloc[Region]=C$37)*(WNARevAlloc[CustClass]=$C$36)*WNARevAlloc[AdjSRRS1Rev]),SUMPRODUCT((WNARevAlloc[MonthFlow]=$B44)*(WNARevAlloc[Region]=C$37)*(WNARevAlloc[CustClass]=$C$36)*WNARevAlloc[AdjSRRS2Rev])),2) -> 646.69 | D44: =-ROUND(IF($C$6="S1",SUMPRODUCT((WNARevAlloc[MonthFlow]=$B44)*(WNARevAlloc[Region]=D$37)*(WNARevAlloc[CustClass]=$C$36)*WNARevAlloc[AdjSRRS1Rev]),SUMPRODUCT((WNARevAlloc[MonthFlow]=$B44)*(WNARevAlloc[Region]=D$37)*(WNARevAlloc[CustClass]=$C$36)*WNARevAlloc[AdjSRRS2Rev])),2) -> 135.76 | E44: 782.45 | F44: =-ROUND(IF($C$6="S1",SUMPRODUCT((WNARevAlloc[MonthFlow]=$B44)*(WNARevAlloc[Region]=F$37)*(WNARevAlloc[CustClass]=$F$36)*WNARevAlloc[AdjSRRS1Rev]),SUMPRODUCT((WNARevAlloc[MonthFlow]=$B44)*(WNARevAlloc[Region]=F$37)*(WNARevAlloc[CustClass]=$F$36)*WNARevAlloc[AdjSRRS2Rev])),2) -> -503.72 | G44: =-ROUND(IF($C$6="S1",SUMPRODUCT((WNARevAlloc[MonthFlow]=$B44)*(WNARevAlloc[Region]=G$37)*(WNARevAlloc[CustClass]=$F$36)*WNARevAlloc[AdjSRRS1Rev]),SUMPRODUCT((WNARevAlloc[MonthFlow]=$B44)*(WNARevAlloc[Region]=G$37)*(WNARevAlloc[CustClass]=$F$36)*WNARevAlloc[AdjSRRS2Rev])),2) -> -122.62 | H44: -626.34 | I44: =-ROUND(IF($C$6="S1",SUMPRODUCT((WNARevAlloc[MonthFlow]=$B44)*(WNARevAlloc[Region]=I$37)*(WNARevAlloc[CustClass]=I$36)*WNARevAlloc[AdjSRRS1Rev]),SUMPRODUCT((WNARevAlloc[MonthFlow]=$B44)*(WNARevAlloc[Region]=I$37)*(WNARevAlloc[CustClass]=I$36)*WNARevAlloc[AdjSRRS2Rev])),2) -> -398.17 | J44: =-ROUND(IF($C$6="S1",SUMPRODUCT((WNARevAlloc[MonthFlow]=$B44)*(WNARevAlloc[Region]=J$37)*(WNARevAlloc[CustClass]=J$36)*WNARevAlloc[AdjSRRS1Rev]),SUMPRODUCT((WNARevAlloc[MonthFlow]=$B44)*(WNARevAlloc[Region]=J$37)*(WNARevAlloc[CustClass]=J$36)*WNARevAlloc[AdjSRRS2Rev])),2) -> 0.67 | K44: From WNARevAlloc Table
B45: 2024-01-01 | C45: =-ROUND(IF($C$6="S1",SUMPRODUCT((WNARevAlloc[MonthFlow]=$B45)*(WNARevAlloc[Region]=C$37)*(WNARevAlloc[CustClass]=$C$36)*WNARevAlloc[AdjSRRS1Rev]),SUMPRODUCT((WNARevAlloc[MonthFlow]=$B45)*(WNARevAlloc[Region]=C$37)*(WNARevAlloc[CustClass]=$C$36)*WNARevAlloc[AdjSRRS2Rev])),2) -> 489.01 | D45: =-ROUND(IF($C$6="S1",SUMPRODUCT((WNARevAlloc[MonthFlow]=$B45)*(WNARevAlloc[Region]=D$37)*(WNARevAlloc[CustClass]=$C$36)*WNARevAlloc[AdjSRRS1Rev]),SUMPRODUCT((WNARevAlloc[MonthFlow]=$B45)*(WNARevAlloc[Region]=D$37)*(WNARevAlloc[CustClass]=$C$36)*WNARevAlloc[AdjSRRS2Rev])),2) -> 103.23 | E45: 592.24 | F45: =-ROUND(IF($C$6="S1",SUMPRODUCT((WNARevAlloc[MonthFlow]=$B45)*(WNARevAlloc[Region]=F$37)*(WNARevAlloc[CustClass]=$F$36)*WNARevAlloc[AdjSRRS1Rev]),SUMPRODUCT((WNARevAlloc[MonthFlow]=$B45)*(WNARevAlloc[Region]=F$37)*(WNARevAlloc[CustClass]=$F$36)*WNARevAlloc[AdjSRRS2Rev])),2) -> -372.5 | G45: =-ROUND(IF($C$6="S1",SUMPRODUCT((WNARevAlloc[MonthFlow]=$B45)*(WNARevAlloc[Region]=G$37)*(WNARevAlloc[CustClass]=$F$36)*WNARevAlloc[AdjSRRS1Rev]),SUMPRODUCT((WNARevAlloc[MonthFlow]=$B45)*(WNARevAlloc[Region]=G$37)*(WNARevAlloc[CustClass]=$F$36)*WNARevAlloc[AdjSRRS2Rev])),2) -> -87.44 | H45: -459.94 | I45: =-ROUND(IF($C$6="S1",SUMPRODUCT((WNARevAlloc[MonthFlow]=$B45)*(WNARevAlloc[Region]=I$37)*(WNARevAlloc[CustClass]=I$36)*WNARevAlloc[AdjSRRS1Rev]),SUMPRODUCT((WNARevAlloc[MonthFlow]=$B45)*(WNARevAlloc[Region]=I$37)*(WNARevAlloc[CustClass]=I$36)*WNARevAlloc[AdjSRRS2Rev])),2) -> -441.69 | J45: =-ROUND(IF($C$6="S1",SUMPRODUCT((WNARevAlloc[MonthFlow]=$B45)*(WNARevAlloc[Region]=J$37)*(WNARevAlloc[CustClass]=J$36)*WNARevAlloc[AdjSRRS1Rev]),SUMPRODUCT((WNARevAlloc[MonthFlow]=$B45)*(WNARevAlloc[Region]=J$37)*(WNARevAlloc[CustClass]=J$36)*WNARevAlloc[AdjSRRS2Rev])),2) -> 0.01 | K45: From WNARevAlloc Table
B46: 2024-02-01 | C46: =-ROUND(IF($C$6="S1",SUMPRODUCT((WNARevAlloc[MonthFlow]=$B46)*(WNARevAlloc[Region]=C$37)*(WNARevAlloc[CustClass]=$C$36)*WNARevAlloc[AdjSRRS1Rev]),SUMPRODUCT((WNARevAlloc[MonthFlow]=$B46)*(WNARevAlloc[Region]=C$37)*(WNARevAlloc[CustClass]=$C$36)*WNARevAlloc[AdjSRRS2Rev])),2) -> 325.21 | D46: =-ROUND(IF($C$6="S1",SUMPRODUCT((WNARevAlloc[MonthFlow]=$B46)*(WNARevAlloc[Region]=D$37)*(WNARevAlloc[CustClass]=$C$36)*WNARevAlloc[AdjSRRS1Rev]),SUMPRODUCT((WNARevAlloc[MonthFlow]=$B46)*(WNARevAlloc[Region]=D$37)*(WNARevAlloc[CustClass]=$C$36)*WNARevAlloc[AdjSRRS2Rev])),2) -> 53.51 | E46: 378.72 | F46: =-ROUND(IF($C$6="S1",SUMPRODUCT((WNARevAlloc[MonthFlow]=$B46)*(WNARevAlloc[Region]=F$37)*(WNARevAlloc[CustClass]=$F$36)*WNARevAlloc[AdjSRRS1Rev]),SUMPRODUCT((WNARevAlloc[MonthFlow]=$B46)*(WNARevAlloc[Region]=F$37)*(WNARevAlloc[CustClass]=$F$36)*WNARevAlloc[AdjSRRS2Rev])),2) -> -252.73 | G46: =-ROUND(IF($C$6="S1",SUMPRODUCT((WNARevAlloc[MonthFlow]=$B46)*(WNARevAlloc[Region]=G$37)*(WNARevAlloc[CustClass]=$F$36)*WNARevAlloc[AdjSRRS1Rev]),SUMPRODUCT((WNARevAlloc[MonthFlow]=$B46)*(WNARevAlloc[Region]=G$37)*(WNARevAlloc[CustClass]=$F$36)*WNARevAlloc[AdjSRRS2Rev])),2) -> -52.28 | H46: -305.01 | I46: =-ROUND(IF($C$6="S1",SUMPRODUCT((WNARevAlloc[MonthFlow]=$B46)*(WNARevAlloc[Region]=I$37)*(WNARevAlloc[CustClass]=I$36)*WNARevAlloc[AdjSRRS1Rev]),SUMPRODUCT((WNARevAlloc[MonthFlow]=$B46)*(WNARevAlloc[Region]=I$37)*(WNARevAlloc[CustClass]=I$36)*WNARevAlloc[AdjSRRS2Rev])),2) -> -237.22 | J46: =-ROUND(IF($C$6="S1",SUMPRODUCT((WNARevAlloc[MonthFlow]=$B46)*(WNARevAlloc[Region]=J$37)*(WNARevAlloc[CustClass]=J$36)*WNARevAlloc[AdjSRRS1Rev]),SUMPRODUCT((WNARevAlloc[MonthFlow]=$B46)*(WNARevAlloc[Region]=J$37)*(WNARevAlloc[CustClass]=J$36)*WNARevAlloc[AdjSRRS2Rev])),2) -> -0.08 | K46: From WNARevAlloc Table
B47: 2024-03-01 | C47: =-ROUND(IF($C$6="S1",SUMPRODUCT((WNARevAlloc[MonthFlow]=$B47)*(WNARevAlloc[Region]=C$37)*(WNARevAlloc[CustClass]=$C$36)*WNARevAlloc[AdjSRRS1Rev]),SUMPRODUCT((WNARevAlloc[MonthFlow]=$B47)*(WNARevAlloc[Region]=C$37)*(WNARevAlloc[CustClass]=$C$36)*WNARevAlloc[AdjSRRS2Rev])),2) -> 273.27 | D47: =-ROUND(IF($C$6="S1",SUMPRODUCT((WNARevAlloc[MonthFlow]=$B47)*(WNARevAlloc[Region]=D$37)*(WNARevAlloc[CustClass]=$C$36)*WNARevAlloc[AdjSRRS1Rev]),SUMPRODUCT((WNARevAlloc[MonthFlow]=$B47)*(WNARevAlloc[Region]=D$37)*(WNARevAlloc[CustClass]=$C$36)*WNARevAlloc[AdjSRRS2Rev])),2) -> 40.52 | E47: 313.79 | F47: =-ROUND(IF($C$6="S1",SUMPRODUCT((WNARevAlloc[MonthFlow]=$B47)*(WNARevAlloc[Region]=F$37)*(WNARevAlloc[CustClass]=$F$36)*WNARevAlloc[AdjSRRS1Rev]),SUMPRODUCT((WNARevAlloc[MonthFlow]=$B47)*(WNARevAlloc[Region]=F$37)*(WNARevAlloc[CustClass]=$F$36)*WNARevAlloc[AdjSRRS2Rev])),2) -> -201.5 | G47: =-ROUND(IF($C$6="S1",SUMPRODUCT((WNARevAlloc[MonthFlow]=$B47)*(WNARevAlloc[Region]=G$37)*(WNARevAlloc[CustClass]=$F$36)*WNARevAlloc[AdjSRRS1Rev]),SUMPRODUCT((WNARevAlloc[MonthFlow]=$B47)*(WNARevAlloc[Region]=G$37)*(WNARevAlloc[CustClass]=$F$36)*WNARevAlloc[AdjSRRS2Rev])),2) -> -35.2 | H47: -236.7 | I47: =-ROUND(IF($C$6="S1",SUMPRODUCT((WNARevAlloc[MonthFlow]=$B47)*(WNARevAlloc[Region]=I$37)*(WNARevAlloc[CustClass]=I$36)*WNARevAlloc[AdjSRRS1Rev]),SUMPRODUCT((WNARevAlloc[MonthFlow]=$B47)*(WNARevAlloc[Region]=I$37)*(WNARevAlloc[CustClass]=I$36)*WNARevAlloc[AdjSRRS2Rev])),2) -> -169.02 | J47: =-ROUND(IF($C$6="S1",SUMPRODUCT((WNARevAlloc[MonthFlow]=$B47)*(WNARevAlloc[Region]=J$37)*(WNARevAlloc[CustClass]=J$36)*WNARevAlloc[AdjSRRS1Rev]),SUMPRODUCT((WNARevAlloc[MonthFlow]=$B47)*(WNARevAlloc[Region]=J$37)*(WNARevAlloc[CustClass]=J$36)*WNARevAlloc[AdjSRRS2Rev])),2) -> 0 | K47: From WNARevAlloc Table
B48: 2024-04-01 | C48: =-ROUND(IF($C$6="S1",SUMPRODUCT((WNARevAlloc[MonthFlow]=$B48)*(WNARevAlloc[Region]=C$37)*(WNARevAlloc[CustClass]=$C$36)*WNARevAlloc[AdjSRRS1Rev]),SUMPRODUCT((WNARevAlloc[MonthFlow]=$B48)*(WNARevAlloc[Region]=C$37)*(WNARevAlloc[CustClass]=$C$36)*WNARevAlloc[AdjSRRS2Rev])),2) -> 99.05 | D48: =-ROUND(IF($C$6="S1",SUMPRODUCT((WNARevAlloc[MonthFlow]=$B48)*(WNARevAlloc[Region]=D$37)*(WNARevAlloc[CustClass]=$C$36)*WNARevAlloc[AdjSRRS1Rev]),SUMPRODUCT((WNARevAlloc[MonthFlow]=$B48)*(WNARevAlloc[Region]=D$37)*(WNARevAlloc[CustClass]=$C$36)*WNARevAlloc[AdjSRRS2Rev])),2) -> 16.95 | E48: 116 | F48: =-ROUND(IF($C$6="S1",SUMPRODUCT((WNARevAlloc[MonthFlow]=$B48)*(WNARevAlloc[Region]=F$37)*(WNARevAlloc[CustClass]=$F$36)*WNARevAlloc[AdjSRRS1Rev]),SUMPRODUCT((WNARevAlloc[MonthFlow]=$B48)*(WNARevAlloc[Region]=F$37)*(WNARevAlloc[CustClass]=$F$36)*WNARevAlloc[AdjSRRS2Rev])),2) -> -81.62 | G48: =-ROUND(IF($C$6="S1",SUMPRODUCT((WNARevAlloc[MonthFlow]=$B48)*(WNARevAlloc[Region]=G$37)*(WNARevAlloc[CustClass]=$F$36)*WNARevAlloc[AdjSRRS1Rev]),SUMPRODUCT((WNARevAlloc[MonthFlow]=$B48)*(WNARevAlloc[Region]=G$37)*(WNARevAlloc[CustClass]=$F$36)*WNARevAlloc[AdjSRRS2Rev])),2) -> -18.16 | H48: -99.78 | I48: =-ROUND(IF($C$6="S1",SUMPRODUCT((WNARevAlloc[MonthFlow]=$B48)*(WNARevAlloc[Region]=I$37)*(WNARevAlloc[CustClass]=I$36)*WNARevAlloc[AdjSRRS1Rev]),SUMPRODUCT((WNARevAlloc[MonthFlow]=$B48)*(WNARevAlloc[Region]=I$37)*(WNARevAlloc[CustClass]=I$36)*WNARevAlloc[AdjSRRS2Rev])),2) -> -82.09 | J48: =-ROUND(IF($C$6="S1",SUMPRODUCT((WNARevAlloc[MonthFlow]=$B48)*(WNARevAlloc[Region]=J$37)*(WNARevAlloc[CustClass]=J$36)*WNARevAlloc[AdjSRRS1Rev]),SUMPRODUCT((WNARevAlloc[MonthFlow]=$B48)*(WNARevAlloc[Region]=J$37)*(WNARevAlloc[CustClass]=J$36)*WNARevAlloc[AdjSRRS2Rev])),2) -> 0 | K48: From WNARevAlloc Table
B49: 2024-05-01 | C49: =-ROUND(IF($C$6="S1",SUMPRODUCT((WNARevAlloc[MonthFlow]=$B49)*(WNARevAlloc[Region]=C$37)*(WNARevAlloc[CustClass]=$C$36)*WNARevAlloc[AdjSRRS1Rev]),SUMPRODUCT((WNARevAlloc[MonthFlow]=$B49)*(WNARevAlloc[Region]=C$37)*(WNARevAlloc[CustClass]=$C$36)*WNARevAlloc[AdjSRRS2Rev])),2) -> 43.95 | D49: =-ROUND(IF($C$6="S1",SUMPRODUCT((WNARevAlloc[MonthFlow]=$B49)*(WNARevAlloc[Region]=D$37)*(WNARevAlloc[CustClass]=$C$36)*WNARevAlloc[AdjSRRS1Rev]),SUMPRODUCT((WNARevAlloc[MonthFlow]=$B49)*(WNARevAlloc[Region]=D$37)*(WNARevAlloc[CustClass]=$C$36)*WNARevAlloc[AdjSRRS2Rev])),2) -> 8.74 | E49: 52.69 | F49: =-ROUND(IF($C$6="S1",SUMPRODUCT((WNARevAlloc[MonthFlow]=$B49)*(WNARevAlloc[Region]=F$37)*(WNARevAlloc[CustClass]=$F$36)*WNARevAlloc[AdjSRRS1Rev]),SUMPRODUCT((WNARevAlloc[MonthFlow]=$B49)*(WNARevAlloc[Region]=F$37)*(WNARevAlloc[CustClass]=$F$36)*WNARevAlloc[AdjSRRS2Rev])),2) -> -40.8 | G49: =-ROUND(IF($C$6="S1",SUMPRODUCT((WNARevAlloc[MonthFlow]=$B49)*(WNARevAlloc[Region]=G$37)*(WNARevAlloc[CustClass]=$F$36)*WNARevAlloc[AdjSRRS1Rev]),SUMPRODUCT((WNARevAlloc[MonthFlow]=$B49)*(WNARevAlloc[Region]=G$37)*(WNARevAlloc[CustClass]=$F$36)*WNARevAlloc[AdjSRRS2Rev])),2) -> -11.48 | H49: -52.28 | I49: =-ROUND(IF($C$6="S1",SUMPRODUCT((WNARevAlloc[MonthFlow]=$B49)*(WNARevAlloc[Region]=I$37)*(WNARevAlloc[CustClass]=I$36)*WNARevAlloc[AdjSRRS1Rev]),SUMPRODUCT((WNARevAlloc[MonthFlow]=$B49)*(WNARevAlloc[Region]=I$37)*(WNARevAlloc[CustClass]=I$36)*WNARevAlloc[AdjSRRS2Rev])),2) -> -44.52 | J49: =-ROUND(IF($C$6="S1",SUMPRODUCT((WNARevAlloc[MonthFlow]=$B49)*(WNARevAlloc[Region]=J$37)*(WNARevAlloc[CustClass]=J$36)*WNARevAlloc[AdjSRRS1Rev]),SUMPRODUCT((WNARevAlloc[MonthFlow]=$B49)*(WNARevAlloc[Region]=J$37)*(WNARevAlloc[CustClass]=J$36)*WNARevAlloc[AdjSRRS2Rev])),2) -> 0 | K49: From WNARevAlloc Table
B50: 2024-06-01 | C50: =-ROUND(IF($C$6="S1",SUMPRODUCT((WNARevAlloc[MonthFlow]=$B50)*(WNARevAlloc[Region]=C$37)*(WNARevAlloc[CustClass]=$C$36)*WNARevAlloc[AdjSRRS1Rev]),SUMPRODUCT((WNARevAlloc[MonthFlow]=$B50)*(WNARevAlloc[Region]=C$37)*(WNARevAlloc[CustClass]=$C$36)*WNARevAlloc[AdjSRRS2Rev])),2) -> 32.57 | D50: =-ROUND(IF($C$6="S1",SUMPRODUCT((WNARevAlloc[MonthFlow]=$B50)*(WNARevAlloc[Region]=D$37)*(WNARevAlloc[CustClass]=$C$36)*WNARevAlloc[AdjSRRS1Rev]),SUMPRODUCT((WNARevAlloc[MonthFlow]=$B50)*(WNARevAlloc[Region]=D$37)*(WNARevAlloc[CustClass]=$C$36)*WNARevAlloc[AdjSRRS2Rev])),2) -> 6.71 | E50: 39.28 | F50: =-ROUND(IF($C$6="S1",SUMPRODUCT((WNARevAlloc[MonthFlow]=$B50)*(WNARevAlloc[Region]=F$37)*(WNARevAlloc[CustClass]=$F$36)*WNARevAlloc[AdjSRRS1Rev]),SUMPRODUCT((WNARevAlloc[MonthFlow]=$B50)*(WNARevAlloc[Region]=F$37)*(WNARevAlloc[CustClass]=$F$36)*WNARevAlloc[AdjSRRS2Rev])),2) -> -31.88 | G50: =-ROUND(IF($C$6="S1",SUMPRODUCT((WNARevAlloc[MonthFlow]=$B50)*(WNARevAlloc[Region]=G$37)*(WNARevAlloc[CustClass]=$F$36)*WNARevAlloc[AdjSRRS1Rev]),SUMPRODUCT((WNARevAlloc[MonthFlow]=$B50)*(WNARevAlloc[Region]=G$37)*(WNARevAlloc[CustClass]=$F$36)*WNARevAlloc[AdjSRRS2Rev])),2) -> -5.19 | H50: -37.07 | I50: =-ROUND(IF($C$6="S1",SUMPRODUCT((WNARevAlloc[MonthFlow]=$B50)*(WNARevAlloc[Region]=I$37)*(WNARevAlloc[CustClass]=I$36)*WNARevAlloc[AdjSRRS1Rev]),SUMPRODUCT((WNARevAlloc[MonthFlow]=$B50)*(WNARevAlloc[Region]=I$37)*(WNARevAlloc[CustClass]=I$36)*WNARevAlloc[AdjSRRS2Rev])),2) -> -31.68 | J50: =-ROUND(IF($C$6="S1",SUMPRODUCT((WNARevAlloc[MonthFlow]=$B50)*(WNARevAlloc[Region]=J$37)*(WNARevAlloc[CustClass]=J$36)*WNARevAlloc[AdjSRRS1Rev]),SUMPRODUCT((WNARevAlloc[MonthFlow]=$B50)*(WNARevAlloc[Region]=J$37)*(WNARevAlloc[CustClass]=J$36)*WNARevAlloc[AdjSRRS2Rev])),2) -> 0 | K50: From WNARevAlloc Table
B51: Total Actual Revenues | C51: =SUM(C42:C50) -> 2509.76 | D51: =SUM(D42:D50) -> 500.11 | E51: 3009.87 | F51: -1934.9 | G51: -444.6 | H51: -2379.5 | I51: -1816.69 | J51: -1.29
B52: Projected Revenues
B53: =EDATE(B50,1) -> 2024-07-01 | C53: =-ROUND(SUMPRODUCT((CustEstRev[MonthFlow]=$B53)*(CustEstRev[Region]=C$37)*(CustEstRev[CustClass]=C$36)*(CustEstRev[Period]=$C$6)*CustEstRev[SRRRev]),2) -> 44 | D53: =-ROUND(SUMPRODUCT((CustEstRev[MonthFlow]=$B53)*(CustEstRev[Region]=D$37)*(CustEstRev[CustClass]=C$36)*(CustEstRev[Period]=$C$6)*CustEstRev[SRRRev]),2) -> 9 | E53: =C53+D53 -> 53 | F53: =-ROUND(SUMPRODUCT((CustEstRev[MonthFlow]=$B53)*(CustEstRev[Region]=$F$37)*(CustEstRev[CustClass]=F$36)*(CustEstRev[Period]=$C$6)*CustEstRev[SRRRev]),2) -> -47 | G53: =-ROUND(SUMPRODUCT((CustEstRev[MonthFlow]=$B53)*(CustEstRev[Region]=$G$37)*(CustEstRev[CustClass]=F$36)*(CustEstRev[Period]=$C$6)*CustEstRev[SRRRev]),2) -> -9 | H53: =F53+G53 -> -56 | I53: =-ROUND(SUMPRODUCT((CustEstRev[MonthFlow]=$B53)*(CustEstRev[Region]=I$37)*(CustEstRev[CustClass]=I$36)*(CustEstRev[Period]=$C$6)*CustEstRev[SRRRev]),2) -> -40 | J53: =-ROUND(SUMPRODUCT((CustEstRev[MonthFlow]=$B53)*(CustEstRev[Region]=J$37)*(CustEstRev[CustClass]=J$36)*(CustEstRev[Period]=$C$6)*CustEstRev[SRRRev]),2) -> 0 | K53: From CustEstRev Table
B54: =EDATE(B53,1) -> 2024-08-01 | C54: =-ROUND(SUMPRODUCT((CustEstRev[MonthFlow]=$B54)*(CustEstRev[Region]=C$37)*(CustEstRev[CustClass]=C$36)*(CustEstRev[Period]=$C$6)*CustEstRev[SRRRev]),2) -> 40 | D54: =-ROUND(SUMPRODUCT((CustEstRev[MonthFlow]=$B54)*(CustEstRev[Region]=D$37)*(CustEstRev[CustClass]=C$36)*(CustEstRev[Period]=$C$6)*CustEstRev[SRRRev]),2) -> 7 | E54: =C54+D54 -> 47 | F54: =-ROUND(SUMPRODUCT((CustEstRev[MonthFlow]=$B54)*(CustEstRev[Region]=$F$37)*(CustEstRev[CustClass]=F$36)*(CustEstRev[Period]=$C$6)*CustEstRev[SRRRev]),2) -> -44 | G54: =-ROUND(SUMPRODUCT((CustEstRev[MonthFlow]=$B54)*(CustEstRev[Region]=$G$37)*(CustEstRev[CustClass]=F$36)*(CustEstRev[Period]=$C$6)*CustEstRev[SRRRev]),2) -> -7 | H54: =F54+G54 -> -51 | I54: =-ROUND(SUMPRODUCT((CustEstRev[MonthFlow]=$B54)*(CustEstRev[Region]=I$37)*(CustEstRev[CustClass]=I$36)*(CustEstRev[Period]=$C$6)*CustEstRev[SRRRev]),2) -> -38 | J54: =-ROUND(SUMPRODUCT((CustEstRev[MonthFlow]=$B54)*(CustEstRev[Region]=J$37)*(CustEstRev[CustClass]=J$36)*(CustEstRev[Period]=$C$6)*CustEstRev[SRRRev]),2) -> 0 | K54: From CustEstRev Table
B55: 2024-09-01 | C55: =-ROUND(SUMPRODUCT((CustEstRev[MonthFlow]=$B55)*(CustEstRev[Region]=C$37)*(CustEstRev[CustClass]=C$36)*(CustEstRev[Period]=$C$6)*CustEstRev[SRRRev]),2) -> 57 | D55: =-ROUND(SUMPRODUCT((CustEstRev[MonthFlow]=$B55)*(CustEstRev[Region]=D$37)*(CustEstRev[CustClass]=C$36)*(CustEstRev[Period]=$C$6)*CustEstRev[SRRRev]),2) -> 10 | E55: 67 | F55: =-ROUND(SUMPRODUCT((CustEstRev[MonthFlow]=$B55)*(CustEstRev[Region]=$F$37)*(CustEstRev[CustClass]=F$36)*(CustEstRev[Period]=$C$6)*CustEstRev[SRRRev]),2) -> -59 | G55: =-ROUND(SUMPRODUCT((CustEstRev[MonthFlow]=$B55)*(CustEstRev[Region]=$G$37)*(CustEstRev[CustClass]=F$36)*(CustEstRev[Period]=$C$6)*CustEstRev[SRRRev]),2) -> -10 | H55: -69 | I55: =-ROUND(SUMPRODUCT((CustEstRev[MonthFlow]=$B55)*(CustEstRev[Region]=I$37)*(CustEstRev[CustClass]=I$36)*(CustEstRev[Period]=$C$6)*CustEstRev[SRRRev]),2) -> -48 | J55: =-ROUND(SUMPRODUCT((CustEstRev[MonthFlow]=$B55)*(CustEstRev[Region]=J$37)*(CustEstRev[CustClass]=J$36)*(CustEstRev[Period]=$C$6)*CustEstRev[SRRRev]),2) -> 0 | K55: From CustEstRev Table
B56: Total Projected Revenues | C56: =SUM(C53:C55) -> 141 | D56: =SUM(D53:D55) -> 26 | E56: =SUM(E53:E55) -> 167 | F56: =SUM(F53:F55) -> -150 | G56: =SUM(G53:G55) -> -26 | H56: =SUM(H53:H55) -> -176 | I56: =SUM(I53:I55) -> -126 | J56: =SUM(J53:J55) -> 0
B57: Total Billings | C57: =C51+C56 -> 2650.76 | D57: 526.11 | E57: 3176.87 | F57: -2084.9 | G57: -470.6 | H57: -2555.5 | I57: -1942.69 | J57: -1.29
B58: Total WNA Recovery | C58: =ROUND(C32+C57,2) -> -105683.92 | D58: -20991.58 | E58: -126675.5 | F58: -16725.8 | G58: -3776.23 | H58: -20502.04 | I58: -326439.68 | J58: -32451.52
B59: SRR Net (Over)/Under Recov 1/ | C59: =ROUND(C57+C40,2) -> 3447.2 | D59: =ROUND(D57+D40,2) -> 2247.79 | E59: 5694.99 | F59: 1267.64 | G59: 126.25 | H59: 1393.89 | I59: 215.16 | J59: -0.06
B60: CSWNA Net (Over)/Under Recov 1/ | C60: =C33 -> 23441.4 | D60: =D33 -> 3481 | E60: =E33 -> 26922.4 | F60: 1317.84 | G60: 229.43 | H60: 1547.26 | I60: 56998.3 | J60: =J33 -> 1325.17
B61: Total Net O/U for SRR ReconPerAdj | C61: =C59+C60 -> 26888.6 | D61: =D59+D60 -> 5728.79 | E61: 32617.39 | F61: 2585.48 | G61: 355.68 | H61: 2941.15 | I61: 57213.46 | J61: 1325.11
B62: Enter These Amounts in the ReconPerAdj Table
B64: Region | C64: NEMO + WEMO | E64: SEMO
B65: Customer Class | C65: Res | D65: SGS | E65: Res | F65: SGS
B66: WNA to be Recovered
B67: CSWNA | C67: =E15 -> 156774.77 | D67: =H15 -> 19493.8 | E67: =I15 -> 381495.29 | F67: =J15 -> 33775.4
B68: SRR | C68: =E40 -> 2518.12 | D68: =H40 -> 3949.39 | E68: =I40 -> 2157.85 | F68: =J40 -> 1.23
B69: Total | C69: =SUM(C67:C68) -> 159292.89 | D69: =SUM(D67:D68) -> 23443.19 | E69: 383653.14 | F69: 33776.63
B70: WNA Actually Recovered
B71: CSWNA | C71: =E32 -> -129852.3706 | D71: =H32 -> -17946.53625 | E71: =I32 -> -324496.9871 | F71: =J32 -> -32450.23488
B72: SRR | C72: =E57 -> 3176.87 | D72: =H57 -> -2555.5 | E72: =I57 -> -1942.69 | F72: =J57 -> -1.29
B73: Total | C73: =SUM(C71:C72) -> -126675.5006 | D73: =SUM(D71:D72) -> -20502.03625 | E73: =SUM(E71:E72) -> -326439.6771 | F73: =SUM(F71:F72) -> -32451.52488
B74: WNA Net Difference
B75: CSWNA | C75: =C67+C71 -> 26922.39938 | D75: =D67+D71 -> 1547.263751 | E75: 56998.30292 | F75: 1325.165124
B76: SRR | C76: =C68+C72 -> 5694.99 | D76: =D68+D72 -> 1393.89 | E76: 215.16 | F76: -0.06
B77: Total | C77: =SUM(C75:C76) -> 32617.38938 | D77: =SUM(D75:D76) -> 2941.153751 | E77: 57213.46292 | F77: 1325.105124
B79: WNA Deferred Balance 1/ | C79: 0 | D79: 0 | E79: 0 | F79: 0
B80: SRR Adjustment 1/ | C80: =C77+C79 -> 32617.38938 | D80: =D77+D79 -> 2941.153751 | E80: 57213.46292 | F80: 1325.105124
B82: Billing Determinants | C82: =SUMPRODUCT((BillDeter[Region]=C12)*(BillDeter[CustClass]=C11)*BillDeter[BillingDeterminants])+SUMPRODUCT((BillDeter[Region]=D12)*(BillDeter[CustClass]=C11)*BillDeter[BillingDeterminants]) -> 13229661.45 | D82: =SUMPRODUCT((BillDeter[Region]=F12)*(BillDeter[CustClass]=F11)*BillDeter[BillingDeterminants])+SUMPRODUCT((BillDeter[Region]=G12)*(BillDeter[CustClass]=F11)*BillDeter[BillingDeterminants]) -> 3950233.324 | E82: =SUMPRODUCT((BillDeter[Region]=I12)*(BillDeter[CustClass]=I11)*BillDeter[BillingDeterminants]) -> 15300894.64 | F82: =SUMPRODUCT((BillDeter[Region]=J12)*(BillDeter[CustClass]=J11)*BillDeter[BillingDeterminants]) -> 3908443.556
B84: Rate | C84: =ROUND(C80/C82,5) -> 0.00247 | D84: =ROUND(D80/D82,5) -> 0.00074 | E84: =ROUND(E80/E82,5) -> 0.00374 | F84: =ROUND(F80/F82,5) -> 0.00034
B85: Enter these rates in the SRR column of the WNAR Rates table.
B87: 1/ Negative amount = Due Customer, Positive amount = Due Company

Sheet SRR SEMO
B2: Liberty Midstates | F2: Filing Period | I2: Rate Sched | J2: SAP Rate Cat. | K2: Territory | L2: Cust. Class
B3: Semi-Annual Reconciliation Rate | F3: Year | G3: Period | I3: 62-GRF | J3: =INDEX(RateSched[SAPRateCategory],MATCH($I3,RateSched[RateSched],0)) -> SMGR_RFS | K3: =INDEX(RateSched[Territory],MATCH($I3,RateSched[RateSched],0)) -> SEMO | L3: =INDEX(RateSched[CustClassShort],MATCH($I3,RateSched[RateSched],0)) -> Res
B4: Region | C4: SEMO | I4: 62-GCSF | J4: =INDEX(RateSched[SAPRateCategory],MATCH($I4,RateSched[RateSched],0)) -> SMGR_SFGS | K4: =INDEX(RateSched[Territory],MATCH($I4,RateSched[RateSched],0)) -> SEMO | L4: =INDEX(RateSched[CustClassShort],MATCH($I4,RateSched[RateSched],0)) -> SGS
B5: Year | C5: =DateSet!C2 -> 2024
B6: Period | C6: =DateSet!C3 -> S2
B7: Analysis Start | C7: =DateSet!J9 -> 2023-07-01
B9: Rate Sched | C9: 62-GRF | D9: Res
B10: Residential | C10: True-Up Period | F10: Actual Period* | O10: Projected Period
B11: Month (Flow) | C11: =C7 -> 45108 | D11: =EDATE(C11,1) -> 45139 | E11: =EDATE(D11,1) -> 45170 | F11: 45200 | G11: 45231 | H11: 45261 | I11: 45292 | J11: 45323 | K11: 45352 | L11: 45383 | M11: 45413 | N11: 45444 | O11: 45474 | P11: 45505 | Q11: 45536
B12: Est. Volume | C12: =SUMPRODUCT((CustEstVol[MonthFlow]=C$11)*(CustEstVol[RateSched]=$C$9)*CustEstVol[NormVol]) -> 268362 | D12: =SUMPRODUCT((CustEstVol[MonthFlow]=D$11)*(CustEstVol[RateSched]=$C$9)*CustEstVol[NormVol]) -> 252879 | E12: =SUMPRODUCT((CustEstVol[MonthFlow]=E$11)*(CustEstVol[RateSched]=$C$9)*CustEstVol[NormVol]) -> 323033 | O12: =SUMPRODUCT((CustEstVol[MonthFlow]=O$11)*(CustEstVol[RateSched]=$C$9)*CustEstVol[NormVol]) -> 268362 | P12: =SUMPRODUCT((CustEstVol[MonthFlow]=P$11)*(CustEstVol[RateSched]=$C$9)*CustEstVol[NormVol]) -> 252879 | Q12: =SUMPRODUCT((CustEstVol[MonthFlow]=Q$11)*(CustEstVol[RateSched]=$C$9)*CustEstVol[NormVol]) -> 323033
B13: Actual Volume | C13: =SUMPRODUCT((WNARevAlloc[MonthFlow]=C11)*(WNARevAlloc[RateSched]=$C9)*WNARevAlloc[Consumption]) -> 231885.5429 | D13: =SUMPRODUCT((WNARevAlloc[MonthFlow]=D11)*(WNARevAlloc[RateSched]=$C9)*WNARevAlloc[Consumption]) -> 245995.0076 | E13: =SUMPRODUCT((WNARevAlloc[MonthFlow]=E11)*(WNARevAlloc[RateSched]=$C9)*WNARevAlloc[Consumption]) -> 292545.144 | F13: =SUMPRODUCT((WNARevAlloc[MonthFlow]=F11)*(WNARevAlloc[RateSched]=$C9)*WNARevAlloc[Consumption]) -> 904642.807 | G13: =SUMPRODUCT((WNARevAlloc[MonthFlow]=G11)*(WNARevAlloc[RateSched]=$C9)*WNARevAlloc[Consumption]) -> 1990245.73 | H13: =SUMPRODUCT((WNARevAlloc[MonthFlow]=H11)*(WNARevAlloc[RateSched]=$C9)*WNARevAlloc[Consumption]) -> 2637608.231 | I13: =SUMPRODUCT((WNARevAlloc[MonthFlow]=I11)*(WNARevAlloc[RateSched]=$C9)*WNARevAlloc[Consumption]) -> 2945578.239 | J13: =SUMPRODUCT((WNARevAlloc[MonthFlow]=J11)*(WNARevAlloc[RateSched]=$C9)*WNARevAlloc[Consumption]) -> 1584049.601 | K13: =SUMPRODUCT((WNARevAlloc[MonthFlow]=K11)*(WNARevAlloc[RateSched]=$C9)*WNARevAlloc[Consumption]) -> 1129011.804 | L13: =SUMPRODUCT((WNARevAlloc[MonthFlow]=L11)*(WNARevAlloc[RateSched]=$C9)*WNARevAlloc[Consumption]) -> 547373.525 | M13: =SUMPRODUCT((WNARevAlloc[MonthFlow]=M11)*(WNARevAlloc[RateSched]=$C9)*WNARevAlloc[Consumption]) -> 296746.396 | N13: =SUMPRODUCT((WNARevAlloc[MonthFlow]=N11)*(WNARevAlloc[RateSched]=$C9)*WNARevAlloc[Consumption]) -> 210535.028
B14: Vol True-Up | C14: =C13-C12 -> -36476.45708 | D14: =D13-D12 -> -6883.99243 | E14: -30487.856
B15: ="WNAR "&$C$6&" Rates in Effect" -> WNAR S2 Rates in Effect
B16: CSWNA | C16: =SUMPRODUCT((WNARRates[BeginDate]<=C$11)*(WNARRates[EndDate]>=C$11)*(WNARRates[Region]=$C$4)*(WNARRates[CustClass]=$D$9)*(WNARRates[Period]=$C$6)*WNARRates[CSWNA]) -> 0.00128 | D16: =SUMPRODUCT((WNARRates[BeginDate]<=D$11)*(WNARRates[EndDate]>=D$11)*(WNARRates[Region]=$C$4)*(WNARRates[CustClass]=$D$9)*(WNARRates[Period]=$C$6)*WNARRates[CSWNA]) -> 0.00128 | E16: =SUMPRODUCT((WNARRates[BeginDate]<=E$11)*(WNARRates[EndDate]>=E$11)*(WNARRates[Region]=$C$4)*(WNARRates[CustClass]=$D$9)*(WNARRates[Period]=$C$6)*WNARRates[CSWNA]) -> 0.00128 | F16: =SUMPRODUCT((WNARRates[BeginDate]<=F$11)*(WNARRates[EndDate]>=F$11)*(WNARRates[Region]=$C$4)*(WNARRates[CustClass]=$D$9)*(WNARRates[Period]=$C$6)*WNARRates[AdjCSWNA]) -> 0.02493 | G16: =SUMPRODUCT((WNARRates[BeginDate]<=G$11)*(WNARRates[EndDate]>=G$11)*(WNARRates[Region]=$C$4)*(WNARRates[CustClass]=$D$9)*(WNARRates[Period]=$C$6)*WNARRates[AdjCSWNA]) -> 0.02493 | H16: =SUMPRODUCT((WNARRates[BeginDate]<=H$11)*(WNARRates[EndDate]>=H$11)*(WNARRates[Region]=$C$4)*(WNARRates[CustClass]=$D$9)*(WNARRates[Period]=$C$6)*WNARRates[AdjCSWNA]) -> 0.02493 | I16: =SUMPRODUCT((WNARRates[BeginDate]<=I$11)*(WNARRates[EndDate]>=I$11)*(WNARRates[Region]=$C$4)*(WNARRates[CustClass]=$D$9)*(WNARRates[Period]=$C$6)*WNARRates[AdjCSWNA]) -> 0.02493 | J16: =SUMPRODUCT((WNARRates[BeginDate]<=J$11)*(WNARRates[EndDate]>=J$11)*(WNARRates[Region]=$C$4)*(WNARRates[CustClass]=$D$9)*(WNARRates[Period]=$C$6)*WNARRates[AdjCSWNA]) -> 0.02493 | K16: =SUMPRODUCT((WNARRates[BeginDate]<=K$11)*(WNARRates[EndDate]>=K$11)*(WNARRates[Region]=$C$4)*(WNARRates[CustClass]=$D$9)*(WNARRates[Period]=$C$6)*WNARRates[AdjCSWNA]) -> 0.02493 | L16: =SUMPRODUCT((WNARRates[BeginDate]<=L$11)*(WNARRates[EndDate]>=L$11)*(WNARRates[Region]=$C$4)*(WNARRates[CustClass]=$D$9)*(WNARRates[Period]=$C$6)*WNARRates[AdjCSWNA]) -> 0.02493 | M16: =SUMPRODUCT((WNARRates[BeginDate]<=M$11)*(WNARRates[EndDate]>=M$11)*(WNARRates[Region]=$C$4)*(WNARRates[CustClass]=$D$9)*(WNARRates[Period]=$C$6)*WNARRates[AdjCSWNA]) -> 0.02493 | N16: =SUMPRODUCT((WNARRates[BeginDate]<=N$11)*(WNARRates[EndDate]>=N$11)*(WNARRates[Region]=$C$4)*(WNARRates[CustClass]=$D$9)*(WNARRates[Period]=$C$6)*WNARRates[AdjCSWNA]) -> 0.02493 | O16: =SUMPRODUCT((WNARRates[BeginDate]<=O$11)*(WNARRates[EndDate]>=O$11)*(WNARRates[Region]=$C$4)*(WNARRates[CustClass]=$D$9)*(WNARRates[Period]=$C$6)*WNARRates[AdjCSWNA]) -> 0.02493 | P16: =SUMPRODUCT((WNARRates[BeginDate]<=P$11)*(WNARRates[EndDate]>=P$11)*(WNARRates[Region]=$C$4)*(WNARRates[CustClass]=$D$9)*(WNARRates[Period]=$C$6)*WNARRates[AdjCSWNA]) -> 0.02493 | Q16: =SUMPRODUCT((WNARRates[BeginDate]<=Q$11)*(WNARRates[EndDate]>=Q$11)*(WNARRates[Region]=$C$4)*(WNARRates[CustClass]=$D$9)*(WNARRates[Period]=$C$6)*WNARRates[AdjCSWNA]) -> 0.02493
B17: SRR | C17: =SUMPRODUCT((WNARRates[BeginDate]<=C$11)*(WNARRates[EndDate]>=C$11)*(WNARRates[Region]=$C$4)*(WNARRates[CustClass]=$D$9)*(WNARRates[Period]=$C$6)*WNARRates[SRR]) -> -0.00012 | D17: =SUMPRODUCT((WNARRates[BeginDate]<=D$11)*(WNARRates[EndDate]>=D$11)*(WNARRates[Region]=$C$4)*(WNARRates[CustClass]=$D$9)*(WNARRates[Period]=$C$6)*WNARRates[SRR]) -> -0.00012 | E17: =SUMPRODUCT((WNARRates[BeginDate]<=E$11)*(WNARRates[EndDate]>=E$11)*(WNARRates[Region]=$C$4)*(WNARRates[CustClass]=$D$9)*(WNARRates[Period]=$C$6)*WNARRates[SRR]) -> -0.00012 | F17: =SUMPRODUCT((WNARRates[BeginDate]<=F$11)*(WNARRates[EndDate]>=F$11)*(WNARRates[Region]=$C$4)*(WNARRates[CustClass]=$D$9)*(WNARRates[Period]=$C$6)*WNARRates[AdjSRR]) -> 0.00015 | G17: =SUMPRODUCT((WNARRates[BeginDate]<=G$11)*(WNARRates[EndDate]>=G$11)*(WNARRates[Region]=$C$4)*(WNARRates[CustClass]=$D$9)*(WNARRates[Period]=$C$6)*WNARRates[AdjSRR]) -> 0.00015 | H17: =SUMPRODUCT((WNARRates[BeginDate]<=H$11)*(WNARRates[EndDate]>=H$11)*(WNARRates[Region]=$C$4)*(WNARRates[CustClass]=$D$9)*(WNARRates[Period]=$C$6)*WNARRates[AdjSRR]) -> 0.00015 | I17: =SUMPRODUCT((WNARRates[BeginDate]<=I$11)*(WNARRates[EndDate]>=I$11)*(WNARRates[Region]=$C$4)*(WNARRates[CustClass]=$D$9)*(WNARRates[Period]=$C$6)*WNARRates[AdjSRR]) -> 0.00015 | J17: =SUMPRODUCT((WNARRates[BeginDate]<=J$11)*(WNARRates[EndDate]>=J$11)*(WNARRates[Region]=$C$4)*(WNARRates[CustClass]=$D$9)*(WNARRates[Period]=$C$6)*WNARRates[AdjSRR]) -> 0.00015 | K17: =SUMPRODUCT((WNARRates[BeginDate]<=K$11)*(WNARRates[EndDate]>=K$11)*(WNARRates[Region]=$C$4)*(WNARRates[CustClass]=$D$9)*(WNARRates[Period]=$C$6)*WNARRates[AdjSRR]) -> 0.00015 | L17: =SUMPRODUCT((WNARRates[BeginDate]<=L$11)*(WNARRates[EndDate]>=L$11)*(WNARRates[Region]=$C$4)*(WNARRates[CustClass]=$D$9)*(WNARRates[Period]=$C$6)*WNARRates[AdjSRR]) -> 0.00015 | M17: =SUMPRODUCT((WNARRates[BeginDate]<=M$11)*(WNARRates[EndDate]>=M$11)*(WNARRates[Region]=$C$4)*(WNARRates[CustClass]=$D$9)*(WNARRates[Period]=$C$6)*WNARRates[AdjSRR]) -> 0.00015 | N17: =SUMPRODUCT((WNARRates[BeginDate]<=N$11)*(WNARRates[EndDate]>=N$11)*(WNARRates[Region]=$C$4)*(WNARRates[CustClass]=$D$9)*(WNARRates[Period]=$C$6)*WNARRates[AdjSRR]) -> 0.00015 | O17: =SUMPRODUCT((WNARRates[BeginDate]<=O$11)*(WNARRates[EndDate]>=O$11)*(WNARRates[Region]=$C$4)*(WNARRates[CustClass]=$D$9)*(WNARRates[Period]=$C$6)*WNARRates[AdjSRR]) -> 0.00015 | P17: =SUMPRODUCT((WNARRates[BeginDate]<=P$11)*(WNARRates[EndDate]>=P$11)*(WNARRates[Region]=$C$4)*(WNARRates[CustClass]=$D$9)*(WNARRates[Period]=$C$6)*WNARRates[AdjSRR]) -> 0.00015 | Q17: =SUMPRODUCT((WNARRates[BeginDate]<=Q$11)*(WNARRates[EndDate]>=Q$11)*(WNARRates[Region]=$C$4)*(WNARRates[CustClass]=$D$9)*(WNARRates[Period]=$C$6)*WNARRates[AdjSRR]) -> 0.00015
B18: Total | C18: =SUM(C16:C17) -> 0.00116 | D18: =SUM(D16:D17) -> 0.00116 | E18: 0.00116
B19: CSWNA and SRR Revenue for Period
B20: CSWNA $ | F20: =IF($C$6="S1",SUMPRODUCT((WNARevAlloc[MonthFlow]=F$11)*(WNARevAlloc[Region]=$C$4)*(WNARevAlloc[CustClass]=$D$9)*WNARevAlloc[AdjCSWNAS1Rev]),SUMPRODUCT((WNARevAlloc[MonthFlow]=F$11)*(WNARevAlloc[Region]=$C$4)*(WNARevAlloc[CustClass]=$D$9)*WNARevAlloc[AdjCSWNAS2Rev])) -> 20959.01537 | G20: =IF($C$6="S1",SUMPRODUCT((WNARevAlloc[MonthFlow]=G$11)*(WNARevAlloc[Region]=$C$4)*(WNARevAlloc[CustClass]=$D$9)*WNARevAlloc[AdjCSWNAS1Rev]),SUMPRODUCT((WNARevAlloc[MonthFlow]=G$11)*(WNARevAlloc[Region]=$C$4)*(WNARevAlloc[CustClass]=$D$9)*WNARevAlloc[AdjCSWNAS2Rev])) -> 49251.60359 | H20: =IF($C$6="S1",SUMPRODUCT((WNARevAlloc[MonthFlow]=H$11)*(WNARevAlloc[Region]=$C$4)*(WNARevAlloc[CustClass]=$D$9)*WNARevAlloc[AdjCSWNAS1Rev]),SUMPRODUCT((WNARevAlloc[MonthFlow]=H$11)*(WNARevAlloc[Region]=$C$4)*(WNARevAlloc[CustClass]=$D$9)*WNARevAlloc[AdjCSWNAS2Rev])) -> 65972.62148 | I20: =IF($C$6="S1",SUMPRODUCT((WNARevAlloc[MonthFlow]=I$11)*(WNARevAlloc[Region]=$C$4)*(WNARevAlloc[CustClass]=$D$9)*WNARevAlloc[AdjCSWNAS1Rev]),SUMPRODUCT((WNARevAlloc[MonthFlow]=I$11)*(WNARevAlloc[Region]=$C$4)*(WNARevAlloc[CustClass]=$D$9)*WNARevAlloc[AdjCSWNAS2Rev])) -> 73410.68098 | J20: =IF($C$6="S1",SUMPRODUCT((WNARevAlloc[MonthFlow]=J$11)*(WNARevAlloc[Region]=$C$4)*(WNARevAlloc[CustClass]=$D$9)*WNARevAlloc[AdjCSWNAS1Rev]),SUMPRODUCT((WNARevAlloc[MonthFlow]=J$11)*(WNARevAlloc[Region]=$C$4)*(WNARevAlloc[CustClass]=$D$9)*WNARevAlloc[AdjCSWNAS2Rev])) -> 39452.94633 | K20: =IF($C$6="S1",SUMPRODUCT((WNARevAlloc[MonthFlow]=K$11)*(WNARevAlloc[Region]=$C$4)*(WNARevAlloc[CustClass]=$D$9)*WNARevAlloc[AdjCSWNAS1Rev]),SUMPRODUCT((WNARevAlloc[MonthFlow]=K$11)*(WNARevAlloc[Region]=$C$4)*(WNARevAlloc[CustClass]=$D$9)*WNARevAlloc[AdjCSWNAS2Rev])) -> 28090.92473 | L20: =IF($C$6="S1",SUMPRODUCT((WNARevAlloc[MonthFlow]=L$11)*(WNARevAlloc[Region]=$C$4)*(WNARevAlloc[CustClass]=$D$9)*WNARevAlloc[AdjCSWNAS1Rev]),SUMPRODUCT((WNARevAlloc[MonthFlow]=L$11)*(WNARevAlloc[Region]=$C$4)*(WNARevAlloc[CustClass]=$D$9)*WNARevAlloc[AdjCSWNAS2Rev])) -> 13644.87848 | M20: =IF($C$6="S1",SUMPRODUCT((WNARevAlloc[MonthFlow]=M$11)*(WNARevAlloc[Region]=$C$4)*(WNARevAlloc[CustClass]=$D$9)*WNARevAlloc[AdjCSWNAS1Rev]),SUMPRODUCT((WNARevAlloc[MonthFlow]=M$11)*(WNARevAlloc[Region]=$C$4)*(WNARevAlloc[CustClass]=$D$9)*WNARevAlloc[AdjCSWNAS2Rev])) -> 7402.209147 | N20: =IF($C$6="S1",SUMPRODUCT((WNARevAlloc[MonthFlow]=N$11)*(WNARevAlloc[Region]=$C$4)*(WNARevAlloc[CustClass]=$D$9)*WNARevAlloc[AdjCSWNAS1Rev]),SUMPRODUCT((WNARevAlloc[MonthFlow]=N$11)*(WNARevAlloc[Region]=$C$4)*(WNARevAlloc[CustClass]=$D$9)*WNARevAlloc[AdjCSWNAS2Rev])) -> 5265.106964 | O20: =ROUND(O$12*O16,0) -> 6690 | P20: =ROUND(P$12*P16,0) -> 6304 | Q20: 8053
B21: SRR $ | C21: =ROUND(C14*C18,2) -> -42.31 | D21: =ROUND(D14*D18,2) -> -7.99 | E21: =ROUND(E14*E18,2) -> -35.37 | F21: =IF($C$6="S1",SUMPRODUCT((WNARevAlloc[MonthFlow]=F$11)*(WNARevAlloc[Region]=$C$4)*(WNARevAlloc[CustClass]=$D$9)*WNARevAlloc[AdjSRRS1Rev]),SUMPRODUCT((WNARevAlloc[MonthFlow]=F$11)*(WNARevAlloc[Region]=$C$4)*(WNARevAlloc[CustClass]=$D$9)*WNARevAlloc[AdjSRRS2Rev])) -> 117.8903091 | G21: =IF($C$6="S1",SUMPRODUCT((WNARevAlloc[MonthFlow]=G$11)*(WNARevAlloc[Region]=$C$4)*(WNARevAlloc[CustClass]=$D$9)*WNARevAlloc[AdjSRRS1Rev]),SUMPRODUCT((WNARevAlloc[MonthFlow]=G$11)*(WNARevAlloc[Region]=$C$4)*(WNARevAlloc[CustClass]=$D$9)*WNARevAlloc[AdjSRRS2Rev])) -> 294.409379 | H21: =IF($C$6="S1",SUMPRODUCT((WNARevAlloc[MonthFlow]=H$11)*(WNARevAlloc[Region]=$C$4)*(WNARevAlloc[CustClass]=$D$9)*WNARevAlloc[AdjSRRS1Rev]),SUMPRODUCT((WNARevAlloc[MonthFlow]=H$11)*(WNARevAlloc[Region]=$C$4)*(WNARevAlloc[CustClass]=$D$9)*WNARevAlloc[AdjSRRS2Rev])) -> 398.1687088 | I21: =IF($C$6="S1",SUMPRODUCT((WNARevAlloc[MonthFlow]=I$11)*(WNARevAlloc[Region]=$C$4)*(WNARevAlloc[CustClass]=$D$9)*WNARevAlloc[AdjSRRS1Rev]),SUMPRODUCT((WNARevAlloc[MonthFlow]=I$11)*(WNARevAlloc[Region]=$C$4)*(WNARevAlloc[CustClass]=$D$9)*WNARevAlloc[AdjSRRS2Rev])) -> 441.6901401 | J21: =IF($C$6="S1",SUMPRODUCT((WNARevAlloc[MonthFlow]=J$11)*(WNARevAlloc[Region]=$C$4)*(WNARevAlloc[CustClass]=$D$9)*WNARevAlloc[AdjSRRS1Rev]),SUMPRODUCT((WNARevAlloc[MonthFlow]=J$11)*(WNARevAlloc[Region]=$C$4)*(WNARevAlloc[CustClass]=$D$9)*WNARevAlloc[AdjSRRS2Rev])) -> 237.2202216 | K21: =IF($C$6="S1",SUMPRODUCT((WNARevAlloc[MonthFlow]=K$11)*(WNARevAlloc[Region]=$C$4)*(WNARevAlloc[CustClass]=$D$9)*WNARevAlloc[AdjSRRS1Rev]),SUMPRODUCT((WNARevAlloc[MonthFlow]=K$11)*(WNARevAlloc[Region]=$C$4)*(WNARevAlloc[CustClass]=$D$9)*WNARevAlloc[AdjSRRS2Rev])) -> 169.018801 | L21: =IF($C$6="S1",SUMPRODUCT((WNARevAlloc[MonthFlow]=L$11)*(WNARevAlloc[Region]=$C$4)*(WNARevAlloc[CustClass]=$D$9)*WNARevAlloc[AdjSRRS1Rev]),SUMPRODUCT((WNARevAlloc[MonthFlow]=L$11)*(WNARevAlloc[Region]=$C$4)*(WNARevAlloc[CustClass]=$D$9)*WNARevAlloc[AdjSRRS2Rev])) -> 82.0864049 | M21: =IF($C$6="S1",SUMPRODUCT((WNARevAlloc[MonthFlow]=M$11)*(WNARevAlloc[Region]=$C$4)*(WNARevAlloc[CustClass]=$D$9)*WNARevAlloc[AdjSRRS1Rev]),SUMPRODUCT((WNARevAlloc[MonthFlow]=M$11)*(WNARevAlloc[Region]=$C$4)*(WNARevAlloc[CustClass]=$D$9)*WNARevAlloc[AdjSRRS2Rev])) -> 44.52181042 | N21: =IF($C$6="S1",SUMPRODUCT((WNARevAlloc[MonthFlow]=N$11)*(WNARevAlloc[Region]=$C$4)*(WNARevAlloc[CustClass]=$D$9)*WNARevAlloc[AdjSRRS1Rev]),SUMPRODUCT((WNARevAlloc[MonthFlow]=N$11)*(WNARevAlloc[Region]=$C$4)*(WNARevAlloc[CustClass]=$D$9)*WNARevAlloc[AdjSRRS2Rev])) -> 31.67739701 | O21: =ROUND(O$12*O17,0) -> 40 | P21: =ROUND(P$12*P17,0) -> 38 | Q21: 48
B22: Total True-Up | C22: =SUM(C21:E21) -> -85.67 | D22: Enter in VolTrueUp Table
B24: Rate Sched | C24: 62-GCSF | D24: SGS
B25: Small Comm. | C25: True-Up Period | F25: Actual Period* | O25: Projected Period
B26: Month (Flow) | C26: =C7 -> 45108 | D26: =EDATE(C26,1) -> 45139 | E26: =EDATE(D26,1) -> 45170 | F26: 45200 | G26: 45231 | H26: 45261 | I26: 45292 | J26: 45323 | K26: 45352 | L26: 45383 | M26: 45413 | N26: 45444 | O26: 45474 | P26: 45505 | Q26: 45536
B27: Est. Volume | C27: =SUMPRODUCT((CustEstVol[MonthFlow]=C$26)*(CustEstVol[RateSched]=$C$24)*CustEstVol[NormVol]) -> 84505 | D27: =SUMPRODUCT((CustEstVol[MonthFlow]=D$26)*(CustEstVol[RateSched]=$C$24)*CustEstVol[NormVol]) -> 86712 | E27: =SUMPRODUCT((CustEstVol[MonthFlow]=E$26)*(CustEstVol[RateSched]=$C$24)*CustEstVol[NormVol]) -> 101982 | O27: =SUMPRODUCT((CustEstVol[MonthFlow]=O$26)*(CustEstVol[RateSched]=$C$24)*CustEstVol[NormVol]) -> 84505 | P27: =SUMPRODUCT((CustEstVol[MonthFlow]=P$26)*(CustEstVol[RateSched]=$C$24)*CustEstVol[NormVol]) -> 86712 | Q27: =SUMPRODUCT((CustEstVol[MonthFlow]=Q$26)*(CustEstVol[RateSched]=$C$24)*CustEstVol[NormVol]) -> 101982
B28: Actual Volume | C28: =SUMPRODUCT((WNARevAlloc[MonthFlow]=C26)*(WNARevAlloc[RateSched]=$C24)*WNARevAlloc[Consumption]) -> 75156.56974 | D28: =SUMPRODUCT((WNARevAlloc[MonthFlow]=D26)*(WNARevAlloc[RateSched]=$C24)*WNARevAlloc[Consumption]) -> 78098.74673 | E28: =SUMPRODUCT((WNARevAlloc[MonthFlow]=E26)*(WNARevAlloc[RateSched]=$C24)*WNARevAlloc[Consumption]) -> 86120.159 | F28: =SUMPRODUCT((WNARevAlloc[MonthFlow]=F26)*(WNARevAlloc[RateSched]=$C24)*WNARevAlloc[Consumption]) -> 212491.901 | G28: =SUMPRODUCT((WNARevAlloc[MonthFlow]=G26)*(WNARevAlloc[RateSched]=$C24)*WNARevAlloc[Consumption]) -> 559189.36 | H28: =SUMPRODUCT((WNARevAlloc[MonthFlow]=H26)*(WNARevAlloc[RateSched]=$C24)*WNARevAlloc[Consumption]) -> 757379.113 | I28: =SUMPRODUCT((WNARevAlloc[MonthFlow]=I26)*(WNARevAlloc[RateSched]=$C24)*WNARevAlloc[Consumption]) -> 845268.129 | J28: =SUMPRODUCT((WNARevAlloc[MonthFlow]=J26)*(WNARevAlloc[RateSched]=$C24)*WNARevAlloc[Consumption]) -> 522311.887 | K28: =SUMPRODUCT((WNARevAlloc[MonthFlow]=K26)*(WNARevAlloc[RateSched]=$C24)*WNARevAlloc[Consumption]) -> 298669.672 | L28: =SUMPRODUCT((WNARevAlloc[MonthFlow]=L26)*(WNARevAlloc[RateSched]=$C24)*WNARevAlloc[Consumption]) -> 154412.281 | M28: =SUMPRODUCT((WNARevAlloc[MonthFlow]=M26)*(WNARevAlloc[RateSched]=$C24)*WNARevAlloc[Consumption]) -> 84313.713 | N28: =SUMPRODUCT((WNARevAlloc[MonthFlow]=N26)*(WNARevAlloc[RateSched]=$C24)*WNARevAlloc[Consumption]) -> 66217.41
B29: Vol True-Up | C29: =C28-C27 -> -9348.43026 | D29: =D28-D27 -> -8613.25327 | E29: =E28-E27 -> -15861.841
B30: ="WNAR "&$C$6&" Rates in Effect" -> WNAR S2 Rates in Effect
B31: CSWNA | C31: =SUMPRODUCT((WNARRates[BeginDate]<=C$26)*(WNARRates[EndDate]>=C$26)*(WNARRates[Region]=$C$4)*(WNARRates[CustClass]=$D$24)*(WNARRates[Period]=$C$6)*WNARRates[CSWNA]) -> 0.00044 | D31: =SUMPRODUCT((WNARRates[BeginDate]<=D$26)*(WNARRates[EndDate]>=D$26)*(WNARRates[Region]=$C$4)*(WNARRates[CustClass]=$D$24)*(WNARRates[Period]=$C$6)*WNARRates[CSWNA]) -> 0.00044 | E31: =SUMPRODUCT((WNARRates[BeginDate]<=E$26)*(WNARRates[EndDate]>=E$26)*(WNARRates[Region]=$C$4)*(WNARRates[CustClass]=$D$24)*(WNARRates[Period]=$C$6)*WNARRates[CSWNA]) -> 0.00044 | F31: =SUMPRODUCT((WNARRates[BeginDate]<=F$26)*(WNARRates[EndDate]>=F$26)*(WNARRates[Region]=$C$4)*(WNARRates[CustClass]=$D$24)*(WNARRates[Period]=$C$6)*WNARRates[AdjCSWNA]) -> 0.00864 | G31: =SUMPRODUCT((WNARRates[BeginDate]<=G$26)*(WNARRates[EndDate]>=G$26)*(WNARRates[Region]=$C$4)*(WNARRates[CustClass]=$D$24)*(WNARRates[Period]=$C$6)*WNARRates[AdjCSWNA]) -> 0.00864 | H31: =SUMPRODUCT((WNARRates[BeginDate]<=H$26)*(WNARRates[EndDate]>=H$26)*(WNARRates[Region]=$C$4)*(WNARRates[CustClass]=$D$24)*(WNARRates[Period]=$C$6)*WNARRates[AdjCSWNA]) -> 0.00864 | I31: =SUMPRODUCT((WNARRates[BeginDate]<=I$26)*(WNARRates[EndDate]>=I$26)*(WNARRates[Region]=$C$4)*(WNARRates[CustClass]=$D$24)*(WNARRates[Period]=$C$6)*WNARRates[AdjCSWNA]) -> 0.00864 | J31: =SUMPRODUCT((WNARRates[BeginDate]<=J$26)*(WNARRates[EndDate]>=J$26)*(WNARRates[Region]=$C$4)*(WNARRates[CustClass]=$D$24)*(WNARRates[Period]=$C$6)*WNARRates[AdjCSWNA]) -> 0.00864 | K31: =SUMPRODUCT((WNARRates[BeginDate]<=K$26)*(WNARRates[EndDate]>=K$26)*(WNARRates[Region]=$C$4)*(WNARRates[CustClass]=$D$24)*(WNARRates[Period]=$C$6)*WNARRates[AdjCSWNA]) -> 0.00864 | L31: =SUMPRODUCT((WNARRates[BeginDate]<=L$26)*(WNARRates[EndDate]>=L$26)*(WNARRates[Region]=$C$4)*(WNARRates[CustClass]=$D$24)*(WNARRates[Period]=$C$6)*WNARRates[AdjCSWNA]) -> 0.00864 | M31: =SUMPRODUCT((WNARRates[BeginDate]<=M$26)*(WNARRates[EndDate]>=M$26)*(WNARRates[Region]=$C$4)*(WNARRates[CustClass]=$D$24)*(WNARRates[Period]=$C$6)*WNARRates[AdjCSWNA]) -> 0.00864 | N31: =SUMPRODUCT((WNARRates[BeginDate]<=N$26)*(WNARRates[EndDate]>=N$26)*(WNARRates[Region]=$C$4)*(WNARRates[CustClass]=$D$24)*(WNARRates[Period]=$C$6)*WNARRates[AdjCSWNA]) -> 0.00864 | O31: =SUMPRODUCT((WNARRates[BeginDate]<=O$26)*(WNARRates[EndDate]>=O$26)*(WNARRates[Region]=$C$4)*(WNARRates[CustClass]=$D$24)*(WNARRates[Period]=$C$6)*WNARRates[AdjCSWNA]) -> 0.00864 | P31: =SUMPRODUCT((WNARRates[BeginDate]<=P$26)*(WNARRates[EndDate]>=P$26)*(WNARRates[Region]=$C$4)*(WNARRates[CustClass]=$D$24)*(WNARRates[Period]=$C$6)*WNARRates[AdjCSWNA]) -> 0.00864 | Q31: =SUMPRODUCT((WNARRates[BeginDate]<=Q$26)*(WNARRates[EndDate]>=Q$26)*(WNARRates[Region]=$C$4)*(WNARRates[CustClass]=$D$24)*(WNARRates[Period]=$C$6)*WNARRates[AdjCSWNA]) -> 0.00864
B32: SRR | C32: =SUMPRODUCT((WNARRates[BeginDate]<=C$26)*(WNARRates[EndDate]>=C$26)*(WNARRates[Region]=$C$4)*(WNARRates[CustClass]=$D$24)*(WNARRates[Period]=$C$6)*WNARRates[SRR]) -> 7e-05 | D32: =SUMPRODUCT((WNARRates[BeginDate]<=D$26)*(WNARRates[EndDate]>=D$26)*(WNARRates[Region]=$C$4)*(WNARRates[CustClass]=$D$24)*(WNARRates[Period]=$C$6)*WNARRates[SRR]) -> 7e-05 | E32: =SUMPRODUCT((WNARRates[BeginDate]<=E$26)*(WNARRates[EndDate]>=E$26)*(WNARRates[Region]=$C$4)*(WNARRates[CustClass]=$D$24)*(WNARRates[Period]=$C$6)*WNARRates[SRR]) -> 7e-05 | F32: =SUMPRODUCT((WNARRates[BeginDate]<=F$26)*(WNARRates[EndDate]>=F$26)*(WNARRates[Region]=$C$4)*(WNARRates[CustClass]=$D$24)*(WNARRates[Period]=$C$6)*WNARRates[AdjSRR]) -> 0 | G32: =SUMPRODUCT((WNARRates[BeginDate]<=G$26)*(WNARRates[EndDate]>=G$26)*(WNARRates[Region]=$C$4)*(WNARRates[CustClass]=$D$24)*(WNARRates[Period]=$C$6)*WNARRates[AdjSRR]) -> 0 | H32: =SUMPRODUCT((WNARRates[BeginDate]<=H$26)*(WNARRates[EndDate]>=H$26)*(WNARRates[Region]=$C$4)*(WNARRates[CustClass]=$D$24)*(WNARRates[Period]=$C$6)*WNARRates[AdjSRR]) -> 0 | I32: =SUMPRODUCT((WNARRates[BeginDate]<=I$26)*(WNARRates[EndDate]>=I$26)*(WNARRates[Region]=$C$4)*(WNARRates[CustClass]=$D$24)*(WNARRates[Period]=$C$6)*WNARRates[AdjSRR]) -> 0 | J32: =SUMPRODUCT((WNARRates[BeginDate]<=J$26)*(WNARRates[EndDate]>=J$26)*(WNARRates[Region]=$C$4)*(WNARRates[CustClass]=$D$24)*(WNARRates[Period]=$C$6)*WNARRates[AdjSRR]) -> 0 | K32: =SUMPRODUCT((WNARRates[BeginDate]<=K$26)*(WNARRates[EndDate]>=K$26)*(WNARRates[Region]=$C$4)*(WNARRates[CustClass]=$D$24)*(WNARRates[Period]=$C$6)*WNARRates[AdjSRR]) -> 0 | L32: =SUMPRODUCT((WNARRates[BeginDate]<=L$26)*(WNARRates[EndDate]>=L$26)*(WNARRates[Region]=$C$4)*(WNARRates[CustClass]=$D$24)*(WNARRates[Period]=$C$6)*WNARRates[AdjSRR]) -> 0 | M32: =SUMPRODUCT((WNARRates[BeginDate]<=M$26)*(WNARRates[EndDate]>=M$26)*(WNARRates[Region]=$C$4)*(WNARRates[CustClass]=$D$24)*(WNARRates[Period]=$C$6)*WNARRates[AdjSRR]) -> 0 | N32: =SUMPRODUCT((WNARRates[BeginDate]<=N$26)*(WNARRates[EndDate]>=N$26)*(WNARRates[Region]=$C$4)*(WNARRates[CustClass]=$D$24)*(WNARRates[Period]=$C$6)*WNARRates[AdjSRR]) -> 0 | O32: =SUMPRODUCT((WNARRates[BeginDate]<=O$26)*(WNARRates[EndDate]>=O$26)*(WNARRates[Region]=$C$4)*(WNARRates[CustClass]=$D$24)*(WNARRates[Period]=$C$6)*WNARRates[AdjSRR]) -> 0 | P32: =SUMPRODUCT((WNARRates[BeginDate]<=P$26)*(WNARRates[EndDate]>=P$26)*(WNARRates[Region]=$C$4)*(WNARRates[CustClass]=$D$24)*(WNARRates[Period]=$C$6)*WNARRates[AdjSRR]) -> 0 | Q32: =SUMPRODUCT((WNARRates[BeginDate]<=Q$26)*(WNARRates[EndDate]>=Q$26)*(WNARRates[Region]=$C$4)*(WNARRates[CustClass]=$D$24)*(WNARRates[Period]=$C$6)*WNARRates[AdjSRR]) -> 0
B33: Total | C33: =SUM(C31:C32) -> 0.00051 | D33: =SUM(D31:D32) -> 0.00051 | E33: =SUM(E31:E32) -> 0.00051
B34: CSWNA and SRR Revenue for Period
B35: CSWNA $ | F35: =IF($C$6="S1",SUMPRODUCT((WNARevAlloc[MonthFlow]=F$11)*(WNARevAlloc[Region]=$C$4)*(WNARevAlloc[CustClass]=$D$24)*WNARevAlloc[AdjCSWNAS1Rev]),SUMPRODUCT((WNARevAlloc[MonthFlow]=F$11)*(WNARevAlloc[Region]=$C$4)*(WNARevAlloc[CustClass]=$D$24)*WNARevAlloc[AdjCSWNAS2Rev])) -> 1712.119114 | G35: =IF($C$6="S1",SUMPRODUCT((WNARevAlloc[MonthFlow]=G$11)*(WNARevAlloc[Region]=$C$4)*(WNARevAlloc[CustClass]=$D$24)*WNARevAlloc[AdjCSWNAS1Rev]),SUMPRODUCT((WNARevAlloc[MonthFlow]=G$11)*(WNARevAlloc[Region]=$C$4)*(WNARevAlloc[CustClass]=$D$24)*WNARevAlloc[AdjCSWNAS2Rev])) -> 4735.818155 | H35: =IF($C$6="S1",SUMPRODUCT((WNARevAlloc[MonthFlow]=H$11)*(WNARevAlloc[Region]=$C$4)*(WNARevAlloc[CustClass]=$D$24)*WNARevAlloc[AdjCSWNAS1Rev]),SUMPRODUCT((WNARevAlloc[MonthFlow]=H$11)*(WNARevAlloc[Region]=$C$4)*(WNARevAlloc[CustClass]=$D$24)*WNARevAlloc[AdjCSWNAS2Rev])) -> 6622.293875 | I35: =IF($C$6="S1",SUMPRODUCT((WNARevAlloc[MonthFlow]=I$11)*(WNARevAlloc[Region]=$C$4)*(WNARevAlloc[CustClass]=$D$24)*WNARevAlloc[AdjCSWNAS1Rev]),SUMPRODUCT((WNARevAlloc[MonthFlow]=I$11)*(WNARevAlloc[Region]=$C$4)*(WNARevAlloc[CustClass]=$D$24)*WNARevAlloc[AdjCSWNAS2Rev])) -> 7303.478524 | J35: =IF($C$6="S1",SUMPRODUCT((WNARevAlloc[MonthFlow]=J$11)*(WNARevAlloc[Region]=$C$4)*(WNARevAlloc[CustClass]=$D$24)*WNARevAlloc[AdjCSWNAS1Rev]),SUMPRODUCT((WNARevAlloc[MonthFlow]=J$11)*(WNARevAlloc[Region]=$C$4)*(WNARevAlloc[CustClass]=$D$24)*WNARevAlloc[AdjCSWNAS2Rev])) -> 4504.176384 | K35: =IF($C$6="S1",SUMPRODUCT((WNARevAlloc[MonthFlow]=K$11)*(WNARevAlloc[Region]=$C$4)*(WNARevAlloc[CustClass]=$D$24)*WNARevAlloc[AdjCSWNAS1Rev]),SUMPRODUCT((WNARevAlloc[MonthFlow]=K$11)*(WNARevAlloc[Region]=$C$4)*(WNARevAlloc[CustClass]=$D$24)*WNARevAlloc[AdjCSWNAS2Rev])) -> 2579.378605 | L35: =IF($C$6="S1",SUMPRODUCT((WNARevAlloc[MonthFlow]=L$11)*(WNARevAlloc[Region]=$C$4)*(WNARevAlloc[CustClass]=$D$24)*WNARevAlloc[AdjCSWNAS1Rev]),SUMPRODUCT((WNARevAlloc[MonthFlow]=L$11)*(WNARevAlloc[Region]=$C$4)*(WNARevAlloc[CustClass]=$D$24)*WNARevAlloc[AdjCSWNAS2Rev])) -> 1334.512344 | M35: =IF($C$6="S1",SUMPRODUCT((WNARevAlloc[MonthFlow]=M$11)*(WNARevAlloc[Region]=$C$4)*(WNARevAlloc[CustClass]=$D$24)*WNARevAlloc[AdjCSWNAS1Rev]),SUMPRODUCT((WNARevAlloc[MonthFlow]=M$11)*(WNARevAlloc[Region]=$C$4)*(WNARevAlloc[CustClass]=$D$24)*WNARevAlloc[AdjCSWNAS2Rev])) -> 727.4090037 | N35: =IF($C$6="S1",SUMPRODUCT((WNARevAlloc[MonthFlow]=N$11)*(WNARevAlloc[Region]=$C$4)*(WNARevAlloc[CustClass]=$D$24)*WNARevAlloc[AdjCSWNAS1Rev]),SUMPRODUCT((WNARevAlloc[MonthFlow]=N$11)*(WNARevAlloc[Region]=$C$4)*(WNARevAlloc[CustClass]=$D$24)*WNARevAlloc[AdjCSWNAS2Rev])) -> 571.0488712 | O35: =ROUND(O$27*O31,0) -> 730 | P35: =ROUND(P$27*P31,0) -> 749 | Q35: =ROUND(Q$27*Q31,0) -> 881
B36: SRR $ | C36: =ROUND(C29*C33,2) -> -4.77 | D36: =ROUND(D29*D33,2) -> -4.39 | E36: =ROUND(E29*E33,2) -> -8.09 | F36: =IF($C$6="S1",SUMPRODUCT((WNARevAlloc[MonthFlow]=F$11)*(WNARevAlloc[Region]=$C$4)*(WNARevAlloc[CustClass]=$D$24)*WNARevAlloc[AdjSRRS1Rev]),SUMPRODUCT((WNARevAlloc[MonthFlow]=F$11)*(WNARevAlloc[Region]=$C$4)*(WNARevAlloc[CustClass]=$D$24)*WNARevAlloc[AdjSRRS2Rev])) -> 1.069630996 | G36: =IF($C$6="S1",SUMPRODUCT((WNARevAlloc[MonthFlow]=G$11)*(WNARevAlloc[Region]=$C$4)*(WNARevAlloc[CustClass]=$D$24)*WNARevAlloc[AdjSRRS1Rev]),SUMPRODUCT((WNARevAlloc[MonthFlow]=G$11)*(WNARevAlloc[Region]=$C$4)*(WNARevAlloc[CustClass]=$D$24)*WNARevAlloc[AdjSRRS2Rev])) -> 0.821402214 | H36: =IF($C$6="S1",SUMPRODUCT((WNARevAlloc[MonthFlow]=H$11)*(WNARevAlloc[Region]=$C$4)*(WNARevAlloc[CustClass]=$D$24)*WNARevAlloc[AdjSRRS1Rev]),SUMPRODUCT((WNARevAlloc[MonthFlow]=H$11)*(WNARevAlloc[Region]=$C$4)*(WNARevAlloc[CustClass]=$D$24)*WNARevAlloc[AdjSRRS2Rev])) -> -0.6687453875 | I36: =IF($C$6="S1",SUMPRODUCT((WNARevAlloc[MonthFlow]=I$11)*(WNARevAlloc[Region]=$C$4)*(WNARevAlloc[CustClass]=$D$24)*WNARevAlloc[AdjSRRS1Rev]),SUMPRODUCT((WNARevAlloc[MonthFlow]=I$11)*(WNARevAlloc[Region]=$C$4)*(WNARevAlloc[CustClass]=$D$24)*WNARevAlloc[AdjSRRS2Rev])) -> -0.01007380074 | J36: =IF($C$6="S1",SUMPRODUCT((WNARevAlloc[MonthFlow]=J$11)*(WNARevAlloc[Region]=$C$4)*(WNARevAlloc[CustClass]=$D$24)*WNARevAlloc[AdjSRRS1Rev]),SUMPRODUCT((WNARevAlloc[MonthFlow]=J$11)*(WNARevAlloc[Region]=$C$4)*(WNARevAlloc[CustClass]=$D$24)*WNARevAlloc[AdjSRRS2Rev])) -> 0.07774907749 | K36: =IF($C$6="S1",SUMPRODUCT((WNARevAlloc[MonthFlow]=K$11)*(WNARevAlloc[Region]=$C$4)*(WNARevAlloc[CustClass]=$D$24)*WNARevAlloc[AdjSRRS1Rev]),SUMPRODUCT((WNARevAlloc[MonthFlow]=K$11)*(WNARevAlloc[Region]=$C$4)*(WNARevAlloc[CustClass]=$D$24)*WNARevAlloc[AdjSRRS2Rev])) -> 0 | L36: =IF($C$6="S1",SUMPRODUCT((WNARevAlloc[MonthFlow]=L$11)*(WNARevAlloc[Region]=$C$4)*(WNARevAlloc[CustClass]=$D$24)*WNARevAlloc[AdjSRRS1Rev]),SUMPRODUCT((WNARevAlloc[MonthFlow]=L$11)*(WNARevAlloc[Region]=$C$4)*(WNARevAlloc[CustClass]=$D$24)*WNARevAlloc[AdjSRRS2Rev])) -> 0 | M36: =IF($C$6="S1",SUMPRODUCT((WNARevAlloc[MonthFlow]=M$11)*(WNARevAlloc[Region]=$C$4)*(WNARevAlloc[CustClass]=$D$24)*WNARevAlloc[AdjSRRS1Rev]),SUMPRODUCT((WNARevAlloc[MonthFlow]=M$11)*(WNARevAlloc[Region]=$C$4)*(WNARevAlloc[CustClass]=$D$24)*WNARevAlloc[AdjSRRS2Rev])) -> 0 | N36: =IF($C$6="S1",SUMPRODUCT((WNARevAlloc[MonthFlow]=N$11)*(WNARevAlloc[Region]=$C$4)*(WNARevAlloc[CustClass]=$D$24)*WNARevAlloc[AdjSRRS1Rev]),SUMPRODUCT((WNARevAlloc[MonthFlow]=N$11)*(WNARevAlloc[Region]=$C$4)*(WNARevAlloc[CustClass]=$D$24)*WNARevAlloc[AdjSRRS2Rev])) -> 0 | O36: =ROUND(O$27*O32,0) -> 0 | P36: =ROUND(P$27*P32,0) -> 0 | Q36: 0
B37: Total True-Up | C37: =SUM(C36:E36) -> -17.25 | D37: Enter in VolTrueUp Table
B39: * Actual Period revenues were calculated using actual rates, and then adjusted for actual revenues billed.
B40: (See worksheet WNARRevAlloc)

Sheet SRR WEMO
B2: Liberty Midstates | F2: Filing Period | I2: Rate Sched | J2: SAP Rate Cat. | K2: Territory | L2: Cust. Class
B3: Semi-Annual Reconciliation Rate | F3: Year | G3: Period | I3: 61-GRF | J3: =INDEX(RateSched[SAPRateCategory],MATCH($I3,RateSched[RateSched],0)) -> WMGR_RFS | K3: =INDEX(RateSched[Territory],MATCH($I3,RateSched[RateSched],0)) -> WEMO | L3: =INDEX(RateSched[CustClassShort],MATCH($I3,RateSched[RateSched],0)) -> Res
B4: Region | C4: WEMO | I4: 61-GCSF | J4: =INDEX(RateSched[SAPRateCategory],MATCH($I4,RateSched[RateSched],0)) -> WMGR_SFGS | K4: =INDEX(RateSched[Territory],MATCH($I4,RateSched[RateSched],0)) -> WEMO | L4: =INDEX(RateSched[CustClassShort],MATCH($I4,RateSched[RateSched],0)) -> SGS
B5: Year | C5: =DateSet!C2 -> 2024
B6: Period | C6: =DateSet!C3 -> S2
B7: Analysis Start | C7: =DateSet!J9 -> 2023-07-01
B9: Rate Sched | C9: 61-GRF | D9: Res
B10: Residential | C10: True-Up Period | F10: Actual Period* | O10: Projected Period
B11: Month (Flow) | C11: =C7 -> 45108 | D11: =EDATE(C11,1) -> 45139 | E11: =EDATE(D11,1) -> 45170 | F11: 45200 | G11: 45231 | H11: 45261 | I11: 45292 | J11: 45323 | K11: 45352 | L11: 45383 | M11: 45413 | N11: 45444 | O11: 45474 | P11: 45505 | Q11: 45536
B12: Est. Volume | C12: =SUMPRODUCT((CustEstVol[MonthFlow]=C$11)*(CustEstVol[RateSched]=$C$9)*CustEstVol[NormVol]) -> 30742 | D12: =SUMPRODUCT((CustEstVol[MonthFlow]=D$11)*(CustEstVol[RateSched]=$C$9)*CustEstVol[NormVol]) -> 24729 | E12: =SUMPRODUCT((CustEstVol[MonthFlow]=E$11)*(CustEstVol[RateSched]=$C$9)*CustEstVol[NormVol]) -> 35936 | O12: =SUMPRODUCT((CustEstVol[MonthFlow]=O$11)*(CustEstVol[RateSched]=$C$9)*CustEstVol[NormVol]) -> 30742 | P12: =SUMPRODUCT((CustEstVol[MonthFlow]=P$11)*(CustEstVol[RateSched]=$C$9)*CustEstVol[NormVol]) -> 24729 | Q12: =SUMPRODUCT((CustEstVol[MonthFlow]=Q$11)*(CustEstVol[RateSched]=$C$9)*CustEstVol[NormVol]) -> 35936
B13: Actual Volume | C13: =SUMPRODUCT((WNARevAlloc[MonthFlow]=C11)*(WNARevAlloc[RateSched]=$C9)*WNARevAlloc[Consumption]) -> 25868.41966 | D13: =SUMPRODUCT((WNARevAlloc[MonthFlow]=D11)*(WNARevAlloc[RateSched]=$C9)*WNARevAlloc[Consumption]) -> 24758.54193 | E13: =SUMPRODUCT((WNARevAlloc[MonthFlow]=E11)*(WNARevAlloc[RateSched]=$C9)*WNARevAlloc[Consumption]) -> 57941.02 | F13: =SUMPRODUCT((WNARevAlloc[MonthFlow]=F11)*(WNARevAlloc[RateSched]=$C9)*WNARevAlloc[Consumption]) -> 155998.753 | G13: =SUMPRODUCT((WNARevAlloc[MonthFlow]=G11)*(WNARevAlloc[RateSched]=$C9)*WNARevAlloc[Consumption]) -> 314811.84 | H13: =SUMPRODUCT((WNARevAlloc[MonthFlow]=H11)*(WNARevAlloc[RateSched]=$C9)*WNARevAlloc[Consumption]) -> 468541.268 | I13: =SUMPRODUCT((WNARevAlloc[MonthFlow]=I11)*(WNARevAlloc[RateSched]=$C9)*WNARevAlloc[Consumption]) -> 354613.566 | J13: =SUMPRODUCT((WNARevAlloc[MonthFlow]=J11)*(WNARevAlloc[RateSched]=$C9)*WNARevAlloc[Consumption]) -> 185358.277 | K13: =SUMPRODUCT((WNARevAlloc[MonthFlow]=K11)*(WNARevAlloc[RateSched]=$C9)*WNARevAlloc[Consumption]) -> 139705.809 | L13: =SUMPRODUCT((WNARevAlloc[MonthFlow]=L11)*(WNARevAlloc[RateSched]=$C9)*WNARevAlloc[Consumption]) -> 58445.678 | M13: =SUMPRODUCT((WNARevAlloc[MonthFlow]=M11)*(WNARevAlloc[RateSched]=$C9)*WNARevAlloc[Consumption]) -> 30125.093 | N13: =SUMPRODUCT((WNARevAlloc[MonthFlow]=N11)*(WNARevAlloc[RateSched]=$C9)*WNARevAlloc[Consumption]) -> 23126.301
B14: Vol True-Up | C14: =C13-C12 -> -4873.58034 | D14: =D13-D12 -> 29.54193 | E14: 22005.02
B15: ="WNAR "&$C$6&" Rates in Effect" -> WNAR S2 Rates in Effect
B16: CSWNA | C16: =SUMPRODUCT((WNARRates[BeginDate]<=C$11)*(WNARRates[EndDate]>=C$11)*(WNARRates[Region]=$C$4)*(WNARRates[CustClass]=$D$9)*(WNARRates[Period]=$C$6)*WNARRates[CSWNA]) -> -0.01938 | D16: =SUMPRODUCT((WNARRates[BeginDate]<=D$11)*(WNARRates[EndDate]>=D$11)*(WNARRates[Region]=$C$4)*(WNARRates[CustClass]=$D$9)*(WNARRates[Period]=$C$6)*WNARRates[CSWNA]) -> -0.01938 | E16: =SUMPRODUCT((WNARRates[BeginDate]<=E$11)*(WNARRates[EndDate]>=E$11)*(WNARRates[Region]=$C$4)*(WNARRates[CustClass]=$D$9)*(WNARRates[Period]=$C$6)*WNARRates[CSWNA]) -> -0.01938 | F16: =SUMPRODUCT((WNARRates[BeginDate]<=F$11)*(WNARRates[EndDate]>=F$11)*(WNARRates[Region]=$C$4)*(WNARRates[CustClass]=$D$9)*(WNARRates[Period]=$C$6)*WNARRates[AdjCSWNA]) -> 0.01185 | G16: =SUMPRODUCT((WNARRates[BeginDate]<=G$11)*(WNARRates[EndDate]>=G$11)*(WNARRates[Region]=$C$4)*(WNARRates[CustClass]=$D$9)*(WNARRates[Period]=$C$6)*WNARRates[AdjCSWNA]) -> 0.01185 | H16: =SUMPRODUCT((WNARRates[BeginDate]<=H$11)*(WNARRates[EndDate]>=H$11)*(WNARRates[Region]=$C$4)*(WNARRates[CustClass]=$D$9)*(WNARRates[Period]=$C$6)*WNARRates[AdjCSWNA]) -> 0.01185 | I16: =SUMPRODUCT((WNARRates[BeginDate]<=I$11)*(WNARRates[EndDate]>=I$11)*(WNARRates[Region]=$C$4)*(WNARRates[CustClass]=$D$9)*(WNARRates[Period]=$C$6)*WNARRates[AdjCSWNA]) -> 0.01185 | J16: =SUMPRODUCT((WNARRates[BeginDate]<=J$11)*(WNARRates[EndDate]>=J$11)*(WNARRates[Region]=$C$4)*(WNARRates[CustClass]=$D$9)*(WNARRates[Period]=$C$6)*WNARRates[AdjCSWNA]) -> 0.01185 | K16: =SUMPRODUCT((WNARRates[BeginDate]<=K$11)*(WNARRates[EndDate]>=K$11)*(WNARRates[Region]=$C$4)*(WNARRates[CustClass]=$D$9)*(WNARRates[Period]=$C$6)*WNARRates[AdjCSWNA]) -> 0.01185 | L16: =SUMPRODUCT((WNARRates[BeginDate]<=L$11)*(WNARRates[EndDate]>=L$11)*(WNARRates[Region]=$C$4)*(WNARRates[CustClass]=$D$9)*(WNARRates[Period]=$C$6)*WNARRates[AdjCSWNA]) -> 0.01185 | M16: =SUMPRODUCT((WNARRates[BeginDate]<=M$11)*(WNARRates[EndDate]>=M$11)*(WNARRates[Region]=$C$4)*(WNARRates[CustClass]=$D$9)*(WNARRates[Period]=$C$6)*WNARRates[AdjCSWNA]) -> 0.01185 | N16: =SUMPRODUCT((WNARRates[BeginDate]<=N$11)*(WNARRates[EndDate]>=N$11)*(WNARRates[Region]=$C$4)*(WNARRates[CustClass]=$D$9)*(WNARRates[Period]=$C$6)*WNARRates[AdjCSWNA]) -> 0.01185 | O16: =SUMPRODUCT((WNARRates[BeginDate]<=O$11)*(WNARRates[EndDate]>=O$11)*(WNARRates[Region]=$C$4)*(WNARRates[CustClass]=$D$9)*(WNARRates[Period]=$C$6)*WNARRates[AdjCSWNA]) -> 0.01185 | P16: =SUMPRODUCT((WNARRates[BeginDate]<=P$11)*(WNARRates[EndDate]>=P$11)*(WNARRates[Region]=$C$4)*(WNARRates[CustClass]=$D$9)*(WNARRates[Period]=$C$6)*WNARRates[AdjCSWNA]) -> 0.01185 | Q16: =SUMPRODUCT((WNARRates[BeginDate]<=Q$11)*(WNARRates[EndDate]>=Q$11)*(WNARRates[Region]=$C$4)*(WNARRates[CustClass]=$D$9)*(WNARRates[Period]=$C$6)*WNARRates[AdjCSWNA]) -> 0.01185
B17: SRR | C17: =SUMPRODUCT((WNARRates[BeginDate]<=C$11)*(WNARRates[EndDate]>=C$11)*(WNARRates[Region]=$C$4)*(WNARRates[CustClass]=$D$9)*(WNARRates[Period]=$C$6)*WNARRates[SRR]) -> 0.00047 | D17: =SUMPRODUCT((WNARRates[BeginDate]<=D$11)*(WNARRates[EndDate]>=D$11)*(WNARRates[Region]=$C$4)*(WNARRates[CustClass]=$D$9)*(WNARRates[Period]=$C$6)*WNARRates[SRR]) -> 0.00047 | E17: =SUMPRODUCT((WNARRates[BeginDate]<=E$11)*(WNARRates[EndDate]>=E$11)*(WNARRates[Region]=$C$4)*(WNARRates[CustClass]=$D$9)*(WNARRates[Period]=$C$6)*WNARRates[SRR]) -> 0.00047 | F17: =SUMPRODUCT((WNARRates[BeginDate]<=F$11)*(WNARRates[EndDate]>=F$11)*(WNARRates[Region]=$C$4)*(WNARRates[CustClass]=$D$9)*(WNARRates[Period]=$C$6)*WNARRates[AdjSRR]) -> -0.00029 | G17: =SUMPRODUCT((WNARRates[BeginDate]<=G$11)*(WNARRates[EndDate]>=G$11)*(WNARRates[Region]=$C$4)*(WNARRates[CustClass]=$D$9)*(WNARRates[Period]=$C$6)*WNARRates[AdjSRR]) -> -0.00029 | H17: =SUMPRODUCT((WNARRates[BeginDate]<=H$11)*(WNARRates[EndDate]>=H$11)*(WNARRates[Region]=$C$4)*(WNARRates[CustClass]=$D$9)*(WNARRates[Period]=$C$6)*WNARRates[AdjSRR]) -> -0.00029 | I17: =SUMPRODUCT((WNARRates[BeginDate]<=I$11)*(WNARRates[EndDate]>=I$11)*(WNARRates[Region]=$C$4)*(WNARRates[CustClass]=$D$9)*(WNARRates[Period]=$C$6)*WNARRates[AdjSRR]) -> -0.00029 | J17: =SUMPRODUCT((WNARRates[BeginDate]<=J$11)*(WNARRates[EndDate]>=J$11)*(WNARRates[Region]=$C$4)*(WNARRates[CustClass]=$D$9)*(WNARRates[Period]=$C$6)*WNARRates[AdjSRR]) -> -0.00029 | K17: =SUMPRODUCT((WNARRates[BeginDate]<=K$11)*(WNARRates[EndDate]>=K$11)*(WNARRates[Region]=$C$4)*(WNARRates[CustClass]=$D$9)*(WNARRates[Period]=$C$6)*WNARRates[AdjSRR]) -> -0.00029 | L17: =SUMPRODUCT((WNARRates[BeginDate]<=L$11)*(WNARRates[EndDate]>=L$11)*(WNARRates[Region]=$C$4)*(WNARRates[CustClass]=$D$9)*(WNARRates[Period]=$C$6)*WNARRates[AdjSRR]) -> -0.00029 | M17: =SUMPRODUCT((WNARRates[BeginDate]<=M$11)*(WNARRates[EndDate]>=M$11)*(WNARRates[Region]=$C$4)*(WNARRates[CustClass]=$D$9)*(WNARRates[Period]=$C$6)*WNARRates[AdjSRR]) -> -0.00029 | N17: =SUMPRODUCT((WNARRates[BeginDate]<=N$11)*(WNARRates[EndDate]>=N$11)*(WNARRates[Region]=$C$4)*(WNARRates[CustClass]=$D$9)*(WNARRates[Period]=$C$6)*WNARRates[AdjSRR]) -> -0.00029 | O17: =SUMPRODUCT((WNARRates[BeginDate]<=O$11)*(WNARRates[EndDate]>=O$11)*(WNARRates[Region]=$C$4)*(WNARRates[CustClass]=$D$9)*(WNARRates[Period]=$C$6)*WNARRates[AdjSRR]) -> -0.00029 | P17: =SUMPRODUCT((WNARRates[BeginDate]<=P$11)*(WNARRates[EndDate]>=P$11)*(WNARRates[Region]=$C$4)*(WNARRates[CustClass]=$D$9)*(WNARRates[Period]=$C$6)*WNARRates[AdjSRR]) -> -0.00029 | Q17: =SUMPRODUCT((WNARRates[BeginDate]<=Q$11)*(WNARRates[EndDate]>=Q$11)*(WNARRates[Region]=$C$4)*(WNARRates[CustClass]=$D$9)*(WNARRates[Period]=$C$6)*WNARRates[AdjSRR]) -> -0.00029
B18: Total | C18: =SUM(C16:C17) -> -0.01891 | D18: =SUM(D16:D17) -> -0.01891 | E18: -0.01891
B19: CSWNA and SRR Revenue for Period
B20: CSWNA $ | F20: =IF($C$6="S1",SUMPRODUCT((WNARevAlloc[MonthFlow]=F$11)*(WNARevAlloc[Region]=$C$4)*(WNARevAlloc[CustClass]=$D$9)*WNARevAlloc[AdjCSWNAS1Rev]),SUMPRODUCT((WNARevAlloc[MonthFlow]=F$11)*(WNARevAlloc[Region]=$C$4)*(WNARevAlloc[CustClass]=$D$9)*WNARevAlloc[AdjCSWNAS2Rev])) -> 1779.057013 | G20: =IF($C$6="S1",SUMPRODUCT((WNARevAlloc[MonthFlow]=G$11)*(WNARevAlloc[Region]=$C$4)*(WNARevAlloc[CustClass]=$D$9)*WNARevAlloc[AdjCSWNAS1Rev]),SUMPRODUCT((WNARevAlloc[MonthFlow]=G$11)*(WNARevAlloc[Region]=$C$4)*(WNARevAlloc[CustClass]=$D$9)*WNARevAlloc[AdjCSWNAS2Rev])) -> 3723.993534 | H20: =IF($C$6="S1",SUMPRODUCT((WNARevAlloc[MonthFlow]=H$11)*(WNARevAlloc[Region]=$C$4)*(WNARevAlloc[CustClass]=$D$9)*WNARevAlloc[AdjCSWNAS1Rev]),SUMPRODUCT((WNARevAlloc[MonthFlow]=H$11)*(WNARevAlloc[Region]=$C$4)*(WNARevAlloc[CustClass]=$D$9)*WNARevAlloc[AdjCSWNAS2Rev])) -> 5547.222399 | I20: =IF($C$6="S1",SUMPRODUCT((WNARevAlloc[MonthFlow]=I$11)*(WNARevAlloc[Region]=$C$4)*(WNARevAlloc[CustClass]=$D$9)*WNARevAlloc[AdjCSWNAS1Rev]),SUMPRODUCT((WNARevAlloc[MonthFlow]=I$11)*(WNARevAlloc[Region]=$C$4)*(WNARevAlloc[CustClass]=$D$9)*WNARevAlloc[AdjCSWNAS2Rev])) -> 4218.404692 | J20: =IF($C$6="S1",SUMPRODUCT((WNARevAlloc[MonthFlow]=J$11)*(WNARevAlloc[Region]=$C$4)*(WNARevAlloc[CustClass]=$D$9)*WNARevAlloc[AdjCSWNAS1Rev]),SUMPRODUCT((WNARevAlloc[MonthFlow]=J$11)*(WNARevAlloc[Region]=$C$4)*(WNARevAlloc[CustClass]=$D$9)*WNARevAlloc[AdjCSWNAS2Rev])) -> 2186.624759 | K20: =IF($C$6="S1",SUMPRODUCT((WNARevAlloc[MonthFlow]=K$11)*(WNARevAlloc[Region]=$C$4)*(WNARevAlloc[CustClass]=$D$9)*WNARevAlloc[AdjCSWNAS1Rev]),SUMPRODUCT((WNARevAlloc[MonthFlow]=K$11)*(WNARevAlloc[Region]=$C$4)*(WNARevAlloc[CustClass]=$D$9)*WNARevAlloc[AdjCSWNAS2Rev])) -> 1655.62313 | L20: =IF($C$6="S1",SUMPRODUCT((WNARevAlloc[MonthFlow]=L$11)*(WNARevAlloc[Region]=$C$4)*(WNARevAlloc[CustClass]=$D$9)*WNARevAlloc[AdjCSWNAS1Rev]),SUMPRODUCT((WNARevAlloc[MonthFlow]=L$11)*(WNARevAlloc[Region]=$C$4)*(WNARevAlloc[CustClass]=$D$9)*WNARevAlloc[AdjCSWNAS2Rev])) -> 692.4603257 | M20: =IF($C$6="S1",SUMPRODUCT((WNARevAlloc[MonthFlow]=M$11)*(WNARevAlloc[Region]=$C$4)*(WNARevAlloc[CustClass]=$D$9)*WNARevAlloc[AdjCSWNAS1Rev]),SUMPRODUCT((WNARevAlloc[MonthFlow]=M$11)*(WNARevAlloc[Region]=$C$4)*(WNARevAlloc[CustClass]=$D$9)*WNARevAlloc[AdjCSWNAS2Rev])) -> 357.2022721 | N20: =IF($C$6="S1",SUMPRODUCT((WNARevAlloc[MonthFlow]=N$11)*(WNARevAlloc[Region]=$C$4)*(WNARevAlloc[CustClass]=$D$9)*WNARevAlloc[AdjCSWNAS1Rev]),SUMPRODUCT((WNARevAlloc[MonthFlow]=N$11)*(WNARevAlloc[Region]=$C$4)*(WNARevAlloc[CustClass]=$D$9)*WNARevAlloc[AdjCSWNAS2Rev])) -> 274.1063423 | O20: =ROUND(O$12*O16,0) -> 364 | P20: =ROUND(P$12*P16,0) -> 293 | Q20: 426
B21: SRR $ | C21: =ROUND(C14*C18,2) -> 92.16 | D21: =ROUND(D14*D18,2) -> -0.56 | E21: =ROUND(E14*E18,2) -> -416.11 | F21: =IF($C$6="S1",SUMPRODUCT((WNARevAlloc[MonthFlow]=F$11)*(WNARevAlloc[Region]=$C$4)*(WNARevAlloc[CustClass]=$D$9)*WNARevAlloc[AdjSRRS1Rev]),SUMPRODUCT((WNARevAlloc[MonthFlow]=F$11)*(WNARevAlloc[Region]=$C$4)*(WNARevAlloc[CustClass]=$D$9)*WNARevAlloc[AdjSRRS2Rev])) -> -43.54763375 | G21: =IF($C$6="S1",SUMPRODUCT((WNARevAlloc[MonthFlow]=G$11)*(WNARevAlloc[Region]=$C$4)*(WNARevAlloc[CustClass]=$D$9)*WNARevAlloc[AdjSRRS1Rev]),SUMPRODUCT((WNARevAlloc[MonthFlow]=G$11)*(WNARevAlloc[Region]=$C$4)*(WNARevAlloc[CustClass]=$D$9)*WNARevAlloc[AdjSRRS2Rev])) -> -91.13663074 | H21: =IF($C$6="S1",SUMPRODUCT((WNARevAlloc[MonthFlow]=H$11)*(WNARevAlloc[Region]=$C$4)*(WNARevAlloc[CustClass]=$D$9)*WNARevAlloc[AdjSRRS1Rev]),SUMPRODUCT((WNARevAlloc[MonthFlow]=H$11)*(WNARevAlloc[Region]=$C$4)*(WNARevAlloc[CustClass]=$D$9)*WNARevAlloc[AdjSRRS2Rev])) -> -135.7555072 | I21: =IF($C$6="S1",SUMPRODUCT((WNARevAlloc[MonthFlow]=I$11)*(WNARevAlloc[Region]=$C$4)*(WNARevAlloc[CustClass]=$D$9)*WNARevAlloc[AdjSRRS1Rev]),SUMPRODUCT((WNARevAlloc[MonthFlow]=I$11)*(WNARevAlloc[Region]=$C$4)*(WNARevAlloc[CustClass]=$D$9)*WNARevAlloc[AdjSRRS2Rev])) -> -103.2335502 | J21: =IF($C$6="S1",SUMPRODUCT((WNARevAlloc[MonthFlow]=J$11)*(WNARevAlloc[Region]=$C$4)*(WNARevAlloc[CustClass]=$D$9)*WNARevAlloc[AdjSRRS1Rev]),SUMPRODUCT((WNARevAlloc[MonthFlow]=J$11)*(WNARevAlloc[Region]=$C$4)*(WNARevAlloc[CustClass]=$D$9)*WNARevAlloc[AdjSRRS2Rev])) -> -53.51369074 | K21: =IF($C$6="S1",SUMPRODUCT((WNARevAlloc[MonthFlow]=K$11)*(WNARevAlloc[Region]=$C$4)*(WNARevAlloc[CustClass]=$D$9)*WNARevAlloc[AdjSRRS1Rev]),SUMPRODUCT((WNARevAlloc[MonthFlow]=K$11)*(WNARevAlloc[Region]=$C$4)*(WNARevAlloc[CustClass]=$D$9)*WNARevAlloc[AdjSRRS2Rev])) -> -40.5173593 | L21: =IF($C$6="S1",SUMPRODUCT((WNARevAlloc[MonthFlow]=L$11)*(WNARevAlloc[Region]=$C$4)*(WNARevAlloc[CustClass]=$D$9)*WNARevAlloc[AdjSRRS1Rev]),SUMPRODUCT((WNARevAlloc[MonthFlow]=L$11)*(WNARevAlloc[Region]=$C$4)*(WNARevAlloc[CustClass]=$D$9)*WNARevAlloc[AdjSRRS2Rev])) -> -16.94635029 | M21: =IF($C$6="S1",SUMPRODUCT((WNARevAlloc[MonthFlow]=M$11)*(WNARevAlloc[Region]=$C$4)*(WNARevAlloc[CustClass]=$D$9)*WNARevAlloc[AdjSRRS1Rev]),SUMPRODUCT((WNARevAlloc[MonthFlow]=M$11)*(WNARevAlloc[Region]=$C$4)*(WNARevAlloc[CustClass]=$D$9)*WNARevAlloc[AdjSRRS2Rev])) -> -8.741658981 | N21: =IF($C$6="S1",SUMPRODUCT((WNARevAlloc[MonthFlow]=N$11)*(WNARevAlloc[Region]=$C$4)*(WNARevAlloc[CustClass]=$D$9)*WNARevAlloc[AdjSRRS1Rev]),SUMPRODUCT((WNARevAlloc[MonthFlow]=N$11)*(WNARevAlloc[Region]=$C$4)*(WNARevAlloc[CustClass]=$D$9)*WNARevAlloc[AdjSRRS2Rev])) -> -6.708087702 | O21: =ROUND(O$12*O17,0) -> -9 | P21: -7 | Q21: -10
B22: Total True-Up | C22: =SUM(C21:E21) -> -324.51 | D22: Enter in VolTrueUp Table
B24: Rate Sched | C24: 61-GCSF | D24: SGS
B25: Small Comm. | C25: True-Up Period | F25: Actual Period* | O25: Projected Period
B26: Month (Flow) | C26: =C7 -> 45108 | D26: =EDATE(C26,1) -> 45139 | E26: =EDATE(D26,1) -> 45170 | F26: 45200 | G26: 45231 | H26: 45261 | I26: 45292 | J26: 45323 | K26: 45352 | L26: 45383 | M26: 45413 | N26: 45444 | O26: 45474 | P26: 45505 | Q26: 45536
B27: Est. Volume | C27: =SUMPRODUCT((CustEstVol[MonthFlow]=C$26)*(CustEstVol[RateSched]=$C$24)*CustEstVol[NormVol]) -> 12337 | D27: =SUMPRODUCT((CustEstVol[MonthFlow]=D$26)*(CustEstVol[RateSched]=$C$24)*CustEstVol[NormVol]) -> 10440 | E27: =SUMPRODUCT((CustEstVol[MonthFlow]=E$26)*(CustEstVol[RateSched]=$C$24)*CustEstVol[NormVol]) -> 14354 | O27: =SUMPRODUCT((CustEstVol[MonthFlow]=O$26)*(CustEstVol[RateSched]=$C$24)*CustEstVol[NormVol]) -> 12337 | P27: =SUMPRODUCT((CustEstVol[MonthFlow]=P$26)*(CustEstVol[RateSched]=$C$24)*CustEstVol[NormVol]) -> 10440 | Q27: =SUMPRODUCT((CustEstVol[MonthFlow]=Q$26)*(CustEstVol[RateSched]=$C$24)*CustEstVol[NormVol]) -> 14354
B28: Actual Volume | C28: =SUMPRODUCT((WNARevAlloc[MonthFlow]=C26)*(WNARevAlloc[RateSched]=$C24)*WNARevAlloc[Consumption]) -> 9974.9112 | D28: =SUMPRODUCT((WNARevAlloc[MonthFlow]=D26)*(WNARevAlloc[RateSched]=$C24)*WNARevAlloc[Consumption]) -> 10668.83647 | E28: =SUMPRODUCT((WNARevAlloc[MonthFlow]=E26)*(WNARevAlloc[RateSched]=$C24)*WNARevAlloc[Consumption]) -> 22270.822 | F28: =SUMPRODUCT((WNARevAlloc[MonthFlow]=F26)*(WNARevAlloc[RateSched]=$C24)*WNARevAlloc[Consumption]) -> 48922.322 | G28: =SUMPRODUCT((WNARevAlloc[MonthFlow]=G26)*(WNARevAlloc[RateSched]=$C24)*WNARevAlloc[Consumption]) -> 111455.48 | H28: =SUMPRODUCT((WNARevAlloc[MonthFlow]=H26)*(WNARevAlloc[RateSched]=$C24)*WNARevAlloc[Consumption]) -> 175186.236 | I28: =SUMPRODUCT((WNARevAlloc[MonthFlow]=I26)*(WNARevAlloc[RateSched]=$C24)*WNARevAlloc[Consumption]) -> 123886.68 | J28: =SUMPRODUCT((WNARevAlloc[MonthFlow]=J26)*(WNARevAlloc[RateSched]=$C24)*WNARevAlloc[Consumption]) -> 74748.464 | K28: =SUMPRODUCT((WNARevAlloc[MonthFlow]=K26)*(WNARevAlloc[RateSched]=$C24)*WNARevAlloc[Consumption]) -> 50288.907 | L28: =SUMPRODUCT((WNARevAlloc[MonthFlow]=L26)*(WNARevAlloc[RateSched]=$C24)*WNARevAlloc[Consumption]) -> 25960.473 | M28: =SUMPRODUCT((WNARevAlloc[MonthFlow]=M26)*(WNARevAlloc[RateSched]=$C24)*WNARevAlloc[Consumption]) -> 16408.224 | N28: =SUMPRODUCT((WNARevAlloc[MonthFlow]=N26)*(WNARevAlloc[RateSched]=$C24)*WNARevAlloc[Consumption]) -> 7423.434
B29: Vol True-Up | C29: =C28-C27 -> -2362.0888 | D29: =D28-D27 -> 228.83647 | E29: 7916.822
B30: ="WNAR "&$C$6&" Rates in Effect" -> WNAR S2 Rates in Effect
B31: CSWNA | C31: =SUMPRODUCT((WNARRates[BeginDate]<=C$26)*(WNARRates[EndDate]>=C$26)*(WNARRates[Region]=$C$4)*(WNARRates[CustClass]=$D$24)*(WNARRates[Period]=$C$6)*WNARRates[CSWNA]) -> -0.00809 | D31: =SUMPRODUCT((WNARRates[BeginDate]<=D$26)*(WNARRates[EndDate]>=D$26)*(WNARRates[Region]=$C$4)*(WNARRates[CustClass]=$D$24)*(WNARRates[Period]=$C$6)*WNARRates[CSWNA]) -> -0.00809 | E31: =SUMPRODUCT((WNARRates[BeginDate]<=E$26)*(WNARRates[EndDate]>=E$26)*(WNARRates[Region]=$C$4)*(WNARRates[CustClass]=$D$24)*(WNARRates[Period]=$C$6)*WNARRates[CSWNA]) -> -0.00809 | F31: =SUMPRODUCT((WNARRates[BeginDate]<=F$26)*(WNARRates[EndDate]>=F$26)*(WNARRates[Region]=$C$4)*(WNARRates[CustClass]=$D$24)*(WNARRates[Period]=$C$6)*WNARRates[AdjCSWNA]) -> 0.00493 | G31: =SUMPRODUCT((WNARRates[BeginDate]<=G$26)*(WNARRates[EndDate]>=G$26)*(WNARRates[Region]=$C$4)*(WNARRates[CustClass]=$D$24)*(WNARRates[Period]=$C$6)*WNARRates[AdjCSWNA]) -> 0.00493 | H31: =SUMPRODUCT((WNARRates[BeginDate]<=H$26)*(WNARRates[EndDate]>=H$26)*(WNARRates[Region]=$C$4)*(WNARRates[CustClass]=$D$24)*(WNARRates[Period]=$C$6)*WNARRates[AdjCSWNA]) -> 0.00493 | I31: =SUMPRODUCT((WNARRates[BeginDate]<=I$26)*(WNARRates[EndDate]>=I$26)*(WNARRates[Region]=$C$4)*(WNARRates[CustClass]=$D$24)*(WNARRates[Period]=$C$6)*WNARRates[AdjCSWNA]) -> 0.00493 | J31: =SUMPRODUCT((WNARRates[BeginDate]<=J$26)*(WNARRates[EndDate]>=J$26)*(WNARRates[Region]=$C$4)*(WNARRates[CustClass]=$D$24)*(WNARRates[Period]=$C$6)*WNARRates[AdjCSWNA]) -> 0.00493 | K31: =SUMPRODUCT((WNARRates[BeginDate]<=K$26)*(WNARRates[EndDate]>=K$26)*(WNARRates[Region]=$C$4)*(WNARRates[CustClass]=$D$24)*(WNARRates[Period]=$C$6)*WNARRates[AdjCSWNA]) -> 0.00493 | L31: =SUMPRODUCT((WNARRates[BeginDate]<=L$26)*(WNARRates[EndDate]>=L$26)*(WNARRates[Region]=$C$4)*(WNARRates[CustClass]=$D$24)*(WNARRates[Period]=$C$6)*WNARRates[AdjCSWNA]) -> 0.00493 | M31: =SUMPRODUCT((WNARRates[BeginDate]<=M$26)*(WNARRates[EndDate]>=M$26)*(WNARRates[Region]=$C$4)*(WNARRates[CustClass]=$D$24)*(WNARRates[Period]=$C$6)*WNARRates[AdjCSWNA]) -> 0.00493 | N31: =SUMPRODUCT((WNARRates[BeginDate]<=N$26)*(WNARRates[EndDate]>=N$26)*(WNARRates[Region]=$C$4)*(WNARRates[CustClass]=$D$24)*(WNARRates[Period]=$C$6)*WNARRates[AdjCSWNA]) -> 0.00493 | O31: =SUMPRODUCT((WNARRates[BeginDate]<=O$26)*(WNARRates[EndDate]>=O$26)*(WNARRates[Region]=$C$4)*(WNARRates[CustClass]=$D$24)*(WNARRates[Period]=$C$6)*WNARRates[AdjCSWNA]) -> 0.00493 | P31: =SUMPRODUCT((WNARRates[BeginDate]<=P$26)*(WNARRates[EndDate]>=P$26)*(WNARRates[Region]=$C$4)*(WNARRates[CustClass]=$D$24)*(WNARRates[Period]=$C$6)*WNARRates[AdjCSWNA]) -> 0.00493 | Q31: =SUMPRODUCT((WNARRates[BeginDate]<=Q$26)*(WNARRates[EndDate]>=Q$26)*(WNARRates[Region]=$C$4)*(WNARRates[CustClass]=$D$24)*(WNARRates[Period]=$C$6)*WNARRates[AdjCSWNA]) -> 0.00493
B32: SRR | C32: =SUMPRODUCT((WNARRates[BeginDate]<=C$26)*(WNARRates[EndDate]>=C$26)*(WNARRates[Region]=$C$4)*(WNARRates[CustClass]=$D$24)*(WNARRates[Period]=$C$6)*WNARRates[SRR]) -> 0.0006 | D32: =SUMPRODUCT((WNARRates[BeginDate]<=D$26)*(WNARRates[EndDate]>=D$26)*(WNARRates[Region]=$C$4)*(WNARRates[CustClass]=$D$24)*(WNARRates[Period]=$C$6)*WNARRates[SRR]) -> 0.0006 | E32: =SUMPRODUCT((WNARRates[BeginDate]<=E$26)*(WNARRates[EndDate]>=E$26)*(WNARRates[Region]=$C$4)*(WNARRates[CustClass]=$D$24)*(WNARRates[Period]=$C$6)*WNARRates[SRR]) -> 0.0006 | F32: =SUMPRODUCT((WNARRates[BeginDate]<=F$26)*(WNARRates[EndDate]>=F$26)*(WNARRates[Region]=$C$4)*(WNARRates[CustClass]=$D$24)*(WNARRates[Period]=$C$6)*WNARRates[AdjSRR]) -> 0.0007 | G32: =SUMPRODUCT((WNARRates[BeginDate]<=G$26)*(WNARRates[EndDate]>=G$26)*(WNARRates[Region]=$C$4)*(WNARRates[CustClass]=$D$24)*(WNARRates[Period]=$C$6)*WNARRates[AdjSRR]) -> 0.0007 | H32: =SUMPRODUCT((WNARRates[BeginDate]<=H$26)*(WNARRates[EndDate]>=H$26)*(WNARRates[Region]=$C$4)*(WNARRates[CustClass]=$D$24)*(WNARRates[Period]=$C$6)*WNARRates[AdjSRR]) -> 0.0007 | I32: =SUMPRODUCT((WNARRates[BeginDate]<=I$26)*(WNARRates[EndDate]>=I$26)*(WNARRates[Region]=$C$4)*(WNARRates[CustClass]=$D$24)*(WNARRates[Period]=$C$6)*WNARRates[AdjSRR]) -> 0.0007 | J32: =SUMPRODUCT((WNARRates[BeginDate]<=J$26)*(WNARRates[EndDate]>=J$26)*(WNARRates[Region]=$C$4)*(WNARRates[CustClass]=$D$24)*(WNARRates[Period]=$C$6)*WNARRates[AdjSRR]) -> 0.0007 | K32: =SUMPRODUCT((WNARRates[BeginDate]<=K$26)*(WNARRates[EndDate]>=K$26)*(WNARRates[Region]=$C$4)*(WNARRates[CustClass]=$D$24)*(WNARRates[Period]=$C$6)*WNARRates[AdjSRR]) -> 0.0007 | L32: =SUMPRODUCT((WNARRates[BeginDate]<=L$26)*(WNARRates[EndDate]>=L$26)*(WNARRates[Region]=$C$4)*(WNARRates[CustClass]=$D$24)*(WNARRates[Period]=$C$6)*WNARRates[AdjSRR]) -> 0.0007 | M32: =SUMPRODUCT((WNARRates[BeginDate]<=M$26)*(WNARRates[EndDate]>=M$26)*(WNARRates[Region]=$C$4)*(WNARRates[CustClass]=$D$24)*(WNARRates[Period]=$C$6)*WNARRates[AdjSRR]) -> 0.0007 | N32: =SUMPRODUCT((WNARRates[BeginDate]<=N$26)*(WNARRates[EndDate]>=N$26)*(WNARRates[Region]=$C$4)*(WNARRates[CustClass]=$D$24)*(WNARRates[Period]=$C$6)*WNARRates[AdjSRR]) -> 0.0007 | O32: =SUMPRODUCT((WNARRates[BeginDate]<=O$26)*(WNARRates[EndDate]>=O$26)*(WNARRates[Region]=$C$4)*(WNARRates[CustClass]=$D$24)*(WNARRates[Period]=$C$6)*WNARRates[AdjSRR]) -> 0.0007 | P32: =SUMPRODUCT((WNARRates[BeginDate]<=P$26)*(WNARRates[EndDate]>=P$26)*(WNARRates[Region]=$C$4)*(WNARRates[CustClass]=$D$24)*(WNARRates[Period]=$C$6)*WNARRates[AdjSRR]) -> 0.0007 | Q32: =SUMPRODUCT((WNARRates[BeginDate]<=Q$26)*(WNARRates[EndDate]>=Q$26)*(WNARRates[Region]=$C$4)*(WNARRates[CustClass]=$D$24)*(WNARRates[Period]=$C$6)*WNARRates[AdjSRR]) -> 0.0007
B33: Total | C33: =SUM(C31:C32) -> -0.00749 | D33: =SUM(D31:D32) -> -0.00749 | E33: -0.00749
B34: CSWNA and SRR Revenue for Period
B35: CSWNA $ | F35: =IF($C$6="S1",SUMPRODUCT((WNARevAlloc[MonthFlow]=F$11)*(WNARevAlloc[Region]=$C$4)*(WNARevAlloc[CustClass]=$D$24)*WNARevAlloc[AdjCSWNAS1Rev]),SUMPRODUCT((WNARevAlloc[MonthFlow]=F$11)*(WNARevAlloc[Region]=$C$4)*(WNARevAlloc[CustClass]=$D$24)*WNARevAlloc[AdjCSWNAS2Rev])) -> 237.1650716 | G35: =IF($C$6="S1",SUMPRODUCT((WNARevAlloc[MonthFlow]=G$11)*(WNARevAlloc[Region]=$C$4)*(WNARevAlloc[CustClass]=$D$24)*WNARevAlloc[AdjCSWNAS1Rev]),SUMPRODUCT((WNARevAlloc[MonthFlow]=G$11)*(WNARevAlloc[Region]=$C$4)*(WNARevAlloc[CustClass]=$D$24)*WNARevAlloc[AdjCSWNAS2Rev])) -> 549.3118339 | H35: =IF($C$6="S1",SUMPRODUCT((WNARevAlloc[MonthFlow]=H$11)*(WNARevAlloc[Region]=$C$4)*(WNARevAlloc[CustClass]=$D$24)*WNARevAlloc[AdjCSWNAS1Rev]),SUMPRODUCT((WNARevAlloc[MonthFlow]=H$11)*(WNARevAlloc[Region]=$C$4)*(WNARevAlloc[CustClass]=$D$24)*WNARevAlloc[AdjCSWNAS2Rev])) -> 862.6078673 | I35: =IF($C$6="S1",SUMPRODUCT((WNARevAlloc[MonthFlow]=I$11)*(WNARevAlloc[Region]=$C$4)*(WNARevAlloc[CustClass]=$D$24)*WNARevAlloc[AdjCSWNAS1Rev]),SUMPRODUCT((WNARevAlloc[MonthFlow]=I$11)*(WNARevAlloc[Region]=$C$4)*(WNARevAlloc[CustClass]=$D$24)*WNARevAlloc[AdjCSWNAS2Rev])) -> 616.9937433 | J35: =IF($C$6="S1",SUMPRODUCT((WNARevAlloc[MonthFlow]=J$11)*(WNARevAlloc[Region]=$C$4)*(WNARevAlloc[CustClass]=$D$24)*WNARevAlloc[AdjCSWNAS1Rev]),SUMPRODUCT((WNARevAlloc[MonthFlow]=J$11)*(WNARevAlloc[Region]=$C$4)*(WNARevAlloc[CustClass]=$D$24)*WNARevAlloc[AdjCSWNAS2Rev])) -> 363.2349058 | K35: =IF($C$6="S1",SUMPRODUCT((WNARevAlloc[MonthFlow]=K$11)*(WNARevAlloc[Region]=$C$4)*(WNARevAlloc[CustClass]=$D$24)*WNARevAlloc[AdjCSWNAS1Rev]),SUMPRODUCT((WNARevAlloc[MonthFlow]=K$11)*(WNARevAlloc[Region]=$C$4)*(WNARevAlloc[CustClass]=$D$24)*WNARevAlloc[AdjCSWNAS2Rev])) -> 247.9244414 | L35: =IF($C$6="S1",SUMPRODUCT((WNARevAlloc[MonthFlow]=L$11)*(WNARevAlloc[Region]=$C$4)*(WNARevAlloc[CustClass]=$D$24)*WNARevAlloc[AdjCSWNAS1Rev]),SUMPRODUCT((WNARevAlloc[MonthFlow]=L$11)*(WNARevAlloc[Region]=$C$4)*(WNARevAlloc[CustClass]=$D$24)*WNARevAlloc[AdjCSWNAS2Rev])) -> 127.9241281 | M35: =IF($C$6="S1",SUMPRODUCT((WNARevAlloc[MonthFlow]=M$11)*(WNARevAlloc[Region]=$C$4)*(WNARevAlloc[CustClass]=$D$24)*WNARevAlloc[AdjCSWNAS1Rev]),SUMPRODUCT((WNARevAlloc[MonthFlow]=M$11)*(WNARevAlloc[Region]=$C$4)*(WNARevAlloc[CustClass]=$D$24)*WNARevAlloc[AdjCSWNAS2Rev])) -> 80.86716339 | N35: =IF($C$6="S1",SUMPRODUCT((WNARevAlloc[MonthFlow]=N$11)*(WNARevAlloc[Region]=$C$4)*(WNARevAlloc[CustClass]=$D$24)*WNARevAlloc[AdjCSWNAS1Rev]),SUMPRODUCT((WNARevAlloc[MonthFlow]=N$11)*(WNARevAlloc[Region]=$C$4)*(WNARevAlloc[CustClass]=$D$24)*WNARevAlloc[AdjCSWNAS2Rev])) -> 36.60422713 | O35: =ROUND(O$27*O31,0) -> 61 | P35: =ROUND(P$27*P31,0) -> 51 | Q35: 71
B36: SRR $ | C36: =ROUND(C29*C33,2) -> 17.69 | D36: =ROUND(D29*D33,2) -> -1.71 | E36: =ROUND(E29*E33,2) -> -59.3 | F36: =IF($C$6="S1",SUMPRODUCT((WNARevAlloc[MonthFlow]=F$11)*(WNARevAlloc[Region]=$C$4)*(WNARevAlloc[CustClass]=$D$24)*WNARevAlloc[AdjSRRS1Rev]),SUMPRODUCT((WNARevAlloc[MonthFlow]=F$11)*(WNARevAlloc[Region]=$C$4)*(WNARevAlloc[CustClass]=$D$24)*WNARevAlloc[AdjSRRS2Rev])) -> 34.21639876 | G36: =IF($C$6="S1",SUMPRODUCT((WNARevAlloc[MonthFlow]=G$11)*(WNARevAlloc[Region]=$C$4)*(WNARevAlloc[CustClass]=$D$24)*WNARevAlloc[AdjSRRS1Rev]),SUMPRODUCT((WNARevAlloc[MonthFlow]=G$11)*(WNARevAlloc[Region]=$C$4)*(WNARevAlloc[CustClass]=$D$24)*WNARevAlloc[AdjSRRS2Rev])) -> 78.01475121 | H36: =IF($C$6="S1",SUMPRODUCT((WNARevAlloc[MonthFlow]=H$11)*(WNARevAlloc[Region]=$C$4)*(WNARevAlloc[CustClass]=$D$24)*WNARevAlloc[AdjSRRS1Rev]),SUMPRODUCT((WNARevAlloc[MonthFlow]=H$11)*(WNARevAlloc[Region]=$C$4)*(WNARevAlloc[CustClass]=$D$24)*WNARevAlloc[AdjSRRS2Rev])) -> 122.6248582 | I36: =IF($C$6="S1",SUMPRODUCT((WNARevAlloc[MonthFlow]=I$11)*(WNARevAlloc[Region]=$C$4)*(WNARevAlloc[CustClass]=$D$24)*WNARevAlloc[AdjSRRS1Rev]),SUMPRODUCT((WNARevAlloc[MonthFlow]=I$11)*(WNARevAlloc[Region]=$C$4)*(WNARevAlloc[CustClass]=$D$24)*WNARevAlloc[AdjSRRS2Rev])) -> 87.44031241 | J36: =IF($C$6="S1",SUMPRODUCT((WNARevAlloc[MonthFlow]=J$11)*(WNARevAlloc[Region]=$C$4)*(WNARevAlloc[CustClass]=$D$24)*WNARevAlloc[AdjSRRS1Rev]),SUMPRODUCT((WNARevAlloc[MonthFlow]=J$11)*(WNARevAlloc[Region]=$C$4)*(WNARevAlloc[CustClass]=$D$24)*WNARevAlloc[AdjSRRS2Rev])) -> 52.28371293 | K36: =IF($C$6="S1",SUMPRODUCT((WNARevAlloc[MonthFlow]=K$11)*(WNARevAlloc[Region]=$C$4)*(WNARevAlloc[CustClass]=$D$24)*WNARevAlloc[AdjSRRS1Rev]),SUMPRODUCT((WNARevAlloc[MonthFlow]=K$11)*(WNARevAlloc[Region]=$C$4)*(WNARevAlloc[CustClass]=$D$24)*WNARevAlloc[AdjSRRS2Rev])) -> 35.20225334 | L36: =IF($C$6="S1",SUMPRODUCT((WNARevAlloc[MonthFlow]=L$11)*(WNARevAlloc[Region]=$C$4)*(WNARevAlloc[CustClass]=$D$24)*WNARevAlloc[AdjSRRS1Rev]),SUMPRODUCT((WNARevAlloc[MonthFlow]=L$11)*(WNARevAlloc[Region]=$C$4)*(WNARevAlloc[CustClass]=$D$24)*WNARevAlloc[AdjSRRS2Rev])) -> 18.16366931 | M36: =IF($C$6="S1",SUMPRODUCT((WNARevAlloc[MonthFlow]=M$11)*(WNARevAlloc[Region]=$C$4)*(WNARevAlloc[CustClass]=$D$24)*WNARevAlloc[AdjSRRS1Rev]),SUMPRODUCT((WNARevAlloc[MonthFlow]=M$11)*(WNARevAlloc[Region]=$C$4)*(WNARevAlloc[CustClass]=$D$24)*WNARevAlloc[AdjSRRS2Rev])) -> 11.48215302 | N36: =IF($C$6="S1",SUMPRODUCT((WNARevAlloc[MonthFlow]=N$11)*(WNARevAlloc[Region]=$C$4)*(WNARevAlloc[CustClass]=$D$24)*WNARevAlloc[AdjSRRS1Rev]),SUMPRODUCT((WNARevAlloc[MonthFlow]=N$11)*(WNARevAlloc[Region]=$C$4)*(WNARevAlloc[CustClass]=$D$24)*WNARevAlloc[AdjSRRS2Rev])) -> 5.191334266 | O36: =ROUND(O$27*O32,0) -> 9 | P36: =ROUND(P$27*P32,0) -> 7 | Q36: 10
B37: Total True-Up | C37: =SUM(C36:E36) -> -43.32 | D37: Enter in VolTrueUp Table
B39: * Actual Period revenues were calculated using actual rates, and then adjusted for actual revenues billed.
B40: (See worksheet WNARRevAlloc)

Sheet SRR NEMO
B2: Liberty Midstates | F2: Filing Period | I2: Rate Sched | J2: SAP Rate Cat. | K2: Territory | L2: Cust. Class
B3: Semi-Annual Reconciliation Rate | F3: Year | G3: Period | I3: 60-GRF | J3: =INDEX(RateSched[SAPRateCategory],MATCH($I3,RateSched[RateSched],0)) -> KMGR_RFS | K3: =INDEX(RateSched[Territory],MATCH($I3,RateSched[RateSched],0)) -> KIRK | L3: =INDEX(RateSched[CustClassShort],MATCH($I3,RateSched[RateSched],0)) -> Res
B4: Region | C4: NEMO | I4: 63-GRF | J4: =INDEX(RateSched[SAPRateCategory],MATCH($I4,RateSched[RateSched],0)) -> NMGR_RFS | K4: =INDEX(RateSched[Territory],MATCH($I4,RateSched[RateSched],0)) -> NEMO | L4: =INDEX(RateSched[CustClassShort],MATCH($I4,RateSched[RateSched],0)) -> Res
B5: Year | C5: =DateSet!C2 -> 2024 | I5: 60-GCSF | J5: =INDEX(RateSched[SAPRateCategory],MATCH($I5,RateSched[RateSched],0)) -> KMGR_SFGS | K5: =INDEX(RateSched[Territory],MATCH($I5,RateSched[RateSched],0)) -> KIRK | L5: =INDEX(RateSched[CustClassShort],MATCH($I5,RateSched[RateSched],0)) -> SGS
B6: Period | C6: =DateSet!C3 -> S2 | I6: 63-GCSF | J6: =INDEX(RateSched[SAPRateCategory],MATCH($I6,RateSched[RateSched],0)) -> NMGR_SFGS | K6: =INDEX(RateSched[Territory],MATCH($I6,RateSched[RateSched],0)) -> NEMO | L6: =INDEX(RateSched[CustClassShort],MATCH($I6,RateSched[RateSched],0)) -> SGS
B7: Analysis Start | C7: =DateSet!J9 -> 2023-07-01
B9: Rate Sched | C9: 60-GRF | D9: 63-GRF | E9: Res
B10: Residential | C10: True-Up Period | F10: Actual Period* | O10: Projected Period
B11: Month (Flow) | C11: =C7 -> 45108 | D11: =EDATE(C11,1) -> 45139 | E11: =EDATE(D11,1) -> 45170 | F11: 45200 | G11: 45231 | H11: 45261 | I11: 45292 | J11: 45323 | K11: 45352 | L11: 45383 | M11: 45413 | N11: 45444 | O11: 45474 | P11: 45505 | Q11: 45536
B12: Est. Volume | C12: =SUMPRODUCT((CustEstVol[MonthFlow]=C$11)*(CustEstVol[RateSched]=$C$9)*CustEstVol[NormVol])+SUMPRODUCT((CustEstVol[MonthFlow]=C$11)*(CustEstVol[RateSched]=$D$9)*CustEstVol[NormVol]) -> 153253 | D12: =SUMPRODUCT((CustEstVol[MonthFlow]=D$11)*(CustEstVol[RateSched]=$C$9)*CustEstVol[NormVol])+SUMPRODUCT((CustEstVol[MonthFlow]=D$11)*(CustEstVol[RateSched]=$D$9)*CustEstVol[NormVol]) -> 138771 | E12: =SUMPRODUCT((CustEstVol[MonthFlow]=E$11)*(CustEstVol[RateSched]=$C$9)*CustEstVol[NormVol])+SUMPRODUCT((CustEstVol[MonthFlow]=E$11)*(CustEstVol[RateSched]=$D$9)*CustEstVol[NormVol]) -> 196009 | O12: =SUMPRODUCT((CustEstVol[MonthFlow]=O$11)*(CustEstVol[RateSched]=$C$9)*CustEstVol[NormVol])+SUMPRODUCT((CustEstVol[MonthFlow]=O$11)*(CustEstVol[RateSched]=$D$9)*CustEstVol[NormVol]) -> 153253 | P12: =SUMPRODUCT((CustEstVol[MonthFlow]=P$11)*(CustEstVol[RateSched]=$C$9)*CustEstVol[NormVol])+SUMPRODUCT((CustEstVol[MonthFlow]=P$11)*(CustEstVol[RateSched]=$D$9)*CustEstVol[NormVol]) -> 138771 | Q12: =SUMPRODUCT((CustEstVol[MonthFlow]=Q$11)*(CustEstVol[RateSched]=$C$9)*CustEstVol[NormVol])+SUMPRODUCT((CustEstVol[MonthFlow]=Q$11)*(CustEstVol[RateSched]=$D$9)*CustEstVol[NormVol]) -> 196009
B13: Actual Volume | C13: =SUMPRODUCT((WNARevAlloc[MonthFlow]=C11)*(WNARevAlloc[RateSched]=$C9)*WNARevAlloc[Consumption]) -> 29250.70301 | D13: =SUMPRODUCT((WNARevAlloc[MonthFlow]=D11)*(WNARevAlloc[RateSched]=$C9)*WNARevAlloc[Consumption]) -> 30523.30036 | E13: =SUMPRODUCT((WNARevAlloc[MonthFlow]=E11)*(WNARevAlloc[RateSched]=$C9)*WNARevAlloc[Consumption]) -> 76842.003 | F13: =SUMPRODUCT((WNARevAlloc[MonthFlow]=F11)*(WNARevAlloc[RateSched]=$C9)*WNARevAlloc[Consumption]) -> 209839.065 | G13: =SUMPRODUCT((WNARevAlloc[MonthFlow]=G11)*(WNARevAlloc[RateSched]=$C9)*WNARevAlloc[Consumption]) -> 435931.91 | H13: =SUMPRODUCT((WNARevAlloc[MonthFlow]=H11)*(WNARevAlloc[RateSched]=$C9)*WNARevAlloc[Consumption]) -> 678398.66 | I13: =SUMPRODUCT((WNARevAlloc[MonthFlow]=I11)*(WNARevAlloc[RateSched]=$C9)*WNARevAlloc[Consumption]) -> 415575.266 | J13: =SUMPRODUCT((WNARevAlloc[MonthFlow]=J11)*(WNARevAlloc[RateSched]=$C9)*WNARevAlloc[Consumption]) -> 289308.828 | K13: =SUMPRODUCT((WNARevAlloc[MonthFlow]=K11)*(WNARevAlloc[RateSched]=$C9)*WNARevAlloc[Consumption]) -> 224647.365 | L13: =SUMPRODUCT((WNARevAlloc[MonthFlow]=L11)*(WNARevAlloc[RateSched]=$C9)*WNARevAlloc[Consumption]) -> 84869.601 | M13: =SUMPRODUCT((WNARevAlloc[MonthFlow]=M11)*(WNARevAlloc[RateSched]=$C9)*WNARevAlloc[Consumption]) -> 34274.658 | N13: =SUMPRODUCT((WNARevAlloc[MonthFlow]=N11)*(WNARevAlloc[RateSched]=$C9)*WNARevAlloc[Consumption]) -> 27365.3
B14: Vol True-Up | C14: =C13-C12 -> -124002.297 | D14: =D13-D12 -> -108247.6996 | E14: -119166.997
B15: ="WNAR "&$C$6&" Rates in Effect" -> WNAR S2 Rates in Effect
B16: CSWNA | C16: =SUMPRODUCT((WNARRates[BeginDate]<=C$11)*(WNARRates[EndDate]>=C$11)*(WNARRates[Region]=$C$4)*(WNARRates[CustClass]=$E$9)*(WNARRates[Period]=$C$6)*WNARRates[CSWNA]) -> -0.01938 | D16: =SUMPRODUCT((WNARRates[BeginDate]<=D$11)*(WNARRates[EndDate]>=D$11)*(WNARRates[Region]=$C$4)*(WNARRates[CustClass]=$E$9)*(WNARRates[Period]=$C$6)*WNARRates[CSWNA]) -> -0.01938 | E16: =SUMPRODUCT((WNARRates[BeginDate]<=E$11)*(WNARRates[EndDate]>=E$11)*(WNARRates[Region]=$C$4)*(WNARRates[CustClass]=$E$9)*(WNARRates[Period]=$C$6)*WNARRates[CSWNA]) -> -0.01938 | F16: =SUMPRODUCT((WNARRates[BeginDate]<=F$11)*(WNARRates[EndDate]>=F$11)*(WNARRates[Region]=$C$4)*(WNARRates[CustClass]=$E$9)*(WNARRates[Period]=$C$6)*WNARRates[AdjCSWNA]) -> 0.01185 | G16: =SUMPRODUCT((WNARRates[BeginDate]<=G$11)*(WNARRates[EndDate]>=G$11)*(WNARRates[Region]=$C$4)*(WNARRates[CustClass]=$E$9)*(WNARRates[Period]=$C$6)*WNARRates[AdjCSWNA]) -> 0.01185 | H16: =SUMPRODUCT((WNARRates[BeginDate]<=H$11)*(WNARRates[EndDate]>=H$11)*(WNARRates[Region]=$C$4)*(WNARRates[CustClass]=$E$9)*(WNARRates[Period]=$C$6)*WNARRates[AdjCSWNA]) -> 0.01185 | I16: =SUMPRODUCT((WNARRates[BeginDate]<=I$11)*(WNARRates[EndDate]>=I$11)*(WNARRates[Region]=$C$4)*(WNARRates[CustClass]=$E$9)*(WNARRates[Period]=$C$6)*WNARRates[AdjCSWNA]) -> 0.01185 | J16: =SUMPRODUCT((WNARRates[BeginDate]<=J$11)*(WNARRates[EndDate]>=J$11)*(WNARRates[Region]=$C$4)*(WNARRates[CustClass]=$E$9)*(WNARRates[Period]=$C$6)*WNARRates[AdjCSWNA]) -> 0.01185 | K16: =SUMPRODUCT((WNARRates[BeginDate]<=K$11)*(WNARRates[EndDate]>=K$11)*(WNARRates[Region]=$C$4)*(WNARRates[CustClass]=$E$9)*(WNARRates[Period]=$C$6)*WNARRates[AdjCSWNA]) -> 0.01185 | L16: =SUMPRODUCT((WNARRates[BeginDate]<=L$11)*(WNARRates[EndDate]>=L$11)*(WNARRates[Region]=$C$4)*(WNARRates[CustClass]=$E$9)*(WNARRates[Period]=$C$6)*WNARRates[AdjCSWNA]) -> 0.01185 | M16: =SUMPRODUCT((WNARRates[BeginDate]<=M$11)*(WNARRates[EndDate]>=M$11)*(WNARRates[Region]=$C$4)*(WNARRates[CustClass]=$E$9)*(WNARRates[Period]=$C$6)*WNARRates[AdjCSWNA]) -> 0.01185 | N16: =SUMPRODUCT((WNARRates[BeginDate]<=N$11)*(WNARRates[EndDate]>=N$11)*(WNARRates[Region]=$C$4)*(WNARRates[CustClass]=$E$9)*(WNARRates[Period]=$C$6)*WNARRates[AdjCSWNA]) -> 0.01185 | O16: =SUMPRODUCT((WNARRates[BeginDate]<=O$11)*(WNARRates[EndDate]>=O$11)*(WNARRates[Region]=$C$4)*(WNARRates[CustClass]=$E$9)*(WNARRates[Period]=$C$6)*WNARRates[AdjCSWNA]) -> 0.01185 | P16: =SUMPRODUCT((WNARRates[BeginDate]<=P$11)*(WNARRates[EndDate]>=P$11)*(WNARRates[Region]=$C$4)*(WNARRates[CustClass]=$E$9)*(WNARRates[Period]=$C$6)*WNARRates[AdjCSWNA]) -> 0.01185 | Q16: =SUMPRODUCT((WNARRates[BeginDate]<=Q$11)*(WNARRates[EndDate]>=Q$11)*(WNARRates[Region]=$C$4)*(WNARRates[CustClass]=$E$9)*(WNARRates[Period]=$C$6)*WNARRates[AdjCSWNA]) -> 0.01185
B17: SRR | C17: =SUMPRODUCT((WNARRates[BeginDate]<=C$11)*(WNARRates[EndDate]>=C$11)*(WNARRates[Region]=$C$4)*(WNARRates[CustClass]=$E$9)*(WNARRates[Period]=$C$6)*WNARRates[SRR]) -> 0.00047 | D17: =SUMPRODUCT((WNARRates[BeginDate]<=D$11)*(WNARRates[EndDate]>=D$11)*(WNARRates[Region]=$C$4)*(WNARRates[CustClass]=$E$9)*(WNARRates[Period]=$C$6)*WNARRates[SRR]) -> 0.00047 | E17: =SUMPRODUCT((WNARRates[BeginDate]<=E$11)*(WNARRates[EndDate]>=E$11)*(WNARRates[Region]=$C$4)*(WNARRates[CustClass]=$E$9)*(WNARRates[Period]=$C$6)*WNARRates[SRR]) -> 0.00047 | F17: =SUMPRODUCT((WNARRates[BeginDate]<=F$11)*(WNARRates[EndDate]>=F$11)*(WNARRates[Region]=$C$4)*(WNARRates[CustClass]=$E$9)*(WNARRates[Period]=$C$6)*WNARRates[AdjSRR]) -> -0.00029 | G17: =SUMPRODUCT((WNARRates[BeginDate]<=G$11)*(WNARRates[EndDate]>=G$11)*(WNARRates[Region]=$C$4)*(WNARRates[CustClass]=$E$9)*(WNARRates[Period]=$C$6)*WNARRates[AdjSRR]) -> -0.00029 | H17: =SUMPRODUCT((WNARRates[BeginDate]<=H$11)*(WNARRates[EndDate]>=H$11)*(WNARRates[Region]=$C$4)*(WNARRates[CustClass]=$E$9)*(WNARRates[Period]=$C$6)*WNARRates[AdjSRR]) -> -0.00029 | I17: =SUMPRODUCT((WNARRates[BeginDate]<=I$11)*(WNARRates[EndDate]>=I$11)*(WNARRates[Region]=$C$4)*(WNARRates[CustClass]=$E$9)*(WNARRates[Period]=$C$6)*WNARRates[AdjSRR]) -> -0.00029 | J17: =SUMPRODUCT((WNARRates[BeginDate]<=J$11)*(WNARRates[EndDate]>=J$11)*(WNARRates[Region]=$C$4)*(WNARRates[CustClass]=$E$9)*(WNARRates[Period]=$C$6)*WNARRates[AdjSRR]) -> -0.00029 | K17: =SUMPRODUCT((WNARRates[BeginDate]<=K$11)*(WNARRates[EndDate]>=K$11)*(WNARRates[Region]=$C$4)*(WNARRates[CustClass]=$E$9)*(WNARRates[Period]=$C$6)*WNARRates[AdjSRR]) -> -0.00029 | L17: =SUMPRODUCT((WNARRates[BeginDate]<=L$11)*(WNARRates[EndDate]>=L$11)*(WNARRates[Region]=$C$4)*(WNARRates[CustClass]=$E$9)*(WNARRates[Period]=$C$6)*WNARRates[AdjSRR]) -> -0.00029 | M17: =SUMPRODUCT((WNARRates[BeginDate]<=M$11)*(WNARRates[EndDate]>=M$11)*(WNARRates[Region]=$C$4)*(WNARRates[CustClass]=$E$9)*(WNARRates[Period]=$C$6)*WNARRates[AdjSRR]) -> -0.00029 | N17: =SUMPRODUCT((WNARRates[BeginDate]<=N$11)*(WNARRates[EndDate]>=N$11)*(WNARRates[Region]=$C$4)*(WNARRates[CustClass]=$E$9)*(WNARRates[Period]=$C$6)*WNARRates[AdjSRR]) -> -0.00029 | O17: =SUMPRODUCT((WNARRates[BeginDate]<=O$11)*(WNARRates[EndDate]>=O$11)*(WNARRates[Region]=$C$4)*(WNARRates[CustClass]=$E$9)*(WNARRates[Period]=$C$6)*WNARRates[AdjSRR]) -> -0.00029 | P17: =SUMPRODUCT((WNARRates[BeginDate]<=P$11)*(WNARRates[EndDate]>=P$11)*(WNARRates[Region]=$C$4)*(WNARRates[CustClass]=$E$9)*(WNARRates[Period]=$C$6)*WNARRates[AdjSRR]) -> -0.00029 | Q17: =SUMPRODUCT((WNARRates[BeginDate]<=Q$11)*(WNARRates[EndDate]>=Q$11)*(WNARRates[Region]=$C$4)*(WNARRates[CustClass]=$E$9)*(WNARRates[Period]=$C$6)*WNARRates[AdjSRR]) -> -0.00029
B18: Total | C18: =SUM(C16:C17) -> -0.01891 | D18: =SUM(D16:D17) -> -0.01891 | E18: -0.01891
B19: CSWNA and SRR Revenue for Period
B20: CSWNA $ | F20: =IF($C$6="S1",SUMPRODUCT((WNARevAlloc[MonthFlow]=F$11)*(WNARevAlloc[Region]=$C$4)*(WNARevAlloc[CustClass]=$E$9)*WNARevAlloc[AdjCSWNAS1Rev]),SUMPRODUCT((WNARevAlloc[MonthFlow]=F$11)*(WNARevAlloc[Region]=$C$4)*(WNARevAlloc[CustClass]=$E$9)*WNARevAlloc[AdjCSWNAS2Rev])) -> 8559.596186 | G20: =IF($C$6="S1",SUMPRODUCT((WNARevAlloc[MonthFlow]=G$11)*(WNARevAlloc[Region]=$C$4)*(WNARevAlloc[CustClass]=$E$9)*WNARevAlloc[AdjCSWNAS1Rev]),SUMPRODUCT((WNARevAlloc[MonthFlow]=G$11)*(WNARevAlloc[Region]=$C$4)*(WNARevAlloc[CustClass]=$E$9)*WNARevAlloc[AdjCSWNAS2Rev])) -> 15950.94741 | H20: =IF($C$6="S1",SUMPRODUCT((WNARevAlloc[MonthFlow]=H$11)*(WNARevAlloc[Region]=$C$4)*(WNARevAlloc[CustClass]=$E$9)*WNARevAlloc[AdjCSWNAS1Rev]),SUMPRODUCT((WNARevAlloc[MonthFlow]=H$11)*(WNARevAlloc[Region]=$C$4)*(WNARevAlloc[CustClass]=$E$9)*WNARevAlloc[AdjCSWNAS2Rev])) -> 26424.7827 | I20: =IF($C$6="S1",SUMPRODUCT((WNARevAlloc[MonthFlow]=I$11)*(WNARevAlloc[Region]=$C$4)*(WNARevAlloc[CustClass]=$E$9)*WNARevAlloc[AdjCSWNAS1Rev]),SUMPRODUCT((WNARevAlloc[MonthFlow]=I$11)*(WNARevAlloc[Region]=$C$4)*(WNARevAlloc[CustClass]=$E$9)*WNARevAlloc[AdjCSWNAS2Rev])) -> 19982.15995 | J20: =IF($C$6="S1",SUMPRODUCT((WNARevAlloc[MonthFlow]=J$11)*(WNARevAlloc[Region]=$C$4)*(WNARevAlloc[CustClass]=$E$9)*WNARevAlloc[AdjCSWNAS1Rev]),SUMPRODUCT((WNARevAlloc[MonthFlow]=J$11)*(WNARevAlloc[Region]=$C$4)*(WNARevAlloc[CustClass]=$E$9)*WNARevAlloc[AdjCSWNAS2Rev])) -> 13290.30498 | K20: =IF($C$6="S1",SUMPRODUCT((WNARevAlloc[MonthFlow]=K$11)*(WNARevAlloc[Region]=$C$4)*(WNARevAlloc[CustClass]=$E$9)*WNARevAlloc[AdjCSWNAS1Rev]),SUMPRODUCT((WNARevAlloc[MonthFlow]=K$11)*(WNARevAlloc[Region]=$C$4)*(WNARevAlloc[CustClass]=$E$9)*WNARevAlloc[AdjCSWNAS2Rev])) -> 11167.92991 | L20: =IF($C$6="S1",SUMPRODUCT((WNARevAlloc[MonthFlow]=L$11)*(WNARevAlloc[Region]=$C$4)*(WNARevAlloc[CustClass]=$E$9)*WNARevAlloc[AdjCSWNAS1Rev]),SUMPRODUCT((WNARevAlloc[MonthFlow]=L$11)*(WNARevAlloc[Region]=$C$4)*(WNARevAlloc[CustClass]=$E$9)*WNARevAlloc[AdjCSWNAS2Rev])) -> 4048.935854 | M20: =IF($C$6="S1",SUMPRODUCT((WNARevAlloc[MonthFlow]=M$11)*(WNARevAlloc[Region]=$C$4)*(WNARevAlloc[CustClass]=$E$9)*WNARevAlloc[AdjCSWNAS1Rev]),SUMPRODUCT((WNARevAlloc[MonthFlow]=M$11)*(WNARevAlloc[Region]=$C$4)*(WNARevAlloc[CustClass]=$E$9)*WNARevAlloc[AdjCSWNAS2Rev])) -> 1796.079708 | N20: =IF($C$6="S1",SUMPRODUCT((WNARevAlloc[MonthFlow]=N$11)*(WNARevAlloc[Region]=$C$4)*(WNARevAlloc[CustClass]=$E$9)*WNARevAlloc[AdjCSWNAS1Rev]),SUMPRODUCT((WNARevAlloc[MonthFlow]=N$11)*(WNARevAlloc[Region]=$C$4)*(WNARevAlloc[CustClass]=$E$9)*WNARevAlloc[AdjCSWNAS2Rev])) -> 1330.939447 | O20: =ROUND(O$12*O16,0) -> 1816 | P20: =ROUND(P$12*P16,0) -> 1644 | Q20: 2323
B21: SRR $ | C21: =ROUND(C14*C18,2) -> 2344.88 | D21: =ROUND(D14*D18,2) -> 2046.96 | E21: =ROUND(E14*E18,2) -> 2253.45 | F21: =IF($C$6="S1",SUMPRODUCT((WNARevAlloc[MonthFlow]=F$11)*(WNARevAlloc[Region]=$C$4)*(WNARevAlloc[CustClass]=$E$9)*WNARevAlloc[AdjSRRS1Rev]),SUMPRODUCT((WNARevAlloc[MonthFlow]=F$11)*(WNARevAlloc[Region]=$C$4)*(WNARevAlloc[CustClass]=$E$9)*WNARevAlloc[AdjSRRS2Rev])) -> -209.5196729 | G21: =IF($C$6="S1",SUMPRODUCT((WNARevAlloc[MonthFlow]=G$11)*(WNARevAlloc[Region]=$C$4)*(WNARevAlloc[CustClass]=$E$9)*WNARevAlloc[AdjSRRS1Rev]),SUMPRODUCT((WNARevAlloc[MonthFlow]=G$11)*(WNARevAlloc[Region]=$C$4)*(WNARevAlloc[CustClass]=$E$9)*WNARevAlloc[AdjSRRS2Rev])) -> -390.4933688 | H21: =IF($C$6="S1",SUMPRODUCT((WNARevAlloc[MonthFlow]=H$11)*(WNARevAlloc[Region]=$C$4)*(WNARevAlloc[CustClass]=$E$9)*WNARevAlloc[AdjSRRS1Rev]),SUMPRODUCT((WNARevAlloc[MonthFlow]=H$11)*(WNARevAlloc[Region]=$C$4)*(WNARevAlloc[CustClass]=$E$9)*WNARevAlloc[AdjSRRS2Rev])) -> -646.6865776 | I21: =IF($C$6="S1",SUMPRODUCT((WNARevAlloc[MonthFlow]=I$11)*(WNARevAlloc[Region]=$C$4)*(WNARevAlloc[CustClass]=$E$9)*WNARevAlloc[AdjSRRS1Rev]),SUMPRODUCT((WNARevAlloc[MonthFlow]=I$11)*(WNARevAlloc[Region]=$C$4)*(WNARevAlloc[CustClass]=$E$9)*WNARevAlloc[AdjSRRS2Rev])) -> -489.0134319 | J21: =IF($C$6="S1",SUMPRODUCT((WNARevAlloc[MonthFlow]=J$11)*(WNARevAlloc[Region]=$C$4)*(WNARevAlloc[CustClass]=$E$9)*WNARevAlloc[AdjSRRS1Rev]),SUMPRODUCT((WNARevAlloc[MonthFlow]=J$11)*(WNARevAlloc[Region]=$C$4)*(WNARevAlloc[CustClass]=$E$9)*WNARevAlloc[AdjSRRS2Rev])) -> -325.2056399 | K21: =IF($C$6="S1",SUMPRODUCT((WNARevAlloc[MonthFlow]=K$11)*(WNARevAlloc[Region]=$C$4)*(WNARevAlloc[CustClass]=$E$9)*WNARevAlloc[AdjSRRS1Rev]),SUMPRODUCT((WNARevAlloc[MonthFlow]=K$11)*(WNARevAlloc[Region]=$C$4)*(WNARevAlloc[CustClass]=$E$9)*WNARevAlloc[AdjSRRS2Rev])) -> -273.2652134 | L21: =IF($C$6="S1",SUMPRODUCT((WNARevAlloc[MonthFlow]=L$11)*(WNARevAlloc[Region]=$C$4)*(WNARevAlloc[CustClass]=$E$9)*WNARevAlloc[AdjSRRS1Rev]),SUMPRODUCT((WNARevAlloc[MonthFlow]=L$11)*(WNARevAlloc[Region]=$C$4)*(WNARevAlloc[CustClass]=$E$9)*WNARevAlloc[AdjSRRS2Rev])) -> -99.04524607 | M21: =IF($C$6="S1",SUMPRODUCT((WNARevAlloc[MonthFlow]=M$11)*(WNARevAlloc[Region]=$C$4)*(WNARevAlloc[CustClass]=$E$9)*WNARevAlloc[AdjSRRS1Rev]),SUMPRODUCT((WNARevAlloc[MonthFlow]=M$11)*(WNARevAlloc[Region]=$C$4)*(WNARevAlloc[CustClass]=$E$9)*WNARevAlloc[AdjSRRS2Rev])) -> -43.95470205 | N21: =IF($C$6="S1",SUMPRODUCT((WNARevAlloc[MonthFlow]=N$11)*(WNARevAlloc[Region]=$C$4)*(WNARevAlloc[CustClass]=$E$9)*WNARevAlloc[AdjSRRS1Rev]),SUMPRODUCT((WNARevAlloc[MonthFlow]=N$11)*(WNARevAlloc[Region]=$C$4)*(WNARevAlloc[CustClass]=$E$9)*WNARevAlloc[AdjSRRS2Rev])) -> -32.5715139 | O21: =ROUND(O$12*O17,0) -> -44 | P21: -40 | Q21: -57
B22: Total True-Up | C22: =SUM(C21:E21) -> 6645.29 | D22: Enter in VolTrueUp Table
B24: Rate Sched | C24: 60-GCSF | D24: 63-GCSF | E24: SGS
B25: Small Comm. | C25: True-Up Period | F25: Actual Period* | O25: Projected Period
B26: Month (Flow) | C26: =C7 -> 45108 | D26: =EDATE(C26,1) -> 45139 | E26: =EDATE(D26,1) -> 45170 | F26: 45200 | G26: 45231 | H26: 45261 | I26: 45292 | J26: 45323 | K26: 45352 | L26: 45383 | M26: 45413 | N26: 45444 | O26: 45474 | P26: 45505 | Q26: 45536
B27: Est. Volume | C27: =SUMPRODUCT((CustEstVol[MonthFlow]=C$26)*(CustEstVol[RateSched]=$C$24)*CustEstVol[NormVol])+SUMPRODUCT((CustEstVol[MonthFlow]=C$26)*(CustEstVol[RateSched]=$D$24)*CustEstVol[NormVol]) -> 66782 | D27: =SUMPRODUCT((CustEstVol[MonthFlow]=D$26)*(CustEstVol[RateSched]=$C$24)*CustEstVol[NormVol])+SUMPRODUCT((CustEstVol[MonthFlow]=D$26)*(CustEstVol[RateSched]=$D$24)*CustEstVol[NormVol]) -> 62541 | E27: =SUMPRODUCT((CustEstVol[MonthFlow]=E$26)*(CustEstVol[RateSched]=$C$24)*CustEstVol[NormVol])+SUMPRODUCT((CustEstVol[MonthFlow]=E$26)*(CustEstVol[RateSched]=$D$24)*CustEstVol[NormVol]) -> 84587 | O27: =SUMPRODUCT((CustEstVol[MonthFlow]=O$26)*(CustEstVol[RateSched]=$C$24)*CustEstVol[NormVol])+SUMPRODUCT((CustEstVol[MonthFlow]=O$26)*(CustEstVol[RateSched]=$D$24)*CustEstVol[NormVol]) -> 66782 | P27: =SUMPRODUCT((CustEstVol[MonthFlow]=P$26)*(CustEstVol[RateSched]=$C$24)*CustEstVol[NormVol])+SUMPRODUCT((CustEstVol[MonthFlow]=P$26)*(CustEstVol[RateSched]=$D$24)*CustEstVol[NormVol]) -> 62541 | Q27: =SUMPRODUCT((CustEstVol[MonthFlow]=Q$26)*(CustEstVol[RateSched]=$C$24)*CustEstVol[NormVol])+SUMPRODUCT((CustEstVol[MonthFlow]=Q$26)*(CustEstVol[RateSched]=$D$24)*CustEstVol[NormVol]) -> 84587
B28: Actual Volume | C28: =SUMPRODUCT((WNARevAlloc[MonthFlow]=C26)*(WNARevAlloc[RateSched]=$C24)*WNARevAlloc[Consumption]) -> 15658.92718 | D28: =SUMPRODUCT((WNARevAlloc[MonthFlow]=D26)*(WNARevAlloc[RateSched]=$C24)*WNARevAlloc[Consumption]) -> 16637.01517 | E28: =SUMPRODUCT((WNARevAlloc[MonthFlow]=E26)*(WNARevAlloc[RateSched]=$C24)*WNARevAlloc[Consumption]) -> 16983.892 | F28: =SUMPRODUCT((WNARevAlloc[MonthFlow]=F26)*(WNARevAlloc[RateSched]=$C24)*WNARevAlloc[Consumption]) -> 91812.92 | G28: =SUMPRODUCT((WNARevAlloc[MonthFlow]=G26)*(WNARevAlloc[RateSched]=$C24)*WNARevAlloc[Consumption]) -> 161241.79 | H28: =SUMPRODUCT((WNARevAlloc[MonthFlow]=H26)*(WNARevAlloc[RateSched]=$C24)*WNARevAlloc[Consumption]) -> 265361.13 | I28: =SUMPRODUCT((WNARevAlloc[MonthFlow]=I26)*(WNARevAlloc[RateSched]=$C24)*WNARevAlloc[Consumption]) -> 156324.947 | J28: =SUMPRODUCT((WNARevAlloc[MonthFlow]=J26)*(WNARevAlloc[RateSched]=$C24)*WNARevAlloc[Consumption]) -> 127241.709 | K28: =SUMPRODUCT((WNARevAlloc[MonthFlow]=K26)*(WNARevAlloc[RateSched]=$C24)*WNARevAlloc[Consumption]) -> 84850.37 | L28: =SUMPRODUCT((WNARevAlloc[MonthFlow]=L26)*(WNARevAlloc[RateSched]=$C24)*WNARevAlloc[Consumption]) -> 37016.313 | M28: =SUMPRODUCT((WNARevAlloc[MonthFlow]=M26)*(WNARevAlloc[RateSched]=$C24)*WNARevAlloc[Consumption]) -> 18238.005 | N28: =SUMPRODUCT((WNARevAlloc[MonthFlow]=N26)*(WNARevAlloc[RateSched]=$C24)*WNARevAlloc[Consumption]) -> 16326.286
B29: Vol True-Up | C29: =C28-C27 -> -51123.07282 | D29: =D28-D27 -> -45903.98483 | E29: -67603.108
B30: ="WNAR "&$C$6&" Rates in Effect" -> WNAR S2 Rates in Effect
B31: CSWNA | C31: =SUMPRODUCT((WNARRates[BeginDate]<=C$26)*(WNARRates[EndDate]>=C$26)*(WNARRates[Region]=$C$4)*(WNARRates[CustClass]=$E$24)*(WNARRates[Period]=$C$6)*WNARRates[CSWNA]) -> -0.00809 | D31: =SUMPRODUCT((WNARRates[BeginDate]<=D$26)*(WNARRates[EndDate]>=D$26)*(WNARRates[Region]=$C$4)*(WNARRates[CustClass]=$E$24)*(WNARRates[Period]=$C$6)*WNARRates[CSWNA]) -> -0.00809 | E31: =SUMPRODUCT((WNARRates[BeginDate]<=E$26)*(WNARRates[EndDate]>=E$26)*(WNARRates[Region]=$C$4)*(WNARRates[CustClass]=$E$24)*(WNARRates[Period]=$C$6)*WNARRates[CSWNA]) -> -0.00809 | F31: =SUMPRODUCT((WNARRates[BeginDate]<=F$26)*(WNARRates[EndDate]>=F$26)*(WNARRates[Region]=$C$4)*(WNARRates[CustClass]=$E$24)*(WNARRates[Period]=$C$6)*WNARRates[AdjCSWNA]) -> 0.00493 | G31: =SUMPRODUCT((WNARRates[BeginDate]<=G$26)*(WNARRates[EndDate]>=G$26)*(WNARRates[Region]=$C$4)*(WNARRates[CustClass]=$E$24)*(WNARRates[Period]=$C$6)*WNARRates[AdjCSWNA]) -> 0.00493 | H31: =SUMPRODUCT((WNARRates[BeginDate]<=H$26)*(WNARRates[EndDate]>=H$26)*(WNARRates[Region]=$C$4)*(WNARRates[CustClass]=$E$24)*(WNARRates[Period]=$C$6)*WNARRates[AdjCSWNA]) -> 0.00493 | I31: =SUMPRODUCT((WNARRates[BeginDate]<=I$26)*(WNARRates[EndDate]>=I$26)*(WNARRates[Region]=$C$4)*(WNARRates[CustClass]=$E$24)*(WNARRates[Period]=$C$6)*WNARRates[AdjCSWNA]) -> 0.00493 | J31: =SUMPRODUCT((WNARRates[BeginDate]<=J$26)*(WNARRates[EndDate]>=J$26)*(WNARRates[Region]=$C$4)*(WNARRates[CustClass]=$E$24)*(WNARRates[Period]=$C$6)*WNARRates[AdjCSWNA]) -> 0.00493 | K31: =SUMPRODUCT((WNARRates[BeginDate]<=K$26)*(WNARRates[EndDate]>=K$26)*(WNARRates[Region]=$C$4)*(WNARRates[CustClass]=$E$24)*(WNARRates[Period]=$C$6)*WNARRates[AdjCSWNA]) -> 0.00493 | L31: =SUMPRODUCT((WNARRates[BeginDate]<=L$26)*(WNARRates[EndDate]>=L$26)*(WNARRates[Region]=$C$4)*(WNARRates[CustClass]=$E$24)*(WNARRates[Period]=$C$6)*WNARRates[AdjCSWNA]) -> 0.00493 | M31: =SUMPRODUCT((WNARRates[BeginDate]<=M$26)*(WNARRates[EndDate]>=M$26)*(WNARRates[Region]=$C$4)*(WNARRates[CustClass]=$E$24)*(WNARRates[Period]=$C$6)*WNARRates[AdjCSWNA]) -> 0.00493 | N31: =SUMPRODUCT((WNARRates[BeginDate]<=N$26)*(WNARRates[EndDate]>=N$26)*(WNARRates[Region]=$C$4)*(WNARRates[CustClass]=$E$24)*(WNARRates[Period]=$C$6)*WNARRates[AdjCSWNA]) -> 0.00493 | O31: =SUMPRODUCT((WNARRates[BeginDate]<=O$26)*(WNARRates[EndDate]>=O$26)*(WNARRates[Region]=$C$4)*(WNARRates[CustClass]=$E$24)*(WNARRates[Period]=$C$6)*WNARRates[AdjCSWNA]) -> 0.00493 | P31: =SUMPRODUCT((WNARRates[BeginDate]<=P$26)*(WNARRates[EndDate]>=P$26)*(WNARRates[Region]=$C$4)*(WNARRates[CustClass]=$E$24)*(WNARRates[Period]=$C$6)*WNARRates[AdjCSWNA]) -> 0.00493 | Q31: =SUMPRODUCT((WNARRates[BeginDate]<=Q$26)*(WNARRates[EndDate]>=Q$26)*(WNARRates[Region]=$C$4)*(WNARRates[CustClass]=$E$24)*(WNARRates[Period]=$C$6)*WNARRates[AdjCSWNA]) -> 0.00493
B32: SRR | C32: =SUMPRODUCT((WNARRates[BeginDate]<=C$26)*(WNARRates[EndDate]>=C$26)*(WNARRates[Region]=$C$4)*(WNARRates[CustClass]=$E$24)*(WNARRates[Period]=$C$6)*WNARRates[SRR]) -> 0.0006 | D32: =SUMPRODUCT((WNARRates[BeginDate]<=D$26)*(WNARRates[EndDate]>=D$26)*(WNARRates[Region]=$C$4)*(WNARRates[CustClass]=$E$24)*(WNARRates[Period]=$C$6)*WNARRates[SRR]) -> 0.0006 | E32: =SUMPRODUCT((WNARRates[BeginDate]<=E$26)*(WNARRates[EndDate]>=E$26)*(WNARRates[Region]=$C$4)*(WNARRates[CustClass]=$E$24)*(WNARRates[Period]=$C$6)*WNARRates[SRR]) -> 0.0006 | F32: =SUMPRODUCT((WNARRates[BeginDate]<=F$26)*(WNARRates[EndDate]>=F$26)*(WNARRates[Region]=$C$4)*(WNARRates[CustClass]=$E$24)*(WNARRates[Period]=$C$6)*WNARRates[AdjSRR]) -> 0.0007 | G32: =SUMPRODUCT((WNARRates[BeginDate]<=G$26)*(WNARRates[EndDate]>=G$26)*(WNARRates[Region]=$C$4)*(WNARRates[CustClass]=$E$24)*(WNARRates[Period]=$C$6)*WNARRates[AdjSRR]) -> 0.0007 | H32: =SUMPRODUCT((WNARRates[BeginDate]<=H$26)*(WNARRates[EndDate]>=H$26)*(WNARRates[Region]=$C$4)*(WNARRates[CustClass]=$E$24)*(WNARRates[Period]=$C$6)*WNARRates[AdjSRR]) -> 0.0007 | I32: =SUMPRODUCT((WNARRates[BeginDate]<=I$26)*(WNARRates[EndDate]>=I$26)*(WNARRates[Region]=$C$4)*(WNARRates[CustClass]=$E$24)*(WNARRates[Period]=$C$6)*WNARRates[AdjSRR]) -> 0.0007 | J32: =SUMPRODUCT((WNARRates[BeginDate]<=J$26)*(WNARRates[EndDate]>=J$26)*(WNARRates[Region]=$C$4)*(WNARRates[CustClass]=$E$24)*(WNARRates[Period]=$C$6)*WNARRates[AdjSRR]) -> 0.0007 | K32: =SUMPRODUCT((WNARRates[BeginDate]<=K$26)*(WNARRates[EndDate]>=K$26)*(WNARRates[Region]=$C$4)*(WNARRates[CustClass]=$E$24)*(WNARRates[Period]=$C$6)*WNARRates[AdjSRR]) -> 0.0007 | L32: =SUMPRODUCT((WNARRates[BeginDate]<=L$26)*(WNARRates[EndDate]>=L$26)*(WNARRates[Region]=$C$4)*(WNARRates[CustClass]=$E$24)*(WNARRates[Period]=$C$6)*WNARRates[AdjSRR]) -> 0.0007 | M32: =SUMPRODUCT((WNARRates[BeginDate]<=M$26)*(WNARRates[EndDate]>=M$26)*(WNARRates[Region]=$C$4)*(WNARRates[CustClass]=$E$24)*(WNARRates[Period]=$C$6)*WNARRates[AdjSRR]) -> 0.0007 | N32: =SUMPRODUCT((WNARRates[BeginDate]<=N$26)*(WNARRates[EndDate]>=N$26)*(WNARRates[Region]=$C$4)*(WNARRates[CustClass]=$E$24)*(WNARRates[Period]=$C$6)*WNARRates[AdjSRR]) -> 0.0007 | O32: =SUMPRODUCT((WNARRates[BeginDate]<=O$26)*(WNARRates[EndDate]>=O$26)*(WNARRates[Region]=$C$4)*(WNARRates[CustClass]=$E$24)*(WNARRates[Period]=$C$6)*WNARRates[AdjSRR]) -> 0.0007 | P32: =SUMPRODUCT((WNARRates[BeginDate]<=P$26)*(WNARRates[EndDate]>=P$26)*(WNARRates[Region]=$C$4)*(WNARRates[CustClass]=$E$24)*(WNARRates[Period]=$C$6)*WNARRates[AdjSRR]) -> 0.0007 | Q32: =SUMPRODUCT((WNARRates[BeginDate]<=Q$26)*(WNARRates[EndDate]>=Q$26)*(WNARRates[Region]=$C$4)*(WNARRates[CustClass]=$E$24)*(WNARRates[Period]=$C$6)*WNARRates[AdjSRR]) -> 0.0007
B33: Total | C33: =SUM(C31:C32) -> -0.00749 | D33: =SUM(D31:D32) -> -0.00749 | E33: -0.00749
B34: CSWNA and SRR Revenue for Period
B35: CSWNA $ | F35: =IF($C$6="S1",SUMPRODUCT((WNARevAlloc[MonthFlow]=F$11)*(WNARevAlloc[Region]=$C$4)*(WNARevAlloc[CustClass]=$E$24)*WNARevAlloc[AdjCSWNAS1Rev]),SUMPRODUCT((WNARevAlloc[MonthFlow]=F$11)*(WNARevAlloc[Region]=$C$4)*(WNARevAlloc[CustClass]=$E$24)*WNARevAlloc[AdjCSWNAS2Rev])) -> 1076.223957 | G35: =IF($C$6="S1",SUMPRODUCT((WNARevAlloc[MonthFlow]=G$11)*(WNARevAlloc[Region]=$C$4)*(WNARevAlloc[CustClass]=$E$24)*WNARevAlloc[AdjCSWNAS1Rev]),SUMPRODUCT((WNARevAlloc[MonthFlow]=G$11)*(WNARevAlloc[Region]=$C$4)*(WNARevAlloc[CustClass]=$E$24)*WNARevAlloc[AdjCSWNAS2Rev])) -> 2053.852089 | H35: =IF($C$6="S1",SUMPRODUCT((WNARevAlloc[MonthFlow]=H$11)*(WNARevAlloc[Region]=$C$4)*(WNARevAlloc[CustClass]=$E$24)*WNARevAlloc[AdjCSWNAS1Rev]),SUMPRODUCT((WNARevAlloc[MonthFlow]=H$11)*(WNARevAlloc[Region]=$C$4)*(WNARevAlloc[CustClass]=$E$24)*WNARevAlloc[AdjCSWNAS2Rev])) -> 3547.828608 | I35: =IF($C$6="S1",SUMPRODUCT((WNARevAlloc[MonthFlow]=I$11)*(WNARevAlloc[Region]=$C$4)*(WNARevAlloc[CustClass]=$E$24)*WNARevAlloc[AdjCSWNAS1Rev]),SUMPRODUCT((WNARevAlloc[MonthFlow]=I$11)*(WNARevAlloc[Region]=$C$4)*(WNARevAlloc[CustClass]=$E$24)*WNARevAlloc[AdjCSWNAS2Rev])) -> 2624.514835 | J35: =IF($C$6="S1",SUMPRODUCT((WNARevAlloc[MonthFlow]=J$11)*(WNARevAlloc[Region]=$C$4)*(WNARevAlloc[CustClass]=$E$24)*WNARevAlloc[AdjCSWNAS1Rev]),SUMPRODUCT((WNARevAlloc[MonthFlow]=J$11)*(WNARevAlloc[Region]=$C$4)*(WNARevAlloc[CustClass]=$E$24)*WNARevAlloc[AdjCSWNAS2Rev])) -> 1778.66088 | K35: =IF($C$6="S1",SUMPRODUCT((WNARevAlloc[MonthFlow]=K$11)*(WNARevAlloc[Region]=$C$4)*(WNARevAlloc[CustClass]=$E$24)*WNARevAlloc[AdjCSWNAS1Rev]),SUMPRODUCT((WNARevAlloc[MonthFlow]=K$11)*(WNARevAlloc[Region]=$C$4)*(WNARevAlloc[CustClass]=$E$24)*WNARevAlloc[AdjCSWNAS2Rev])) -> 1419.165449 | L35: =IF($C$6="S1",SUMPRODUCT((WNARevAlloc[MonthFlow]=L$11)*(WNARevAlloc[Region]=$C$4)*(WNARevAlloc[CustClass]=$E$24)*WNARevAlloc[AdjCSWNAS1Rev]),SUMPRODUCT((WNARevAlloc[MonthFlow]=L$11)*(WNARevAlloc[Region]=$C$4)*(WNARevAlloc[CustClass]=$E$24)*WNARevAlloc[AdjCSWNAS2Rev])) -> 574.8614065 | M35: =IF($C$6="S1",SUMPRODUCT((WNARevAlloc[MonthFlow]=M$11)*(WNARevAlloc[Region]=$C$4)*(WNARevAlloc[CustClass]=$E$24)*WNARevAlloc[AdjCSWNAS1Rev]),SUMPRODUCT((WNARevAlloc[MonthFlow]=M$11)*(WNARevAlloc[Region]=$C$4)*(WNARevAlloc[CustClass]=$E$24)*WNARevAlloc[AdjCSWNAS2Rev])) -> 287.3455855 | N35: =IF($C$6="S1",SUMPRODUCT((WNARevAlloc[MonthFlow]=N$11)*(WNARevAlloc[Region]=$C$4)*(WNARevAlloc[CustClass]=$E$24)*WNARevAlloc[AdjCSWNAS1Rev]),SUMPRODUCT((WNARevAlloc[MonthFlow]=N$11)*(WNARevAlloc[Region]=$C$4)*(WNARevAlloc[CustClass]=$E$24)*WNARevAlloc[AdjCSWNAS2Rev])) -> 224.4500569 | O35: =ROUND(O$27*O31,0) -> 329 | P35: =ROUND(P$27*P31,0) -> 308 | Q35: 417
B36: SRR $ | C36: =ROUND(C29*C33,2) -> 382.91 | D36: =ROUND(D29*D33,2) -> 343.82 | E36: =ROUND(E29*E33,2) -> 506.35 | F36: =IF($C$6="S1",SUMPRODUCT((WNARevAlloc[MonthFlow]=F$11)*(WNARevAlloc[Region]=$C$4)*(WNARevAlloc[CustClass]=$E$24)*WNARevAlloc[AdjSRRS1Rev]),SUMPRODUCT((WNARevAlloc[MonthFlow]=F$11)*(WNARevAlloc[Region]=$C$4)*(WNARevAlloc[CustClass]=$E$24)*WNARevAlloc[AdjSRRS2Rev])) -> 158.4338506 | G36: =IF($C$6="S1",SUMPRODUCT((WNARevAlloc[MonthFlow]=G$11)*(WNARevAlloc[Region]=$C$4)*(WNARevAlloc[CustClass]=$E$24)*WNARevAlloc[AdjSRRS1Rev]),SUMPRODUCT((WNARevAlloc[MonthFlow]=G$11)*(WNARevAlloc[Region]=$C$4)*(WNARevAlloc[CustClass]=$E$24)*WNARevAlloc[AdjSRRS2Rev])) -> 291.7248962 | H36: =IF($C$6="S1",SUMPRODUCT((WNARevAlloc[MonthFlow]=H$11)*(WNARevAlloc[Region]=$C$4)*(WNARevAlloc[CustClass]=$E$24)*WNARevAlloc[AdjSRRS1Rev]),SUMPRODUCT((WNARevAlloc[MonthFlow]=H$11)*(WNARevAlloc[Region]=$C$4)*(WNARevAlloc[CustClass]=$E$24)*WNARevAlloc[AdjSRRS2Rev])) -> 503.7222127 | I36: =IF($C$6="S1",SUMPRODUCT((WNARevAlloc[MonthFlow]=I$11)*(WNARevAlloc[Region]=$C$4)*(WNARevAlloc[CustClass]=$E$24)*WNARevAlloc[AdjSRRS1Rev]),SUMPRODUCT((WNARevAlloc[MonthFlow]=I$11)*(WNARevAlloc[Region]=$C$4)*(WNARevAlloc[CustClass]=$E$24)*WNARevAlloc[AdjSRRS2Rev])) -> 372.5035785 | J36: =IF($C$6="S1",SUMPRODUCT((WNARevAlloc[MonthFlow]=J$11)*(WNARevAlloc[Region]=$C$4)*(WNARevAlloc[CustClass]=$E$24)*WNARevAlloc[AdjSRRS1Rev]),SUMPRODUCT((WNARevAlloc[MonthFlow]=J$11)*(WNARevAlloc[Region]=$C$4)*(WNARevAlloc[CustClass]=$E$24)*WNARevAlloc[AdjSRRS2Rev])) -> 252.7255291 | K36: =IF($C$6="S1",SUMPRODUCT((WNARevAlloc[MonthFlow]=K$11)*(WNARevAlloc[Region]=$C$4)*(WNARevAlloc[CustClass]=$E$24)*WNARevAlloc[AdjSRRS1Rev]),SUMPRODUCT((WNARevAlloc[MonthFlow]=K$11)*(WNARevAlloc[Region]=$C$4)*(WNARevAlloc[CustClass]=$E$24)*WNARevAlloc[AdjSRRS2Rev])) -> 201.504222 | L36: =IF($C$6="S1",SUMPRODUCT((WNARevAlloc[MonthFlow]=L$11)*(WNARevAlloc[Region]=$C$4)*(WNARevAlloc[CustClass]=$E$24)*WNARevAlloc[AdjSRRS1Rev]),SUMPRODUCT((WNARevAlloc[MonthFlow]=L$11)*(WNARevAlloc[Region]=$C$4)*(WNARevAlloc[CustClass]=$E$24)*WNARevAlloc[AdjSRRS2Rev])) -> 81.62332344 | M36: =IF($C$6="S1",SUMPRODUCT((WNARevAlloc[MonthFlow]=M$11)*(WNARevAlloc[Region]=$C$4)*(WNARevAlloc[CustClass]=$E$24)*WNARevAlloc[AdjSRRS1Rev]),SUMPRODUCT((WNARevAlloc[MonthFlow]=M$11)*(WNARevAlloc[Region]=$C$4)*(WNARevAlloc[CustClass]=$E$24)*WNARevAlloc[AdjSRRS2Rev])) -> 40.79957604 | N36: =IF($C$6="S1",SUMPRODUCT((WNARevAlloc[MonthFlow]=N$11)*(WNARevAlloc[Region]=$C$4)*(WNARevAlloc[CustClass]=$E$24)*WNARevAlloc[AdjSRRS1Rev]),SUMPRODUCT((WNARevAlloc[MonthFlow]=N$11)*(WNARevAlloc[Region]=$C$4)*(WNARevAlloc[CustClass]=$E$24)*WNARevAlloc[AdjSRRS2Rev])) -> 31.88121744 | O36: =ROUND(O$27*O32,0) -> 47 | P36: 44 | Q36: 59
B37: Total True-Up | C37: =SUM(C36:E36) -> 1233.08 | D37: Enter in VolTrueUp Table
B39: * Actual Period revenues were calculated using actual rates, and then adjusted for actual revenues billed.
B40: (See worksheet WNARRevAlloc)

Sheet CSWNA SEMO
B2: Liberty Midstates | F2: Filing Period | I2: Rate Sched | J2: SAP Rate Cat. | K2: Territory | L2: Cust. Class
B3: Billing Cycle and HDD Data Summary | F3: Year | G3: Period | I3: 62-GRF | J3: =INDEX(RateSched[SAPRateCategory],MATCH($I3,RateSched[RateSched],0)) -> SMGR_RFS | K3: =INDEX(RateSched[Territory],MATCH($I3,RateSched[RateSched],0)) -> SEMO | L3: =INDEX(RateSched[CustClassShort],MATCH($I3,RateSched[RateSched],0)) -> Res
B4: Region | C4: SEMO | I4: 62-GCSF | J4: =INDEX(RateSched[SAPRateCategory],MATCH($I4,RateSched[RateSched],0)) -> SMGR_SFGS | K4: =INDEX(RateSched[Territory],MATCH($I4,RateSched[RateSched],0)) -> SEMO | L4: =INDEX(RateSched[CustClassShort],MATCH($I4,RateSched[RateSched],0)) -> SGS
B5: Year | C5: =DateSet!$C$2 -> 2024
B6: Period | C6: =DateSet!$C$3 -> S2
B7: Analysis Start | C7: =DateSet!$J$8 -> 2024-01-01
B9: Residential | C9: WNA factor = HDD Diff * No. of Bills * Beta Coefficient (See SEMO Cycles)
B10: MonthFlow | C10: WNA Factor | D10: WRVR | E10: WNAi | F10: Billing Determinants | G10: Monthly Adj.
D11: Vol. Rate | E11: c*d | G11: e/f
B12: =$C$7 -> 45292 | C12: =SUMPRODUCT((SEMOCycles[MonthFlow]=$B12)*(SEMOCycles[Region]=$C$4)*(SEMOCycles[CustClass]=$L$3)*SEMOCycles[WNAFactor]) -> 346490.7812 | D12: =SUMPRODUCT((VolRates[BeginDate]<=$B12)*(VolRates[EndDate]>$B12)*(VolRates[Month]=MONTH(B12))*(VolRates[62-GRF])) -> 0.24335 | E12: =ROUND(C12*D12,2) -> 84318.53 | F12: =SUMPRODUCT((BillDeter[BeginDate]<=$B12)*(BillDeter[EndDate]>$B12)*(BillDeter[Region]=$C$4)*(BillDeter[CustClass]=$L$3)*BillDeter[BillingDeterminants]) -> 15300894.64 | G12: =ROUND(E12/F12,5) -> 0.00551
B13: =EDATE(B12,1) -> 45323 | C13: =SUMPRODUCT((SEMOCycles[MonthFlow]=$B13)*(SEMOCycles[Region]=$C$4)*(SEMOCycles[CustClass]=$L$3)*SEMOCycles[WNAFactor]) -> 96181.68466 | D13: =SUMPRODUCT((VolRates[BeginDate]<=$B13)*(VolRates[EndDate]>$B13)*(VolRates[Month]=MONTH(B13))*(VolRates[62-GRF])) -> 0.24335 | E13: =ROUND(C13*D13,2) -> 23405.81 | F13: =SUMPRODUCT((BillDeter[BeginDate]<=$B13)*(BillDeter[EndDate]>$B13)*(BillDeter[Region]=$C$4)*(BillDeter[CustClass]=$L$3)*BillDeter[BillingDeterminants]) -> 15300894.64 | G13: =ROUND(E13/F13,5) -> 0.00153
B14: =EDATE(B13,1) -> 45352 | C14: =SUMPRODUCT((SEMOCycles[MonthFlow]=$B14)*(SEMOCycles[Region]=$C$4)*(SEMOCycles[CustClass]=$L$3)*SEMOCycles[WNAFactor]) -> 646283.8611 | D14: =SUMPRODUCT((VolRates[BeginDate]<=$B14)*(VolRates[EndDate]>$B14)*(VolRates[Month]=MONTH(B14))*(VolRates[62-GRF])) -> 0.24335 | E14: 157273.18 | F14: =SUMPRODUCT((BillDeter[BeginDate]<=$B14)*(BillDeter[EndDate]>$B14)*(BillDeter[Region]=$C$4)*(BillDeter[CustClass]=$L$3)*BillDeter[BillingDeterminants]) -> 15300894.64 | G14: 0.01028
B15: 45383 | C15: =SUMPRODUCT((SEMOCycles[MonthFlow]=$B15)*(SEMOCycles[Region]=$C$4)*(SEMOCycles[CustClass]=$L$3)*SEMOCycles[WNAFactor]) -> 393473.8038 | D15: =SUMPRODUCT((VolRates[BeginDate]<=$B15)*(VolRates[EndDate]>$B15)*(VolRates[Month]=MONTH(B15))*(VolRates[62-GRF])) -> 0.24335 | E15: 95751.85 | F15: =SUMPRODUCT((BillDeter[BeginDate]<=$B15)*(BillDeter[EndDate]>$B15)*(BillDeter[Region]=$C$4)*(BillDeter[CustClass]=$L$3)*BillDeter[BillingDeterminants]) -> 15300894.64 | G15: 0.00626
B16: 45413 | C16: =SUMPRODUCT((SEMOCycles[MonthFlow]=$B16)*(SEMOCycles[Region]=$C$4)*(SEMOCycles[CustClass]=$L$3)*SEMOCycles[WNAFactor]) -> 223880.4769 | D16: =SUMPRODUCT((VolRates[BeginDate]<=$B16)*(VolRates[EndDate]>$B16)*(VolRates[Month]=MONTH(B16))*(VolRates[62-GRF])) -> 0.24335 | E16: 54481.31 | F16: =SUMPRODUCT((BillDeter[BeginDate]<=$B16)*(BillDeter[EndDate]>$B16)*(BillDeter[Region]=$C$4)*(BillDeter[CustClass]=$L$3)*BillDeter[BillingDeterminants]) -> 15300894.64 | G16: 0.00356
B17: 45444 | C17: =SUMPRODUCT((SEMOCycles[MonthFlow]=$B17)*(SEMOCycles[Region]=$C$4)*(SEMOCycles[CustClass]=$L$3)*SEMOCycles[WNAFactor]) -> 139337.3653 | D17: =SUMPRODUCT((VolRates[BeginDate]<=$B17)*(VolRates[EndDate]>$B17)*(VolRates[Month]=MONTH(B17))*(VolRates[62-GRF])) -> 0.24335 | E17: 33907.75 | F17: =SUMPRODUCT((BillDeter[BeginDate]<=$B17)*(BillDeter[EndDate]>$B17)*(BillDeter[Region]=$C$4)*(BillDeter[CustClass]=$L$3)*BillDeter[BillingDeterminants]) -> 15300894.64 | G17: 0.00222
B18: Totals | C18: =SUM(C12:C17) -> 1845647.973 | D18: =D17 -> 0.24335 | E18: =ROUND(SUM(E12:E17),2) -> 449138.43 | F18: =F17 -> 15300894.64 | G18: =ROUND(E18/F18,5) -> 0.02935
B19: Recon Per Adj. | C19: =E18 -> 449138.43 | D19: Enter in Reconciling Period Adjustment Table (ReconPerAdj)
B20: Enter WNA Amounts in Column E in CSWNA Amounts Table
B22: Small Comm. | C22: WNA factor = HDD Diff * No. of Bills * Beta Coefficient (See SEMO Cycles)
B23: MonthFlow | C23: WNA Factor | D23: WRVR | E23: WNAi | F23: Billing Determinants | G23: Monthly Adj.
D24: Vol. Rate | E24: c*d | G24: e/f
B25: =$C$7 -> 45292 | C25: =SUMPRODUCT((SEMOCycles[MonthFlow]=$B25)*(SEMOCycles[Region]=$C$4)*(SEMOCycles[CustClass]=$L$4)*SEMOCycles[WNAFactor]) -> 88547.96193 | D25: =SUMPRODUCT((VolRates[BeginDate]<=$B25)*(VolRates[EndDate]>$B25)*(VolRates[Month]=MONTH(B25))*(VolRates[62-GCSF])) -> 0.08312 | E25: =ROUND(C25*D25,2) -> 7360.11 | F25: =SUMPRODUCT((BillDeter[BeginDate]<=$B25)*(BillDeter[EndDate]>$B25)*(BillDeter[Region]=$C$4)*(BillDeter[CustClass]=$L$4)*BillDeter[BillingDeterminants]) -> 3908443.556 | G25: =ROUND(E25/F25,5) -> 0.00188
B26: =EDATE(B25,1) -> 45323 | C26: =SUMPRODUCT((SEMOCycles[MonthFlow]=$B26)*(SEMOCycles[Region]=$C$4)*(SEMOCycles[CustClass]=$L$4)*SEMOCycles[WNAFactor]) -> 28248.88673 | D26: =SUMPRODUCT((VolRates[BeginDate]<=$B26)*(VolRates[EndDate]>$B26)*(VolRates[Month]=MONTH(B26))*(VolRates[62-GCSF])) -> 0.08312 | E26: =ROUND(C26*D26,2) -> 2348.05 | F26: =SUMPRODUCT((BillDeter[BeginDate]<=$B26)*(BillDeter[EndDate]>$B26)*(BillDeter[Region]=$C$4)*(BillDeter[CustClass]=$L$4)*BillDeter[BillingDeterminants]) -> 3908443.556 | G26: =ROUND(E26/F26,5) -> 0.0006
B27: =EDATE(B26,1) -> 45352 | C27: =SUMPRODUCT((SEMOCycles[MonthFlow]=$B27)*(SEMOCycles[Region]=$C$4)*(SEMOCycles[CustClass]=$L$4)*SEMOCycles[WNAFactor]) -> 166972.9931 | D27: =SUMPRODUCT((VolRates[BeginDate]<=$B27)*(VolRates[EndDate]>$B27)*(VolRates[Month]=MONTH(B27))*(VolRates[62-GCSF])) -> 0.08312 | E27: 13878.8 | F27: =SUMPRODUCT((BillDeter[BeginDate]<=$B27)*(BillDeter[EndDate]>$B27)*(BillDeter[Region]=$C$4)*(BillDeter[CustClass]=$L$4)*BillDeter[BillingDeterminants]) -> 3908443.556 | G27: 0.00355
B28: 45383 | C28: =SUMPRODUCT((SEMOCycles[MonthFlow]=$B28)*(SEMOCycles[Region]=$C$4)*(SEMOCycles[CustClass]=$L$4)*SEMOCycles[WNAFactor]) -> 101687.1461 | D28: =SUMPRODUCT((VolRates[BeginDate]<=$B28)*(VolRates[EndDate]>$B28)*(VolRates[Month]=MONTH(B28))*(VolRates[62-GCSF])) -> 0.08312 | E28: 8452.24 | F28: =SUMPRODUCT((BillDeter[BeginDate]<=$B28)*(BillDeter[EndDate]>$B28)*(BillDeter[Region]=$C$4)*(BillDeter[CustClass]=$L$4)*BillDeter[BillingDeterminants]) -> 3908443.556 | G28: 0.00216
B29: 45413 | C29: =SUMPRODUCT((SEMOCycles[MonthFlow]=$B29)*(SEMOCycles[Region]=$C$4)*(SEMOCycles[CustClass]=$L$4)*SEMOCycles[WNAFactor]) -> 58476.97185 | D29: =SUMPRODUCT((VolRates[BeginDate]<=$B29)*(VolRates[EndDate]>$B29)*(VolRates[Month]=MONTH(B29))*(VolRates[62-GCSF])) -> 0.08312 | E29: 4860.61 | F29: =SUMPRODUCT((BillDeter[BeginDate]<=$B29)*(BillDeter[EndDate]>$B29)*(BillDeter[Region]=$C$4)*(BillDeter[CustClass]=$L$4)*BillDeter[BillingDeterminants]) -> 3908443.556 | G29: 0.00124
B30: 45444 | C30: =SUMPRODUCT((SEMOCycles[MonthFlow]=$B30)*(SEMOCycles[Region]=$C$4)*(SEMOCycles[CustClass]=$L$4)*SEMOCycles[WNAFactor]) -> 36373.29055 | D30: =SUMPRODUCT((VolRates[BeginDate]<=$B30)*(VolRates[EndDate]>$B30)*(VolRates[Month]=MONTH(B30))*(VolRates[62-GCSF])) -> 0.08312 | E30: 3023.35 | F30: =SUMPRODUCT((BillDeter[BeginDate]<=$B30)*(BillDeter[EndDate]>$B30)*(BillDeter[Region]=$C$4)*(BillDeter[CustClass]=$L$4)*BillDeter[BillingDeterminants]) -> 3908443.556 | G30: 0.00077
B31: Totals | C31: =SUM(C25:C30) -> 480307.2502 | D31: =D30 -> 0.08312 | E31: =ROUND(SUM(E25:E30),2) -> 39923.16 | F31: =F30 -> 3908443.556 | G31: =ROUND(E31/F31,5) -> 0.01021
B32: Recon Per Adj. | C32: =E31 -> 39923.16 | D32: Enter in Reconciling Period Adjustment Table (ReconPerAdj)
B33: Enter WNA Amounts in Column E in CSWNA Amounts Table

Sheet CSWNA WEMO
B2: Liberty Midstates | F2: Filing Period | I2: Rate Sched | J2: SAP Rate Cat. | K2: Territory | L2: Cust. Class
B3: Billing Cycle and HDD Data Summary | F3: Year | G3: Period | I3: 61-GRF | J3: =INDEX(RateSched[SAPRateCategory],MATCH($I3,RateSched[RateSched],0)) -> WMGR_RFS | K3: =INDEX(RateSched[Territory],MATCH($I3,RateSched[RateSched],0)) -> WEMO | L3: =INDEX(RateSched[CustClassShort],MATCH($I3,RateSched[RateSched],0)) -> Res
B4: Region | C4: WEMO | I4: 61-GCSF | J4: =INDEX(RateSched[SAPRateCategory],MATCH($I4,RateSched[RateSched],0)) -> WMGR_SFGS | K4: =INDEX(RateSched[Territory],MATCH($I4,RateSched[RateSched],0)) -> WEMO | L4: =INDEX(RateSched[CustClassShort],MATCH($I4,RateSched[RateSched],0)) -> SGS
B5: Year | C5: =DateSet!C2 -> 2024
B6: Period | C6: =DateSet!C3 -> S2
B7: Analysis Start | C7: =DateSet!J8 -> 2024-01-01
B9: Residential | C9: WNA factor = HDD Diff * No. of Bills * Beta Coefficient (See WEMO Cycles)
B10: MonthFlow | C10: WNA Factor | D10: WRVR | E10: WNAi | F10: Billing Determinants | G10: Monthly Adj.
D11: Vol. Rate | E11: c*d | G11: e/f
B12: =$C$7 -> 45292 | C12: =SUMPRODUCT((WEMOCycles[MonthFlow]=$B12)*(WEMOCycles[Region]=$C$4)*(WEMOCycles[CustClass]=$L$3)*WEMOCycles[WNAFactor]) -> 16377.85733 | D12: =SUMPRODUCT((VolRates[BeginDate]<=$B12)*(VolRates[EndDate]>$B12)*(VolRates[Month]=MONTH(B12))*(VolRates[61-GRF])) -> 0.33607 | E12: =ROUND(C12*D12,2) -> 5504.11 | F12: =SUMPRODUCT((BillDeter[BeginDate]<=$B12)*(BillDeter[EndDate]>$B12)*(BillDeter[Region]=$C$4)*(BillDeter[CustClass]=$L$3)*BillDeter[BillingDeterminants]) -> 2140376.989 | G12: =ROUND(E12/F12,5) -> 0.00257
B13: =EDATE(B12,1) -> 45323 | C13: =SUMPRODUCT((WEMOCycles[MonthFlow]=$B13)*(WEMOCycles[Region]=$C$4)*(WEMOCycles[CustClass]=$L$3)*WEMOCycles[WNAFactor]) -> 29161.22941 | D13: =SUMPRODUCT((VolRates[BeginDate]<=$B13)*(VolRates[EndDate]>$B13)*(VolRates[Month]=MONTH(B13))*(VolRates[61-GRF])) -> 0.33607 | E13: =ROUND(C13*D13,2) -> 9800.21 | F13: =SUMPRODUCT((BillDeter[BeginDate]<=$B13)*(BillDeter[EndDate]>$B13)*(BillDeter[Region]=$C$4)*(BillDeter[CustClass]=$L$3)*BillDeter[BillingDeterminants]) -> 2140376.989 | G13: =ROUND(E13/F13,5) -> 0.00458
B14: =EDATE(B13,1) -> 45352 | C14: =SUMPRODUCT((WEMOCycles[MonthFlow]=$B14)*(WEMOCycles[Region]=$C$4)*(WEMOCycles[CustClass]=$L$3)*WEMOCycles[WNAFactor]) -> 61982.90572 | D14: =SUMPRODUCT((VolRates[BeginDate]<=$B14)*(VolRates[EndDate]>$B14)*(VolRates[Month]=MONTH(B14))*(VolRates[61-GRF])) -> 0.33607 | E14: 20830.6 | F14: =SUMPRODUCT((BillDeter[BeginDate]<=$B14)*(BillDeter[EndDate]>$B14)*(BillDeter[Region]=$C$4)*(BillDeter[CustClass]=$L$3)*BillDeter[BillingDeterminants]) -> 2140376.989 | G14: 0.00973
B15: 45383 | C15: =SUMPRODUCT((WEMOCycles[MonthFlow]=$B15)*(WEMOCycles[Region]=$C$4)*(WEMOCycles[CustClass]=$L$3)*WEMOCycles[WNAFactor]) -> 50005.67776 | D15: =SUMPRODUCT((VolRates[BeginDate]<=$B15)*(VolRates[EndDate]>$B15)*(VolRates[Month]=MONTH(B15))*(VolRates[61-GRF])) -> 0.33607 | E15: 16805.41 | F15: =SUMPRODUCT((BillDeter[BeginDate]<=$B15)*(BillDeter[EndDate]>$B15)*(BillDeter[Region]=$C$4)*(BillDeter[CustClass]=$L$3)*BillDeter[BillingDeterminants]) -> 2140376.989 | G15: 0.00785
B16: 45413 | C16: =SUMPRODUCT((WEMOCycles[MonthFlow]=$B16)*(WEMOCycles[Region]=$C$4)*(WEMOCycles[CustClass]=$L$3)*WEMOCycles[WNAFactor]) -> 41282.80146 | D16: =SUMPRODUCT((VolRates[BeginDate]<=$B16)*(VolRates[EndDate]>$B16)*(VolRates[Month]=MONTH(B16))*(VolRates[61-GRF])) -> 0.35072 | E16: 14478.7 | F16: =SUMPRODUCT((BillDeter[BeginDate]<=$B16)*(BillDeter[EndDate]>$B16)*(BillDeter[Region]=$C$4)*(BillDeter[CustClass]=$L$3)*BillDeter[BillingDeterminants]) -> 2140376.989 | G16: 0.00676
B17: 45444 | C17: =SUMPRODUCT((WEMOCycles[MonthFlow]=$B17)*(WEMOCycles[Region]=$C$4)*(WEMOCycles[CustClass]=$L$3)*WEMOCycles[WNAFactor]) -> 6902.276342 | D17: =SUMPRODUCT((VolRates[BeginDate]<=$B17)*(VolRates[EndDate]>$B17)*(VolRates[Month]=MONTH(B17))*(VolRates[61-GRF])) -> 0.33239 | E17: 2294.25 | F17: =SUMPRODUCT((BillDeter[BeginDate]<=$B17)*(BillDeter[EndDate]>$B17)*(BillDeter[Region]=$C$4)*(BillDeter[CustClass]=$L$3)*BillDeter[BillingDeterminants]) -> 2140376.989 | G17: 0.00107
B18: Totals | C18: =SUM(C12:C17) -> 205712.748 | D18: =D17 -> 0.33239 | E18: =ROUND(SUM(E12:E17),2) -> 69713.28 | F18: =F17 -> 2140376.989 | G18: =ROUND(E18/F18,5) -> 0.03257
B19: Recon Per Adj. | C19: =E18 -> 69713.28 | D19: Enter in Reconciling Period Adjustment Table (ReconPerAdj)
B20: Enter WNA Amounts in Column E in CSWNA Amounts Table
B22: Small Comm. | C22: WNA factor = HDD Diff * No. of Bills * Beta Coefficient (See WEMO Cycles)
B23: MonthFlow | C23: WNA Factor | D23: WRVR | E23: WNAi | F23: Billing Determinants | G23: Monthly Adj.
D24: Vol. Rate | E24: c*d | G24: e/f
B25: =$C$7 -> 45292 | C25: =SUMPRODUCT((WEMOCycles[MonthFlow]=$B25)*(WEMOCycles[Region]=$C$4)*(WEMOCycles[CustClass]=$L$4)*WEMOCycles[WNAFactor]) -> 5276.965455 | D25: =SUMPRODUCT((VolRates[BeginDate]<=$B25)*(VolRates[EndDate]>$B25)*(VolRates[Month]=MONTH(B25))*(VolRates[61-GCSF])) -> 0.14216 | E25: =ROUND(C25*D25,2) -> 750.17 | F25: =SUMPRODUCT((BillDeter[BeginDate]<=$B25)*(BillDeter[EndDate]>$B25)*(BillDeter[Region]=$C$4)*(BillDeter[CustClass]=$L$4)*BillDeter[BillingDeterminants]) -> 700365.6444 | G25: =ROUND(E25/F25,5) -> 0.00107
B26: =EDATE(B25,1) -> 45323 | C26: =SUMPRODUCT((WEMOCycles[MonthFlow]=$B26)*(WEMOCycles[Region]=$C$4)*(WEMOCycles[CustClass]=$L$4)*WEMOCycles[WNAFactor]) -> 9413.578767 | D26: =SUMPRODUCT((VolRates[BeginDate]<=$B26)*(VolRates[EndDate]>$B26)*(VolRates[Month]=MONTH(B26))*(VolRates[61-GCSF])) -> 0.14216 | E26: =ROUND(C26*D26,2) -> 1338.23 | F26: =SUMPRODUCT((BillDeter[BeginDate]<=$B26)*(BillDeter[EndDate]>$B26)*(BillDeter[Region]=$C$4)*(BillDeter[CustClass]=$L$4)*BillDeter[BillingDeterminants]) -> 700365.6444 | G26: =ROUND(E26/F26,5) -> 0.00191
B27: =EDATE(B26,1) -> 45352 | C27: =SUMPRODUCT((WEMOCycles[MonthFlow]=$B27)*(WEMOCycles[Region]=$C$4)*(WEMOCycles[CustClass]=$L$4)*WEMOCycles[WNAFactor]) -> 20281.92171 | D27: =SUMPRODUCT((VolRates[BeginDate]<=$B27)*(VolRates[EndDate]>$B27)*(VolRates[Month]=MONTH(B27))*(VolRates[61-GCSF])) -> 0.14216 | E27: 2883.28 | F27: =SUMPRODUCT((BillDeter[BeginDate]<=$B27)*(BillDeter[EndDate]>$B27)*(BillDeter[Region]=$C$4)*(BillDeter[CustClass]=$L$4)*BillDeter[BillingDeterminants]) -> 700365.6444 | G27: 0.00412
B28: 45383 | C28: =SUMPRODUCT((WEMOCycles[MonthFlow]=$B28)*(WEMOCycles[Region]=$C$4)*(WEMOCycles[CustClass]=$L$4)*WEMOCycles[WNAFactor]) -> 12816.13386 | D28: =SUMPRODUCT((VolRates[BeginDate]<=$B28)*(VolRates[EndDate]>$B28)*(VolRates[Month]=MONTH(B28))*(VolRates[61-GCSF])) -> 0.14216 | E28: 1821.94 | F28: =SUMPRODUCT((BillDeter[BeginDate]<=$B28)*(BillDeter[EndDate]>$B28)*(BillDeter[Region]=$C$4)*(BillDeter[CustClass]=$L$4)*BillDeter[BillingDeterminants]) -> 700365.6444 | G28: 0.0026
B29: 45413 | C29: =SUMPRODUCT((WEMOCycles[MonthFlow]=$B29)*(WEMOCycles[Region]=$C$4)*(WEMOCycles[CustClass]=$L$4)*WEMOCycles[WNAFactor]) -> 14484.71792 | D29: =SUMPRODUCT((VolRates[BeginDate]<=$B29)*(VolRates[EndDate]>$B29)*(VolRates[Month]=MONTH(B29))*(VolRates[61-GCSF])) -> 0.14216 | E29: 2059.15 | F29: =SUMPRODUCT((BillDeter[BeginDate]<=$B29)*(BillDeter[EndDate]>$B29)*(BillDeter[Region]=$C$4)*(BillDeter[CustClass]=$L$4)*BillDeter[BillingDeterminants]) -> 700365.6444 | G29: 0.00294
B30: 45444 | C30: =SUMPRODUCT((WEMOCycles[MonthFlow]=$B30)*(WEMOCycles[Region]=$C$4)*(WEMOCycles[CustClass]=$L$4)*WEMOCycles[WNAFactor]) -> 5333.333494 | D30: =SUMPRODUCT((VolRates[BeginDate]<=$B30)*(VolRates[EndDate]>$B30)*(VolRates[Month]=MONTH(B30))*(VolRates[61-GCSF])) -> 0.14216 | E30: 758.19 | F30: =SUMPRODUCT((BillDeter[BeginDate]<=$B30)*(BillDeter[EndDate]>$B30)*(BillDeter[Region]=$C$4)*(BillDeter[CustClass]=$L$4)*BillDeter[BillingDeterminants]) -> 700365.6444 | G30: 0.00108
B31: Totals | C31: =SUM(C25:C30) -> 67606.65121 | D31: =D30 -> 0.14216 | E31: =ROUND(SUM(E25:E30),2) -> 9610.96 | F31: =F30 -> 700365.6444 | G31: =ROUND(E31/F31,5) -> 0.01372
B32: Recon Per Adj. | C32: =E31 -> 9610.96 | D32: Enter in Reconciling Period Adjustment Table (ReconPerAdj)
B33: Enter WNA Amounts in Column E in CSWNA Amounts Table

Sheet CSWNA NEMO
B2: Liberty Midstates | F2: Filing Period | I2: Rate Sched | J2: SAP Rate Cat. | K2: Territory | L2: Cust. Class
B3: Billing Cycle and HDD Data Summary | F3: Year | G3: Period | I3: 60-GRF | J3: =INDEX(RateSched[SAPRateCategory],MATCH($I3,RateSched[RateSched],0)) -> KMGR_RFS | K3: =INDEX(RateSched[Territory],MATCH($I3,RateSched[RateSched],0)) -> KIRK | L3: =INDEX(RateSched[CustClassShort],MATCH($I3,RateSched[RateSched],0)) -> Res
B4: Region | C4: NEMO | I4: 63-GRF | J4: =INDEX(RateSched[SAPRateCategory],MATCH($I4,RateSched[RateSched],0)) -> NMGR_RFS | K4: =INDEX(RateSched[Territory],MATCH($I4,RateSched[RateSched],0)) -> NEMO | L4: =INDEX(RateSched[CustClassShort],MATCH($I4,RateSched[RateSched],0)) -> Res
B5: Year | C5: =DateSet!C2 -> 2024 | I5: 60-GCSF | J5: =INDEX(RateSched[SAPRateCategory],MATCH($I5,RateSched[RateSched],0)) -> KMGR_SFGS | K5: =INDEX(RateSched[Territory],MATCH($I5,RateSched[RateSched],0)) -> KIRK | L5: =INDEX(RateSched[CustClassShort],MATCH($I5,RateSched[RateSched],0)) -> SGS
B6: Period | C6: =DateSet!C3 -> S2 | I6: 63-GCSF | J6: =INDEX(RateSched[SAPRateCategory],MATCH($I6,RateSched[RateSched],0)) -> NMGR_SFGS | K6: =INDEX(RateSched[Territory],MATCH($I6,RateSched[RateSched],0)) -> NEMO | L6: =INDEX(RateSched[CustClassShort],MATCH($I6,RateSched[RateSched],0)) -> SGS
B7: Start Month | C7: =DateSet!J8 -> 2024-01-01
B9: Residential | C9: WNA factor = HDD Diff * No. of Bills * Beta Coefficient (See NEMO Cycles)
B10: MonthFlow | C10: WNA Factor | D10: WRVR | E10: WNAi | F10: Billing Determinants | G10: Monthly Adj.
D11: Vol. Rate | E11: c*d | G11: e/f
B12: =$C$7 -> 45292 | C12: =SUMPRODUCT((NEMOCycles[MonthFlow]=$B12)*(NEMOCycles[Region]=$C$4)*(NEMOCycles[CustClass]=$L$4)*NEMOCycles[WNAFactor]) -> 175635.3853 | D12: =SUMPRODUCT((VolRates[BeginDate]<=$B12)*(VolRates[EndDate]>$B12)*(VolRates[Month]=MONTH(B12))*(VolRates[63-GRF])) -> 0.33607 | E12: =ROUND(C12*D12,2) -> 59025.78 | F12: =SUMPRODUCT((BillDeter[BeginDate]<=$B12)*(BillDeter[EndDate]>$B12)*(BillDeter[Region]=$C$4)*(BillDeter[CustClass]=$L$4)*BillDeter[BillingDeterminants]) -> 11089284.46 | G12: =ROUND(E12/F12,5) -> 0.00532
B13: =EDATE(B12,1) -> 45323 | C13: =SUMPRODUCT((NEMOCycles[MonthFlow]=$B13)*(NEMOCycles[Region]=$C$4)*(NEMOCycles[CustClass]=$L$4)*NEMOCycles[WNAFactor]) -> 88415.96836 | D13: =SUMPRODUCT((VolRates[BeginDate]<=$B13)*(VolRates[EndDate]>$B13)*(VolRates[Month]=MONTH(B13))*(VolRates[63-GRF])) -> 0.33607 | E13: =ROUND(C13*D13,2) -> 29713.95 | F13: =SUMPRODUCT((BillDeter[BeginDate]<=$B13)*(BillDeter[EndDate]>$B13)*(BillDeter[Region]=$C$4)*(BillDeter[CustClass]=$L$4)*BillDeter[BillingDeterminants]) -> 11089284.46 | G13: =ROUND(E13/F13,5) -> 0.00268
B14: =EDATE(B13,1) -> 45352 | C14: =SUMPRODUCT((NEMOCycles[MonthFlow]=$B14)*(NEMOCycles[Region]=$C$4)*(NEMOCycles[CustClass]=$L$4)*NEMOCycles[WNAFactor]) -> 293807.5215 | D14: =SUMPRODUCT((VolRates[BeginDate]<=$B14)*(VolRates[EndDate]>$B14)*(VolRates[Month]=MONTH(B14))*(VolRates[63-GRF])) -> 0.33607 | E14: 98739.89 | F14: =SUMPRODUCT((BillDeter[BeginDate]<=$B14)*(BillDeter[EndDate]>$B14)*(BillDeter[Region]=$C$4)*(BillDeter[CustClass]=$L$4)*BillDeter[BillingDeterminants]) -> 11089284.46 | G14: 0.0089
B15: 45383 | C15: =SUMPRODUCT((NEMOCycles[MonthFlow]=$B15)*(NEMOCycles[Region]=$C$4)*(NEMOCycles[CustClass]=$L$4)*NEMOCycles[WNAFactor]) -> 258760.1723 | D15: =SUMPRODUCT((VolRates[BeginDate]<=$B15)*(VolRates[EndDate]>$B15)*(VolRates[Month]=MONTH(B15))*(VolRates[63-GRF])) -> 0.33607 | E15: 86961.53 | F15: =SUMPRODUCT((BillDeter[BeginDate]<=$B15)*(BillDeter[EndDate]>$B15)*(BillDeter[Region]=$C$4)*(BillDeter[CustClass]=$L$4)*BillDeter[BillingDeterminants]) -> 11089284.46 | G15: 0.00784
B16: 45413 | C16: =SUMPRODUCT((NEMOCycles[MonthFlow]=$B16)*(NEMOCycles[Region]=$C$4)*(NEMOCycles[CustClass]=$L$4)*NEMOCycles[WNAFactor]) -> 199837.5527 | D16: =SUMPRODUCT((VolRates[BeginDate]<=$B16)*(VolRates[EndDate]>$B16)*(VolRates[Month]=MONTH(B16))*(VolRates[63-GRF])) -> 0.35072 | E16: 70087.03 | F16: =SUMPRODUCT((BillDeter[BeginDate]<=$B16)*(BillDeter[EndDate]>$B16)*(BillDeter[Region]=$C$4)*(BillDeter[CustClass]=$L$4)*BillDeter[BillingDeterminants]) -> 11089284.46 | G16: 0.00632
B17: 45444 | C17: =SUMPRODUCT((NEMOCycles[MonthFlow]=$B17)*(NEMOCycles[Region]=$C$4)*(NEMOCycles[CustClass]=$L$4)*NEMOCycles[WNAFactor]) -> 33266.46514 | D17: =SUMPRODUCT((VolRates[BeginDate]<=$B17)*(VolRates[EndDate]>$B17)*(VolRates[Month]=MONTH(B17))*(VolRates[63-GRF])) -> 0.33239 | E17: 11057.44 | F17: =SUMPRODUCT((BillDeter[BeginDate]<=$B17)*(BillDeter[EndDate]>$B17)*(BillDeter[Region]=$C$4)*(BillDeter[CustClass]=$L$4)*BillDeter[BillingDeterminants]) -> 11089284.46 | G17: 0.001
B18: Totals | C18: =SUM(C12:C17) -> 1049723.065 | D18: =D17 -> 0.33239 | E18: =ROUND(SUM(E12:E17),2) -> 355585.62 | F18: =F17 -> 11089284.46 | G18: 0.03207
B19: Recon Per Adj. | C19: =E18 -> 355585.62 | D19: Enter in Reconciling Period Adjustment Table (ReconPerAdj)
B20: Enter WNA Amounts in Column E in CSWNA Amounts Table
B22: Small Comm. | C22: WNA factor = HDD Diff * No. of Bills * Beta Coefficient (See NEMO Cycles)
B23: MonthFlow | C23: WNA Factor | D23: WRVR | E23: WNAi | F23: Billing Determinants | G23: Monthly Adj.
D24: Vol. Rate | E24: c*d | G24: e/f
B25: =$C$7 -> 45292 | C25: =SUMPRODUCT((NEMOCycles[MonthFlow]=$B25)*(NEMOCycles[Region]=$C$4)*(NEMOCycles[CustClass]=$L$6)*NEMOCycles[WNAFactor]) -> 48680.47208 | D25: =SUMPRODUCT((VolRates[BeginDate]<=$B25)*(VolRates[EndDate]>$B25)*(VolRates[Month]=MONTH(B25))*(VolRates[63-GCSF])) -> 0.14216 | E25: =ROUND(C25*D25,2) -> 6920.42 | F25: =SUMPRODUCT((BillDeter[BeginDate]<=$B25)*(BillDeter[EndDate]>$B25)*(BillDeter[Region]=$C$4)*(BillDeter[CustClass]=$L$6)*BillDeter[BillingDeterminants]) -> 3249867.68 | G25: =ROUND(E25/F25,5) -> 0.00213
B26: =EDATE(B25,1) -> 45323 | C26: =SUMPRODUCT((NEMOCycles[MonthFlow]=$B26)*(NEMOCycles[Region]=$C$4)*(NEMOCycles[CustClass]=$L$6)*NEMOCycles[WNAFactor]) -> 27947.97892 | D26: =SUMPRODUCT((VolRates[BeginDate]<=$B26)*(VolRates[EndDate]>$B26)*(VolRates[Month]=MONTH(B26))*(VolRates[63-GCSF])) -> 0.14216 | E26: =ROUND(C26*D26,2) -> 3973.08 | F26: =SUMPRODUCT((BillDeter[BeginDate]<=$B26)*(BillDeter[EndDate]>$B26)*(BillDeter[Region]=$C$4)*(BillDeter[CustClass]=$L$6)*BillDeter[BillingDeterminants]) -> 3249867.68 | G26: =ROUND(E26/F26,5) -> 0.00122
B27: =EDATE(B26,1) -> 45352 | C27: =SUMPRODUCT((NEMOCycles[MonthFlow]=$B27)*(NEMOCycles[Region]=$C$4)*(NEMOCycles[CustClass]=$L$6)*NEMOCycles[WNAFactor]) -> 82719.80962 | D27: =SUMPRODUCT((VolRates[BeginDate]<=$B27)*(VolRates[EndDate]>$B27)*(VolRates[Month]=MONTH(B27))*(VolRates[63-GCSF])) -> 0.14216 | E27: 11759.45 | F27: =SUMPRODUCT((BillDeter[BeginDate]<=$B27)*(BillDeter[EndDate]>$B27)*(BillDeter[Region]=$C$4)*(BillDeter[CustClass]=$L$6)*BillDeter[BillingDeterminants]) -> 3249867.68 | G27: 0.00362
B28: 45383 | C28: =SUMPRODUCT((NEMOCycles[MonthFlow]=$B28)*(NEMOCycles[Region]=$C$4)*(NEMOCycles[CustClass]=$L$6)*NEMOCycles[WNAFactor]) -> 55468.80499 | D28: =SUMPRODUCT((VolRates[BeginDate]<=$B28)*(VolRates[EndDate]>$B28)*(VolRates[Month]=MONTH(B28))*(VolRates[63-GCSF])) -> 0.14216 | E28: 7885.45 | F28: =SUMPRODUCT((BillDeter[BeginDate]<=$B28)*(BillDeter[EndDate]>$B28)*(BillDeter[Region]=$C$4)*(BillDeter[CustClass]=$L$6)*BillDeter[BillingDeterminants]) -> 3249867.68 | G28: 0.00243
B29: 45413 | C29: =SUMPRODUCT((NEMOCycles[MonthFlow]=$B29)*(NEMOCycles[Region]=$C$4)*(NEMOCycles[CustClass]=$L$6)*NEMOCycles[WNAFactor]) -> 60001.87591 | D29: =SUMPRODUCT((VolRates[BeginDate]<=$B29)*(VolRates[EndDate]>$B29)*(VolRates[Month]=MONTH(B29))*(VolRates[63-GCSF])) -> 0.14216 | E29: 8529.87 | F29: =SUMPRODUCT((BillDeter[BeginDate]<=$B29)*(BillDeter[EndDate]>$B29)*(BillDeter[Region]=$C$4)*(BillDeter[CustClass]=$L$6)*BillDeter[BillingDeterminants]) -> 3249867.68 | G29: 0.00262
B30: 45444 | C30: =SUMPRODUCT((NEMOCycles[MonthFlow]=$B30)*(NEMOCycles[Region]=$C$4)*(NEMOCycles[CustClass]=$L$6)*NEMOCycles[WNAFactor]) -> 26489.05353 | D30: =SUMPRODUCT((VolRates[BeginDate]<=$B30)*(VolRates[EndDate]>$B30)*(VolRates[Month]=MONTH(B30))*(VolRates[63-GCSF])) -> 0.14216 | E30: 3765.68 | F30: =SUMPRODUCT((BillDeter[BeginDate]<=$B30)*(BillDeter[EndDate]>$B30)*(BillDeter[Region]=$C$4)*(BillDeter[CustClass]=$L$6)*BillDeter[BillingDeterminants]) -> 3249867.68 | G30: 0.00116
B31: Totals | C31: =SUM(C25:C30) -> 301307.995 | D31: =D30 -> 0.14216 | E31: =ROUND(SUM(E25:E30),2) -> 42833.95 | F31: =F30 -> 3249867.68 | G31: 0.01318
B32: Recon Per Adj. | C32: =E31 -> 42833.95 | D32: Enter in Reconciling Period Adjustment Table (ReconPerAdj)
B33: Enter WNA Amounts in Column E in CSWNA Amounts Table

Sheet ChillTempActuals
A1: Date | B1: ChillHigh | C1: ChillLow | D1: ChillAve | E1: ChillHDD | F1: ChillAdj | G1: ChillAdjHDD | H1: ChillNHDD | I1: Year | J1: Month | K1: Rank | L1: Preparer's Notes | M1: Reviewer's Notes | O1: Process for updating table:
A2: 44047 | B2: 74 | C2: 53 | D2: =AVERAGE(ChillTempAct[[#This Row],[ChillHigh]:[ChillLow]]) -> 63.5 | E2: =IF(ChillTempAct[[#This Row],[ChillAve]]<65,65-ChillTempAct[[#This Row],[ChillAve]],0) -> 1.5 | F2: =INDEX(TempAdj[AdjustPct],MATCH(MONTH(ChillTempAct[[#This Row],[Date]]),TempAdj[Month],0)) -> 1.0758 | G2: =ChillTempAct[[#This Row],[ChillHDD]]*(1+ChillTempAct[[#This Row],[ChillAdj]]) -> 3.1137 | H2: =SUMPRODUCT((RankNHDD[Month]=ChillTempAct[[#This Row],[Month]])*(RankNHDD[Rank]=ChillTempAct[[#This Row],[Rank]])*RankNHDD[KIRKNHDD]) -> 4.868709677 | I2: =YEAR(ChillTempAct[[#This Row],[Date]]) -> 2020 | J2: =MONTH(ChillTempAct[[#This Row],[Date]]) -> 8 | K2: =IF(ChillTempAct[[#This Row],[Month]]=J1,K1+1,1) -> 1 | L2: Temp data from NOAA website | O2: 1) Enter New Data at end of table
A3: 44048 | B3: 74 | C3: 54 | D3: =AVERAGE(ChillTempAct[[#This Row],[ChillHigh]:[ChillLow]]) -> 64 | E3: =IF(ChillTempAct[[#This Row],[ChillAve]]<65,65-ChillTempAct[[#This Row],[ChillAve]],0) -> 1 | F3: =INDEX(TempAdj[AdjustPct],MATCH(MONTH(ChillTempAct[[#This Row],[Date]]),TempAdj[Month],0)) -> 1.0758 | G3: =ChillTempAct[[#This Row],[ChillHDD]]*(1+ChillTempAct[[#This Row],[ChillAdj]]) -> 2.0758 | H3: =SUMPRODUCT((RankNHDD[Month]=ChillTempAct[[#This Row],[Month]])*(RankNHDD[Rank]=ChillTempAct[[#This Row],[Rank]])*RankNHDD[KIRKNHDD]) -> 1.530698925 | I3: =YEAR(ChillTempAct[[#This Row],[Date]]) -> 2020 | J3: =MONTH(ChillTempAct[[#This Row],[Date]]) -> 8 | K3: =IF(ChillTempAct[[#This Row],[Month]]=J2,K2+1,1) -> 2 | L3: Temp data from NOAA website | P3: New Data = Date, ChillHigh, ChillLow
A4: 44049 | B4: 77 | C4: 56 | D4: =AVERAGE(ChillTempAct[[#This Row],[ChillHigh]:[ChillLow]]) -> 66.5 | E4: =IF(ChillTempAct[[#This Row],[ChillAve]]<65,65-ChillTempAct[[#This Row],[ChillAve]],0) -> 0 | F4: =INDEX(TempAdj[AdjustPct],MATCH(MONTH(ChillTempAct[[#This Row],[Date]]),TempAdj[Month],0)) -> 1.0758 | G4: =ChillTempAct[[#This Row],[ChillHDD]]*(1+ChillTempAct[[#This Row],[ChillAdj]]) -> 0 | H4: =SUMPRODUCT((RankNHDD[Month]=ChillTempAct[[#This Row],[Month]])*(RankNHDD[Rank]=ChillTempAct[[#This Row],[Rank]])*RankNHDD[KIRKNHDD]) -> 0.04247311828 | I4: =YEAR(ChillTempAct[[#This Row],[Date]]) -> 2020 | J4: =MONTH(ChillTempAct[[#This Row],[Date]]) -> 8 | K4: =IF(ChillTempAct[[#This Row],[Month]]=J3,K3+1,1) -> 3 | L4: Temp data from NOAA website | O4: 2) Sort by:
A5: 44062 | B5: 78 | C5: 57 | D5: =AVERAGE(ChillTempAct[[#This Row],[ChillHigh]:[ChillLow]]) -> 67.5 | E5: =IF(ChillTempAct[[#This Row],[ChillAve]]<65,65-ChillTempAct[[#This Row],[ChillAve]],0) -> 0 | F5: =INDEX(TempAdj[AdjustPct],MATCH(MONTH(ChillTempAct[[#This Row],[Date]]),TempAdj[Month],0)) -> 1.0758 | G5: =ChillTempAct[[#This Row],[ChillHDD]]*(1+ChillTempAct[[#This Row],[ChillAdj]]) -> 0 | H5: =SUMPRODUCT((RankNHDD[Month]=ChillTempAct[[#This Row],[Month]])*(RankNHDD[Rank]=ChillTempAct[[#This Row],[Rank]])*RankNHDD[KIRKNHDD]) -> 0 | I5: =YEAR(ChillTempAct[[#This Row],[Date]]) -> 2020 | J5: =MONTH(ChillTempAct[[#This Row],[Date]]) -> 8 | K5: =IF(ChillTempAct[[#This Row],[Month]]=J4,K4+1,1) -> 4 | L5: Temp data from NOAA website | P5: Year | Q5: Smallest to Largest
A6: 44063 | B6: 81 | C6: 55 | D6: =AVERAGE(ChillTempAct[[#This Row],[ChillHigh]:[ChillLow]]) -> 68 | E6: =IF(ChillTempAct[[#This Row],[ChillAve]]<65,65-ChillTempAct[[#This Row],[ChillAve]],0) -> 0 | F6: =INDEX(TempAdj[AdjustPct],MATCH(MONTH(ChillTempAct[[#This Row],[Date]]),TempAdj[Month],0)) -> 1.0758 | G6: =ChillTempAct[[#This Row],[ChillHDD]]*(1+ChillTempAct[[#This Row],[ChillAdj]]) -> 0 | H6: =SUMPRODUCT((RankNHDD[Month]=ChillTempAct[[#This Row],[Month]])*(RankNHDD[Rank]=ChillTempAct[[#This Row],[Rank]])*RankNHDD[KIRKNHDD]) -> 0 | I6: =YEAR(ChillTempAct[[#This Row],[Date]]) -> 2020 | J6: =MONTH(ChillTempAct[[#This Row],[Date]]) -> 8 | K6: =IF(ChillTempAct[[#This Row],[Month]]=J5,K5+1,1) -> 5 | L6: Temp data from NOAA website | P6: Month | Q6: Smallest to Largest
A7: 44073 | B7: 80 | C7: 56 | D7: =AVERAGE(ChillTempAct[[#This Row],[ChillHigh]:[ChillLow]]) -> 68 | E7: =IF(ChillTempAct[[#This Row],[ChillAve]]<65,65-ChillTempAct[[#This Row],[ChillAve]],0) -> 0 | F7: =INDEX(TempAdj[AdjustPct],MATCH(MONTH(ChillTempAct[[#This Row],[Date]]),TempAdj[Month],0)) -> 1.0758 | G7: =ChillTempAct[[#This Row],[ChillHDD]]*(1+ChillTempAct[[#This Row],[ChillAdj]]) -> 0 | H7: =SUMPRODUCT((RankNHDD[Month]=ChillTempAct[[#This Row],[Month]])*(RankNHDD[Rank]=ChillTempAct[[#This Row],[Rank]])*RankNHDD[KIRKNHDD]) -> 0 | I7: =YEAR(ChillTempAct[[#This Row],[Date]]) -> 2020 | J7: =MONTH(ChillTempAct[[#This Row],[Date]]) -> 8 | K7: =IF(ChillTempAct[[#This Row],[Month]]=J6,K6+1,1) -> 6 | L7: Temp data from NOAA website | P7: ChillAve | Q7: Smallest to Largest
A8: 44044 | B8: 78 | C8: 61 | D8: =AVERAGE(ChillTempAct[[#This Row],[ChillHigh]:[ChillLow]]) -> 69.5 | E8: =IF(ChillTempAct[[#This Row],[ChillAve]]<65,65-ChillTempAct[[#This Row],[ChillAve]],0) -> 0 | F8: =INDEX(TempAdj[AdjustPct],MATCH(MONTH(ChillTempAct[[#This Row],[Date]]),TempAdj[Month],0)) -> 1.0758 | G8: =ChillTempAct[[#This Row],[ChillHDD]]*(1+ChillTempAct[[#This Row],[ChillAdj]]) -> 0 | H8: =SUMPRODUCT((RankNHDD[Month]=ChillTempAct[[#This Row],[Month]])*(RankNHDD[Rank]=ChillTempAct[[#This Row],[Rank]])*RankNHDD[KIRKNHDD]) -> 0 | I8: =YEAR(ChillTempAct[[#This Row],[Date]]) -> 2020 | J8: =MONTH(ChillTempAct[[#This Row],[Date]]) -> 8 | K8: =IF(ChillTempAct[[#This Row],[Month]]=J7,K7+1,1) -> 7 | L8: Temp data from NOAA website | O8: 3) Formulas in rest of table will be applied to New Data
A9: 44064 | B9: 82 | C9: 57 | D9: =AVERAGE(ChillTempAct[[#This Row],[ChillHigh]:[ChillLow]]) -> 69.5 | E9: =IF(ChillTempAct[[#This Row],[ChillAve]]<65,65-ChillTempAct[[#This Row],[ChillAve]],0) -> 0 | F9: =INDEX(TempAdj[AdjustPct],MATCH(MONTH(ChillTempAct[[#This Row],[Date]]),TempAdj[Month],0)) -> 1.0758 | G9: =ChillTempAct[[#This Row],[ChillHDD]]*(1+ChillTempAct[[#This Row],[ChillAdj]]) -> 0 | H9: =SUMPRODUCT((RankNHDD[Month]=ChillTempAct[[#This Row],[Month]])*(RankNHDD[Rank]=ChillTempAct[[#This Row],[Rank]])*RankNHDD[KIRKNHDD]) -> 0 | I9: =YEAR(ChillTempAct[[#This Row],[Date]]) -> 2020 | J9: =MONTH(ChillTempAct[[#This Row],[Date]]) -> 8 | K9: =IF(ChillTempAct[[#This Row],[Month]]=J8,K8+1,1) -> 8 | L9: Temp data from NOAA website | O9: 4) Do not overwrite formulas!
A10: 44046 | B10: 82 | C10: 59 | D10: =AVERAGE(ChillTempAct[[#This Row],[ChillHigh]:[ChillLow]]) -> 70.5 | E10: =IF(ChillTempAct[[#This Row],[ChillAve]]<65,65-ChillTempAct[[#This Row],[ChillAve]],0) -> 0 | F10: =INDEX(TempAdj[AdjustPct],MATCH(MONTH(ChillTempAct[[#This Row],[Date]]),TempAdj[Month],0)) -> 1.0758 | G10: =ChillTempAct[[#This Row],[ChillHDD]]*(1+ChillTempAct[[#This Row],[ChillAdj]]) -> 0 | H10: =SUMPRODUCT((RankNHDD[Month]=ChillTempAct[[#This Row],[Month]])*(RankNHDD[Rank]=ChillTempAct[[#This Row],[Rank]])*RankNHDD[KIRKNHDD]) -> 0 | I10: =YEAR(ChillTempAct[[#This Row],[Date]]) -> 2020 | J10: =MONTH(ChillTempAct[[#This Row],[Date]]) -> 8 | K10: =IF(ChillTempAct[[#This Row],[Month]]=J9,K9+1,1) -> 9 | L10: Temp data from NOAA website | O10: 5) Weather Data is from the Chillicothe, MO weather station
A11: 44061 | B11: 83 | C11: 58 | D11: =AVERAGE(ChillTempAct[[#This Row],[ChillHigh]:[ChillLow]]) -> 70.5 | E11: =IF(ChillTempAct[[#This Row],[ChillAve]]<65,65-ChillTempAct[[#This Row],[ChillAve]],0) -> 0 | F11: =INDEX(TempAdj[AdjustPct],MATCH(MONTH(ChillTempAct[[#This Row],[Date]]),TempAdj[Month],0)) -> 1.0758 | G11: =ChillTempAct[[#This Row],[ChillHDD]]*(1+ChillTempAct[[#This Row],[ChillAdj]]) -> 0 | H11: =SUMPRODUCT((RankNHDD[Month]=ChillTempAct[[#This Row],[Month]])*(RankNHDD[Rank]=ChillTempAct[[#This Row],[Rank]])*RankNHDD[KIRKNHDD]) -> 0 | I11: =YEAR(ChillTempAct[[#This Row],[Date]]) -> 2020 | J11: =MONTH(ChillTempAct[[#This Row],[Date]]) -> 8 | K11: =IF(ChillTempAct[[#This Row],[Month]]=J10,K10+1,1) -> 10 | L11: Temp data from NOAA website | O11: 6) Station ID Information:
A12: 44074 | B12: 82 | C12: 60 | D12: =AVERAGE(ChillTempAct[[#This Row],[ChillHigh]:[ChillLow]]) -> 71 | E12: =IF(ChillTempAct[[#This Row],[ChillAve]]<65,65-ChillTempAct[[#This Row],[ChillAve]],0) -> 0 | F12: =INDEX(TempAdj[AdjustPct],MATCH(MONTH(ChillTempAct[[#This Row],[Date]]),TempAdj[Month],0)) -> 1.0758 | G12: =ChillTempAct[[#This Row],[ChillHDD]]*(1+ChillTempAct[[#This Row],[ChillAdj]]) -> 0 | H12: =SUMPRODUCT((RankNHDD[Month]=ChillTempAct[[#This Row],[Month]])*(RankNHDD[Rank]=ChillTempAct[[#This Row],[Rank]])*RankNHDD[KIRKNHDD]) -> 0 | I12: =YEAR(ChillTempAct[[#This Row],[Date]]) -> 2020 | J12: =MONTH(ChillTempAct[[#This Row],[Date]]) -> 8 | K12: =IF(ChillTempAct[[#This Row],[Month]]=J11,K11+1,1) -> 11 | L12: Temp data from NOAA website | P12: NWS Cooperative Network ID: 231580
A13: 44059 | B13: 84 | C13: 59 | D13: =AVERAGE(ChillTempAct[[#This Row],[ChillHigh]:[ChillLow]]) -> 71.5 | E13: =IF(ChillTempAct[[#This Row],[ChillAve]]<65,65-ChillTempAct[[#This Row],[ChillAve]],0) -> 0 | F13: =INDEX(TempAdj[AdjustPct],MATCH(MONTH(ChillTempAct[[#This Row],[Date]]),TempAdj[Month],0)) -> 1.0758 | G13: =ChillTempAct[[#This Row],[ChillHDD]]*(1+ChillTempAct[[#This Row],[ChillAdj]]) -> 0 | H13: =SUMPRODUCT((RankNHDD[Month]=ChillTempAct[[#This Row],[Month]])*(RankNHDD[Rank]=ChillTempAct[[#This Row],[Rank]])*RankNHDD[KIRKNHDD]) -> 0 | I13: =YEAR(ChillTempAct[[#This Row],[Date]]) -> 2020 | J13: =MONTH(ChillTempAct[[#This Row],[Date]]) -> 8 | K13: =IF(ChillTempAct[[#This Row],[Month]]=J12,K12+1,1) -> 12 | L13: Temp data from NOAA website | P13: Other ID: USC00231580
A14: 44045 | B14: 83 | C14: 62 | D14: =AVERAGE(ChillTempAct[[#This Row],[ChillHigh]:[ChillLow]]) -> 72.5 | E14: =IF(ChillTempAct[[#This Row],[ChillAve]]<65,65-ChillTempAct[[#This Row],[ChillAve]],0) -> 0 | F14: =INDEX(TempAdj[AdjustPct],MATCH(MONTH(ChillTempAct[[#This Row],[Date]]),TempAdj[Month],0)) -> 1.0758 | G14: =ChillTempAct[[#This Row],[ChillHDD]]*(1+ChillTempAct[[#This Row],[ChillAdj]]) -> 0 | H14: =SUMPRODUCT((RankNHDD[Month]=ChillTempAct[[#This Row],[Month]])*(RankNHDD[Rank]=ChillTempAct[[#This Row],[Rank]])*RankNHDD[KIRKNHDD]) -> 0 | I14: =YEAR(ChillTempAct[[#This Row],[Date]]) -> 2020 | J14: =MONTH(ChillTempAct[[#This Row],[Date]]) -> 8 | K14: =IF(ChillTempAct[[#This Row],[Month]]=J13,K13+1,1) -> 13 | L14: Temp data from NOAA website
A15: 44050 | B15: 82 | C15: 64 | D15: =AVERAGE(ChillTempAct[[#This Row],[ChillHigh]:[ChillLow]]) -> 73 | E15: =IF(ChillTempAct[[#This Row],[ChillAve]]<65,65-ChillTempAct[[#This Row],[ChillAve]],0) -> 0 | F15: =INDEX(TempAdj[AdjustPct],MATCH(MONTH(ChillTempAct[[#This Row],[Date]]),TempAdj[Month],0)) -> 1.0758 | G15: =ChillTempAct[[#This Row],[ChillHDD]]*(1+ChillTempAct[[#This Row],[ChillAdj]]) -> 0 | H15: =SUMPRODUCT((RankNHDD[Month]=ChillTempAct[[#This Row],[Month]])*(RankNHDD[Rank]=ChillTempAct[[#This Row],[Rank]])*RankNHDD[KIRKNHDD]) -> 0 | I15: =YEAR(ChillTempAct[[#This Row],[Date]]) -> 2020 | J15: =MONTH(ChillTempAct[[#This Row],[Date]]) -> 8 | K15: =IF(ChillTempAct[[#This Row],[Month]]=J14,K14+1,1) -> 14 | L15: Temp data from NOAA website
A16: 44065 | B16: 87 | C16: 59 | D16: =AVERAGE(ChillTempAct[[#This Row],[ChillHigh]:[ChillLow]]) -> 73 | E16: =IF(ChillTempAct[[#This Row],[ChillAve]]<65,65-ChillTempAct[[#This Row],[ChillAve]],0) -> 0 | F16: =INDEX(TempAdj[AdjustPct],MATCH(MONTH(ChillTempAct[[#This Row],[Date]]),TempAdj[Month],0)) -> 1.0758 | G16: =ChillTempAct[[#This Row],[ChillHDD]]*(1+ChillTempAct[[#This Row],[ChillAdj]]) -> 0 | H16: =SUMPRODUCT((RankNHDD[Month]=ChillTempAct[[#This Row],[Month]])*(RankNHDD[Rank]=ChillTempAct[[#This Row],[Rank]])*RankNHDD[KIRKNHDD]) -> 0 | I16: =YEAR(ChillTempAct[[#This Row],[Date]]) -> 2020 | J16: =MONTH(ChillTempAct[[#This Row],[Date]]) -> 8 | K16: =IF(ChillTempAct[[#This Row],[Month]]=J15,K15+1,1) -> 15 | L16: Temp data from NOAA website
A17: 44060 | B17: 84 | C17: 63 | D17: =AVERAGE(ChillTempAct[[#This Row],[ChillHigh]:[ChillLow]]) -> 73.5 | E17: =IF(ChillTempAct[[#This Row],[ChillAve]]<65,65-ChillTempAct[[#This Row],[ChillAve]],0) -> 0 | F17: =INDEX(TempAdj[AdjustPct],MATCH(MONTH(ChillTempAct[[#This Row],[Date]]),TempAdj[Month],0)) -> 1.0758 | G17: =ChillTempAct[[#This Row],[ChillHDD]]*(1+ChillTempAct[[#This Row],[ChillAdj]]) -> 0 | H17: =SUMPRODUCT((RankNHDD[Month]=ChillTempAct[[#This Row],[Month]])*(RankNHDD[Rank]=ChillTempAct[[#This Row],[Rank]])*RankNHDD[KIRKNHDD]) -> 0 | I17: =YEAR(ChillTempAct[[#This Row],[Date]]) -> 2020 | J17: =MONTH(ChillTempAct[[#This Row],[Date]]) -> 8 | K17: =IF(ChillTempAct[[#This Row],[Month]]=J16,K16+1,1) -> 16 | L17: Temp data from NOAA website
A18: 44055 | B18: 82 | C18: 66 | D18: =AVERAGE(ChillTempAct[[#This Row],[ChillHigh]:[ChillLow]]) -> 74 | E18: =IF(ChillTempAct[[#This Row],[ChillAve]]<65,65-ChillTempAct[[#This Row],[ChillAve]],0) -> 0 | F18: =INDEX(TempAdj[AdjustPct],MATCH(MONTH(ChillTempAct[[#This Row],[Date]]),TempAdj[Month],0)) -> 1.0758 | G18: =ChillTempAct[[#This Row],[ChillHDD]]*(1+ChillTempAct[[#This Row],[ChillAdj]]) -> 0 | H18: =SUMPRODUCT((RankNHDD[Month]=ChillTempAct[[#This Row],[Month]])*(RankNHDD[Rank]=ChillTempAct[[#This Row],[Rank]])*RankNHDD[KIRKNHDD]) -> 0 | I18: =YEAR(ChillTempAct[[#This Row],[Date]]) -> 2020 | J18: =MONTH(ChillTempAct[[#This Row],[Date]]) -> 8 | K18: =IF(ChillTempAct[[#This Row],[Month]]=J17,K17+1,1) -> 17 | L18: Temp data from NOAA website
A19: 44054 | B19: 87 | C19: 65 | D19: =AVERAGE(ChillTempAct[[#This Row],[ChillHigh]:[ChillLow]]) -> 76 | E19: =IF(ChillTempAct[[#This Row],[ChillAve]]<65,65-ChillTempAct[[#This Row],[ChillAve]],0) -> 0 | F19: =INDEX(TempAdj[AdjustPct],MATCH(MONTH(ChillTempAct[[#This Row],[Date]]),TempAdj[Month],0)) -> 1.0758 | G19: =ChillTempAct[[#This Row],[ChillHDD]]*(1+ChillTempAct[[#This Row],[ChillAdj]]) -> 0 | H19: =SUMPRODUCT((RankNHDD[Month]=ChillTempAct[[#This Row],[Month]])*(RankNHDD[Rank]=ChillTempAct[[#This Row],[Rank]])*RankNHDD[KIRKNHDD]) -> 0 | I19: =YEAR(ChillTempAct[[#This Row],[Date]]) -> 2020 | J19: =MONTH(ChillTempAct[[#This Row],[Date]]) -> 8 | K19: =IF(ChillTempAct[[#This Row],[Month]]=J18,K18+1,1) -> 18 | L19: Temp data from NOAA website
A20: 44051 | B20: 88 | C20: 66 | D20: =AVERAGE(ChillTempAct[[#This Row],[ChillHigh]:[ChillLow]]) -> 77 | E20: =IF(ChillTempAct[[#This Row],[ChillAve]]<65,65-ChillTempAct[[#This Row],[ChillAve]],0) -> 0 | F20: =INDEX(TempAdj[AdjustPct],MATCH(MONTH(ChillTempAct[[#This Row],[Date]]),TempAdj[Month],0)) -> 1.0758 | G20: =ChillTempAct[[#This Row],[ChillHDD]]*(1+ChillTempAct[[#This Row],[ChillAdj]]) -> 0 | H20: =SUMPRODUCT((RankNHDD[Month]=ChillTempAct[[#This Row],[Month]])*(RankNHDD[Rank]=ChillTempAct[[#This Row],[Rank]])*RankNHDD[KIRKNHDD]) -> 0 | I20: =YEAR(ChillTempAct[[#This Row],[Date]]) -> 2020 | J20: =MONTH(ChillTempAct[[#This Row],[Date]]) -> 8 | K20: =IF(ChillTempAct[[#This Row],[Month]]=J19,K19+1,1) -> 19 | L20: Temp data from NOAA website
A21: 44058 | B21: 88 | C21: 67 | D21: =AVERAGE(ChillTempAct[[#This Row],[ChillHigh]:[ChillLow]]) -> 77.5 | E21: =IF(ChillTempAct[[#This Row],[ChillAve]]<65,65-ChillTempAct[[#This Row],[ChillAve]],0) -> 0 | F21: =INDEX(TempAdj[AdjustPct],MATCH(MONTH(ChillTempAct[[#This Row],[Date]]),TempAdj[Month],0)) -> 1.0758 | G21: =ChillTempAct[[#This Row],[ChillHDD]]*(1+ChillTempAct[[#This Row],[ChillAdj]]) -> 0 | H21: =SUMPRODUCT((RankNHDD[Month]=ChillTempAct[[#This Row],[Month]])*(RankNHDD[Rank]=ChillTempAct[[#This Row],[Rank]])*RankNHDD[KIRKNHDD]) -> 0 | I21: =YEAR(ChillTempAct[[#This Row],[Date]]) -> 2020 | J21: =MONTH(ChillTempAct[[#This Row],[Date]]) -> 8 | K21: =IF(ChillTempAct[[#This Row],[Month]]=J20,K20+1,1) -> 20 | L21: Temp data from NOAA website
A22: 44066 | B22: 90 | C22: 65 | D22: =AVERAGE(ChillTempAct[[#This Row],[ChillHigh]:[ChillLow]]) -> 77.5 | E22: =IF(ChillTempAct[[#This Row],[ChillAve]]<65,65-ChillTempAct[[#This Row],[ChillAve]],0) -> 0 | F22: =INDEX(TempAdj[AdjustPct],MATCH(MONTH(ChillTempAct[[#This Row],[Date]]),TempAdj[Month],0)) -> 1.0758 | G22: =ChillTempAct[[#This Row],[ChillHDD]]*(1+ChillTempAct[[#This Row],[ChillAdj]]) -> 0 | H22: =SUMPRODUCT((RankNHDD[Month]=ChillTempAct[[#This Row],[Month]])*(RankNHDD[Rank]=ChillTempAct[[#This Row],[Rank]])*RankNHDD[KIRKNHDD]) -> 0 | I22: =YEAR(ChillTempAct[[#This Row],[Date]]) -> 2020 | J22: =MONTH(ChillTempAct[[#This Row],[Date]]) -> 8 | K22: =IF(ChillTempAct[[#This Row],[Month]]=J21,K21+1,1) -> 21 | L22: Temp data from NOAA website
A23: 44053 | B23: 85 | C23: 71 | D23: =AVERAGE(ChillTempAct[[#This Row],[ChillHigh]:[ChillLow]]) -> 78 | E23: =IF(ChillTempAct[[#This Row],[ChillAve]]<65,65-ChillTempAct[[#This Row],[ChillAve]],0) -> 0 | F23: =INDEX(TempAdj[AdjustPct],MATCH(MONTH(ChillTempAct[[#This Row],[Date]]),TempAdj[Month],0)) -> 1.0758 | G23: =ChillTempAct[[#This Row],[ChillHDD]]*(1+ChillTempAct[[#This Row],[ChillAdj]]) -> 0 | H23: =SUMPRODUCT((RankNHDD[Month]=ChillTempAct[[#This Row],[Month]])*(RankNHDD[Rank]=ChillTempAct[[#This Row],[Rank]])*RankNHDD[KIRKNHDD]) -> 0 | I23: =YEAR(ChillTempAct[[#This Row],[Date]]) -> 2020 | J23: =MONTH(ChillTempAct[[#This Row],[Date]]) -> 8 | K23: =IF(ChillTempAct[[#This Row],[Month]]=J22,K22+1,1) -> 22 | L23: Temp data from NOAA website
A24: 44056 | B24: 87 | C24: 70 | D24: =AVERAGE(ChillTempAct[[#This Row],[ChillHigh]:[ChillLow]]) -> 78.5 | E24: =IF(ChillTempAct[[#This Row],[ChillAve]]<65,65-ChillTempAct[[#This Row],[ChillAve]],0) -> 0 | F24: =INDEX(TempAdj[AdjustPct],MATCH(MONTH(ChillTempAct[[#This Row],[Date]]),TempAdj[Month],0)) -> 1.0758 | G24: =ChillTempAct[[#This Row],[ChillHDD]]*(1+ChillTempAct[[#This Row],[ChillAdj]]) -> 0 | H24: =SUMPRODUCT((RankNHDD[Month]=ChillTempAct[[#This Row],[Month]])*(RankNHDD[Rank]=ChillTempAct[[#This Row],[Rank]])*RankNHDD[KIRKNHDD]) -> 0 | I24: =YEAR(ChillTempAct[[#This Row],[Date]]) -> 2020 | J24: =MONTH(ChillTempAct[[#This Row],[Date]]) -> 8 | K24: =IF(ChillTempAct[[#This Row],[Month]]=J23,K23+1,1) -> 23 | L24: Temp data from NOAA website
A25: 44071 | B25: 91 | C25: 66 | D25: =AVERAGE(ChillTempAct[[#This Row],[ChillHigh]:[ChillLow]]) -> 78.5 | E25: =IF(ChillTempAct[[#This Row],[ChillAve]]<65,65-ChillTempAct[[#This Row],[ChillAve]],0) -> 0 | F25: =INDEX(TempAdj[AdjustPct],MATCH(MONTH(ChillTempAct[[#This Row],[Date]]),TempAdj[Month],0)) -> 1.0758 | G25: =ChillTempAct[[#This Row],[ChillHDD]]*(1+ChillTempAct[[#This Row],[ChillAdj]]) -> 0 | H25: =SUMPRODUCT((RankNHDD[Month]=ChillTempAct[[#This Row],[Month]])*(RankNHDD[Rank]=ChillTempAct[[#This Row],[Rank]])*RankNHDD[KIRKNHDD]) -> 0 | I25: =YEAR(ChillTempAct[[#This Row],[Date]]) -> 2020 | J25: =MONTH(ChillTempAct[[#This Row],[Date]]) -> 8 | K25: =IF(ChillTempAct[[#This Row],[Month]]=J24,K24+1,1) -> 24 | L25: Temp data from NOAA website
A26: 44057 | B26: 88 | C26: 70 | D26: =AVERAGE(ChillTempAct[[#This Row],[ChillHigh]:[ChillLow]]) -> 79 | E26: =IF(ChillTempAct[[#This Row],[ChillAve]]<65,65-ChillTempAct[[#This Row],[ChillAve]],0) -> 0 | F26: =INDEX(TempAdj[AdjustPct],MATCH(MONTH(ChillTempAct[[#This Row],[Date]]),TempAdj[Month],0)) -> 1.0758 | G26: =ChillTempAct[[#This Row],[ChillHDD]]*(1+ChillTempAct[[#This Row],[ChillAdj]]) -> 0 | H26: =SUMPRODUCT((RankNHDD[Month]=ChillTempAct[[#This Row],[Month]])*(RankNHDD[Rank]=ChillTempAct[[#This Row],[Rank]])*RankNHDD[KIRKNHDD]) -> 0 | I26: =YEAR(ChillTempAct[[#This Row],[Date]]) -> 2020 | J26: =MONTH(ChillTempAct[[#This Row],[Date]]) -> 8 | K26: =IF(ChillTempAct[[#This Row],[Month]]=J25,K25+1,1) -> 25 | L26: Temp data from NOAA website
A27: 44052 | B27: 85 | C27: 75 | D27: =AVERAGE(ChillTempAct[[#This Row],[ChillHigh]:[ChillLow]]) -> 80 | E27: =IF(ChillTempAct[[#This Row],[ChillAve]]<65,65-ChillTempAct[[#This Row],[ChillAve]],0) -> 0 | F27: =INDEX(TempAdj[AdjustPct],MATCH(MONTH(ChillTempAct[[#This Row],[Date]]),TempAdj[Month],0)) -> 1.0758 | G27: =ChillTempAct[[#This Row],[ChillHDD]]*(1+ChillTempAct[[#This Row],[ChillAdj]]) -> 0 | H27: =SUMPRODUCT((RankNHDD[Month]=ChillTempAct[[#This Row],[Month]])*(RankNHDD[Rank]=ChillTempAct[[#This Row],[Rank]])*RankNHDD[KIRKNHDD]) -> 0 | I27: =YEAR(ChillTempAct[[#This Row],[Date]]) -> 2020 | J27: =MONTH(ChillTempAct[[#This Row],[Date]]) -> 8 | K27: =IF(ChillTempAct[[#This Row],[Month]]=J26,K26+1,1) -> 26 | L27: Temp data from NOAA website
A28: 44068 | B28: 93 | C28: 67 | D28: =AVERAGE(ChillTempAct[[#This Row],[ChillHigh]:[ChillLow]]) -> 80 | E28: =IF(ChillTempAct[[#This Row],[ChillAve]]<65,65-ChillTempAct[[#This Row],[ChillAve]],0) -> 0 | F28: =INDEX(TempAdj[AdjustPct],MATCH(MONTH(ChillTempAct[[#This Row],[Date]]),TempAdj[Month],0)) -> 1.0758 | G28: =ChillTempAct[[#This Row],[ChillHDD]]*(1+ChillTempAct[[#This Row],[ChillAdj]]) -> 0 | H28: =SUMPRODUCT((RankNHDD[Month]=ChillTempAct[[#This Row],[Month]])*(RankNHDD[Rank]=ChillTempAct[[#This Row],[Rank]])*RankNHDD[KIRKNHDD]) -> 0 | I28: =YEAR(ChillTempAct[[#This Row],[Date]]) -> 2020 | J28: =MONTH(ChillTempAct[[#This Row],[Date]]) -> 8 | K28: =IF(ChillTempAct[[#This Row],[Month]]=J27,K27+1,1) -> 27 | L28: Temp data from NOAA website
A29: 44069 | B29: 93 | C29: 68 | D29: =AVERAGE(ChillTempAct[[#This Row],[ChillHigh]:[ChillLow]]) -> 80.5 | E29: =IF(ChillTempAct[[#This Row],[ChillAve]]<65,65-ChillTempAct[[#This Row],[ChillAve]],0) -> 0 | F29: =INDEX(TempAdj[AdjustPct],MATCH(MONTH(ChillTempAct[[#This Row],[Date]]),TempAdj[Month],0)) -> 1.0758 | G29: =ChillTempAct[[#This Row],[ChillHDD]]*(1+ChillTempAct[[#This Row],[ChillAdj]]) -> 0 | H29: =SUMPRODUCT((RankNHDD[Month]=ChillTempAct[[#This Row],[Month]])*(RankNHDD[Rank]=ChillTempAct[[#This Row],[Rank]])*RankNHDD[KIRKNHDD]) -> 0 | I29: =YEAR(ChillTempAct[[#This Row],[Date]]) -> 2020 | J29: =MONTH(ChillTempAct[[#This Row],[Date]]) -> 8 | K29: =IF(ChillTempAct[[#This Row],[Month]]=J28,K28+1,1) -> 28 | L29: Temp data from NOAA website
A30: 44072 | B30: 93 | C30: 68 | D30: =AVERAGE(ChillTempAct[[#This Row],[ChillHigh]:[ChillLow]]) -> 80.5 | E30: =IF(ChillTempAct[[#This Row],[ChillAve]]<65,65-ChillTempAct[[#This Row],[ChillAve]],0) -> 0 | F30: =INDEX(TempAdj[AdjustPct],MATCH(MONTH(ChillTempAct[[#This Row],[Date]]),TempAdj[Month],0)) -> 1.0758 | G30: =ChillTempAct[[#This Row],[ChillHDD]]*(1+ChillTempAct[[#This Row],[ChillAdj]]) -> 0 | H30: =SUMPRODUCT((RankNHDD[Month]=ChillTempAct[[#This Row],[Month]])*(RankNHDD[Rank]=ChillTempAct[[#This Row],[Rank]])*RankNHDD[KIRKNHDD]) -> 0 | I30: =YEAR(ChillTempAct[[#This Row],[Date]]) -> 2020 | J30: =MONTH(ChillTempAct[[#This Row],[Date]]) -> 8 | K30: =IF(ChillTempAct[[#This Row],[Month]]=J29,K29+1,1) -> 29 | L30: Temp data from NOAA website
A31: 44067 | B31: 93 | C31: 69 | D31: =AVERAGE(ChillTempAct[[#This Row],[ChillHigh]:[ChillLow]]) -> 81 | E31: =IF(ChillTempAct[[#This Row],[ChillAve]]<65,65-ChillTempAct[[#This Row],[ChillAve]],0) -> 0 | F31: =INDEX(TempAdj[AdjustPct],MATCH(MONTH(ChillTempAct[[#This Row],[Date]]),TempAdj[Month],0)) -> 1.0758 | G31: =ChillTempAct[[#This Row],[ChillHDD]]*(1+ChillTempAct[[#This Row],[ChillAdj]]) -> 0 | H31: =SUMPRODUCT((RankNHDD[Month]=ChillTempAct[[#This Row],[Month]])*(RankNHDD[Rank]=ChillTempAct[[#This Row],[Rank]])*RankNHDD[KIRKNHDD]) -> 0 | I31: =YEAR(ChillTempAct[[#This Row],[Date]]) -> 2020 | J31: =MONTH(ChillTempAct[[#This Row],[Date]]) -> 8 | K31: =IF(ChillTempAct[[#This Row],[Month]]=J30,K30+1,1) -> 30 | L31: Temp data from NOAA website
A32: 44070 | B32: 93 | C32: 70 | D32: =AVERAGE(ChillTempAct[[#This Row],[ChillHigh]:[ChillLow]]) -> 81.5 | E32: =IF(ChillTempAct[[#This Row],[ChillAve]]<65,65-ChillTempAct[[#This Row],[ChillAve]],0) -> 0 | F32: =INDEX(TempAdj[AdjustPct],MATCH(MONTH(ChillTempAct[[#This Row],[Date]]),TempAdj[Month],0)) -> 1.0758 | G32: =ChillTempAct[[#This Row],[ChillHDD]]*(1+ChillTempAct[[#This Row],[ChillAdj]]) -> 0 | H32: =SUMPRODUCT((RankNHDD[Month]=ChillTempAct[[#This Row],[Month]])*(RankNHDD[Rank]=ChillTempAct[[#This Row],[Rank]])*RankNHDD[KIRKNHDD]) -> 0 | I32: =YEAR(ChillTempAct[[#This Row],[Date]]) -> 2020 | J32: =MONTH(ChillTempAct[[#This Row],[Date]]) -> 8 | K32: =IF(ChillTempAct[[#This Row],[Month]]=J31,K31+1,1) -> 31 | L32: Temp data from NOAA website
A33: 44084 | B33: 55 | C33: 49 | D33: =AVERAGE(ChillTempAct[[#This Row],[ChillHigh]:[ChillLow]]) -> 52 | E33: =IF(ChillTempAct[[#This Row],[ChillAve]]<65,65-ChillTempAct[[#This Row],[ChillAve]],0) -> 13 | F33: =INDEX(TempAdj[AdjustPct],MATCH(MONTH(ChillTempAct[[#This Row],[Date]]),TempAdj[Month],0)) -> 0.3093 | G33: =ChillTempAct[[#This Row],[ChillHDD]]*(1+ChillTempAct[[#This Row],[ChillAdj]]) -> 17.0209 | H33: =SUMPRODUCT((RankNHDD[Month]=ChillTempAct[[#This Row],[Month]])*(RankNHDD[Rank]=ChillTempAct[[#This Row],[Rank]])*RankNHDD[KIRKNHDD]) -> 17.45092593 | I33: =YEAR(ChillTempAct[[#This Row],[Date]]) -> 2020 | J33: =MONTH(ChillTempAct[[#This Row],[Date]]) -> 9 | K33: =IF(ChillTempAct[[#This Row],[Month]]=J32,K32+1,1) -> 1 | L33: Temp data from NOAA website
A34: 44083 | B34: 57 | C34: 49 | D34: =AVERAGE(ChillTempAct[[#This Row],[ChillHigh]:[ChillLow]]) -> 53 | E34: =IF(ChillTempAct[[#This Row],[ChillAve]]<65,65-ChillTempAct[[#This Row],[ChillAve]],0) -> 12 | F34: =INDEX(TempAdj[AdjustPct],MATCH(MONTH(ChillTempAct[[#This Row],[Date]]),TempAdj[Month],0)) -> 0.3093 | G34: =ChillTempAct[[#This Row],[ChillHDD]]*(1+ChillTempAct[[#This Row],[ChillAdj]]) -> 15.7116 | H34: =SUMPRODUCT((RankNHDD[Month]=ChillTempAct[[#This Row],[Month]])*(RankNHDD[Rank]=ChillTempAct[[#This Row],[Rank]])*RankNHDD[KIRKNHDD]) -> 13.4362963 | I34: =YEAR(ChillTempAct[[#This Row],[Date]]) -> 2020 | J34: =MONTH(ChillTempAct[[#This Row],[Date]]) -> 9 | K34: =IF(ChillTempAct[[#This Row],[Month]]=J33,K33+1,1) -> 2 | L34: Temp data from NOAA website
A35: 44085 | B35: 56 | C35: 51 | D35: =AVERAGE(ChillTempAct[[#This Row],[ChillHigh]:[ChillLow]]) -> 53.5 | E35: =IF(ChillTempAct[[#This Row],[ChillAve]]<65,65-ChillTempAct[[#This Row],[ChillAve]],0) -> 11.5 | F35: =INDEX(TempAdj[AdjustPct],MATCH(MONTH(ChillTempAct[[#This Row],[Date]]),TempAdj[Month],0)) -> 0.3093 | G35: =ChillTempAct[[#This Row],[ChillHDD]]*(1+ChillTempAct[[#This Row],[ChillAdj]]) -> 15.05695 | H35: =SUMPRODUCT((RankNHDD[Month]=ChillTempAct[[#This Row],[Month]])*(RankNHDD[Rank]=ChillTempAct[[#This Row],[Rank]])*RankNHDD[KIRKNHDD]) -> 11.30925926 | I35: =YEAR(ChillTempAct[[#This Row],[Date]]) -> 2020 | J35: =MONTH(ChillTempAct[[#This Row],[Date]]) -> 9 | K35: =IF(ChillTempAct[[#This Row],[Month]]=J34,K34+1,1) -> 3 | L35: Temp data from NOAA website
A36: 44103 | B36: 64 | C36: 44 | D36: =AVERAGE(ChillTempAct[[#This Row],[ChillHigh]:[ChillLow]]) -> 54 | E36: =IF(ChillTempAct[[#This Row],[ChillAve]]<65,65-ChillTempAct[[#This Row],[ChillAve]],0) -> 11 | F36: =INDEX(TempAdj[AdjustPct],MATCH(MONTH(ChillTempAct[[#This Row],[Date]]),TempAdj[Month],0)) -> 0.3093 | G36: =ChillTempAct[[#This Row],[ChillHDD]]*(1+ChillTempAct[[#This Row],[ChillAdj]]) -> 14.4023 | H36: =SUMPRODUCT((RankNHDD[Month]=ChillTempAct[[#This Row],[Month]])*(RankNHDD[Rank]=ChillTempAct[[#This Row],[Rank]])*RankNHDD[KIRKNHDD]) -> 9.779814815 | I36: =YEAR(ChillTempAct[[#This Row],[Date]]) -> 2020 | J36: =MONTH(ChillTempAct[[#This Row],[Date]]) -> 9 | K36: =IF(ChillTempAct[[#This Row],[Month]]=J35,K35+1,1) -> 4 | L36: Temp data from NOAA website
A37: 44104 | B37: 70 | C37: 44 | D37: =AVERAGE(ChillTempAct[[#This Row],[ChillHigh]:[ChillLow]]) -> 57 | E37: =IF(ChillTempAct[[#This Row],[ChillAve]]<65,65-ChillTempAct[[#This Row],[ChillAve]],0) -> 8 | F37: =INDEX(TempAdj[AdjustPct],MATCH(MONTH(ChillTempAct[[#This Row],[Date]]),TempAdj[Month],0)) -> 0.3093 | G37: =ChillTempAct[[#This Row],[ChillHDD]]*(1+ChillTempAct[[#This Row],[ChillAdj]]) -> 10.4744 | H37: =SUMPRODUCT((RankNHDD[Month]=ChillTempAct[[#This Row],[Month]])*(RankNHDD[Rank]=ChillTempAct[[#This Row],[Rank]])*RankNHDD[KIRKNHDD]) -> 8.397777778 | I37: =YEAR(ChillTempAct[[#This Row],[Date]]) -> 2020 | J37: =MONTH(ChillTempAct[[#This Row],[Date]]) -> 9 | K37: =IF(ChillTempAct[[#This Row],[Month]]=J36,K36+1,1) -> 5 | L37: Temp data from NOAA website
A38: 44094 | B38: 69 | C38: 46 | D38: =AVERAGE(ChillTempAct[[#This Row],[ChillHigh]:[ChillLow]]) -> 57.5 | E38: =IF(ChillTempAct[[#This Row],[ChillAve]]<65,65-ChillTempAct[[#This Row],[ChillAve]],0) -> 7.5 | F38: =INDEX(TempAdj[AdjustPct],MATCH(MONTH(ChillTempAct[[#This Row],[Date]]),TempAdj[Month],0)) -> 0.3093 | G38: =ChillTempAct[[#This Row],[ChillHDD]]*(1+ChillTempAct[[#This Row],[ChillAdj]]) -> 9.81975 | H38: =SUMPRODUCT((RankNHDD[Month]=ChillTempAct[[#This Row],[Month]])*(RankNHDD[Rank]=ChillTempAct[[#This Row],[Rank]])*RankNHDD[KIRKNHDD]) -> 7.208518519 | I38: =YEAR(ChillTempAct[[#This Row],[Date]]) -> 2020 | J38: =MONTH(ChillTempAct[[#This Row],[Date]]) -> 9 | K38: =IF(ChillTempAct[[#This Row],[Month]]=J37,K37+1,1) -> 6 | L38: Temp data from NOAA website
A39: 44102 | B39: 70 | C39: 47 | D39: =AVERAGE(ChillTempAct[[#This Row],[ChillHigh]:[ChillLow]]) -> 58.5 | E39: =IF(ChillTempAct[[#This Row],[ChillAve]]<65,65-ChillTempAct[[#This Row],[ChillAve]],0) -> 6.5 | F39: =INDEX(TempAdj[AdjustPct],MATCH(MONTH(ChillTempAct[[#This Row],[Date]]),TempAdj[Month],0)) -> 0.3093 | G39: =ChillTempAct[[#This Row],[ChillHDD]]*(1+ChillTempAct[[#This Row],[ChillAdj]]) -> 8.51045 | H39: =SUMPRODUCT((RankNHDD[Month]=ChillTempAct[[#This Row],[Month]])*(RankNHDD[Rank]=ChillTempAct[[#This Row],[Rank]])*RankNHDD[KIRKNHDD]) -> 6.168888889 | I39: =YEAR(ChillTempAct[[#This Row],[Date]]) -> 2020 | J39: =MONTH(ChillTempAct[[#This Row],[Date]]) -> 9 | K39: =IF(ChillTempAct[[#This Row],[Month]]=J38,K38+1,1) -> 7 | L39: Temp data from NOAA website
A40: 44086 | B40: 62 | C40: 56 | D40: =AVERAGE(ChillTempAct[[#This Row],[ChillHigh]:[ChillLow]]) -> 59 | E40: =IF(ChillTempAct[[#This Row],[ChillAve]]<65,65-ChillTempAct[[#This Row],[ChillAve]],0) -> 6 | F40: =INDEX(TempAdj[AdjustPct],MATCH(MONTH(ChillTempAct[[#This Row],[Date]]),TempAdj[Month],0)) -> 0.3093 | G40: =ChillTempAct[[#This Row],[ChillHDD]]*(1+ChillTempAct[[#This Row],[ChillAdj]]) -> 7.8558 | H40: =SUMPRODUCT((RankNHDD[Month]=ChillTempAct[[#This Row],[Month]])*(RankNHDD[Rank]=ChillTempAct[[#This Row],[Rank]])*RankNHDD[KIRKNHDD]) -> 5.265 | I40: =YEAR(ChillTempAct[[#This Row],[Date]]) -> 2020 | J40: =MONTH(ChillTempAct[[#This Row],[Date]]) -> 9 | K40: =IF(ChillTempAct[[#This Row],[Month]]=J39,K39+1,1) -> 8 | L40: Temp data from NOAA website
A41: 44095 | B41: 73 | C41: 48 | D41: =AVERAGE(ChillTempAct[[#This Row],[ChillHigh]:[ChillLow]]) -> 60.5 | E41: =IF(ChillTempAct[[#This Row],[ChillAve]]<65,65-ChillTempAct[[#This Row],[ChillAve]],0) -> 4.5 | F41: =INDEX(TempAdj[AdjustPct],MATCH(MONTH(ChillTempAct[[#This Row],[Date]]),TempAdj[Month],0)) -> 0.3093 | G41: =ChillTempAct[[#This Row],[ChillHDD]]*(1+ChillTempAct[[#This Row],[ChillAdj]]) -> 5.89185 | H41: =SUMPRODUCT((RankNHDD[Month]=ChillTempAct[[#This Row],[Month]])*(RankNHDD[Rank]=ChillTempAct[[#This Row],[Rank]])*RankNHDD[KIRKNHDD]) -> 4.532222222 | I41: =YEAR(ChillTempAct[[#This Row],[Date]]) -> 2020 | J41: =MONTH(ChillTempAct[[#This Row],[Date]]) -> 9 | K41: =IF(ChillTempAct[[#This Row],[Month]]=J40,K40+1,1) -> 9 | L41: Temp data from NOAA website
A42: 44092 | B42: 73 | C42: 50 | D42: =AVERAGE(ChillTempAct[[#This Row],[ChillHigh]:[ChillLow]]) -> 61.5 | E42: =IF(ChillTempAct[[#This Row],[ChillAve]]<65,65-ChillTempAct[[#This Row],[ChillAve]],0) -> 3.5 | F42: =INDEX(TempAdj[AdjustPct],MATCH(MONTH(ChillTempAct[[#This Row],[Date]]),TempAdj[Month],0)) -> 0.3093 | G42: =ChillTempAct[[#This Row],[ChillHDD]]*(1+ChillTempAct[[#This Row],[ChillAdj]]) -> 4.58255 | H42: =SUMPRODUCT((RankNHDD[Month]=ChillTempAct[[#This Row],[Month]])*(RankNHDD[Rank]=ChillTempAct[[#This Row],[Rank]])*RankNHDD[KIRKNHDD]) -> 3.858148148 | I42: =YEAR(ChillTempAct[[#This Row],[Date]]) -> 2020 | J42: =MONTH(ChillTempAct[[#This Row],[Date]]) -> 9 | K42: =IF(ChillTempAct[[#This Row],[Month]]=J41,K41+1,1) -> 10 | L42: Temp data from NOAA website
A43: 44093 | B43: 78 | C43: 48 | D43: =AVERAGE(ChillTempAct[[#This Row],[ChillHigh]:[ChillLow]]) -> 63 | E43: =IF(ChillTempAct[[#This Row],[ChillAve]]<65,65-ChillTempAct[[#This Row],[ChillAve]],0) -> 2 | F43: =INDEX(TempAdj[AdjustPct],MATCH(MONTH(ChillTempAct[[#This Row],[Date]]),TempAdj[Month],0)) -> 0.3093 | G43: =ChillTempAct[[#This Row],[ChillHDD]]*(1+ChillTempAct[[#This Row],[ChillAdj]]) -> 2.6186 | H43: =SUMPRODUCT((RankNHDD[Month]=ChillTempAct[[#This Row],[Month]])*(RankNHDD[Rank]=ChillTempAct[[#This Row],[Rank]])*RankNHDD[KIRKNHDD]) -> 2.931851852 | I43: =YEAR(ChillTempAct[[#This Row],[Date]]) -> 2020 | J43: =MONTH(ChillTempAct[[#This Row],[Date]]) -> 9 | K43: =IF(ChillTempAct[[#This Row],[Month]]=J42,K42+1,1) -> 11 | L43: Temp data from NOAA website
A44: 44096 | B44: 77 | C44: 50 | D44: =AVERAGE(ChillTempAct[[#This Row],[ChillHigh]:[ChillLow]]) -> 63.5 | E44: =IF(ChillTempAct[[#This Row],[ChillAve]]<65,65-ChillTempAct[[#This Row],[ChillAve]],0) -> 1.5 | F44: =INDEX(TempAdj[AdjustPct],MATCH(MONTH(ChillTempAct[[#This Row],[Date]]),TempAdj[Month],0)) -> 0.3093 | G44: =ChillTempAct[[#This Row],[ChillHDD]]*(1+ChillTempAct[[#This Row],[ChillAdj]]) -> 1.96395 | H44: =SUMPRODUCT((RankNHDD[Month]=ChillTempAct[[#This Row],[Month]])*(RankNHDD[Rank]=ChillTempAct[[#This Row],[Rank]])*RankNHDD[KIRKNHDD]) -> 2.153703704 | I44: =YEAR(ChillTempAct[[#This Row],[Date]]) -> 2020 | J44: =MONTH(ChillTempAct[[#This Row],[Date]]) -> 9 | K44: =IF(ChillTempAct[[#This Row],[Month]]=J43,K43+1,1) -> 12 | L44: Temp data from NOAA website
A45: 44087 | B45: 76 | C45: 52 | D45: =AVERAGE(ChillTempAct[[#This Row],[ChillHigh]:[ChillLow]]) -> 64 | E45: =IF(ChillTempAct[[#This Row],[ChillAve]]<65,65-ChillTempAct[[#This Row],[ChillAve]],0) -> 1 | F45: =INDEX(TempAdj[AdjustPct],MATCH(MONTH(ChillTempAct[[#This Row],[Date]]),TempAdj[Month],0)) -> 0.3093 | G45: =ChillTempAct[[#This Row],[ChillHDD]]*(1+ChillTempAct[[#This Row],[ChillAdj]]) -> 1.3093 | H45: =SUMPRODUCT((RankNHDD[Month]=ChillTempAct[[#This Row],[Month]])*(RankNHDD[Rank]=ChillTempAct[[#This Row],[Rank]])*RankNHDD[KIRKNHDD]) -> 1.310925926 | I45: =YEAR(ChillTempAct[[#This Row],[Date]]) -> 2020 | J45: =MONTH(ChillTempAct[[#This Row],[Date]]) -> 9 | K45: =IF(ChillTempAct[[#This Row],[Month]]=J44,K44+1,1) -> 13 | L45: Temp data from NOAA website
A46: 44088 | B46: 76 | C46: 52 | D46: =AVERAGE(ChillTempAct[[#This Row],[ChillHigh]:[ChillLow]]) -> 64 | E46: =IF(ChillTempAct[[#This Row],[ChillAve]]<65,65-ChillTempAct[[#This Row],[ChillAve]],0) -> 1 | F46: =INDEX(TempAdj[AdjustPct],MATCH(MONTH(ChillTempAct[[#This Row],[Date]]),TempAdj[Month],0)) -> 0.3093 | G46: =ChillTempAct[[#This Row],[ChillHDD]]*(1+ChillTempAct[[#This Row],[ChillAdj]]) -> 1.3093 | H46: =SUMPRODUCT((RankNHDD[Month]=ChillTempAct[[#This Row],[Month]])*(RankNHDD[Rank]=ChillTempAct[[#This Row],[Rank]])*RankNHDD[KIRKNHDD]) -> 0.4022222222 | I46: =YEAR(ChillTempAct[[#This Row],[Date]]) -> 2020 | J46: =MONTH(ChillTempAct[[#This Row],[Date]]) -> 9 | K46: =IF(ChillTempAct[[#This Row],[Month]]=J45,K45+1,1) -> 14 | L46: Temp data from NOAA website
A47: 44089 | B47: 78 | C47: 52 | D47: =AVERAGE(ChillTempAct[[#This Row],[ChillHigh]:[ChillLow]]) -> 65 | E47: =IF(ChillTempAct[[#This Row],[ChillAve]]<65,65-ChillTempAct[[#This Row],[ChillAve]],0) -> 0 | F47: =INDEX(TempAdj[AdjustPct],MATCH(MONTH(ChillTempAct[[#This Row],[Date]]),TempAdj[Month],0)) -> 0.3093 | G47: =ChillTempAct[[#This Row],[ChillHDD]]*(1+ChillTempAct[[#This Row],[ChillAdj]]) -> 0 | H47: =SUMPRODUCT((RankNHDD[Month]=ChillTempAct[[#This Row],[Month]])*(RankNHDD[Rank]=ChillTempAct[[#This Row],[Rank]])*RankNHDD[KIRKNHDD]) -> 0 | I47: =YEAR(ChillTempAct[[#This Row],[Date]]) -> 2020 | J47: =MONTH(ChillTempAct[[#This Row],[Date]]) -> 9 | K47: =IF(ChillTempAct[[#This Row],[Month]]=J46,K46+1,1) -> 15 | L47: Temp data from NOAA website
A48: 44090 | B48: 77 | C48: 54 | D48: =AVERAGE(ChillTempAct[[#This Row],[ChillHigh]:[ChillLow]]) -> 65.5 | E48: =IF(ChillTempAct[[#This Row],[ChillAve]]<65,65-ChillTempAct[[#This Row],[ChillAve]],0) -> 0 | F48: =INDEX(TempAdj[AdjustPct],MATCH(MONTH(ChillTempAct[[#This Row],[Date]]),TempAdj[Month],0)) -> 0.3093 | G48: =ChillTempAct[[#This Row],[ChillHDD]]*(1+ChillTempAct[[#This Row],[ChillAdj]]) -> 0 | H48: =SUMPRODUCT((RankNHDD[Month]=ChillTempAct[[#This Row],[Month]])*(RankNHDD[Rank]=ChillTempAct[[#This Row],[Rank]])*RankNHDD[KIRKNHDD]) -> 0 | I48: =YEAR(ChillTempAct[[#This Row],[Date]]) -> 2020 | J48: =MONTH(ChillTempAct[[#This Row],[Date]]) -> 9 | K48: =IF(ChillTempAct[[#This Row],[Month]]=J47,K47+1,1) -> 16 | L48: Temp data from NOAA website
A49: 44097 | B49: 78 | C49: 53 | D49: =AVERAGE(ChillTempAct[[#This Row],[ChillHigh]:[ChillLow]]) -> 65.5 | E49: =IF(ChillTempAct[[#This Row],[ChillAve]]<65,65-ChillTempAct[[#This Row],[ChillAve]],0) -> 0 | F49: =INDEX(TempAdj[AdjustPct],MATCH(MONTH(ChillTempAct[[#This Row],[Date]]),TempAdj[Month],0)) -> 0.3093 | G49: =ChillTempAct[[#This Row],[ChillHDD]]*(1+ChillTempAct[[#This Row],[ChillAdj]]) -> 0 | H49: =SUMPRODUCT((RankNHDD[Month]=ChillTempAct[[#This Row],[Month]])*(RankNHDD[Rank]=ChillTempAct[[#This Row],[Rank]])*RankNHDD[KIRKNHDD]) -> 0 | I49: =YEAR(ChillTempAct[[#This Row],[Date]]) -> 2020 | J49: =MONTH(ChillTempAct[[#This Row],[Date]]) -> 9 | K49: =IF(ChillTempAct[[#This Row],[Month]]=J48,K48+1,1) -> 17 | L49: Temp data from NOAA website
A50: 44098 | B50: 79 | C50: 54 | D50: =AVERAGE(ChillTempAct[[#This Row],[ChillHigh]:[ChillLow]]) -> 66.5 | E50: =IF(ChillTempAct[[#This Row],[ChillAve]]<65,65-ChillTempAct[[#This Row],[ChillAve]],0) -> 0 | F50: =INDEX(TempAdj[AdjustPct],MATCH(MONTH(ChillTempAct[[#This Row],[Date]]),TempAdj[Month],0)) -> 0.3093 | G50: =ChillTempAct[[#This Row],[ChillHDD]]*(1+ChillTempAct[[#This Row],[ChillAdj]]) -> 0 | H50: =SUMPRODUCT((RankNHDD[Month]=ChillTempAct[[#This Row],[Month]])*(RankNHDD[Rank]=ChillTempAct[[#This Row],[Rank]])*RankNHDD[KIRKNHDD]) -> 0 | I50: =YEAR(ChillTempAct[[#This Row],[Date]]) -> 2020 | J50: =MONTH(ChillTempAct[[#This Row],[Date]]) -> 9 | K50: =IF(ChillTempAct[[#This Row],[Month]]=J49,K49+1,1) -> 18 | L50: Temp data from NOAA website
A51: 44099 | B51: 80 | C51: 54 | D51: =AVERAGE(ChillTempAct[[#This Row],[ChillHigh]:[ChillLow]]) -> 67 | E51: =IF(ChillTempAct[[#This Row],[ChillAve]]<65,65-ChillTempAct[[#This Row],[ChillAve]],0) -> 0 | F51: =INDEX(TempAdj[AdjustPct],MATCH(MONTH(ChillTempAct[[#This Row],[Date]]),TempAdj[Month],0)) -> 0.3093 | G51: =ChillTempAct[[#This Row],[ChillHDD]]*(1+ChillTempAct[[#This Row],[ChillAdj]]) -> 0 | H51: =SUMPRODUCT((RankNHDD[Month]=ChillTempAct[[#This Row],[Month]])*(RankNHDD[Rank]=ChillTempAct[[#This Row],[Rank]])*RankNHDD[KIRKNHDD]) -> 0 | I51: =YEAR(ChillTempAct[[#This Row],[Date]]) -> 2020 | J51: =MONTH(ChillTempAct[[#This Row],[Date]]) -> 9 | K51: =IF(ChillTempAct[[#This Row],[Month]]=J50,K50+1,1) -> 19 | L51: Temp data from NOAA website
A52: 44078 | B52: 83 | C52: 52 | D52: =AVERAGE(ChillTempAct[[#This Row],[ChillHigh]:[ChillLow]]) -> 67.5 | E52: =IF(ChillTempAct[[#This Row],[ChillAve]]<65,65-ChillTempAct[[#This Row],[ChillAve]],0) -> 0 | F52: =INDEX(TempAdj[AdjustPct],MATCH(MONTH(ChillTempAct[[#This Row],[Date]]),TempAdj[Month],0)) -> 0.3093 | G52: =ChillTempAct[[#This Row],[ChillHDD]]*(1+ChillTempAct[[#This Row],[ChillAdj]]) -> 0 | H52: =SUMPRODUCT((RankNHDD[Month]=ChillTempAct[[#This Row],[Month]])*(RankNHDD[Rank]=ChillTempAct[[#This Row],[Rank]])*RankNHDD[KIRKNHDD]) -> 0 | I52: =YEAR(ChillTempAct[[#This Row],[Date]]) -> 2020 | J52: =MONTH(ChillTempAct[[#This Row],[Date]]) -> 9 | K52: =IF(ChillTempAct[[#This Row],[Month]]=J51,K51+1,1) -> 20 | L52: Temp data from NOAA website
A53: 44091 | B53: 83 | C53: 53 | D53: =AVERAGE(ChillTempAct[[#This Row],[ChillHigh]:[ChillLow]]) -> 68 | E53: =IF(ChillTempAct[[#This Row],[ChillAve]]<65,65-ChillTempAct[[#This Row],[ChillAve]],0) -> 0 | F53: =INDEX(TempAdj[AdjustPct],MATCH(MONTH(ChillTempAct[[#This Row],[Date]]),TempAdj[Month],0)) -> 0.3093 | G53: =ChillTempAct[[#This Row],[ChillHDD]]*(1+ChillTempAct[[#This Row],[ChillAdj]]) -> 0 | H53: =SUMPRODUCT((RankNHDD[Month]=ChillTempAct[[#This Row],[Month]])*(RankNHDD[Rank]=ChillTempAct[[#This Row],[Rank]])*RankNHDD[KIRKNHDD]) -> 0 | I53: =YEAR(ChillTempAct[[#This Row],[Date]]) -> 2020 | J53: =MONTH(ChillTempAct[[#This Row],[Date]]) -> 9 | K53: =IF(ChillTempAct[[#This Row],[Month]]=J52,K52+1,1) -> 21 | L53: Temp data from NOAA website
A54: 44082 | B54: 82 | C54: 55 | D54: =AVERAGE(ChillTempAct[[#This Row],[ChillHigh]:[ChillLow]]) -> 68.5 | E54: =IF(ChillTempAct[[#This Row],[ChillAve]]<65,65-ChillTempAct[[#This Row],[ChillAve]],0) -> 0 | F54: =INDEX(TempAdj[AdjustPct],MATCH(MONTH(ChillTempAct[[#This Row],[Date]]),TempAdj[Month],0)) -> 0.3093 | G54: =ChillTempAct[[#This Row],[ChillHDD]]*(1+ChillTempAct[[#This Row],[ChillAdj]]) -> 0 | H54: =SUMPRODUCT((RankNHDD[Month]=ChillTempAct[[#This Row],[Month]])*(RankNHDD[Rank]=ChillTempAct[[#This Row],[Rank]])*RankNHDD[KIRKNHDD]) -> 0 | I54: =YEAR(ChillTempAct[[#This Row],[Date]]) -> 2020 | J54: =MONTH(ChillTempAct[[#This Row],[Date]]) -> 9 | K54: =IF(ChillTempAct[[#This Row],[Month]]=J53,K53+1,1) -> 22 | L54: Temp data from NOAA website
A55: 44075 | B55: 75 | C55: 63 | D55: =AVERAGE(ChillTempAct[[#This Row],[ChillHigh]:[ChillLow]]) -> 69 | E55: =IF(ChillTempAct[[#This Row],[ChillAve]]<65,65-ChillTempAct[[#This Row],[ChillAve]],0) -> 0 | F55: =INDEX(TempAdj[AdjustPct],MATCH(MONTH(ChillTempAct[[#This Row],[Date]]),TempAdj[Month],0)) -> 0.3093 | G55: =ChillTempAct[[#This Row],[ChillHDD]]*(1+ChillTempAct[[#This Row],[ChillAdj]]) -> 0 | H55: =SUMPRODUCT((RankNHDD[Month]=ChillTempAct[[#This Row],[Month]])*(RankNHDD[Rank]=ChillTempAct[[#This Row],[Rank]])*RankNHDD[KIRKNHDD]) -> 0 | I55: =YEAR(ChillTempAct[[#This Row],[Date]]) -> 2020 | J55: =MONTH(ChillTempAct[[#This Row],[Date]]) -> 9 | K55: =IF(ChillTempAct[[#This Row],[Month]]=J54,K54+1,1) -> 23 | L55: Temp data from NOAA website
A56: 44079 | B56: 82 | C56: 57 | D56: =AVERAGE(ChillTempAct[[#This Row],[ChillHigh]:[ChillLow]]) -> 69.5 | E56: =IF(ChillTempAct[[#This Row],[ChillAve]]<65,65-ChillTempAct[[#This Row],[ChillAve]],0) -> 0 | F56: =INDEX(TempAdj[AdjustPct],MATCH(MONTH(ChillTempAct[[#This Row],[Date]]),TempAdj[Month],0)) -> 0.3093 | G56: =ChillTempAct[[#This Row],[ChillHDD]]*(1+ChillTempAct[[#This Row],[ChillAdj]]) -> 0 | H56: =SUMPRODUCT((RankNHDD[Month]=ChillTempAct[[#This Row],[Month]])*(RankNHDD[Rank]=ChillTempAct[[#This Row],[Rank]])*RankNHDD[KIRKNHDD]) -> 0 | I56: =YEAR(ChillTempAct[[#This Row],[Date]]) -> 2020 | J56: =MONTH(ChillTempAct[[#This Row],[Date]]) -> 9 | K56: =IF(ChillTempAct[[#This Row],[Month]]=J55,K55+1,1) -> 24 | L56: Temp data from NOAA website
A57: 44100 | B57: 85 | C57: 58 | D57: =AVERAGE(ChillTempAct[[#This Row],[ChillHigh]:[ChillLow]]) -> 71.5 | E57: =IF(ChillTempAct[[#This Row],[ChillAve]]<65,65-ChillTempAct[[#This Row],[ChillAve]],0) -> 0 | F57: =INDEX(TempAdj[AdjustPct],MATCH(MONTH(ChillTempAct[[#This Row],[Date]]),TempAdj[Month],0)) -> 0.3093 | G57: =ChillTempAct[[#This Row],[ChillHDD]]*(1+ChillTempAct[[#This Row],[ChillAdj]]) -> 0 | H57: =SUMPRODUCT((RankNHDD[Month]=ChillTempAct[[#This Row],[Month]])*(RankNHDD[Rank]=ChillTempAct[[#This Row],[Rank]])*RankNHDD[KIRKNHDD]) -> 0 | I57: =YEAR(ChillTempAct[[#This Row],[Date]]) -> 2020 | J57: =MONTH(ChillTempAct[[#This Row],[Date]]) -> 9 | K57: =IF(ChillTempAct[[#This Row],[Month]]=J56,K56+1,1) -> 25 | L57: Temp data from NOAA website
A58: 44076 | B58: 82 | C58: 64 | D58: =AVERAGE(ChillTempAct[[#This Row],[ChillHigh]:[ChillLow]]) -> 73 | E58: =IF(ChillTempAct[[#This Row],[ChillAve]]<65,65-ChillTempAct[[#This Row],[ChillAve]],0) -> 0 | F58: =INDEX(TempAdj[AdjustPct],MATCH(MONTH(ChillTempAct[[#This Row],[Date]]),TempAdj[Month],0)) -> 0.3093 | G58: =ChillTempAct[[#This Row],[ChillHDD]]*(1+ChillTempAct[[#This Row],[ChillAdj]]) -> 0 | H58: =SUMPRODUCT((RankNHDD[Month]=ChillTempAct[[#This Row],[Month]])*(RankNHDD[Rank]=ChillTempAct[[#This Row],[Rank]])*RankNHDD[KIRKNHDD]) -> 0 | I58: =YEAR(ChillTempAct[[#This Row],[Date]]) -> 2020 | J58: =MONTH(ChillTempAct[[#This Row],[Date]]) -> 9 | K58: =IF(ChillTempAct[[#This Row],[Month]]=J57,K57+1,1) -> 26 | L58: Temp data from NOAA website
A59: 44077 | B59: 86 | C59: 62 | D59: =AVERAGE(ChillTempAct[[#This Row],[ChillHigh]:[ChillLow]]) -> 74 | E59: =IF(ChillTempAct[[#This Row],[ChillAve]]<65,65-ChillTempAct[[#This Row],[ChillAve]],0) -> 0 | F59: =INDEX(TempAdj[AdjustPct],MATCH(MONTH(ChillTempAct[[#This Row],[Date]]),TempAdj[Month],0)) -> 0.3093 | G59: =ChillTempAct[[#This Row],[ChillHDD]]*(1+ChillTempAct[[#This Row],[ChillAdj]]) -> 0 | H59: =SUMPRODUCT((RankNHDD[Month]=ChillTempAct[[#This Row],[Month]])*(RankNHDD[Rank]=ChillTempAct[[#This Row],[Rank]])*RankNHDD[KIRKNHDD]) -> 0 | I59: =YEAR(ChillTempAct[[#This Row],[Date]]) -> 2020 | J59: =MONTH(ChillTempAct[[#This Row],[Date]]) -> 9 | K59: =IF(ChillTempAct[[#This Row],[Month]]=J58,K58+1,1) -> 27 | L59: Temp data from NOAA website
A60: 44101 | B60: 86 | C60: 62 | D60: =AVERAGE(ChillTempAct[[#This Row],[ChillHigh]:[ChillLow]]) -> 74 | E60: =IF(ChillTempAct[[#This Row],[ChillAve]]<65,65-ChillTempAct[[#This Row],[ChillAve]],0) -> 0 | F60: =INDEX(TempAdj[AdjustPct],MATCH(MONTH(ChillTempAct[[#This Row],[Date]]),TempAdj[Month],0)) -> 0.3093 | G60: =ChillTempAct[[#This Row],[ChillHDD]]*(1+ChillTempAct[[#This Row],[ChillAdj]]) -> 0 | H60: =SUMPRODUCT((RankNHDD[Month]=ChillTempAct[[#This Row],[Month]])*(RankNHDD[Rank]=ChillTempAct[[#This Row],[Rank]])*RankNHDD[KIRKNHDD]) -> 0 | I60: =YEAR(ChillTempAct[[#This Row],[Date]]) -> 2020 | J60: =MONTH(ChillTempAct[[#This Row],[Date]]) -> 9 | K60: =IF(ChillTempAct[[#This Row],[Month]]=J59,K59+1,1) -> 28 | L60: Temp data from NOAA website
A61: 44080 | B61: 90 | C61: 61 | D61: =AVERAGE(ChillTempAct[[#This Row],[ChillHigh]:[ChillLow]]) -> 75.5 | E61: =IF(ChillTempAct[[#This Row],[ChillAve]]<65,65-ChillTempAct[[#This Row],[ChillAve]],0) -> 0 | F61: =INDEX(TempAdj[AdjustPct],MATCH(MONTH(ChillTempAct[[#This Row],[Date]]),TempAdj[Month],0)) -> 0.3093 | G61: =ChillTempAct[[#This Row],[ChillHDD]]*(1+ChillTempAct[[#This Row],[ChillAdj]]) -> 0 | H61: =SUMPRODUCT((RankNHDD[Month]=ChillTempAct[[#This Row],[Month]])*(RankNHDD[Rank]=ChillTempAct[[#This Row],[Rank]])*RankNHDD[KIRKNHDD]) -> 0 | I61: =YEAR(ChillTempAct[[#This Row],[Date]]) -> 2020 | J61: =MONTH(ChillTempAct[[#This Row],[Date]]) -> 9 | K61: =IF(ChillTempAct[[#This Row],[Month]]=J60,K60+1,1) -> 29 | L61: Temp data from NOAA website
A62: 44081 | B62: 89 | C62: 68 | D62: =AVERAGE(ChillTempAct[[#This Row],[ChillHigh]:[ChillLow]]) -> 78.5 | E62: =IF(ChillTempAct[[#This Row],[ChillAve]]<65,65-ChillTempAct[[#This Row],[ChillAve]],0) -> 0 | F62: =INDEX(TempAdj[AdjustPct],MATCH(MONTH(ChillTempAct[[#This Row],[Date]]),TempAdj[Month],0)) -> 0.3093 | G62: =ChillTempAct[[#This Row],[ChillHDD]]*(1+ChillTempAct[[#This Row],[ChillAdj]]) -> 0 | H62: =SUMPRODUCT((RankNHDD[Month]=ChillTempAct[[#This Row],[Month]])*(RankNHDD[Rank]=ChillTempAct[[#This Row],[Rank]])*RankNHDD[KIRKNHDD]) -> 0 | I62: =YEAR(ChillTempAct[[#This Row],[Date]]) -> 2020 | J62: =MONTH(ChillTempAct[[#This Row],[Date]]) -> 9 | K62: =IF(ChillTempAct[[#This Row],[Month]]=J61,K61+1,1) -> 30 | L62: Temp data from NOAA website
A63: 44131 | B63: 31 | C63: 27 | D63: =AVERAGE(ChillTempAct[[#This Row],[ChillHigh]:[ChillLow]]) -> 29 | E63: =IF(ChillTempAct[[#This Row],[ChillAve]]<65,65-ChillTempAct[[#This Row],[ChillAve]],0) -> 36 | F63: =INDEX(TempAdj[AdjustPct],MATCH(MONTH(ChillTempAct[[#This Row],[Date]]),TempAdj[Month],0)) -> 0.1114 | G63: =ChillTempAct[[#This Row],[ChillHDD]]*(1+ChillTempAct[[#This Row],[ChillAdj]]) -> 40.0104 | H63: =SUMPRODUCT((RankNHDD[Month]=ChillTempAct[[#This Row],[Month]])*(RankNHDD[Rank]=ChillTempAct[[#This Row],[Rank]])*RankNHDD[KIRKNHDD]) -> 30.56630824 | I63: =YEAR(ChillTempAct[[#This Row],[Date]]) -> 2020 | J63: =MONTH(ChillTempAct[[#This Row],[Date]]) -> 10 | K63: =IF(ChillTempAct[[#This Row],[Month]]=J62,K62+1,1) -> 1 | L63: Temp data from NOAA website
A64: 44132 | B64: 35 | C64: 29 | D64: =AVERAGE(ChillTempAct[[#This Row],[ChillHigh]:[ChillLow]]) -> 32 | E64: =IF(ChillTempAct[[#This Row],[ChillAve]]<65,65-ChillTempAct[[#This Row],[ChillAve]],0) -> 33 | F64: =INDEX(TempAdj[AdjustPct],MATCH(MONTH(ChillTempAct[[#This Row],[Date]]),TempAdj[Month],0)) -> 0.1114 | G64: =ChillTempAct[[#This Row],[ChillHDD]]*(1+ChillTempAct[[#This Row],[ChillAdj]]) -> 36.6762 | H64: =SUMPRODUCT((RankNHDD[Month]=ChillTempAct[[#This Row],[Month]])*(RankNHDD[Rank]=ChillTempAct[[#This Row],[Rank]])*RankNHDD[KIRKNHDD]) -> 26.10374552 | I64: =YEAR(ChillTempAct[[#This Row],[Date]]) -> 2020 | J64: =MONTH(ChillTempAct[[#This Row],[Date]]) -> 10 | K64: =IF(ChillTempAct[[#This Row],[Month]]=J63,K63+1,1) -> 2 | L64: Temp data from NOAA website
A65: 44130 | B65: 40 | C65: 27 | D65: =AVERAGE(ChillTempAct[[#This Row],[ChillHigh]:[ChillLow]]) -> 33.5 | E65: =IF(ChillTempAct[[#This Row],[ChillAve]]<65,65-ChillTempAct[[#This Row],[ChillAve]],0) -> 31.5 | F65: =INDEX(TempAdj[AdjustPct],MATCH(MONTH(ChillTempAct[[#This Row],[Date]]),TempAdj[Month],0)) -> 0.1114 | G65: =ChillTempAct[[#This Row],[ChillHDD]]*(1+ChillTempAct[[#This Row],[ChillAdj]]) -> 35.0091 | H65: =SUMPRODUCT((RankNHDD[Month]=ChillTempAct[[#This Row],[Month]])*(RankNHDD[Rank]=ChillTempAct[[#This Row],[Rank]])*RankNHDD[KIRKNHDD]) -> 24.45189964 | I65: =YEAR(ChillTempAct[[#This Row],[Date]]) -> 2020 | J65: =MONTH(ChillTempAct[[#This Row],[Date]]) -> 10 | K65: =IF(ChillTempAct[[#This Row],[Month]]=J64,K64+1,1) -> 3 | L65: Temp data from NOAA website
A66: 44133 | B66: 45 | C66: 29 | D66: =AVERAGE(ChillTempAct[[#This Row],[ChillHigh]:[ChillLow]]) -> 37 | E66: =IF(ChillTempAct[[#This Row],[ChillAve]]<65,65-ChillTempAct[[#This Row],[ChillAve]],0) -> 28 | F66: =INDEX(TempAdj[AdjustPct],MATCH(MONTH(ChillTempAct[[#This Row],[Date]]),TempAdj[Month],0)) -> 0.1114 | G66: =ChillTempAct[[#This Row],[ChillHDD]]*(1+ChillTempAct[[#This Row],[ChillAdj]]) -> 31.1192 | H66: =SUMPRODUCT((RankNHDD[Month]=ChillTempAct[[#This Row],[Month]])*(RankNHDD[Rank]=ChillTempAct[[#This Row],[Rank]])*RankNHDD[KIRKNHDD]) -> 23.15010753 | I66: =YEAR(ChillTempAct[[#This Row],[Date]]) -> 2020 | J66: =MONTH(ChillTempAct[[#This Row],[Date]]) -> 10 | K66: =IF(ChillTempAct[[#This Row],[Month]]=J65,K65+1,1) -> 4 | L66: Temp data from NOAA website
A67: 44129 | B67: 41 | C67: 34 | D67: =AVERAGE(ChillTempAct[[#This Row],[ChillHigh]:[ChillLow]]) -> 37.5 | E67: =IF(ChillTempAct[[#This Row],[ChillAve]]<65,65-ChillTempAct[[#This Row],[ChillAve]],0) -> 27.5 | F67: =INDEX(TempAdj[AdjustPct],MATCH(MONTH(ChillTempAct[[#This Row],[Date]]),TempAdj[Month],0)) -> 0.1114 | G67: =ChillTempAct[[#This Row],[ChillHDD]]*(1+ChillTempAct[[#This Row],[ChillAdj]]) -> 30.5635 | H67: =SUMPRODUCT((RankNHDD[Month]=ChillTempAct[[#This Row],[Month]])*(RankNHDD[Rank]=ChillTempAct[[#This Row],[Rank]])*RankNHDD[KIRKNHDD]) -> 21.90602151 | I67: =YEAR(ChillTempAct[[#This Row],[Date]]) -> 2020 | J67: =MONTH(ChillTempAct[[#This Row],[Date]]) -> 10 | K67: =IF(ChillTempAct[[#This Row],[Month]]=J66,K66+1,1) -> 5 | L67: Temp data from NOAA website
A68: 44134 | B68: 49 | C68: 27 | D68: =AVERAGE(ChillTempAct[[#This Row],[ChillHigh]:[ChillLow]]) -> 38 | E68: =IF(ChillTempAct[[#This Row],[ChillAve]]<65,65-ChillTempAct[[#This Row],[ChillAve]],0) -> 27 | F68: =INDEX(TempAdj[AdjustPct],MATCH(MONTH(ChillTempAct[[#This Row],[Date]]),TempAdj[Month],0)) -> 0.1114 | G68: =ChillTempAct[[#This Row],[ChillHDD]]*(1+ChillTempAct[[#This Row],[ChillAdj]]) -> 30.0078 | H68: =SUMPRODUCT((RankNHDD[Month]=ChillTempAct[[#This Row],[Month]])*(RankNHDD[Rank]=ChillTempAct[[#This Row],[Rank]])*RankNHDD[KIRKNHDD]) -> 20.62353047 | I68: =YEAR(ChillTempAct[[#This Row],[Date]]) -> 2020 | J68: =MONTH(ChillTempAct[[#This Row],[Date]]) -> 10 | K68: =IF(ChillTempAct[[#This Row],[Month]]=J67,K67+1,1) -> 6 | L68: Temp data from NOAA website
A69: 44128 | B69: 44 | C69: 34 | D69: =AVERAGE(ChillTempAct[[#This Row],[ChillHigh]:[ChillLow]]) -> 39 | E69: =IF(ChillTempAct[[#This Row],[ChillAve]]<65,65-ChillTempAct[[#This Row],[ChillAve]],0) -> 26 | F69: =INDEX(TempAdj[AdjustPct],MATCH(MONTH(ChillTempAct[[#This Row],[Date]]),TempAdj[Month],0)) -> 0.1114 | G69: =ChillTempAct[[#This Row],[ChillHDD]]*(1+ChillTempAct[[#This Row],[ChillAdj]]) -> 28.8964 | H69: =SUMPRODUCT((RankNHDD[Month]=ChillTempAct[[#This Row],[Month]])*(RankNHDD[Rank]=ChillTempAct[[#This Row],[Rank]])*RankNHDD[KIRKNHDD]) -> 19.63003584 | I69: =YEAR(ChillTempAct[[#This Row],[Date]]) -> 2020 | J69: =MONTH(ChillTempAct[[#This Row],[Date]]) -> 10 | K69: =IF(ChillTempAct[[#This Row],[Month]]=J68,K68+1,1) -> 7 | L69: Temp data from NOAA website
A70: 44123 | B70: 43 | C70: 37 | D70: =AVERAGE(ChillTempAct[[#This Row],[ChillHigh]:[ChillLow]]) -> 40 | E70: =IF(ChillTempAct[[#This Row],[ChillAve]]<65,65-ChillTempAct[[#This Row],[ChillAve]],0) -> 25 | F70: =INDEX(TempAdj[AdjustPct],MATCH(MONTH(ChillTempAct[[#This Row],[Date]]),TempAdj[Month],0)) -> 0.1114 | G70: =ChillTempAct[[#This Row],[ChillHDD]]*(1+ChillTempAct[[#This Row],[ChillAdj]]) -> 27.785 | H70: =SUMPRODUCT((RankNHDD[Month]=ChillTempAct[[#This Row],[Month]])*(RankNHDD[Rank]=ChillTempAct[[#This Row],[Rank]])*RankNHDD[KIRKNHDD]) -> 18.66224014 | I70: =YEAR(ChillTempAct[[#This Row],[Date]]) -> 2020 | J70: =MONTH(ChillTempAct[[#This Row],[Date]]) -> 10 | K70: =IF(ChillTempAct[[#This Row],[Month]]=J69,K69+1,1) -> 8 | L70: Temp data from NOAA website
A71: 44124 | B71: 43 | C71: 37 | D71: =AVERAGE(ChillTempAct[[#This Row],[ChillHigh]:[ChillLow]]) -> 40 | E71: =IF(ChillTempAct[[#This Row],[ChillAve]]<65,65-ChillTempAct[[#This Row],[ChillAve]],0) -> 25 | F71: =INDEX(TempAdj[AdjustPct],MATCH(MONTH(ChillTempAct[[#This Row],[Date]]),TempAdj[Month],0)) -> 0.1114 | G71: =ChillTempAct[[#This Row],[ChillHDD]]*(1+ChillTempAct[[#This Row],[ChillAdj]]) -> 27.785 | H71: =SUMPRODUCT((RankNHDD[Month]=ChillTempAct[[#This Row],[Month]])*(RankNHDD[Rank]=ChillTempAct[[#This Row],[Rank]])*RankNHDD[KIRKNHDD]) -> 17.58261649 | I71: =YEAR(ChillTempAct[[#This Row],[Date]]) -> 2020 | J71: =MONTH(ChillTempAct[[#This Row],[Date]]) -> 10 | K71: =IF(ChillTempAct[[#This Row],[Month]]=J70,K70+1,1) -> 9 | L71: Temp data from NOAA website
A72: 44125 | B72: 45 | C72: 37 | D72: =AVERAGE(ChillTempAct[[#This Row],[ChillHigh]:[ChillLow]]) -> 41 | E72: =IF(ChillTempAct[[#This Row],[ChillAve]]<65,65-ChillTempAct[[#This Row],[ChillAve]],0) -> 24 | F72: =INDEX(TempAdj[AdjustPct],MATCH(MONTH(ChillTempAct[[#This Row],[Date]]),TempAdj[Month],0)) -> 0.1114 | G72: =ChillTempAct[[#This Row],[ChillHDD]]*(1+ChillTempAct[[#This Row],[ChillAdj]]) -> 26.6736 | H72: =SUMPRODUCT((RankNHDD[Month]=ChillTempAct[[#This Row],[Month]])*(RankNHDD[Rank]=ChillTempAct[[#This Row],[Rank]])*RankNHDD[KIRKNHDD]) -> 16.68234767 | I72: =YEAR(ChillTempAct[[#This Row],[Date]]) -> 2020 | J72: =MONTH(ChillTempAct[[#This Row],[Date]]) -> 10 | K72: =IF(ChillTempAct[[#This Row],[Month]]=J71,K71+1,1) -> 10 | L72: Temp data from NOAA website
A73: 44135 | B73: 56 | C73: 27 | D73: =AVERAGE(ChillTempAct[[#This Row],[ChillHigh]:[ChillLow]]) -> 41.5 | E73: =IF(ChillTempAct[[#This Row],[ChillAve]]<65,65-ChillTempAct[[#This Row],[ChillAve]],0) -> 23.5 | F73: =INDEX(TempAdj[AdjustPct],MATCH(MONTH(ChillTempAct[[#This Row],[Date]]),TempAdj[Month],0)) -> 0.1114 | G73: =ChillTempAct[[#This Row],[ChillHDD]]*(1+ChillTempAct[[#This Row],[ChillAdj]]) -> 26.1179 | H73: =SUMPRODUCT((RankNHDD[Month]=ChillTempAct[[#This Row],[Month]])*(RankNHDD[Rank]=ChillTempAct[[#This Row],[Rank]])*RankNHDD[KIRKNHDD]) -> 15.82145161 | I73: =YEAR(ChillTempAct[[#This Row],[Date]]) -> 2020 | J73: =MONTH(ChillTempAct[[#This Row],[Date]]) -> 10 | K73: =IF(ChillTempAct[[#This Row],[Month]]=J72,K72+1,1) -> 11 | L73: Temp data from NOAA website
A74: 44126 | B74: 51 | C74: 36 | D74: =AVERAGE(ChillTempAct[[#This Row],[ChillHigh]:[ChillLow]]) -> 43.5 | E74: =IF(ChillTempAct[[#This Row],[ChillAve]]<65,65-ChillTempAct[[#This Row],[ChillAve]],0) -> 21.5 | F74: =INDEX(TempAdj[AdjustPct],MATCH(MONTH(ChillTempAct[[#This Row],[Date]]),TempAdj[Month],0)) -> 0.1114 | G74: =ChillTempAct[[#This Row],[ChillHDD]]*(1+ChillTempAct[[#This Row],[ChillAdj]]) -> 23.8951 | H74: =SUMPRODUCT((RankNHDD[Month]=ChillTempAct[[#This Row],[Month]])*(RankNHDD[Rank]=ChillTempAct[[#This Row],[Rank]])*RankNHDD[KIRKNHDD]) -> 14.86100358 | I74: =YEAR(ChillTempAct[[#This Row],[Date]]) -> 2020 | J74: =MONTH(ChillTempAct[[#This Row],[Date]]) -> 10 | K74: =IF(ChillTempAct[[#This Row],[Month]]=J73,K73+1,1) -> 12 | L74: Temp data from NOAA website
A75: 44120 | B75: 57 | C75: 32 | D75: =AVERAGE(ChillTempAct[[#This Row],[ChillHigh]:[ChillLow]]) -> 44.5 | E75: =IF(ChillTempAct[[#This Row],[ChillAve]]<65,65-ChillTempAct[[#This Row],[ChillAve]],0) -> 20.5 | F75: =INDEX(TempAdj[AdjustPct],MATCH(MONTH(ChillTempAct[[#This Row],[Date]]),TempAdj[Month],0)) -> 0.1114 | G75: =ChillTempAct[[#This Row],[ChillHDD]]*(1+ChillTempAct[[#This Row],[ChillAdj]]) -> 22.7837 | H75: =SUMPRODUCT((RankNHDD[Month]=ChillTempAct[[#This Row],[Month]])*(RankNHDD[Rank]=ChillTempAct[[#This Row],[Rank]])*RankNHDD[KIRKNHDD]) -> 13.88419355 | I75: =YEAR(ChillTempAct[[#This Row],[Date]]) -> 2020 | J75: =MONTH(ChillTempAct[[#This Row],[Date]]) -> 10 | K75: =IF(ChillTempAct[[#This Row],[Month]]=J74,K74+1,1) -> 13 | L75: Temp data from NOAA website
A76: 44121 | B76: 60 | C76: 33 | D76: =AVERAGE(ChillTempAct[[#This Row],[ChillHigh]:[ChillLow]]) -> 46.5 | E76: =IF(ChillTempAct[[#This Row],[ChillAve]]<65,65-ChillTempAct[[#This Row],[ChillAve]],0) -> 18.5 | F76: =INDEX(TempAdj[AdjustPct],MATCH(MONTH(ChillTempAct[[#This Row],[Date]]),TempAdj[Month],0)) -> 0.1114 | G76: =ChillTempAct[[#This Row],[ChillHDD]]*(1+ChillTempAct[[#This Row],[ChillAdj]]) -> 20.5609 | H76: =SUMPRODUCT((RankNHDD[Month]=ChillTempAct[[#This Row],[Month]])*(RankNHDD[Rank]=ChillTempAct[[#This Row],[Rank]])*RankNHDD[KIRKNHDD]) -> 12.98724014 | I76: =YEAR(ChillTempAct[[#This Row],[Date]]) -> 2020 | J76: =MONTH(ChillTempAct[[#This Row],[Date]]) -> 10 | K76: =IF(ChillTempAct[[#This Row],[Month]]=J75,K75+1,1) -> 14 | L76: Temp data from NOAA website
A77: 44106 | B77: 61 | C77: 35 | D77: =AVERAGE(ChillTempAct[[#This Row],[ChillHigh]:[ChillLow]]) -> 48 | E77: =IF(ChillTempAct[[#This Row],[ChillAve]]<65,65-ChillTempAct[[#This Row],[ChillAve]],0) -> 17 | F77: =INDEX(TempAdj[AdjustPct],MATCH(MONTH(ChillTempAct[[#This Row],[Date]]),TempAdj[Month],0)) -> 0.1114 | G77: =ChillTempAct[[#This Row],[ChillHDD]]*(1+ChillTempAct[[#This Row],[ChillAdj]]) -> 18.8938 | H77: =SUMPRODUCT((RankNHDD[Month]=ChillTempAct[[#This Row],[Month]])*(RankNHDD[Rank]=ChillTempAct[[#This Row],[Rank]])*RankNHDD[KIRKNHDD]) -> 12.09173835 | I77: =YEAR(ChillTempAct[[#This Row],[Date]]) -> 2020 | J77: =MONTH(ChillTempAct[[#This Row],[Date]]) -> 10 | K77: =IF(ChillTempAct[[#This Row],[Month]]=J76,K76+1,1) -> 15 | L77: Temp data from NOAA website
A78: 44107 | B78: 60 | C78: 36 | D78: =AVERAGE(ChillTempAct[[#This Row],[ChillHigh]:[ChillLow]]) -> 48 | E78: =IF(ChillTempAct[[#This Row],[ChillAve]]<65,65-ChillTempAct[[#This Row],[ChillAve]],0) -> 17 | F78: =INDEX(TempAdj[AdjustPct],MATCH(MONTH(ChillTempAct[[#This Row],[Date]]),TempAdj[Month],0)) -> 0.1114 | G78: =ChillTempAct[[#This Row],[ChillHDD]]*(1+ChillTempAct[[#This Row],[ChillAdj]]) -> 18.8938 | H78: =SUMPRODUCT((RankNHDD[Month]=ChillTempAct[[#This Row],[Month]])*(RankNHDD[Rank]=ChillTempAct[[#This Row],[Rank]])*RankNHDD[KIRKNHDD]) -> 11.30677419 | I78: =YEAR(ChillTempAct[[#This Row],[Date]]) -> 2020 | J78: =MONTH(ChillTempAct[[#This Row],[Date]]) -> 10 | K78: =IF(ChillTempAct[[#This Row],[Month]]=J77,K77+1,1) -> 16 | L78: Temp data from NOAA website
A79: 44108 | B79: 59 | C79: 40 | D79: =AVERAGE(ChillTempAct[[#This Row],[ChillHigh]:[ChillLow]]) -> 49.5 | E79: =IF(ChillTempAct[[#This Row],[ChillAve]]<65,65-ChillTempAct[[#This Row],[ChillAve]],0) -> 15.5 | F79: =INDEX(TempAdj[AdjustPct],MATCH(MONTH(ChillTempAct[[#This Row],[Date]]),TempAdj[Month],0)) -> 0.1114 | G79: =ChillTempAct[[#This Row],[ChillHDD]]*(1+ChillTempAct[[#This Row],[ChillAdj]]) -> 17.2267 | H79: =SUMPRODUCT((RankNHDD[Month]=ChillTempAct[[#This Row],[Month]])*(RankNHDD[Rank]=ChillTempAct[[#This Row],[Rank]])*RankNHDD[KIRKNHDD]) -> 10.56017921 | I79: =YEAR(ChillTempAct[[#This Row],[Date]]) -> 2020 | J79: =MONTH(ChillTempAct[[#This Row],[Date]]) -> 10 | K79: =IF(ChillTempAct[[#This Row],[Month]]=J78,K78+1,1) -> 17 | L79: Temp data from NOAA website
A80: 44109 | B80: 59 | C80: 41 | D80: =AVERAGE(ChillTempAct[[#This Row],[ChillHigh]:[ChillLow]]) -> 50 | E80: =IF(ChillTempAct[[#This Row],[ChillAve]]<65,65-ChillTempAct[[#This Row],[ChillAve]],0) -> 15 | F80: =INDEX(TempAdj[AdjustPct],MATCH(MONTH(ChillTempAct[[#This Row],[Date]]),TempAdj[Month],0)) -> 0.1114 | G80: =ChillTempAct[[#This Row],[ChillHDD]]*(1+ChillTempAct[[#This Row],[ChillAdj]]) -> 16.671 | H80: =SUMPRODUCT((RankNHDD[Month]=ChillTempAct[[#This Row],[Month]])*(RankNHDD[Rank]=ChillTempAct[[#This Row],[Rank]])*RankNHDD[KIRKNHDD]) -> 9.687043011 | I80: =YEAR(ChillTempAct[[#This Row],[Date]]) -> 2020 | J80: =MONTH(ChillTempAct[[#This Row],[Date]]) -> 10 | K80: =IF(ChillTempAct[[#This Row],[Month]]=J79,K79+1,1) -> 18 | L80: Temp data from NOAA website
A81: 44110 | B81: 71 | C81: 41 | D81: =AVERAGE(ChillTempAct[[#This Row],[ChillHigh]:[ChillLow]]) -> 56 | E81: =IF(ChillTempAct[[#This Row],[ChillAve]]<65,65-ChillTempAct[[#This Row],[ChillAve]],0) -> 9 | F81: =INDEX(TempAdj[AdjustPct],MATCH(MONTH(ChillTempAct[[#This Row],[Date]]),TempAdj[Month],0)) -> 0.1114 | G81: =ChillTempAct[[#This Row],[ChillHDD]]*(1+ChillTempAct[[#This Row],[ChillAdj]]) -> 10.0026 | H81: =SUMPRODUCT((RankNHDD[Month]=ChillTempAct[[#This Row],[Month]])*(RankNHDD[Rank]=ChillTempAct[[#This Row],[Rank]])*RankNHDD[KIRKNHDD]) -> 8.902992832 | I81: =YEAR(ChillTempAct[[#This Row],[Date]]) -> 2020 | J81: =MONTH(ChillTempAct[[#This Row],[Date]]) -> 10 | K81: =IF(ChillTempAct[[#This Row],[Month]]=J80,K80+1,1) -> 19 | L81: Temp data from NOAA website
A82: 44105 | B82: 71 | C82: 42 | D82: =AVERAGE(ChillTempAct[[#This Row],[ChillHigh]:[ChillLow]]) -> 56.5 | E82: =IF(ChillTempAct[[#This Row],[ChillAve]]<65,65-ChillTempAct[[#This Row],[ChillAve]],0) -> 8.5 | F82: =INDEX(TempAdj[AdjustPct],MATCH(MONTH(ChillTempAct[[#This Row],[Date]]),TempAdj[Month],0)) -> 0.1114 | G82: =ChillTempAct[[#This Row],[ChillHDD]]*(1+ChillTempAct[[#This Row],[ChillAdj]]) -> 9.4469 | H82: =SUMPRODUCT((RankNHDD[Month]=ChillTempAct[[#This Row],[Month]])*(RankNHDD[Rank]=ChillTempAct[[#This Row],[Rank]])*RankNHDD[KIRKNHDD]) -> 8.11016129 | I82: =YEAR(ChillTempAct[[#This Row],[Date]]) -> 2020 | J82: =MONTH(ChillTempAct[[#This Row],[Date]]) -> 10 | K82: =IF(ChillTempAct[[#This Row],[Month]]=J81,K81+1,1) -> 20 | L82: Temp data from NOAA website
A83: 44117 | B83: 70 | C83: 43 | D83: =AVERAGE(ChillTempAct[[#This Row],[ChillHigh]:[ChillLow]]) -> 56.5 | E83: =IF(ChillTempAct[[#This Row],[ChillAve]]<65,65-ChillTempAct[[#This Row],[ChillAve]],0) -> 8.5 | F83: =INDEX(TempAdj[AdjustPct],MATCH(MONTH(ChillTempAct[[#This Row],[Date]]),TempAdj[Month],0)) -> 0.1114 | G83: =ChillTempAct[[#This Row],[ChillHDD]]*(1+ChillTempAct[[#This Row],[ChillAdj]]) -> 9.4469 | H83: =SUMPRODUCT((RankNHDD[Month]=ChillTempAct[[#This Row],[Month]])*(RankNHDD[Rank]=ChillTempAct[[#This Row],[Rank]])*RankNHDD[KIRKNHDD]) -> 7.22483871 | I83: =YEAR(ChillTempAct[[#This Row],[Date]]) -> 2020 | J83: =MONTH(ChillTempAct[[#This Row],[Date]]) -> 10 | K83: =IF(ChillTempAct[[#This Row],[Month]]=J82,K82+1,1) -> 21 | L83: Temp data from NOAA website
A84: 44122 | B84: 72 | C84: 42 | D84: =AVERAGE(ChillTempAct[[#This Row],[ChillHigh]:[ChillLow]]) -> 57 | E84: =IF(ChillTempAct[[#This Row],[ChillAve]]<65,65-ChillTempAct[[#This Row],[ChillAve]],0) -> 8 | F84: =INDEX(TempAdj[AdjustPct],MATCH(MONTH(ChillTempAct[[#This Row],[Date]]),TempAdj[Month],0)) -> 0.1114 | G84: =ChillTempAct[[#This Row],[ChillHDD]]*(1+ChillTempAct[[#This Row],[ChillAdj]]) -> 8.8912 | H84: =SUMPRODUCT((RankNHDD[Month]=ChillTempAct[[#This Row],[Month]])*(RankNHDD[Rank]=ChillTempAct[[#This Row],[Rank]])*RankNHDD[KIRKNHDD]) -> 6.035394265 | I84: =YEAR(ChillTempAct[[#This Row],[Date]]) -> 2020 | J84: =MONTH(ChillTempAct[[#This Row],[Date]]) -> 10 | K84: =IF(ChillTempAct[[#This Row],[Month]]=J83,K83+1,1) -> 22 | L84: Temp data from NOAA website
A85: 44127 | B85: 84 | C85: 36 | D85: =AVERAGE(ChillTempAct[[#This Row],[ChillHigh]:[ChillLow]]) -> 60 | E85: =IF(ChillTempAct[[#This Row],[ChillAve]]<65,65-ChillTempAct[[#This Row],[ChillAve]],0) -> 5 | F85: =INDEX(TempAdj[AdjustPct],MATCH(MONTH(ChillTempAct[[#This Row],[Date]]),TempAdj[Month],0)) -> 0.1114 | G85: =ChillTempAct[[#This Row],[ChillHDD]]*(1+ChillTempAct[[#This Row],[ChillAdj]]) -> 5.557 | H85: =SUMPRODUCT((RankNHDD[Month]=ChillTempAct[[#This Row],[Month]])*(RankNHDD[Rank]=ChillTempAct[[#This Row],[Rank]])*RankNHDD[KIRKNHDD]) -> 5.054605735 | I85: =YEAR(ChillTempAct[[#This Row],[Date]]) -> 2020 | J85: =MONTH(ChillTempAct[[#This Row],[Date]]) -> 10 | K85: =IF(ChillTempAct[[#This Row],[Month]]=J84,K84+1,1) -> 23 | L85: Temp data from NOAA website
A86: 44118 | B86: 77 | C86: 46 | D86: =AVERAGE(ChillTempAct[[#This Row],[ChillHigh]:[ChillLow]]) -> 61.5 | E86: =IF(ChillTempAct[[#This Row],[ChillAve]]<65,65-ChillTempAct[[#This Row],[ChillAve]],0) -> 3.5 | F86: =INDEX(TempAdj[AdjustPct],MATCH(MONTH(ChillTempAct[[#This Row],[Date]]),TempAdj[Month],0)) -> 0.1114 | G86: =ChillTempAct[[#This Row],[ChillHDD]]*(1+ChillTempAct[[#This Row],[ChillAdj]]) -> 3.8899 | H86: =SUMPRODUCT((RankNHDD[Month]=ChillTempAct[[#This Row],[Month]])*(RankNHDD[Rank]=ChillTempAct[[#This Row],[Rank]])*RankNHDD[KIRKNHDD]) -> 3.94188172 | I86: =YEAR(ChillTempAct[[#This Row],[Date]]) -> 2020 | J86: =MONTH(ChillTempAct[[#This Row],[Date]]) -> 10 | K86: =IF(ChillTempAct[[#This Row],[Month]]=J85,K85+1,1) -> 24 | L86: Temp data from NOAA website
A87: 44111 | B87: 81 | C87: 47 | D87: =AVERAGE(ChillTempAct[[#This Row],[ChillHigh]:[ChillLow]]) -> 64 | E87: =IF(ChillTempAct[[#This Row],[ChillAve]]<65,65-ChillTempAct[[#This Row],[ChillAve]],0) -> 1 | F87: =INDEX(TempAdj[AdjustPct],MATCH(MONTH(ChillTempAct[[#This Row],[Date]]),TempAdj[Month],0)) -> 0.1114 | G87: =ChillTempAct[[#This Row],[ChillHDD]]*(1+ChillTempAct[[#This Row],[ChillAdj]]) -> 1.1114 | H87: =SUMPRODUCT((RankNHDD[Month]=ChillTempAct[[#This Row],[Month]])*(RankNHDD[Rank]=ChillTempAct[[#This Row],[Rank]])*RankNHDD[KIRKNHDD]) -> 2.979551971 | I87: =YEAR(ChillTempAct[[#This Row],[Date]]) -> 2020 | J87: =MONTH(ChillTempAct[[#This Row],[Date]]) -> 10 | K87: =IF(ChillTempAct[[#This Row],[Month]]=J86,K86+1,1) -> 25 | L87: Temp data from NOAA website
A88: 44119 | B88: 82 | C88: 48 | D88: =AVERAGE(ChillTempAct[[#This Row],[ChillHigh]:[ChillLow]]) -> 65 | E88: =IF(ChillTempAct[[#This Row],[ChillAve]]<65,65-ChillTempAct[[#This Row],[ChillAve]],0) -> 0 | F88: =INDEX(TempAdj[AdjustPct],MATCH(MONTH(ChillTempAct[[#This Row],[Date]]),TempAdj[Month],0)) -> 0.1114 | G88: =ChillTempAct[[#This Row],[ChillHDD]]*(1+ChillTempAct[[#This Row],[ChillAdj]]) -> 0 | H88: =SUMPRODUCT((RankNHDD[Month]=ChillTempAct[[#This Row],[Month]])*(RankNHDD[Rank]=ChillTempAct[[#This Row],[Rank]])*RankNHDD[KIRKNHDD]) -> 1.770896057 | I88: =YEAR(ChillTempAct[[#This Row],[Date]]) -> 2020 | J88: =MONTH(ChillTempAct[[#This Row],[Date]]) -> 10 | K88: =IF(ChillTempAct[[#This Row],[Month]]=J87,K87+1,1) -> 26 | L88: Temp data from NOAA website
A89: 44112 | B89: 85 | C89: 53 | D89: =AVERAGE(ChillTempAct[[#This Row],[ChillHigh]:[ChillLow]]) -> 69 | E89: =IF(ChillTempAct[[#This Row],[ChillAve]]<65,65-ChillTempAct[[#This Row],[ChillAve]],0) -> 0 | F89: =INDEX(TempAdj[AdjustPct],MATCH(MONTH(ChillTempAct[[#This Row],[Date]]),TempAdj[Month],0)) -> 0.1114 | G89: =ChillTempAct[[#This Row],[ChillHDD]]*(1+ChillTempAct[[#This Row],[ChillAdj]]) -> 0 | H89: =SUMPRODUCT((RankNHDD[Month]=ChillTempAct[[#This Row],[Month]])*(RankNHDD[Rank]=ChillTempAct[[#This Row],[Rank]])*RankNHDD[KIRKNHDD]) -> 0.6302688172 | I89: =YEAR(ChillTempAct[[#This Row],[Date]]) -> 2020 | J89: =MONTH(ChillTempAct[[#This Row],[Date]]) -> 10 | K89: =IF(ChillTempAct[[#This Row],[Month]]=J88,K88+1,1) -> 27 | L89: Temp data from NOAA website
A90: 44113 | B90: 83 | C90: 56 | D90: =AVERAGE(ChillTempAct[[#This Row],[ChillHigh]:[ChillLow]]) -> 69.5 | E90: =IF(ChillTempAct[[#This Row],[ChillAve]]<65,65-ChillTempAct[[#This Row],[ChillAve]],0) -> 0 | F90: =INDEX(TempAdj[AdjustPct],MATCH(MONTH(ChillTempAct[[#This Row],[Date]]),TempAdj[Month],0)) -> 0.1114 | G90: =ChillTempAct[[#This Row],[ChillHDD]]*(1+ChillTempAct[[#This Row],[ChillAdj]]) -> 0 | H90: =SUMPRODUCT((RankNHDD[Month]=ChillTempAct[[#This Row],[Month]])*(RankNHDD[Rank]=ChillTempAct[[#This Row],[Rank]])*RankNHDD[KIRKNHDD]) -> 0 | I90: =YEAR(ChillTempAct[[#This Row],[Date]]) -> 2020 | J90: =MONTH(ChillTempAct[[#This Row],[Date]]) -> 10 | K90: =IF(ChillTempAct[[#This Row],[Month]]=J89,K89+1,1) -> 28 | L90: Temp data from NOAA website
A91: 44114 | B91: 82 | C91: 57 | D91: =AVERAGE(ChillTempAct[[#This Row],[ChillHigh]:[ChillLow]]) -> 69.5 | E91: =IF(ChillTempAct[[#This Row],[ChillAve]]<65,65-ChillTempAct[[#This Row],[ChillAve]],0) -> 0 | F91: =INDEX(TempAdj[AdjustPct],MATCH(MONTH(ChillTempAct[[#This Row],[Date]]),TempAdj[Month],0)) -> 0.1114 | G91: =ChillTempAct[[#This Row],[ChillHDD]]*(1+ChillTempAct[[#This Row],[ChillAdj]]) -> 0 | H91: =SUMPRODUCT((RankNHDD[Month]=ChillTempAct[[#This Row],[Month]])*(RankNHDD[Rank]=ChillTempAct[[#This Row],[Rank]])*RankNHDD[KIRKNHDD]) -> 0 | I91: =YEAR(ChillTempAct[[#This Row],[Date]]) -> 2020 | J91: =MONTH(ChillTempAct[[#This Row],[Date]]) -> 10 | K91: =IF(ChillTempAct[[#This Row],[Month]]=J90,K90+1,1) -> 29 | L91: Temp data from NOAA website
A92: 44115 | B92: 83 | C92: 57 | D92: =AVERAGE(ChillTempAct[[#This Row],[ChillHigh]:[ChillLow]]) -> 70 | E92: =IF(ChillTempAct[[#This Row],[ChillAve]]<65,65-ChillTempAct[[#This Row],[ChillAve]],0) -> 0 | F92: =INDEX(TempAdj[AdjustPct],MATCH(MONTH(ChillTempAct[[#This Row],[Date]]),TempAdj[Month],0)) -> 0.1114 | G92: =ChillTempAct[[#This Row],[ChillHDD]]*(1+ChillTempAct[[#This Row],[ChillAdj]]) -> 0 | H92: =SUMPRODUCT((RankNHDD[Month]=ChillTempAct[[#This Row],[Month]])*(RankNHDD[Rank]=ChillTempAct[[#This Row],[Rank]])*RankNHDD[KIRKNHDD]) -> 0 | I92: =YEAR(ChillTempAct[[#This Row],[Date]]) -> 2020 | J92: =MONTH(ChillTempAct[[#This Row],[Date]]) -> 10 | K92: =IF(ChillTempAct[[#This Row],[Month]]=J91,K91+1,1) -> 30 | L92: Temp data from NOAA website
A93: 44116 | B93: 85 | C93: 55 | D93: =AVERAGE(ChillTempAct[[#This Row],[ChillHigh]:[ChillLow]]) -> 70 | E93: =IF(ChillTempAct[[#This Row],[ChillAve]]<65,65-ChillTempAct[[#This Row],[ChillAve]],0) -> 0 | F93: =INDEX(TempAdj[AdjustPct],MATCH(MONTH(ChillTempAct[[#This Row],[Date]]),TempAdj[Month],0)) -> 0.1114 | G93: =ChillTempAct[[#This Row],[ChillHDD]]*(1+ChillTempAct[[#This Row],[ChillAdj]]) -> 0 | H93: =SUMPRODUCT((RankNHDD[Month]=ChillTempAct[[#This Row],[Month]])*(RankNHDD[Rank]=ChillTempAct[[#This Row],[Rank]])*RankNHDD[KIRKNHDD]) -> 0 | I93: =YEAR(ChillTempAct[[#This Row],[Date]]) -> 2020 | J93: =MONTH(ChillTempAct[[#This Row],[Date]]) -> 10 | K93: =IF(ChillTempAct[[#This Row],[Month]]=J92,K92+1,1) -> 31 | L93: Temp data from NOAA website
A94: 44165 | B94: 43 | C94: 20 | D94: =AVERAGE(ChillTempAct[[#This Row],[ChillHigh]:[ChillLow]]) -> 31.5 | E94: =IF(ChillTempAct[[#This Row],[ChillAve]]<65,65-ChillTempAct[[#This Row],[ChillAve]],0) -> 33.5 | F94: =INDEX(TempAdj[AdjustPct],MATCH(MONTH(ChillTempAct[[#This Row],[Date]]),TempAdj[Month],0)) -> 0.0426 | G94: =ChillTempAct[[#This Row],[ChillHDD]]*(1+ChillTempAct[[#This Row],[ChillAdj]]) -> 34.9271 | H94: =SUMPRODUCT((RankNHDD[Month]=ChillTempAct[[#This Row],[Month]])*(RankNHDD[Rank]=ChillTempAct[[#This Row],[Rank]])*RankNHDD[KIRKNHDD]) -> 47.15166667 | I94: =YEAR(ChillTempAct[[#This Row],[Date]]) -> 2020 | J94: =MONTH(ChillTempAct[[#This Row],[Date]]) -> 11 | K94: =IF(ChillTempAct[[#This Row],[Month]]=J93,K93+1,1) -> 1 | L94: Temp data from NOAA website
A95: 44149 | B95: 45 | C95: 22 | D95: =AVERAGE(ChillTempAct[[#This Row],[ChillHigh]:[ChillLow]]) -> 33.5 | E95: =IF(ChillTempAct[[#This Row],[ChillAve]]<65,65-ChillTempAct[[#This Row],[ChillAve]],0) -> 31.5 | F95: =INDEX(TempAdj[AdjustPct],MATCH(MONTH(ChillTempAct[[#This Row],[Date]]),TempAdj[Month],0)) -> 0.0426 | G95: =ChillTempAct[[#This Row],[ChillHDD]]*(1+ChillTempAct[[#This Row],[ChillAdj]]) -> 32.8419 | H95: =SUMPRODUCT((RankNHDD[Month]=ChillTempAct[[#This Row],[Month]])*(RankNHDD[Rank]=ChillTempAct[[#This Row],[Rank]])*RankNHDD[KIRKNHDD]) -> 41.10722222 | I95: =YEAR(ChillTempAct[[#This Row],[Date]]) -> 2020 | J95: =MONTH(ChillTempAct[[#This Row],[Date]]) -> 11 | K95: =IF(ChillTempAct[[#This Row],[Month]]=J94,K94+1,1) -> 2 | L95: Temp data from NOAA website
A96: 44159 | B96: 42 | C96: 26 | D96: =AVERAGE(ChillTempAct[[#This Row],[ChillHigh]:[ChillLow]]) -> 34 | E96: =IF(ChillTempAct[[#This Row],[ChillAve]]<65,65-ChillTempAct[[#This Row],[ChillAve]],0) -> 31 | F96: =INDEX(TempAdj[AdjustPct],MATCH(MONTH(ChillTempAct[[#This Row],[Date]]),TempAdj[Month],0)) -> 0.0426 | G96: =ChillTempAct[[#This Row],[ChillHDD]]*(1+ChillTempAct[[#This Row],[ChillAdj]]) -> 32.3206 | H96: =SUMPRODUCT((RankNHDD[Month]=ChillTempAct[[#This Row],[Month]])*(RankNHDD[Rank]=ChillTempAct[[#This Row],[Rank]])*RankNHDD[KIRKNHDD]) -> 38.46814815 | I96: =YEAR(ChillTempAct[[#This Row],[Date]]) -> 2020 | J96: =MONTH(ChillTempAct[[#This Row],[Date]]) -> 11 | K96: =IF(ChillTempAct[[#This Row],[Month]]=J95,K95+1,1) -> 3 | L96: Temp data from NOAA website
A97: 44137 | B97: 48 | C97: 24 | D97: =AVERAGE(ChillTempAct[[#This Row],[ChillHigh]:[ChillLow]]) -> 36 | E97: =IF(ChillTempAct[[#This Row],[ChillAve]]<65,65-ChillTempAct[[#This Row],[ChillAve]],0) -> 29 | F97: =INDEX(TempAdj[AdjustPct],MATCH(MONTH(ChillTempAct[[#This Row],[Date]]),TempAdj[Month],0)) -> 0.0426 | G97: =ChillTempAct[[#This Row],[ChillHDD]]*(1+ChillTempAct[[#This Row],[ChillAdj]]) -> 30.2354 | H97: =SUMPRODUCT((RankNHDD[Month]=ChillTempAct[[#This Row],[Month]])*(RankNHDD[Rank]=ChillTempAct[[#This Row],[Rank]])*RankNHDD[KIRKNHDD]) -> 36.3112963 | I97: =YEAR(ChillTempAct[[#This Row],[Date]]) -> 2020 | J97: =MONTH(ChillTempAct[[#This Row],[Date]]) -> 11 | K97: =IF(ChillTempAct[[#This Row],[Month]]=J96,K96+1,1) -> 4 | L97: Temp data from NOAA website
A98: 44161 | B98: 44 | C98: 31 | D98: =AVERAGE(ChillTempAct[[#This Row],[ChillHigh]:[ChillLow]]) -> 37.5 | E98: =IF(ChillTempAct[[#This Row],[ChillAve]]<65,65-ChillTempAct[[#This Row],[ChillAve]],0) -> 27.5 | F98: =INDEX(TempAdj[AdjustPct],MATCH(MONTH(ChillTempAct[[#This Row],[Date]]),TempAdj[Month],0)) -> 0.0426 | G98: =ChillTempAct[[#This Row],[ChillHDD]]*(1+ChillTempAct[[#This Row],[ChillAdj]]) -> 28.6715 | H98: =SUMPRODUCT((RankNHDD[Month]=ChillTempAct[[#This Row],[Month]])*(RankNHDD[Rank]=ChillTempAct[[#This Row],[Rank]])*RankNHDD[KIRKNHDD]) -> 34.69555556 | I98: =YEAR(ChillTempAct[[#This Row],[Date]]) -> 2020 | J98: =MONTH(ChillTempAct[[#This Row],[Date]]) -> 11 | K98: =IF(ChillTempAct[[#This Row],[Month]]=J97,K97+1,1) -> 5 | L98: Temp data from NOAA website
A99: 44146 | B99: 51 | C99: 26 | D99: =AVERAGE(ChillTempAct[[#This Row],[ChillHigh]:[ChillLow]]) -> 38.5 | E99: =IF(ChillTempAct[[#This Row],[ChillAve]]<65,65-ChillTempAct[[#This Row],[ChillAve]],0) -> 26.5 | F99: =INDEX(TempAdj[AdjustPct],MATCH(MONTH(ChillTempAct[[#This Row],[Date]]),TempAdj[Month],0)) -> 0.0426 | G99: =ChillTempAct[[#This Row],[ChillHDD]]*(1+ChillTempAct[[#This Row],[ChillAdj]]) -> 27.6289 | H99: =SUMPRODUCT((RankNHDD[Month]=ChillTempAct[[#This Row],[Month]])*(RankNHDD[Rank]=ChillTempAct[[#This Row],[Rank]])*RankNHDD[KIRKNHDD]) -> 33.24481481 | I99: =YEAR(ChillTempAct[[#This Row],[Date]]) -> 2020 | J99: =MONTH(ChillTempAct[[#This Row],[Date]]) -> 11 | K99: =IF(ChillTempAct[[#This Row],[Month]]=J98,K98+1,1) -> 6 | L99: Temp data from NOAA website
A100: 44158 | B100: 53 | C100: 25 | D100: =AVERAGE(ChillTempAct[[#This Row],[ChillHigh]:[ChillLow]]) -> 39 | E100: =IF(ChillTempAct[[#This Row],[ChillAve]]<65,65-ChillTempAct[[#This Row],[ChillAve]],0) -> 26 | F100: =INDEX(TempAdj[AdjustPct],MATCH(MONTH(ChillTempAct[[#This Row],[Date]]),TempAdj[Month],0)) -> 0.0426 | G100: =ChillTempAct[[#This Row],[ChillHDD]]*(1+ChillTempAct[[#This Row],[ChillAdj]]) -> 27.1076 | H100: =SUMPRODUCT((RankNHDD[Month]=ChillTempAct[[#This Row],[Month]])*(RankNHDD[Rank]=ChillTempAct[[#This Row],[Rank]])*RankNHDD[KIRKNHDD]) -> 31.98425926 | I100: =YEAR(ChillTempAct[[#This Row],[Date]]) -> 2020 | J100: =MONTH(ChillTempAct[[#This Row],[Date]]) -> 11 | K100: =IF(ChillTempAct[[#This Row],[Month]]=J99,K99+1,1) -> 7 | L100: Temp data from NOAA website
A101: 44148 | B101: 59 | C101: 21 | D101: =AVERAGE(ChillTempAct[[#This Row],[ChillHigh]:[ChillLow]]) -> 40 | E101: =IF(ChillTempAct[[#This Row],[ChillAve]]<65,65-ChillTempAct[[#This Row],[ChillAve]],0) -> 25 | F101: =INDEX(TempAdj[AdjustPct],MATCH(MONTH(ChillTempAct[[#This Row],[Date]]),TempAdj[Month],0)) -> 0.0426 | G101: =ChillTempAct[[#This Row],[ChillHDD]]*(1+ChillTempAct[[#This Row],[ChillAdj]]) -> 26.065 | H101: =SUMPRODUCT((RankNHDD[Month]=ChillTempAct[[#This Row],[Month]])*(RankNHDD[Rank]=ChillTempAct[[#This Row],[Rank]])*RankNHDD[KIRKNHDD]) -> 30.96074074 | I101: =YEAR(ChillTempAct[[#This Row],[Date]]) -> 2020 | J101: =MONTH(ChillTempAct[[#This Row],[Date]]) -> 11 | K101: =IF(ChillTempAct[[#This Row],[Month]]=J100,K100+1,1) -> 8 | L101: Temp data from NOAA website
A102: 44151 | B102: 52 | C102: 28 | D102: =AVERAGE(ChillTempAct[[#This Row],[ChillHigh]:[ChillLow]]) -> 40 | E102: =IF(ChillTempAct[[#This Row],[ChillAve]]<65,65-ChillTempAct[[#This Row],[ChillAve]],0) -> 25 | F102: =INDEX(TempAdj[AdjustPct],MATCH(MONTH(ChillTempAct[[#This Row],[Date]]),TempAdj[Month],0)) -> 0.0426 | G102: =ChillTempAct[[#This Row],[ChillHDD]]*(1+ChillTempAct[[#This Row],[ChillAdj]]) -> 26.065 | H102: =SUMPRODUCT((RankNHDD[Month]=ChillTempAct[[#This Row],[Month]])*(RankNHDD[Rank]=ChillTempAct[[#This Row],[Rank]])*RankNHDD[KIRKNHDD]) -> 29.91111111 | I102: =YEAR(ChillTempAct[[#This Row],[Date]]) -> 2020 | J102: =MONTH(ChillTempAct[[#This Row],[Date]]) -> 11 | K102: =IF(ChillTempAct[[#This Row],[Month]]=J101,K101+1,1) -> 9 | L102: Temp data from NOAA website
A103: 44163 | B103: 50 | C103: 30 | D103: =AVERAGE(ChillTempAct[[#This Row],[ChillHigh]:[ChillLow]]) -> 40 | E103: =IF(ChillTempAct[[#This Row],[ChillAve]]<65,65-ChillTempAct[[#This Row],[ChillAve]],0) -> 25 | F103: =INDEX(TempAdj[AdjustPct],MATCH(MONTH(ChillTempAct[[#This Row],[Date]]),TempAdj[Month],0)) -> 0.0426 | G103: =ChillTempAct[[#This Row],[ChillHDD]]*(1+ChillTempAct[[#This Row],[ChillAdj]]) -> 26.065 | H103: =SUMPRODUCT((RankNHDD[Month]=ChillTempAct[[#This Row],[Month]])*(RankNHDD[Rank]=ChillTempAct[[#This Row],[Rank]])*RankNHDD[KIRKNHDD]) -> 28.92925926 | I103: =YEAR(ChillTempAct[[#This Row],[Date]]) -> 2020 | J103: =MONTH(ChillTempAct[[#This Row],[Date]]) -> 11 | K103: =IF(ChillTempAct[[#This Row],[Month]]=J102,K102+1,1) -> 10 | L103: Temp data from NOAA website
A104: 44153 | B104: 50 | C104: 31 | D104: =AVERAGE(ChillTempAct[[#This Row],[ChillHigh]:[ChillLow]]) -> 40.5 | E104: =IF(ChillTempAct[[#This Row],[ChillAve]]<65,65-ChillTempAct[[#This Row],[ChillAve]],0) -> 24.5 | F104: =INDEX(TempAdj[AdjustPct],MATCH(MONTH(ChillTempAct[[#This Row],[Date]]),TempAdj[Month],0)) -> 0.0426 | G104: =ChillTempAct[[#This Row],[ChillHDD]]*(1+ChillTempAct[[#This Row],[ChillAdj]]) -> 25.5437 | H104: =SUMPRODUCT((RankNHDD[Month]=ChillTempAct[[#This Row],[Month]])*(RankNHDD[Rank]=ChillTempAct[[#This Row],[Rank]])*RankNHDD[KIRKNHDD]) -> 27.71962963 | I104: =YEAR(ChillTempAct[[#This Row],[Date]]) -> 2020 | J104: =MONTH(ChillTempAct[[#This Row],[Date]]) -> 11 | K104: =IF(ChillTempAct[[#This Row],[Month]]=J103,K103+1,1) -> 11 | L104: Temp data from NOAA website
A105: 44157 | B105: 46 | C105: 37 | D105: =AVERAGE(ChillTempAct[[#This Row],[ChillHigh]:[ChillLow]]) -> 41.5 | E105: =IF(ChillTempAct[[#This Row],[ChillAve]]<65,65-ChillTempAct[[#This Row],[ChillAve]],0) -> 23.5 | F105: =INDEX(TempAdj[AdjustPct],MATCH(MONTH(ChillTempAct[[#This Row],[Date]]),TempAdj[Month],0)) -> 0.0426 | G105: =ChillTempAct[[#This Row],[ChillHDD]]*(1+ChillTempAct[[#This Row],[ChillAdj]]) -> 24.5011 | H105: =SUMPRODUCT((RankNHDD[Month]=ChillTempAct[[#This Row],[Month]])*(RankNHDD[Rank]=ChillTempAct[[#This Row],[Rank]])*RankNHDD[KIRKNHDD]) -> 26.55111111 | I105: =YEAR(ChillTempAct[[#This Row],[Date]]) -> 2020 | J105: =MONTH(ChillTempAct[[#This Row],[Date]]) -> 11 | K105: =IF(ChillTempAct[[#This Row],[Month]]=J104,K104+1,1) -> 12 | L105: Temp data from NOAA website
A106: 44147 | B106: 54 | C106: 30 | D106: =AVERAGE(ChillTempAct[[#This Row],[ChillHigh]:[ChillLow]]) -> 42 | E106: =IF(ChillTempAct[[#This Row],[ChillAve]]<65,65-ChillTempAct[[#This Row],[ChillAve]],0) -> 23 | F106: =INDEX(TempAdj[AdjustPct],MATCH(MONTH(ChillTempAct[[#This Row],[Date]]),TempAdj[Month],0)) -> 0.0426 | G106: =ChillTempAct[[#This Row],[ChillHDD]]*(1+ChillTempAct[[#This Row],[ChillAdj]]) -> 23.9798 | H106: =SUMPRODUCT((RankNHDD[Month]=ChillTempAct[[#This Row],[Month]])*(RankNHDD[Rank]=ChillTempAct[[#This Row],[Rank]])*RankNHDD[KIRKNHDD]) -> 25.42037037 | I106: =YEAR(ChillTempAct[[#This Row],[Date]]) -> 2020 | J106: =MONTH(ChillTempAct[[#This Row],[Date]]) -> 11 | K106: =IF(ChillTempAct[[#This Row],[Month]]=J105,K105+1,1) -> 13 | L106: Temp data from NOAA website
A107: 44162 | B107: 53 | C107: 33 | D107: =AVERAGE(ChillTempAct[[#This Row],[ChillHigh]:[ChillLow]]) -> 43 | E107: =IF(ChillTempAct[[#This Row],[ChillAve]]<65,65-ChillTempAct[[#This Row],[ChillAve]],0) -> 22 | F107: =INDEX(TempAdj[AdjustPct],MATCH(MONTH(ChillTempAct[[#This Row],[Date]]),TempAdj[Month],0)) -> 0.0426 | G107: =ChillTempAct[[#This Row],[ChillHDD]]*(1+ChillTempAct[[#This Row],[ChillAdj]]) -> 22.9372 | H107: =SUMPRODUCT((RankNHDD[Month]=ChillTempAct[[#This Row],[Month]])*(RankNHDD[Rank]=ChillTempAct[[#This Row],[Rank]])*RankNHDD[KIRKNHDD]) -> 24.46351852 | I107: =YEAR(ChillTempAct[[#This Row],[Date]]) -> 2020 | J107: =MONTH(ChillTempAct[[#This Row],[Date]]) -> 11 | K107: =IF(ChillTempAct[[#This Row],[Month]]=J106,K106+1,1) -> 14 | L107: Temp data from NOAA website
A108: 44152 | B108: 62 | C108: 27 | D108: =AVERAGE(ChillTempAct[[#This Row],[ChillHigh]:[ChillLow]]) -> 44.5 | E108: =IF(ChillTempAct[[#This Row],[ChillAve]]<65,65-ChillTempAct[[#This Row],[ChillAve]],0) -> 20.5 | F108: =INDEX(TempAdj[AdjustPct],MATCH(MONTH(ChillTempAct[[#This Row],[Date]]),TempAdj[Month],0)) -> 0.0426 | G108: =ChillTempAct[[#This Row],[ChillHDD]]*(1+ChillTempAct[[#This Row],[ChillAdj]]) -> 21.3733 | H108: =SUMPRODUCT((RankNHDD[Month]=ChillTempAct[[#This Row],[Month]])*(RankNHDD[Rank]=ChillTempAct[[#This Row],[Rank]])*RankNHDD[KIRKNHDD]) -> 23.60925926 | I108: =YEAR(ChillTempAct[[#This Row],[Date]]) -> 2020 | J108: =MONTH(ChillTempAct[[#This Row],[Date]]) -> 11 | K108: =IF(ChillTempAct[[#This Row],[Month]]=J107,K107+1,1) -> 15 | L108: Temp data from NOAA website
A109: 44164 | B109: 57 | C109: 32 | D109: =AVERAGE(ChillTempAct[[#This Row],[ChillHigh]:[ChillLow]]) -> 44.5 | E109: =IF(ChillTempAct[[#This Row],[ChillAve]]<65,65-ChillTempAct[[#This Row],[ChillAve]],0) -> 20.5 | F109: =INDEX(TempAdj[AdjustPct],MATCH(MONTH(ChillTempAct[[#This Row],[Date]]),TempAdj[Month],0)) -> 0.0426 | G109: =ChillTempAct[[#This Row],[ChillHDD]]*(1+ChillTempAct[[#This Row],[ChillAdj]]) -> 21.3733 | H109: =SUMPRODUCT((RankNHDD[Month]=ChillTempAct[[#This Row],[Month]])*(RankNHDD[Rank]=ChillTempAct[[#This Row],[Rank]])*RankNHDD[KIRKNHDD]) -> 22.75981481 | I109: =YEAR(ChillTempAct[[#This Row],[Date]]) -> 2020 | J109: =MONTH(ChillTempAct[[#This Row],[Date]]) -> 11 | K109: =IF(ChillTempAct[[#This Row],[Month]]=J108,K108+1,1) -> 16 | L109: Temp data from NOAA website
A110: 44138 | B110: 65 | C110: 28 | D110: =AVERAGE(ChillTempAct[[#This Row],[ChillHigh]:[ChillLow]]) -> 46.5 | E110: =IF(ChillTempAct[[#This Row],[ChillAve]]<65,65-ChillTempAct[[#This Row],[ChillAve]],0) -> 18.5 | F110: =INDEX(TempAdj[AdjustPct],MATCH(MONTH(ChillTempAct[[#This Row],[Date]]),TempAdj[Month],0)) -> 0.0426 | G110: =ChillTempAct[[#This Row],[ChillHDD]]*(1+ChillTempAct[[#This Row],[ChillAdj]]) -> 19.2881 | H110: =SUMPRODUCT((RankNHDD[Month]=ChillTempAct[[#This Row],[Month]])*(RankNHDD[Rank]=ChillTempAct[[#This Row],[Rank]])*RankNHDD[KIRKNHDD]) -> 22.06425926 | I110: =YEAR(ChillTempAct[[#This Row],[Date]]) -> 2020 | J110: =MONTH(ChillTempAct[[#This Row],[Date]]) -> 11 | K110: =IF(ChillTempAct[[#This Row],[Month]]=J109,K109+1,1) -> 17 | L110: Temp data from NOAA website
A111: 44160 | B111: 51 | C111: 42 | D111: =AVERAGE(ChillTempAct[[#This Row],[ChillHigh]:[ChillLow]]) -> 46.5 | E111: =IF(ChillTempAct[[#This Row],[ChillAve]]<65,65-ChillTempAct[[#This Row],[ChillAve]],0) -> 18.5 | F111: =INDEX(TempAdj[AdjustPct],MATCH(MONTH(ChillTempAct[[#This Row],[Date]]),TempAdj[Month],0)) -> 0.0426 | G111: =ChillTempAct[[#This Row],[ChillHDD]]*(1+ChillTempAct[[#This Row],[ChillAdj]]) -> 19.2881 | H111: =SUMPRODUCT((RankNHDD[Month]=ChillTempAct[[#This Row],[Month]])*(RankNHDD[Rank]=ChillTempAct[[#This Row],[Rank]])*RankNHDD[KIRKNHDD]) -> 21.27277778 | I111: =YEAR(ChillTempAct[[#This Row],[Date]]) -> 2020 | J111: =MONTH(ChillTempAct[[#This Row],[Date]]) -> 11 | K111: =IF(ChillTempAct[[#This Row],[Month]]=J110,K110+1,1) -> 18 | L111: Temp data from NOAA website
A112: 44156 | B112: 56 | C112: 39 | D112: =AVERAGE(ChillTempAct[[#This Row],[ChillHigh]:[ChillLow]]) -> 47.5 | E112: =IF(ChillTempAct[[#This Row],[ChillAve]]<65,65-ChillTempAct[[#This Row],[ChillAve]],0) -> 17.5 | F112: =INDEX(TempAdj[AdjustPct],MATCH(MONTH(ChillTempAct[[#This Row],[Date]]),TempAdj[Month],0)) -> 0.0426 | G112: =ChillTempAct[[#This Row],[ChillHDD]]*(1+ChillTempAct[[#This Row],[ChillAdj]]) -> 18.2455 | H112: =SUMPRODUCT((RankNHDD[Month]=ChillTempAct[[#This Row],[Month]])*(RankNHDD[Rank]=ChillTempAct[[#This Row],[Rank]])*RankNHDD[KIRKNHDD]) -> 20.59444444 | I112: =YEAR(ChillTempAct[[#This Row],[Date]]) -> 2020 | J112: =MONTH(ChillTempAct[[#This Row],[Date]]) -> 11 | K112: =IF(ChillTempAct[[#This Row],[Month]]=J111,K111+1,1) -> 19 | L112: Temp data from NOAA website
A113: 44150 | B113: 62 | C113: 38 | D113: =AVERAGE(ChillTempAct[[#This Row],[ChillHigh]:[ChillLow]]) -> 50 | E113: =IF(ChillTempAct[[#This Row],[ChillAve]]<65,65-ChillTempAct[[#This Row],[ChillAve]],0) -> 15 | F113: =INDEX(TempAdj[AdjustPct],MATCH(MONTH(ChillTempAct[[#This Row],[Date]]),TempAdj[Month],0)) -> 0.0426 | G113: =ChillTempAct[[#This Row],[ChillHDD]]*(1+ChillTempAct[[#This Row],[ChillAdj]]) -> 15.639 | H113: =SUMPRODUCT((RankNHDD[Month]=ChillTempAct[[#This Row],[Month]])*(RankNHDD[Rank]=ChillTempAct[[#This Row],[Rank]])*RankNHDD[KIRKNHDD]) -> 19.57666667 | I113: =YEAR(ChillTempAct[[#This Row],[Date]]) -> 2020 | J113: =MONTH(ChillTempAct[[#This Row],[Date]]) -> 11 | K113: =IF(ChillTempAct[[#This Row],[Month]]=J112,K112+1,1) -> 20 | L113: Temp data from NOAA website
A114: 44136 | B114: 68 | C114: 35 | D114: =AVERAGE(ChillTempAct[[#This Row],[ChillHigh]:[ChillLow]]) -> 51.5 | E114: =IF(ChillTempAct[[#This Row],[ChillAve]]<65,65-ChillTempAct[[#This Row],[ChillAve]],0) -> 13.5 | F114: =INDEX(TempAdj[AdjustPct],MATCH(MONTH(ChillTempAct[[#This Row],[Date]]),TempAdj[Month],0)) -> 0.0426 | G114: =ChillTempAct[[#This Row],[ChillHDD]]*(1+ChillTempAct[[#This Row],[ChillAdj]]) -> 14.0751 | H114: =SUMPRODUCT((RankNHDD[Month]=ChillTempAct[[#This Row],[Month]])*(RankNHDD[Rank]=ChillTempAct[[#This Row],[Rank]])*RankNHDD[KIRKNHDD]) -> 18.07796296 | I114: =YEAR(ChillTempAct[[#This Row],[Date]]) -> 2020 | J114: =MONTH(ChillTempAct[[#This Row],[Date]]) -> 11 | K114: =IF(ChillTempAct[[#This Row],[Month]]=J113,K113+1,1) -> 21 | L114: Temp data from NOAA website
A115: 44154 | B115: 67 | C115: 40 | D115: =AVERAGE(ChillTempAct[[#This Row],[ChillHigh]:[ChillLow]]) -> 53.5 | E115: =IF(ChillTempAct[[#This Row],[ChillAve]]<65,65-ChillTempAct[[#This Row],[ChillAve]],0) -> 11.5 | F115: =INDEX(TempAdj[AdjustPct],MATCH(MONTH(ChillTempAct[[#This Row],[Date]]),TempAdj[Month],0)) -> 0.0426 | G115: =ChillTempAct[[#This Row],[ChillHDD]]*(1+ChillTempAct[[#This Row],[ChillAdj]]) -> 11.9899 | H115: =SUMPRODUCT((RankNHDD[Month]=ChillTempAct[[#This Row],[Month]])*(RankNHDD[Rank]=ChillTempAct[[#This Row],[Rank]])*RankNHDD[KIRKNHDD]) -> 17.13425926 | I115: =YEAR(ChillTempAct[[#This Row],[Date]]) -> 2020 | J115: =MONTH(ChillTempAct[[#This Row],[Date]]) -> 11 | K115: =IF(ChillTempAct[[#This Row],[Month]]=J114,K114+1,1) -> 22 | L115: Temp data from NOAA website
A116: 44139 | B116: 74 | C116: 36 | D116: =AVERAGE(ChillTempAct[[#This Row],[ChillHigh]:[ChillLow]]) -> 55 | E116: =IF(ChillTempAct[[#This Row],[ChillAve]]<65,65-ChillTempAct[[#This Row],[ChillAve]],0) -> 10 | F116: =INDEX(TempAdj[AdjustPct],MATCH(MONTH(ChillTempAct[[#This Row],[Date]]),TempAdj[Month],0)) -> 0.0426 | G116: =ChillTempAct[[#This Row],[ChillHDD]]*(1+ChillTempAct[[#This Row],[ChillAdj]]) -> 10.426 | H116: =SUMPRODUCT((RankNHDD[Month]=ChillTempAct[[#This Row],[Month]])*(RankNHDD[Rank]=ChillTempAct[[#This Row],[Rank]])*RankNHDD[KIRKNHDD]) -> 16.06314815 | I116: =YEAR(ChillTempAct[[#This Row],[Date]]) -> 2020 | J116: =MONTH(ChillTempAct[[#This Row],[Date]]) -> 11 | K116: =IF(ChillTempAct[[#This Row],[Month]]=J115,K115+1,1) -> 23 | L116: Temp data from NOAA website
A117: 44140 | B117: 68 | C117: 48 | D117: =AVERAGE(ChillTempAct[[#This Row],[ChillHigh]:[ChillLow]]) -> 58 | E117: =IF(ChillTempAct[[#This Row],[ChillAve]]<65,65-ChillTempAct[[#This Row],[ChillAve]],0) -> 7 | F117: =INDEX(TempAdj[AdjustPct],MATCH(MONTH(ChillTempAct[[#This Row],[Date]]),TempAdj[Month],0)) -> 0.0426 | G117: =ChillTempAct[[#This Row],[ChillHDD]]*(1+ChillTempAct[[#This Row],[ChillAdj]]) -> 7.2982 | H117: =SUMPRODUCT((RankNHDD[Month]=ChillTempAct[[#This Row],[Month]])*(RankNHDD[Rank]=ChillTempAct[[#This Row],[Rank]])*RankNHDD[KIRKNHDD]) -> 15.07685185 | I117: =YEAR(ChillTempAct[[#This Row],[Date]]) -> 2020 | J117: =MONTH(ChillTempAct[[#This Row],[Date]]) -> 11 | K117: =IF(ChillTempAct[[#This Row],[Month]]=J116,K116+1,1) -> 24 | L117: Temp data from NOAA website
A118: 44141 | B118: 75 | C118: 42 | D118: =AVERAGE(ChillTempAct[[#This Row],[ChillHigh]:[ChillLow]]) -> 58.5 | E118: =IF(ChillTempAct[[#This Row],[ChillAve]]<65,65-ChillTempAct[[#This Row],[ChillAve]],0) -> 6.5 | F118: =INDEX(TempAdj[AdjustPct],MATCH(MONTH(ChillTempAct[[#This Row],[Date]]),TempAdj[Month],0)) -> 0.0426 | G118: =ChillTempAct[[#This Row],[ChillHDD]]*(1+ChillTempAct[[#This Row],[ChillAdj]]) -> 6.7769 | H118: =SUMPRODUCT((RankNHDD[Month]=ChillTempAct[[#This Row],[Month]])*(RankNHDD[Rank]=ChillTempAct[[#This Row],[Rank]])*RankNHDD[KIRKNHDD]) -> 13.91333333 | I118: =YEAR(ChillTempAct[[#This Row],[Date]]) -> 2020 | J118: =MONTH(ChillTempAct[[#This Row],[Date]]) -> 11 | K118: =IF(ChillTempAct[[#This Row],[Month]]=J117,K117+1,1) -> 25 | L118: Temp data from NOAA website
A119: 44142 | B119: 74 | C119: 44 | D119: =AVERAGE(ChillTempAct[[#This Row],[ChillHigh]:[ChillLow]]) -> 59 | E119: =IF(ChillTempAct[[#This Row],[ChillAve]]<65,65-ChillTempAct[[#This Row],[ChillAve]],0) -> 6 | F119: =INDEX(TempAdj[AdjustPct],MATCH(MONTH(ChillTempAct[[#This Row],[Date]]),TempAdj[Month],0)) -> 0.0426 | G119: =ChillTempAct[[#This Row],[ChillHDD]]*(1+ChillTempAct[[#This Row],[ChillAdj]]) -> 6.2556 | H119: =SUMPRODUCT((RankNHDD[Month]=ChillTempAct[[#This Row],[Month]])*(RankNHDD[Rank]=ChillTempAct[[#This Row],[Rank]])*RankNHDD[KIRKNHDD]) -> 12.53277778 | I119: =YEAR(ChillTempAct[[#This Row],[Date]]) -> 2020 | J119: =MONTH(ChillTempAct[[#This Row],[Date]]) -> 11 | K119: =IF(ChillTempAct[[#This Row],[Month]]=J118,K118+1,1) -> 26 | L119: Temp data from NOAA website
A120: 44155 | B120: 72 | C120: 46 | D120: =AVERAGE(ChillTempAct[[#This Row],[ChillHigh]:[ChillLow]]) -> 59 | E120: =IF(ChillTempAct[[#This Row],[ChillAve]]<65,65-ChillTempAct[[#This Row],[ChillAve]],0) -> 6 | F120: =INDEX(TempAdj[AdjustPct],MATCH(MONTH(ChillTempAct[[#This Row],[Date]]),TempAdj[Month],0)) -> 0.0426 | G120: =ChillTempAct[[#This Row],[ChillHDD]]*(1+ChillTempAct[[#This Row],[ChillAdj]]) -> 6.2556 | H120: =SUMPRODUCT((RankNHDD[Month]=ChillTempAct[[#This Row],[Month]])*(RankNHDD[Rank]=ChillTempAct[[#This Row],[Rank]])*RankNHDD[KIRKNHDD]) -> 10.46722222 | I120: =YEAR(ChillTempAct[[#This Row],[Date]]) -> 2020 | J120: =MONTH(ChillTempAct[[#This Row],[Date]]) -> 11 | K120: =IF(ChillTempAct[[#This Row],[Month]]=J119,K119+1,1) -> 27 | L120: Temp data from NOAA website
A121: 44145 | B121: 77 | C121: 43 | D121: =AVERAGE(ChillTempAct[[#This Row],[ChillHigh]:[ChillLow]]) -> 60 | E121: =IF(ChillTempAct[[#This Row],[ChillAve]]<65,65-ChillTempAct[[#This Row],[ChillAve]],0) -> 5 | F121: =INDEX(TempAdj[AdjustPct],MATCH(MONTH(ChillTempAct[[#This Row],[Date]]),TempAdj[Month],0)) -> 0.0426 | G121: =ChillTempAct[[#This Row],[ChillHDD]]*(1+ChillTempAct[[#This Row],[ChillAdj]]) -> 5.213 | H121: =SUMPRODUCT((RankNHDD[Month]=ChillTempAct[[#This Row],[Month]])*(RankNHDD[Rank]=ChillTempAct[[#This Row],[Rank]])*RankNHDD[KIRKNHDD]) -> 7.907222222 | I121: =YEAR(ChillTempAct[[#This Row],[Date]]) -> 2020 | J121: =MONTH(ChillTempAct[[#This Row],[Date]]) -> 11 | K121: =IF(ChillTempAct[[#This Row],[Month]]=J120,K120+1,1) -> 28 | L121: Temp data from NOAA website
A122: 44143 | B122: 72 | C122: 49 | D122: =AVERAGE(ChillTempAct[[#This Row],[ChillHigh]:[ChillLow]]) -> 60.5 | E122: =IF(ChillTempAct[[#This Row],[ChillAve]]<65,65-ChillTempAct[[#This Row],[ChillAve]],0) -> 4.5 | F122: =INDEX(TempAdj[AdjustPct],MATCH(MONTH(ChillTempAct[[#This Row],[Date]]),TempAdj[Month],0)) -> 0.0426 | G122: =ChillTempAct[[#This Row],[ChillHDD]]*(1+ChillTempAct[[#This Row],[ChillAdj]]) -> 4.6917 | H122: =SUMPRODUCT((RankNHDD[Month]=ChillTempAct[[#This Row],[Month]])*(RankNHDD[Rank]=ChillTempAct[[#This Row],[Rank]])*RankNHDD[KIRKNHDD]) -> 5.386111111 | I122: =YEAR(ChillTempAct[[#This Row],[Date]]) -> 2020 | J122: =MONTH(ChillTempAct[[#This Row],[Date]]) -> 11 | K122: =IF(ChillTempAct[[#This Row],[Month]]=J121,K121+1,1) -> 29 | L122: Temp data from NOAA website
A123: 44144 | B123: 76 | C123: 60 | D123: =AVERAGE(ChillTempAct[[#This Row],[ChillHigh]:[ChillLow]]) -> 68 | E123: =IF(ChillTempAct[[#This Row],[ChillAve]]<65,65-ChillTempAct[[#This Row],[ChillAve]],0) -> 0 | F123: =INDEX(TempAdj[AdjustPct],MATCH(MONTH(ChillTempAct[[#This Row],[Date]]),TempAdj[Month],0)) -> 0.0426 | G123: =ChillTempAct[[#This Row],[ChillHDD]]*(1+ChillTempAct[[#This Row],[ChillAdj]]) -> 0 | H123: =SUMPRODUCT((RankNHDD[Month]=ChillTempAct[[#This Row],[Month]])*(RankNHDD[Rank]=ChillTempAct[[#This Row],[Rank]])*RankNHDD[KIRKNHDD]) -> 1.790740741 | I123: =YEAR(ChillTempAct[[#This Row],[Date]]) -> 2020 | J123: =MONTH(ChillTempAct[[#This Row],[Date]]) -> 11 | K123: =IF(ChillTempAct[[#This Row],[Month]]=J122,K122+1,1) -> 30 | L123: Temp data from NOAA website
A124: 44190 | B124: 22 | C124: 4 | D124: =AVERAGE(ChillTempAct[[#This Row],[ChillHigh]:[ChillLow]]) -> 13 | E124: =IF(ChillTempAct[[#This Row],[ChillAve]]<65,65-ChillTempAct[[#This Row],[ChillAve]],0) -> 52 | F124: =INDEX(TempAdj[AdjustPct],MATCH(MONTH(ChillTempAct[[#This Row],[Date]]),TempAdj[Month],0)) -> 0.0288 | G124: =ChillTempAct[[#This Row],[ChillHDD]]*(1+ChillTempAct[[#This Row],[ChillAdj]]) -> 53.4976 | H124: =SUMPRODUCT((RankNHDD[Month]=ChillTempAct[[#This Row],[Month]])*(RankNHDD[Rank]=ChillTempAct[[#This Row],[Rank]])*RankNHDD[KIRKNHDD]) -> 64.14112903 | I124: =YEAR(ChillTempAct[[#This Row],[Date]]) -> 2020 | J124: =MONTH(ChillTempAct[[#This Row],[Date]]) -> 12 | K124: =IF(ChillTempAct[[#This Row],[Month]]=J123,K123+1,1) -> 1 | L124: Temp data from NOAA website
